{"text_format":"1","workbook":"xlsx","n_sheets":5,"sheets":["NOMBRE","B","B17","Control","MACROS"],"not_rendered":{"charts":0,"images":1,"macros":1,"external_links":0,"defined_names":3,"comments":0,"pivot_tables":0},"unopened":[],"bounds":{"document_bytes":16777216,"sheet_cells":100000,"rows_first":2000,"rows_last":500,"rows_between":2000,"halvings":0,"cell_chars":16384,"cell_head_chars":4096},"cells_cut":0,"cells_raw":0,"read":"whole","date_system":"1900"}

{"sheet":"NOMBRE","index":0,"n_rows":35,"n_cols":32,"rows_kept":35,"cut":false,"hidden":false,"merged":[[16,1,18,1],[0,0,0,1],[0,2,0,6],[1,8,1,13],[2,8,2,13],[8,0,8,1],[14,0,14,1]]}
["DATOS DEL ESTABLECIMIENTO",null,"CÓDIGOS"]
["NOMBRE DE COMUNA",null,null,null,null,null,null,null,{"$f":"IF(OR(NOMBRE!C2=\"\",NOMBRE!D2=\"\",NOMBRE!E2=\"\",NOMBRE!F2=\"\",NOMBRE!G2=\"\"),\"Falta Cód. Com.\",\"\")","v":"Falta Cód. Com."},null,null,null,null,null,null,null,null,null,null,null,null,null,null,null,null,null,null,null,null,null,null,{"$f":"IF(I2>\"\",1,0)","v":1}]
["NOMBRE ESTABLECIMIENTO/ESTRATEGIA",null,null,null,null,null,null,null,{"$f":"IF(OR(NOMBRE!C3=\"\",NOMBRE!D3=\"\",NOMBRE!E3=\"\",NOMBRE!F3=\"\",NOMBRE!G3=\"\",NOMBRE!H3=\"\"),\"Falta Cód. Est.\",\"\")","v":"Falta Cód. Est."},null,null,null,null,null,null,null,null,null,null,null,null,null,null,null,null,null,null,null,null,null,null,{"$f":"IF(I3>\"\",1,0)","v":1}]
[]
[]
["MES:",null,null,null,null,null,null,null,{"$f":"IF(OR(NOMBRE!C6=\"\",NOMBRE!D6=\"\"),\"Falta Cód. Mes.\",\"\")","v":"Falta Cód. Mes."},null,null,null,null,null,null,null,null,null,null,null,null,null,null,null,null,null,null,null,null,null,null,{"$f":"IF(I6>\"\",1,0)","v":1}]
["AÑO:",2025,null,null,null,null,null,null,null,null,null,null,null,null,null,null,null,null,null,null,null,null,null,null,null,null,null,null,null,null,null,{"$f":"SUM(AF2:AF6)","v":3}]
[]
["Versión 1.1: Febrero 2025"]
[]
["Director/a Servicio de Salud o Director/a Establecimiento",null,null,null,null,null,null,null,null,null,null,null,null,null,null,null,null,null,null,null,null,null,null,null,null,"ENERO","Establecimiento de Mayor Complejidad (EMAYC)","SERVICIO DE SALUD"]
["Jefe/a de Estadísticas",null,null,null,null,null,null,null,null,null,null,null,null,null,null,null,null,null,null,null,null,null,null,null,null,"FEBRERO","Establecimiento de Mediana Complejidad (EMEDC)","MUNICIPAL"]
[null,null,null,null,null,null,null,null,null,null,null,null,null,null,null,null,null,null,null,null,null,null,null,null,null,"MARZO","Establecimiento de Menor Complejidad (EMENC)","OTRA INSTITUCIÓN (Delegado)"]
[null,null,null,null,null,null,null,null,null,null,null,null,null,null,null,null,null,null,null,null,null,null,null,null,null,"ABRIL","Centros de Diagnóstico Terapéutico (CDT)"]
["MINSAL - DEIS",null,null,null,null,null,null,null,null,null,null,null,null,null,null,null,null,null,null,null,null,null,null,null,null,"MAYO","Centro de Referencia de Salud (CRS)"]
[null,null,null,null,null,null,null,null,null,null,null,null,null,null,null,null,null,null,null,null,null,null,null,null,null,"JULIO","Consultorio General Urbano(CGU) con SAPU/SUR/SAR"]
[null,"SERIE BS",null,null,null,null,null,null,null,null,null,null,null,null,null,null,null,null,null,null,null,null,null,null,null,"AGOSTO","Consultorio General Urbano (CGU) - CESFAM con SAPU/SAR"]
[null,null,null,null,null,null,null,null,null,null,null,null,null,null,null,null,null,null,null,null,null,null,null,null,null,"SEPTIEMBRE","Consultorio General Rural (CGR)"]
[null,null,null,null,null,null,null,null,null,null,null,null,null,null,null,null,null,null,null,null,null,null,null,null,null,"OCTUBRE","Consultorio General Rural (CGR) - CESFAM"]
[null,null,null,null,null,null,null,null,null,null,null,null,null,null,null,null,null,null,null,null,null,null,null,null,null,"NOVIEMBRE","Consultorio General Rural (CGR) con SAPU/SUR/SAR"]
[null,null,null,null,null,null,null,null,null,null,null,null,null,null,null,null,null,null,null,null,null,null,null,null,null,"DICIEMBRE","Consultorio General Rural (CGR) - CESFAM con SAPU/SUR/SAR"]
[null,null,null,null,null,null,null,null,null,null,null,null,null,null,null,null,null,null,null,null,null,null,null,null,null,null,"Posta de Salud Rural (PSR)"]
[null,null,null,null,null,null,null,null,null,null,null,null,null,null,null,null,null,null,null,null,null,null,null,null,null,null,"Centro Comunitario de Salud Familiar (CECOF)"]
[null,null,null,null,null,null,null,null,null,null,null,null,null,null,null,null,null,null,null,null,null,null,null,null,null,null,"Consultorio de Salud Mental (COSAM)"]
[null,null,null,null,null,null,null,null,null,null,null,null,null,null,null,null,null,null,null,null,null,null,null,null,null,null,"Programa de Reparación y Atención Integral de Salud (PRAIS)"]
[null,null,null,null,null,null,null,null,null,null,null,null,null,null,null,null,null,null,null,null,null,null,null,null,null,null,"Centro de Atención Funcionarios (CAF)"]
[null,null,null,null,null,null,null,null,null,null,null,null,null,null,null,null,null,null,null,null,null,null,null,null,null,null,"Clínica Dental Móvil (CDM)"]
[null,null,null,null,null,null,null,null,null,null,null,null,null,null,null,null,null,null,null,null,null,null,null,null,null,null,"Dirección Servicio de Salud (DSS)"]
[null,null,null,null,null,null,null,null,null,null,null,null,null,null,null,null,null,null,null,null,null,null,null,null,null,null,"Servicio de Atención Primaria de Urgencia (SAPU)"]
[null,null,null,null,null,null,null,null,null,null,null,null,null,null,null,null,null,null,null,null,null,null,null,null,null,null,"Servicio de Atención Primaria de Urgencia Alta Resolución (SAR)"]
[null,null,null,null,null,null,null,null,null,null,null,null,null,null,null,null,null,null,null,null,null,null,null,null,null,null,"Laboratorio Clínico o Dental"]
[null,null,null,null,null,null,null,null,null,null,null,null,null,null,null,null,null,null,null,null,null,null,null,null,null,null,"Servicio de Atención Primaria de Urgencia Dental (SAPUDENT)"]
[null,null,null,null,null,null,null,null,null,null,null,null,null,null,null,null,null,null,null,null,null,null,null,null,null,null,"Centro de Rehabilitación (CR)"]
[null,null,null,null,null,null,null,null,null,null,null,null,null,null,null,null,null,null,null,null,null,null,null,null,null,null,"Hospital de Campaña"]
[null,null,null,null,null,null,null,null,null,null,null,null,null,null,null,null,null,null,null,null,null,null,null,null,null,null,"Centro Oncologico"]

{"sheet":"B","index":1,"n_rows":3102,"n_cols":106,"rows_kept":562,"cut":true,"hidden":false,"merged":[[7,0,9,0],[7,1,9,1],[7,2,9,2],[7,3,7,6],[7,7,7,13],[7,14,8,16],[5,0,6,37],[7,33,8,34],[7,35,9,35],[7,36,8,37],[8,3,9,3],[8,4,8,5],[8,6,9,6],[8,7,9,7],[8,8,8,10],[8,11,8,13],[7,17,8,19],[7,20,8,22],[7,23,8,25],[7,26,8,28],[7,29,8,31],[7,32,9,32],[71,0,71,1],[71,7,71,25],[71,36,71,37],[72,0,72,1],[73,0,73,1],[73,2,73,37],[10,0,10,1],[10,2,10,37],[60,0,60,1],[60,7,60,25],[60,36,60,37],[61,0,61,1],[126,0,126,1],[126,2,126,37],[134,0,134,1],[134,7,134,25],[134,36,134,37],[135,0,135,1],[135,2,135,37],[121,0,121,1],[121,7,121,25],[121,36,121,37],[122,0,122,1],[122,2,122,37],[125,0,125,1],[125,7,125,25],[125,36,125,37],[175,0,175,1],[175,2,175,37],[187,0,187,1],[187,7,187,25],[187,36,187,37],[188,0,188,1],[188,2,188,37],[143,0,143,1],[143,7,143,25],[143,36,143,37],[144,0,144,1],[144,2,144,37],[174,0,174,1],[174,7,174,25],[174,36,174,37],[286,0,286,1],[286,7,286,25],[286,36,286,37],[287,0,287,1],[287,2,287,37],[367,0,367,1],[367,7,367,25],[367,36,367,37],[208,0,208,1],[208,7,208,25],[208,36,208,37],[209,0,209,6],[209,7,209,37],[210,0,210,1],[210,2,210,37],[428,0,428,1],[428,7,428,25],[428,36,428,37],[429,0,429,1],[429,2,429,37],[508,0,508,1],[508,7,508,25],[508,36,508,37],[368,0,368,1],[368,2,368,37],[413,0,413,1],[413,7,413,25],[413,36,413,37],[414,0,414,1],[414,2,414,37],[569,0,569,1],[569,2,569,37],[588,0,588,1],[588,7,588,25],[588,36,588,37],[589,0,589,1],[589,2,589,37],[509,0,509,6],[510,0,510,1],[510,2,510,37],[568,0,568,1],[568,7,568,25],[568,36,568,37],[649,0,649,1],[649,2,649,37],[659,0,659,1],[659,7,659,25],[659,36,659,37],[660,0,660,1],[660,2,660,37],[638,0,638,1],[638,7,638,25],[638,36,638,37],[639,0,639,1],[639,2,639,37],[648,0,648,1],[648,7,648,25],[648,36,648,37],[752,0,752,6],[753,0,753,1],[753,2,753,37],[811,0,811,1],[811,7,811,25],[812,0,812,1],[812,2,812,37],[709,0,709,1],[709,7,709,25],[709,36,709,37],[710,0,710,1],[710,2,710,37],[751,0,751,1],[751,7,751,25],[751,36,751,37],[864,0,864,1],[864,2,864,37],[888,0,888,1],[888,7,888,25],[889,0,889,1],[889,2,889,37],[833,0,833,1],[833,7,833,25],[834,0,834,1],[834,2,834,37],[863,0,863,1],[863,7,863,25],[950,0,950,6],[951,0,951,1],[951,2,951,37],[952,0,952,1],[952,2,952,37],[958,0,958,1],[958,7,958,25],[930,0,930,1],[930,7,930,25],[931,0,931,1],[931,2,931,37],[949,0,949,1],[949,7,949,25],[975,0,975,1],[975,7,975,25],[976,0,976,1],[976,2,976,37],[985,0,985,1],[985,7,985,25],[959,0,959,1],[959,2,959,37],[966,0,966,1],[966,7,966,25],[967,0,967,1],[967,2,967,37],[996,0,996,1],[996,7,996,25],[997,0,997,1],[997,2,997,37],[1000,0,1000,1],[1000,7,1000,25],[986,0,986,1],[986,2,986,37],[992,0,992,1],[992,7,992,25],[993,0,993,1],[993,2,993,37],[1012,0,1012,1],[1012,7,1012,25],[1013,0,1013,1],[1013,2,1013,35],[1015,0,1015,1],[1015,7,1015,25],[1001,0,1001,1],[1001,2,1001,37],[1004,0,1004,1],[1004,7,1004,25],[1005,0,1005,1],[1005,2,1005,37],[1026,0,1026,1],[1026,7,1026,25],[1027,0,1027,6],[1028,0,1028,1],[1028,2,1028,37],[1032,0,1032,1],[1032,7,1032,25],[1016,0,1016,1],[1016,2,1016,35],[1018,0,1018,1],[1018,7,1018,25],[1019,0,1019,6],[1020,0,1020,1],[1020,2,1020,37],[1061,0,1061,1],[1061,7,1061,25],[1062,0,1062,1],[1062,2,1062,37],[1064,0,1064,1],[1065,0,1065,1],[1065,2,1065,37],[1033,0,1033,1],[1033,2,1033,37],[1042,0,1042,1],[1042,7,1042,25],[1043,0,1043,1],[1043,2,1043,37],[1172,0,1172,1],[1172,2,1172,37],[1187,0,1187,1],[1187,7,1187,25],[1187,36,1187,37],[1188,0,1188,1],[1188,2,1188,37],[1126,0,1126,1],[1126,7,1126,25],[1126,36,1126,37],[1127,0,1127,1],[1127,2,1127,37],[1171,0,1171,1],[1171,7,1171,25],[1171,36,1171,37],[1209,0,1209,6],[1210,0,1210,1],[1210,2,1210,37],[1259,0,1259,1],[1259,7,1259,25],[1260,0,1260,1],[1260,2,1260,37],[1199,0,1199,1],[1199,7,1199,25],[1199,36,1199,37],[1200,0,1200,1],[1200,2,1200,37],[1208,0,1208,1],[1208,7,1208,25],[1208,36,1208,37],[1484,0,1484,1],[1485,0,1485,1],[1485,2,1485,37],[1545,0,1545,1],[1545,7,1545,25],[1546,0,1546,1],[1546,2,1546,37],[1342,0,1342,1],[1343,0,1343,1],[1343,2,1343,37],[1398,0,1398,1],[1398,7,1398,25],[1399,0,1399,1],[1399,2,1399,37],[1719,0,1719,1],[1719,3,1719,6],[1720,0,1720,1],[1720,2,1720,37],[1792,0,1792,1],[1793,0,1793,1],[1793,2,1793,37],[1655,0,1655,1],[1656,0,1656,1],[1656,2,1656,37],[1658,0,1658,1],[1658,7,1658,25],[1659,0,1659,1],[1659,2,1659,37],[1908,0,1908,1],[1908,7,1908,25],[1909,0,1909,1],[1909,2,1909,37],[1992,0,1992,1],[1993,0,1993,1],[1993,2,1993,37],[1809,0,1809,1],[1809,7,1809,25],[1810,0,1810,1],[1810,2,1810,37],[1835,0,1835,1],[1836,0,1836,1],[1836,2,1836,37],[2190,0,2190,1],[2190,7,2190,25],[2191,0,2191,1],[2191,2,2191,37],[2305,0,2305,1],[2305,3,2305,6],[2090,0,2090,1],[2091,0,2091,1],[2091,2,2091,37],[2132,0,2132,1],[2132,7,2132,25],[2133,0,2133,1],[2133,2,2133,37],[2370,0,2370,1],[2370,7,2370,25],[2371,0,2371,6],[2372,0,2372,1],[2372,2,2372,37],[2382,0,2382,1],[2382,7,2382,25],[2306,0,2306,1],[2306,2,2306,37],[2345,0,2345,1],[2345,3,2345,6],[2346,0,2346,1],[2346,2,2346,37],[2493,0,2493,1],[2493,7,2493,25],[2494,0,2494,1],[2494,2,2494,37],[2500,0,2500,1],[2500,3,2500,6],[2383,0,2383,1],[2383,2,2383,37],[2463,0,2463,1],[2463,3,2463,6],[2464,0,2464,1],[2464,2,2464,37],[2555,0,2555,1],[2556,0,2556,1],[2556,2,2556,37],[2570,0,2570,1],[2571,0,2571,1],[2571,2,2571,37],[2501,0,2501,1],[2501,2,2501,37],[2540,0,2540,1],[2540,3,2540,6],[2541,0,2541,1],[2541,2,2541,37],[2790,0,2790,1],[2790,2,2790,37],[2798,0,2798,1],[2798,7,2798,25],[2799,0,2799,1],[2799,2,2799,37],[2784,0,2784,1],[2784,3,2784,6],[2785,0,2785,1],[2785,2,2785,37],[2789,0,2789,1],[2789,3,2789,6],[2847,0,2847,1],[2847,2,2847,37],[2855,0,2855,1],[2855,7,2855,25],[2855,36,2855,37],[2856,0,2856,6],[2838,0,2838,1],[2838,7,2838,25],[2838,36,2838,37],[2839,0,2839,1],[2839,2,2839,37],[2846,0,2846,1],[2846,7,2846,25],[2846,36,2846,37],[2892,0,2892,1],[2892,7,2892,25],[2893,0,2893,1],[2893,2,2893,37],[2910,0,2910,1],[2910,7,2910,25],[2857,0,2857,1],[2857,2,2857,37],[2873,0,2873,1],[2873,7,2873,25],[2873,36,2873,37],[2874,0,2874,1],[2874,2,2874,37],[3021,0,3021,1],[3022,0,3022,1],[3022,2,3022,37],[3024,36,3024,37],[3059,0,3059,1],[3059,7,3059,25],[2911,0,2911,1],[2911,2,2911,37],[2944,0,2944,1],[2944,7,2944,25],[2945,0,2945,1],[2945,2,2945,37],[3071,0,3071,1],[3071,7,3071,25],[3072,0,3072,1],[3072,2,3072,37],[3078,0,3078,1],[3078,7,3078,25],[3060,0,3060,1],[3060,2,3060,37],[3063,0,3063,1],[3063,7,3063,25],[3064,0,3064,1],[3064,2,3064,35]],"bounds":{"rows_first":250,"rows_last":62,"rows_between":250,"halvings":3}}
["SERVICIO DE SALUD / ESTABLECIMIENTO MUNICIPAL"]
[{"$f":"CONCATENATE(\"COMUNA: \",NOMBRE!B2,\" (\",NOMBRE!C2,NOMBRE!D2,NOMBRE!E2,NOMBRE!F2,NOMBRE!G2,\" )\")","v":"COMUNA:  ( )"}]
[{"$f":"CONCATENATE(\"ESTABLECIMIENTO/ESTRATEGIA: \",NOMBRE!B3,\" (\",NOMBRE!C3,NOMBRE!D3,NOMBRE!E3,NOMBRE!F3,NOMBRE!G3,NOMBRE!H3,\" )\")","v":"ESTABLECIMIENTO/ESTRATEGIA:  ( )"}]
[{"$f":"CONCATENATE(\"MES: \", NOMBRE!B6, \" (\", NOMBRE!C6,NOMBRE!D6,\")\")","v":"MES:  ()"}]
[{"$f":"CONCATENATE(\"AÑO: \",NOMBRE!B7)","v":"AÑO: 2025"}]
["REM-B:  CONSULTAS Y ATENCIÓN MEDICA "]
[]
["CÓDIGO","GLOSA","TOTAL","ACTIVIDADES",null,null,null,"INTERVENCIONES QUIRÚRGICAS",null,null,null,null,null,null,"INTERVENCIONES QUIRÚRGICAS MAYORES NO AMBULATORIAS ELECTIVAS",null,null,"INTERVENCIONES QUIRÚRGICAS MAYORES AMBULATORIAS ELECTIVA",null,null,"INTERVENCIONES QUIRÚRGICAS MAYORES AMBULATORIAS URGENCIA",null,null,"INTERVENCIONES QUIRÚRGICAS MAYORES NO AMBULATORIAS URGENCIA",null,null,"PROCEDENCIA",null,null,"PRODUCCIÓN INTRAHOSPITAL",null,null,"OPERATIVO","COMPRAS REALIZADAS",null,"VENTAS DE SERVICIOS","PROCEDIMIENTOS EN USUARIOS CON REQUERIMIENTOS ESPECIALES"]
[null,null,null,"Total Beneficiarios","Beneficiarios",null,"No Beneficiarios","Total Beneficiarios","Principal",null,null,"Secundaria",null,null,null,null,null,"< 15 AÑOS",null,null,"< 15 AÑOS",null,null,"< 15 AÑOS"]
[null,null,null,null,"MAI","MLE",null,null,"MAI","MLE","No Beneficiarios","MAI","MLE","No Beneficiarios","Total","< 15 años","15 años y más","Total","< 15 años","15 años y más","Total","< 15 años","15 años y más","Total","< 15 años","15 años y más","Atención Cerrada","Atención Abierta","Emergencia","Honorarios","Convenios","Consultores de llamada",null,"Al Sistema","Extrasistema",null,"Quirófano Cirugía Mayor","Asistencia Anestésica"]
["CONSULTAS Y ATENCIÓN MEDICA "]
["0101201","Consulta Médica de Especialidad en Dermatología",{"$f":"SUM(D12+G12)","v":0},{"$f":"SUM(E12:F12)","v":0},null,null,null,null,null,null,null,null,null,null,null,null,null,null,null,null,null,null,null,null,null,null,null,null,null,null,null,null,null,null,null,null,null,null,{"$f":"CA12&CB12&CC12&CD12&CE12&CF12&CG12&CH12&CI12&CJ12&CK12","v":""},null,null,null,null,null,null,null,null,null,null,null,null,null,null,null,null,null,null,null,null,null,null,null,null,null,null,null,null,null,null,null,null,null,null,null,null,null,null,null,{"$f":"IF(AND($C12>0,AA12=\"\"),\" * No olvide digitar la variable \"&$AA$8&\"\"&\": Atención Cerrada. Digite Cero si no tiene.\",\"\")","v":""},{"$f":"IF(AND($C12>0,AB12=\"\"),\" * No olvide digitar la variable \"&$AA$8&\"\"&\": Atención Abierta. Digite Cero si no tiene.\",\"\")","v":""},{"$f":"IF(AND($C12>0,AC12=\"\"),\" * No olvide digitar la variable \"&$AA$8&\"\"&\": Emergencia. Digite Cero si no tiene.\",\"\")","v":""},{"$f":"IF(AND(C12<AA12+AB12+AC12),\" * La Suma de la variable \"&$AA$8&\"\"&\" no puede ser mayor al Total.\",\"\")","v":""},{"$f":"IF(AND($C12>0,AD12=\"\"),\" * No olvide digitar la variable \"&$AD$8&\"\"&\": Honorarios. Digite Cero si no tiene.\",\"\")","v":""},{"$f":"IF(AND($C12>0,AE12=\"\"),\" * No olvide digitar la variable \"&$AD$8&\"\"&\": Convenios. Digite Cero si no tiene.\",\"\")","v":""},{"$f":"IF(AND($C12>0,AF12=\"\"),\" * No olvide digitar la variable \"&$AD$8&\"\"&\": Consultores de llamada. Digite Cero si no tiene.\",\"\")","v":""},{"$f":"IF(AND($C12>0,AG12=\"\"),\" * No olvide digitar la variable \"&$AG$8&\"\"&\". Digite Cero si no tiene.\",\"\")","v":""},{"$f":"IF(AND($C12>0,AH12=\"\"),\" * No olvide digitar la variable \"&$AH$8&\"\"&\" Al Sistema. Digite Cero si no tiene.\",\"\")","v":""},{"$f":"IF(AND($C12>0,AI12=\"\"),\" * No olvide digitar la variable \"&$AH$8&\"\"&\" al Extrasistema. Digite Cero si no tiene.\",\"\")","v":""},{"$f":"IF(AND($C12>0,AJ12=\"\"),\" * No olvide digitar la variable \"&$AJ$8&\"\"&\". Digite Cero si no tiene.\",\"\")","v":""},null,null,null,null,{"$f":"IF(AND($C12>0,AA12=\"\"),1,0)","v":0},{"$f":"IF(AND($C12>0,AB12=\"\"),1,0)","v":0},{"$f":"IF(AND($C12>0,AC12=\"\"),1,0)","v":0},{"$f":"IF(AND(C12<AA12+AB12+AC12),1,0)","v":0},{"$f":"IF(AND($C12>0,AD12=\"\"),1,0)","v":0},0,0,0,0,0,0]
["0101202","Consulta Médica de Especialidad en Geriatría",{"$f":"SUM(D13+G13)","v":0},{"$f":"SUM(E13:F13)","v":0},null,null,null,null,null,null,null,null,null,null,null,null,null,null,null,null,null,null,null,null,null,null,null,null,null,null,null,null,null,null,null,null,null,null,{"$f":"CA13&CB13&CC13&CD13&CE13&CF13&CG13&CH13&CI13&CJ13&CK13","v":""},null,null,null,null,null,null,null,null,null,null,null,null,null,null,null,null,null,null,null,null,null,null,null,null,null,null,null,null,null,null,null,null,null,null,null,null,null,null,null,{"$f":"IF(AND($C13>0,AA13=\"\"),\" * No olvide digitar la variable \"&$AA$8&\"\"&\": Atención Cerrada. Digite Cero si no tiene.\",\"\")","v":""},{"$f":"IF(AND($C13>0,AB13=\"\"),\" * No olvide digitar la variable \"&$AA$8&\"\"&\": Atención Abierta. Digite Cero si no tiene.\",\"\")","v":""},{"$f":"IF(AND($C13>0,AC13=\"\"),\" * No olvide digitar la variable \"&$AA$8&\"\"&\": Emergencia. Digite Cero si no tiene.\",\"\")","v":""},{"$f":"IF(AND(C13<AA13+AB13+AC13),\" * La Suma de la variable \"&$AA$8&\"\"&\" no puede ser mayor al Total.\",\"\")","v":""},{"$f":"IF(AND($C13>0,AD13=\"\"),\" * No olvide digitar la variable \"&$AD$8&\"\"&\": Honorarios. Digite Cero si no tiene.\",\"\")","v":""},{"$f":"IF(AND($C13>0,AE13=\"\"),\" * No olvide digitar la variable \"&$AD$8&\"\"&\": Convenios. Digite Cero si no tiene.\",\"\")","v":""},{"$f":"IF(AND($C13>0,AF13=\"\"),\" * No olvide digitar la variable \"&$AD$8&\"\"&\": Consultores de llamada. Digite Cero si no tiene.\",\"\")","v":""},{"$f":"IF(AND($C13>0,AG13=\"\"),\" * No olvide digitar la variable \"&$AG$8&\"\"&\". Digite Cero si no tiene.\",\"\")","v":""},{"$f":"IF(AND($C13>0,AH13=\"\"),\" * No olvide digitar la variable \"&$AH$8&\"\"&\" Al Sistema. Digite Cero si no tiene.\",\"\")","v":""},{"$f":"IF(AND($C13>0,AI13=\"\"),\" * No olvide digitar la variable \"&$AH$8&\"\"&\" al Extrasistema. Digite Cero si no tiene.\",\"\")","v":""},{"$f":"IF(AND($C13>0,AJ13=\"\"),\" * No olvide digitar la variable \"&$AJ$8&\"\"&\". Digite Cero si no tiene.\",\"\")","v":""},null,null,null,null,{"$f":"IF(AND($C13>0,AA13=\"\"),1,0)","v":0},{"$f":"IF(AND($C13>0,AB13=\"\"),1,0)","v":0},{"$f":"IF(AND($C13>0,AC13=\"\"),1,0)","v":0},{"$f":"IF(AND(C13<AA13+AB13+AC13),1,0)","v":0},{"$f":"IF(AND($C13>0,AD13=\"\"),1,0)","v":0},{"$f":"IF(AND($C13>0,AE13=\"\"),1,0)","v":0},{"$f":"IF(AND($C13>0,AF13=\"\"),1,0)","v":0},{"$f":"IF(AND($C13>0,AG13=\"\"),1,0)","v":0},{"$f":"IF(AND($C13>0,AH13=\"\"),1,0)","v":0},{"$f":"IF(AND($C13>0,AI13=\"\"),1,0)","v":0},{"$f":"IF(AND($C13>0,AJ13=\"\"),1,0)","v":0}]
["0101203","Consulta Médica de Especialidad en Neurocirugía",0,0,null,null,null,null,null,null,null,null,null,null,null,null,null,null,null,null,null,null,null,null,null,null,null,null,null,null,null,null,null,null,null,null,null,null,"",null,null,null,null,null,null,null,null,null,null,null,null,null,null,null,null,null,null,null,null,null,null,null,null,null,null,null,null,null,null,null,null,null,null,null,null,null,null,null,"","","","","","","","","","","",null,null,null,null,0,0,0,0,0,0,0,0,0,0,0]
["0101204","Consulta Médica de Especialidad en Oftalmología",0,0,null,null,null,null,null,null,null,null,null,null,null,null,null,null,null,null,null,null,null,null,null,null,null,null,null,null,null,null,null,null,null,null,null,null,"",null,null,null,null,null,null,null,null,null,null,null,null,null,null,null,null,null,null,null,null,null,null,null,null,null,null,null,null,null,null,null,null,null,null,null,null,null,null,null,"","","","","","","","","","","",null,null,null,null,0,0,0,0,0,0,0,0,0,0,0]
["0101205","Consulta Médica de Especialidad en Otorrinolaringología",0,0,null,null,null,null,null,null,null,null,null,null,null,null,null,null,null,null,null,null,null,null,null,null,null,null,null,null,null,null,null,null,null,null,null,null,"",null,null,null,null,null,null,null,null,null,null,null,null,null,null,null,null,null,null,null,null,null,null,null,null,null,null,null,null,null,null,null,null,null,null,null,null,null,null,null,"","","","","","","","","","","",null,null,null,null,0,0,0,0,0,0,0,0,0,0,0]
["0101206","Consulta Médica de Especialidad en Reumatología",0,0,null,null,null,null,null,null,null,null,null,null,null,null,null,null,null,null,null,null,null,null,null,null,null,null,null,null,null,null,null,null,null,null,null,null,"",null,null,null,null,null,null,null,null,null,null,null,null,null,null,null,null,null,null,null,null,null,null,null,null,null,null,null,null,null,null,null,null,null,null,null,null,null,null,null,"","","","","","","","","","","",null,null,null,null,0,0,0,0,0,0,0,0,0,0,0]
["0101207","Consulta Médica de Especialidad en Endocrinología Adulto",0,0,null,null,null,null,null,null,null,null,null,null,null,null,null,null,null,null,null,null,null,null,null,null,null,null,null,null,null,null,null,null,null,null,null,null,"",null,null,null,null,null,null,null,null,null,null,null,null,null,null,null,null,null,null,null,null,null,null,null,null,null,null,null,null,null,null,null,null,null,null,null,null,null,null,null,"","","","","","","","","","","",null,null,null,null,0,0,0,0,0,0,0,0,0,0,0]
["0101208","Consulta Médica de Especialidad en Endocrinología Pediátrica",0,0,null,null,null,null,null,null,null,null,null,null,null,null,null,null,null,null,null,null,null,null,null,null,null,null,null,null,null,null,null,null,null,null,null,null,"",null,null,null,null,null,null,null,null,null,null,null,null,null,null,null,null,null,null,null,null,null,null,null,null,null,null,null,null,null,null,null,null,null,null,null,null,null,null,null,"","","","","","","","","","","",null,null,null,null,0,0,0,0,0,0,0,0,0,0,0]
["0101209","Consulta Médica de Especialidad en Neurología Adultos",0,0,null,null,null,null,null,null,null,null,null,null,null,null,null,null,null,null,null,null,null,null,null,null,null,null,null,null,null,null,null,null,null,null,null,null,"",null,null,null,null,null,null,null,null,null,null,null,null,null,null,null,null,null,null,null,null,null,null,null,null,null,null,null,null,null,null,null,null,null,null,null,null,null,null,null,"","","","","","","","","","","",null,null,null,null,0,0,0,0,0,0,0,0,0,0,0]
["0101210","Consulta Médica de Especialidad en Neurología Pediátrica",0,0,null,null,null,null,null,null,null,null,null,null,null,null,null,null,null,null,null,null,null,null,null,null,null,null,null,null,null,null,null,null,null,null,null,null,"",null,null,null,null,null,null,null,null,null,null,null,null,null,null,null,null,null,null,null,null,null,null,null,null,null,null,null,null,null,null,null,null,null,null,null,null,null,null,null,"","","","","","","","","","","",null,null,null,null,0,0,0,0,0,0,0,0,0,0,0]
["0101211","Consulta Médica de Especialidad en Oncología Médica",0,0,null,null,null,null,null,null,null,null,null,null,null,null,null,null,null,null,null,null,null,null,null,null,null,null,null,null,null,null,null,null,null,null,null,null,"",null,null,null,null,null,null,null,null,null,null,null,null,null,null,null,null,null,null,null,null,null,null,null,null,null,null,null,null,null,null,null,null,null,null,null,null,null,null,null,"","","","","","","","","","","",null,null,null,null,0,0,0,0,0,0,0,0,0,0,0]
["0101212","Consulta Médica de Especialidad en Psiquiatría adultos",0,0,null,null,null,null,null,null,null,null,null,null,null,null,null,null,null,null,null,null,null,null,null,null,null,null,null,null,null,null,null,null,null,null,null,null,"",null,null,null,null,null,null,null,null,null,null,null,null,null,null,null,null,null,null,null,null,null,null,null,null,null,null,null,null,null,null,null,null,null,null,null,null,null,null,null,"","","","","","","","","","","",null,null,null,null,0,0,0,0,0,0,0,0,0,0,0]
["0101213","Consulta Médica de Especialidad en Psiquiatría pediátrica y de la adolescencia",0,0,null,null,null,null,null,null,null,null,null,null,null,null,null,null,null,null,null,null,null,null,null,null,null,null,null,null,null,null,null,null,null,null,null,null,"",null,null,null,null,null,null,null,null,null,null,null,null,null,null,null,null,null,null,null,null,null,null,null,null,null,null,null,null,null,null,null,null,null,null,null,null,null,null,null,"","","","","","","","","","","",null,null,null,null,0,0,0,0,0,0,0,0,0,0,0]
["0101300","Consulta Médica otras Especialidades",0,0,null,null,null,null,null,null,null,null,null,null,null,null,null,null,null,null,null,null,null,null,null,null,null,null,null,null,null,null,null,null,null,null,null,null,"",null,null,null,null,null,null,null,null,null,null,null,null,null,null,null,null,null,null,null,null,null,null,null,null,null,null,null,null,null,null,null,null,null,null,null,null,null,null,null,"","","","","","","","","","","",null,null,null,null,0,0,0,0,0,0,0,0,0,0,0]
["0101301","Consulta Médica de Especialidad en Cardiología",0,0,null,null,null,null,null,null,null,null,null,null,null,null,null,null,null,null,null,null,null,null,null,null,null,null,null,null,null,null,null,null,null,null,null,null,"",null,null,null,null,null,null,null,null,null,null,null,null,null,null,null,null,null,null,null,null,null,null,null,null,null,null,null,null,null,null,null,null,null,null,null,null,null,null,null,"","","","","","","","","","","",null,null,null,null,0,0,0,0,0,0,0,0,0,0,0]
["0101302","Consulta Médica de Especialidad en Hematología",0,0,null,null,null,null,null,null,null,null,null,null,null,null,null,null,null,null,null,null,null,null,null,null,null,null,null,null,null,null,null,null,null,null,null,null,"",null,null,null,null,null,null,null,null,null,null,null,null,null,null,null,null,null,null,null,null,null,null,null,null,null,null,null,null,null,null,null,null,null,null,null,null,null,null,null,"","","","","","","","","","","",null,null,null,null,0,0,0,0,0,0,0,0,0,0,0]
["0101303","Consulta Médica de Especialidad en Infectología",0,0,null,null,null,null,null,null,null,null,null,null,null,null,null,null,null,null,null,null,null,null,null,null,null,null,null,null,null,null,null,null,null,null,null,null,"",null,null,null,null,null,null,null,null,null,null,null,null,null,null,null,null,null,null,null,null,null,null,null,null,null,null,null,null,null,null,null,null,null,null,null,null,null,null,null,"","","","","","","","","","","",null,null,null,null,0,0,0,0,0,0,0,0,0,0,0]
["0101304","Consulta Médica de Especialidad en Inmunología",0,0,null,null,null,null,null,null,null,null,null,null,null,null,null,null,null,null,null,null,null,null,null,null,null,null,null,null,null,null,null,null,null,null,null,null,"",null,null,null,null,null,null,null,null,null,null,null,null,null,null,null,null,null,null,null,null,null,null,null,null,null,null,null,null,null,null,null,null,null,null,null,null,null,null,null,"","","","","","","","","","","",null,null,null,null,0,0,0,0,0,0,0,0,0,0,0]
["0101305","Consulta Médica de Especialidad en Medicina Familiar",0,0,null,null,null,null,null,null,null,null,null,null,null,null,null,null,null,null,null,null,null,null,null,null,null,null,null,null,null,null,null,null,null,null,null,null,"",null,null,null,null,null,null,null,null,null,null,null,null,null,null,null,null,null,null,null,null,null,null,null,null,null,null,null,null,null,null,null,null,null,null,null,null,null,null,null,"","","","","","","","","","","",null,null,null,null,0,0,0,0,0,0,0,0,0,0,0]
["0101306","Consulta Médica de Especialidad en Medicina Física y Rehabilitación",0,0,null,null,null,null,null,null,null,null,null,null,null,null,null,null,null,null,null,null,null,null,null,null,null,null,null,null,null,null,null,null,null,null,null,null,"",null,null,null,null,null,null,null,null,null,null,null,null,null,null,null,null,null,null,null,null,null,null,null,null,null,null,null,null,null,null,null,null,null,null,null,null,null,null,null,"","","","","","","","","","","",null,null,null,null,0,0,0,0,0,0,0,0,0,0,0]
["0101307","Consulta Médica de Especialidad en Medicina Interna",0,0,null,null,null,null,null,null,null,null,null,null,null,null,null,null,null,null,null,null,null,null,null,null,null,null,null,null,null,null,null,null,null,null,null,null,"",null,null,null,null,null,null,null,null,null,null,null,null,null,null,null,null,null,null,null,null,null,null,null,null,null,null,null,null,null,null,null,null,null,null,null,null,null,null,null,"","","","","","","","","","","",null,null,null,null,0,0,0,0,0,0,0,0,0,0,0]
["0101308","Consulta Médica de Especialidad en Obstetricia y Ginecología",0,0,null,null,null,null,null,null,null,null,null,null,null,null,null,null,null,null,null,null,null,null,null,null,null,null,null,null,null,null,null,null,null,null,null,null,"",null,null,null,null,null,null,null,null,null,null,null,null,null,null,null,null,null,null,null,null,null,null,null,null,null,null,null,null,null,null,null,null,null,null,null,null,null,null,null,"","","","","","","","","","","",null,null,null,null,0,0,0,0,0,0,0,0,0,0,0]
["0101309","Consulta Médica de Especialidad en Pediatría",0,0,null,null,null,null,null,null,null,null,null,null,null,null,null,null,null,null,null,null,null,null,null,null,null,null,null,null,null,null,null,null,null,null,null,null,"",null,null,null,null,null,null,null,null,null,null,null,null,null,null,null,null,null,null,null,null,null,null,null,null,null,null,null,null,null,null,null,null,null,null,null,null,null,null,null,"","","","","","","","","","","",null,null,null,null,0,0,0,0,0,0,0,0,0,0,0]
["0101310","Consulta Médica de Especialidad en Traumatología y Ortopedia",0,0,null,null,null,null,null,null,null,null,null,null,null,null,null,null,null,null,null,null,null,null,null,null,null,null,null,null,null,null,null,null,null,null,null,null,"",null,null,null,null,null,null,null,null,null,null,null,null,null,null,null,null,null,null,null,null,null,null,null,null,null,null,null,null,null,null,null,null,null,null,null,null,null,null,null,"","","","","","","","","","","",null,null,null,null,0,0,0,0,0,0,0,0,0,0,0]
["0101311","Consulta Médica de Especialidad en Urología",0,0,null,null,null,null,null,null,null,null,null,null,null,null,null,null,null,null,null,null,null,null,null,null,null,null,null,null,null,null,null,null,null,null,null,null,"",null,null,null,null,null,null,null,null,null,null,null,null,null,null,null,null,null,null,null,null,null,null,null,null,null,null,null,null,null,null,null,null,null,null,null,null,null,null,null,"","","","","","","","","","","",null,null,null,null,0,0,0,0,0,0,0,0,0,0,0]
["0101312","Consulta Médica de Especialidad en Cirugía General",0,0,null,null,null,null,null,null,null,null,null,null,null,null,null,null,null,null,null,null,null,null,null,null,null,null,null,null,null,null,null,null,null,null,null,null,"",null,null,null,null,null,null,null,null,null,null,null,null,null,null,null,null,null,null,null,null,null,null,null,null,null,null,null,null,null,null,null,null,null,null,null,null,null,null,null,"","","","","","","","","","","",null,null,null,null,0,0,0,0,0,0,0,0,0,0,0]
["0101313","Consulta Médica de Especialidad en Cirugía de Cabeza, Cuello y Maxilofacial",0,0,null,null,null,null,null,null,null,null,null,null,null,null,null,null,null,null,null,null,null,null,null,null,null,null,null,null,null,null,null,null,null,null,null,null,"",null,null,null,null,null,null,null,null,null,null,null,null,null,null,null,null,null,null,null,null,null,null,null,null,null,null,null,null,null,null,null,null,null,null,null,null,null,null,null,"","","","","","","","","","","",null,null,null,null,0,0,0,0,0,0,0,0,0,0,0]
["0101314","Consulta Médica de Especialidad en Cirugía Cardiovascular",0,0,null,null,null,null,null,null,null,null,null,null,null,null,null,null,null,null,null,null,null,null,null,null,null,null,null,null,null,null,null,null,null,null,null,null,"",null,null,null,null,null,null,null,null,null,null,null,null,null,null,null,null,null,null,null,null,null,null,null,null,null,null,null,null,null,null,null,null,null,null,null,null,null,null,null,"","","","","","","","","","","",null,null,null,null,0,0,0,0,0,0,0,0,0,0,0]
["0101315","Consulta Médica de Especialidad en Cirugía de Tórax",0,0,null,null,null,null,null,null,null,null,null,null,null,null,null,null,null,null,null,null,null,null,null,null,null,null,null,null,null,null,null,null,null,null,null,null,"",null,null,null,null,null,null,null,null,null,null,null,null,null,null,null,null,null,null,null,null,null,null,null,null,null,null,null,null,null,null,null,null,null,null,null,null,null,null,null,"","","","","","","","","","","",null,null,null,null,0,0,0,0,0,0,0,0,0,0,0]
["0101316","Consulta Médica de Especialidad en Cirugía Plástica y Reparadora",0,0,null,null,null,null,null,null,null,null,null,null,null,null,null,null,null,null,null,null,null,null,null,null,null,null,null,null,null,null,null,null,null,null,null,null,"",null,null,null,null,null,null,null,null,null,null,null,null,null,null,null,null,null,null,null,null,null,null,null,null,null,null,null,null,null,null,null,null,null,null,null,null,null,null,null,"","","","","","","","","","","",null,null,null,null,0,0,0,0,0,0,0,0,0,0,0]
["0101317","Consulta Médica de Especialidad en Cirugía Pediátrica",0,0,null,null,null,null,null,null,null,null,null,null,null,null,null,null,null,null,null,null,null,null,null,null,null,null,null,null,null,null,null,null,null,null,null,null,"",null,null,null,null,null,null,null,null,null,null,null,null,null,null,null,null,null,null,null,null,null,null,null,null,null,null,null,null,null,null,null,null,null,null,null,null,null,null,null,"","","","","","","","","","","",null,null,null,null,0,0,0,0,0,0,0,0,0,0,0]
["0101318","Consulta Médica de Especialidad en Cirugía Vascular Periférica",0,0,null,null,null,null,null,null,null,null,null,null,null,null,null,null,null,null,null,null,null,null,null,null,null,null,null,null,null,null,null,null,null,null,null,null,"",null,null,null,null,null,null,null,null,null,null,null,null,null,null,null,null,null,null,null,null,null,null,null,null,null,null,null,null,null,null,null,null,null,null,null,null,null,null,null,"","","","","","","","","","","",null,null,null,null,0,0,0,0,0,0,0,0,0,0,0]
["0101319","Consulta Médica de Especialidad en Coloproctología",0,0,null,null,null,null,null,null,null,null,null,null,null,null,null,null,null,null,null,null,null,null,null,null,null,null,null,null,null,null,null,null,null,null,null,null,"",null,null,null,null,null,null,null,null,null,null,null,null,null,null,null,null,null,null,null,null,null,null,null,null,null,null,null,null,null,null,null,null,null,null,null,null,null,null,null,"","","","","","","","","","","",null,null,null,null,0,0,0,0,0,0,0,0,0,0,0]
["0101320","Consulta Médica de Especialidad en Diabetología",0,0,null,null,null,null,null,null,null,null,null,null,null,null,null,null,null,null,null,null,null,null,null,null,null,null,null,null,null,null,null,null,null,null,null,null,"",null,null,null,null,null,null,null,null,null,null,null,null,null,null,null,null,null,null,null,null,null,null,null,null,null,null,null,null,null,null,null,null,null,null,null,null,null,null,null,"","","","","","","","","","","",null,null,null,null,0,0,0,0,0,0,0,0,0,0,0]
["0101321","Consulta Médica de Especialidad en Enfermedades Respiratorias Adulto",0,0,null,null,null,null,null,null,null,null,null,null,null,null,null,null,null,null,null,null,null,null,null,null,null,null,null,null,null,null,null,null,null,null,null,null,"",null,null,null,null,null,null,null,null,null,null,null,null,null,null,null,null,null,null,null,null,null,null,null,null,null,null,null,null,null,null,null,null,null,null,null,null,null,null,null,"","","","","","","","","","","",null,null,null,null,0,0,0,0,0,0,0,0,0,0,0]
["0101322","Consulta Médica de Especialidad en Enfermedades Respiratorias Pediátricas",0,0,null,null,null,null,null,null,null,null,null,null,null,null,null,null,null,null,null,null,null,null,null,null,null,null,null,null,null,null,null,null,null,null,null,null,"",null,null,null,null,null,null,null,null,null,null,null,null,null,null,null,null,null,null,null,null,null,null,null,null,null,null,null,null,null,null,null,null,null,null,null,null,null,null,null,"","","","","","","","","","","",null,null,null,null,0,0,0,0,0,0,0,0,0,0,0]
["0101323","Consulta Médica de Especialidad en Gastroenterología Adulto",0,0,null,null,null,null,null,null,null,null,null,null,null,null,null,null,null,null,null,null,null,null,null,null,null,null,null,null,null,null,null,null,null,null,null,null,"",null,null,null,null,null,null,null,null,null,null,null,null,null,null,null,null,null,null,null,null,null,null,null,null,null,null,null,null,null,null,null,null,null,null,null,null,null,null,null,"","","","","","","","","","","",null,null,null,null,0,0,0,0,0,0,0,0,0,0,0]
["0101324","Consulta Médica de Especialidad en Gastroenterología Pediátrico",0,0,null,null,null,null,null,null,null,null,null,null,null,null,null,null,null,null,null,null,null,null,null,null,null,null,null,null,null,null,null,null,null,null,null,null,"",null,null,null,null,null,null,null,null,null,null,null,null,null,null,null,null,null,null,null,null,null,null,null,null,null,null,null,null,null,null,null,null,null,null,null,null,null,null,null,"","","","","","","","","","","",null,null,null,null,0,0,0,0,0,0,0,0,0,0,0]
["0101325","Consulta Médica de Especialidad en Genética Clínica",0,0,null,null,null,null,null,null,null,null,null,null,null,null,null,null,null,null,null,null,null,null,null,null,null,null,null,null,null,null,null,null,null,null,null,null,"",null,null,null,null,null,null,null,null,null,null,null,null,null,null,null,null,null,null,null,null,null,null,null,null,null,null,null,null,null,null,null,null,null,null,null,null,null,null,null,"","","","","","","","","","","",null,null,null,null,0,0,0,0,0,0,0,0,0,0,0]
["0101326","Consulta Médica de Especialidad en Nefrología Adulto",0,0,null,null,null,null,null,null,null,null,null,null,null,null,null,null,null,null,null,null,null,null,null,null,null,null,null,null,null,null,null,null,null,null,null,null,"",null,null,null,null,null,null,null,null,null,null,null,null,null,null,null,null,null,null,null,null,null,null,null,null,null,null,null,null,null,null,null,null,null,null,null,null,null,null,null,"","","","","","","","","","","",null,null,null,null,0,0,0,0,0,0,0,0,0,0,0]
["0101327","Consulta Médica de Especialidad en Nefrología Pediátrico",0,0,null,null,null,null,null,null,null,null,null,null,null,null,null,null,null,null,null,null,null,null,null,null,null,null,null,null,null,null,null,null,null,null,null,null,"",null,null,null,null,null,null,null,null,null,null,null,null,null,null,null,null,null,null,null,null,null,null,null,null,null,null,null,null,null,null,null,null,null,null,null,null,null,null,null,"","","","","","","","","","","",null,null,null,null,0,0,0,0,0,0,0,0,0,0,0]
["0101328","Consulta Médica de Especialidad en Neonatología",0,0,null,null,null,null,null,null,null,null,null,null,null,null,null,null,null,null,null,null,null,null,null,null,null,null,null,null,null,null,null,null,null,null,null,null,"",null,null,null,null,null,null,null,null,null,null,null,null,null,null,null,null,null,null,null,null,null,null,null,null,null,null,null,null,null,null,null,null,null,null,null,null,null,null,null,"","","","","","","","","","","",null,null,null,null,0,0,0,0,0,0,0,0,0,0,0]
["0101329","Consulta Médica de Especialidad en Anestesiología",0,0,null,null,null,null,null,null,null,null,null,null,null,null,null,null,null,null,null,null,null,null,null,null,null,null,null,null,null,null,null,null,null,null,null,null,"",null,null,null,null,null,null,null,null,null,null,null,null,null,null,null,null,null,null,null,null,null,null,null,null,null,null,null,null,null,null,null,null,null,null,null,null,null,null,null,"","","","","","","","","","","",null,null,null,null,0,0,0,0,0,0,0,0,0,0,0]
["0101331","Consulta Médica de Especialidad en Radioterapia Oncológica",0,0,null,null,null,null,null,null,null,null,null,null,null,null,null,null,null,null,null,null,null,null,null,null,null,null,null,null,null,null,null,null,null,null,null,null,"",null,null,null,null,null,null,null,null,null,null,null,null,null,null,null,null,null,null,null,null,null,null,null,null,null,null,null,null,null,null,null,null,null,null,null,null,null,null,null,"","","","","","","","","","","",null,null,null,null,0,0,0,0,0,0,0,0,0,0,0]
["0101332","Consulta Médica de Especialidad en Ginecología Pediátrica y de la Adolescencia",0,0,null,null,null,null,null,null,null,null,null,null,null,null,null,null,null,null,null,null,null,null,null,null,null,null,null,null,null,null,null,null,null,null,null,null,"",null,null,null,null,null,null,null,null,null,null,null,null,null,null,null,null,null,null,null,null,null,null,null,null,null,null,null,null,null,null,null,null,null,null,null,null,null,null,null,"","","","","","","","","","","",null,null,null,null,0,0,0,0,0,0,0,0,0,0,0]
["0101334","Consulta Médica de Especialidad en Medicina Nuclear",0,0,null,null,null,null,null,null,null,null,null,null,null,null,null,null,null,null,null,null,null,null,null,null,null,null,null,null,null,null,null,null,null,null,null,null,"",null,null,null,null,null,null,null,null,null,null,null,null,null,null,null,null,null,null,null,null,null,null,null,null,null,null,null,null,null,null,null,null,null,null,null,null,null,null,null,"","","","","","","","","","","",null,null,null,null,0,0,0,0,0,0,0,0,0,0,0]
["0101001","Consulta Medicina General",{"$f":"SUM(D58+G58)","v":0},{"$f":"SUM(E58:F58)","v":0},null,null,null,null,null,null,null,null,null,null,null,null,null,null,null,null,null,null,null,null,null,null,null,null,null,null,null,null,null,null,null,null,null,null,"",null,null,null,null,null,null,null,null,null,null,null,null,null,null,null,null,null,null,null,null,null,null,null,null,null,null,null,null,null,null,null,null,null,null,null,null,null,null,null,"","","","","","","","","","","",null,null,null,null,0,0,0,0,0,0,0,0,0,0,0]
["0101007","Atención médica del recién nacido en sala de parto o pabellón quirúrgico c/s reanimación cardio-respiratoria",{"$f":"SUM(D59+G59)","v":0},{"$f":"SUM(E59:F59)","v":0},null,null,null,null,null,null,null,null,null,null,null,null,null,null,null,null,null,null,null,null,null,null,null,null,null,null,null,null,null,null,null,null,null,null,"",null,null,null,null,null,null,null,null,null,null,null,null,null,null,null,null,null,null,null,null,null,null,null,null,null,null,null,null,null,null,null,null,null,null,null,null,null,null,null,"","","","","","","","","","","",null,null,null,null,0,0,0,0,0,0,0,0,0,0,0]
["0101103","Consulta en Unidades de Urgencia Hospitalaria",{"$f":"SUM(D60+G60)","v":0},{"$f":"SUM(E60:F60)","v":0},null,null,null,null,null,null,null,null,null,null,null,null,null,null,null,null,null,null,null,null,null,null,null,null,null,null,null,null,null,null,null,null,null,null,"",null,null,null,null,null,null,null,null,null,null,null,null,null,null,null,null,null,null,null,null,null,null,null,null,null,null,null,null,null,null,null,null,null,null,null,null,null,null,null,"","","","","","","","","","","",null,null,null,null,0,0,0,0,0,0,0,0,0,0,0]
["TOTAL ",null,{"$f":"SUM(C12:C60)","v":0},{"$f":"SUM(D12:D60)","v":0},{"$f":"SUM(E12:E60)","v":0},{"$f":"SUM(F12:F60)","v":0},{"$f":"SUM(G12:G60)","v":0},null,null,null,null,null,null,null,null,null,null,null,null,null,null,null,null,null,null,null,{"$f":"SUM(AA12:AA60)","v":0},{"$f":"SUM(AB12:AB60)","v":0},0,0,0,0,0,0,0,0]
["CONSULTAS POR OTROS PROFESIONALES DE LA SALUD                                   "]
["0102002","Control de salud niño con EDP por enfermera",{"$f":"SUM(D63+G63)","v":0},{"$f":"SUM(E63:F63)","v":0},null,null,null,null,null,null,null,null,null,null,null,null,null,null,null,null,null,null,null,null,null,null,null,null,null,null,null,null,null,null,null,null,null,null,"",null,null,null,null,null,null,null,null,null,null,null,null,null,null,null,null,null,null,null,null,null,null,null,null,null,null,null,null,null,null,null,null,null,null,null,null,null,null,null,"","","","","","","","","","","",null,null,null,null,0,0,0,0,0,0,0,0,0,0,0]
["0102003","Consulta o control por auxiliar de enfermería",0,0,null,null,null,null,null,null,null,null,null,null,null,null,null,null,null,null,null,null,null,null,null,null,null,null,null,null,null,null,null,null,null,null,null,null,"",null,null,null,null,null,null,null,null,null,null,null,null,null,null,null,null,null,null,null,null,null,null,null,null,null,null,null,null,null,null,null,null,null,null,null,null,null,null,null,"","","","","","","","","","","",null,null,null,null,0,0,0,0,0,0,0,0,0,0,0]
["0102005","Consulta por fonoaudiólogo",0,0,null,null,null,null,null,null,null,null,null,null,null,null,null,null,null,null,null,null,null,null,null,null,null,null,null,null,null,null,null,null,null,null,null,null,"",null,null,null,null,null,null,null,null,null,null,null,null,null,null,null,null,null,null,null,null,null,null,null,null,null,null,null,null,null,null,null,null,null,null,null,null,null,null,null,"","","","","","","","","","","",null,null,null,null,0,0,0,0,0,0,0,0,0,0,0]
["0102008","Consulta o control por enfermera",0,0,null,null,null,null,null,null,null,null,null,null,null,null,null,null,null,null,null,null,null,null,null,null,null,null,null,null,null,null,null,null,null,null,null,null,"",null,null,null,null,null,null,null,null,null,null,null,null,null,null,null,null,null,null,null,null,null,null,null,null,null,null,null,null,null,null,null,null,null,null,null,null,null,null,null,"","","","","","","","","","","",null,null,null,null,0,0,0,0,0,0,0,0,0,0,0]
["0102009","Consulta o control por matrona",0,0,null,null,null,null,null,null,null,null,null,null,null,null,null,null,null,null,null,null,null,null,null,null,null,null,null,null,null,null,null,null,null,null,null,null,"",null,null,null,null,null,null,null,null,null,null,null,null,null,null,null,null,null,null,null,null,null,null,null,null,null,null,null,null,null,null,null,null,null,null,null,null,null,null,null,"","","","","","","","","","","",null,null,null,null,0,0,0,0,0,0,0,0,0,0,0]
["0102010","Consulta o control por nutricionista",0,0,null,null,null,null,null,null,null,null,null,null,null,null,null,null,null,null,null,null,null,null,null,null,null,null,null,null,null,null,null,null,null,null,null,null,"",null,null,null,null,null,null,null,null,null,null,null,null,null,null,null,null,null,null,null,null,null,null,null,null,null,null,null,null,null,null,null,null,null,null,null,null,null,null,null,"","","","","","","","","","","",null,null,null,null,0,0,0,0,0,0,0,0,0,0,0]
["0102011","Consulta quimico farmacéutico",0,0,null,null,null,null,null,null,null,null,null,null,null,null,null,null,null,null,null,null,null,null,null,null,null,null,null,null,null,null,null,null,null,null,null,null,"",null,null,null,null,null,null,null,null,null,null,null,null,null,null,null,null,null,null,null,null,null,null,null,null,null,null,null,null,null,null,null,null,null,null,null,null,null,null,null,"","","","","","","","","","","",null,null,null,null,0,0,0,0,0,0,0,0,0,0,0]
["01010025","Consulta por otros profesionales ",0,0,null,null,null,null,null,null,null,null,null,null,null,null,null,null,null,null,null,null,null,null,null,null,null,null,null,null,null,null,null,null,null,null,null,null,"",null,null,null,null,null,null,null,null,null,null,null,null,null,null,null,null,null,null,null,null,null,null,null,null,null,null,null,null,null,null,null,null,null,null,null,null,null,null,null,"","","","","","","","","","","",null,null,null,null,0,0,0,0,0,0,0,0,0,0,0]
["01012817","Consulta por Trabajador(a) Social",0,0,null,null,null,null,null,null,null,null,null,null,null,null,null,null,null,null,null,null,null,null,null,null,null,null,null,null,null,null,null,null,null,null,null,null,"",null,null,null,null,null,null,null,null,null,null,null,null,null,null,null,null,null,null,null,null,null,null,null,null,null,null,null,null,null,null,null,null,null,null,null,null,null,null,null,"","","","","","","","","","","",null,null,null,null,0,0,0,0,0,0,0,0,0,0,0]
["TOTAL",null,{"$f":"SUM(C63:C71)","v":0},{"$f":"SUM(D63:D71)","v":0},{"$f":"SUM(E63:E71)","v":0},{"$f":"SUM(F63:F71)","v":0},{"$f":"SUM(G63:G71)","v":0},null,null,null,null,null,null,null,null,null,null,null,null,null,null,null,null,null,null,null,{"$f":"SUM(AA63:AA71)","v":0},{"$f":"SUM(AB63:AB71)","v":0},0,0,0,0,0,0,0,0]
["TELEMEDICINA"]
["TELECONSULTAS"]
["0108001","Teleconsulta Medicina General",{"$f":"SUM(D75+G75)","v":0},{"$f":"SUM(E75:F75)","v":0},null,null,null,null,null,null,null,null,null,null,null,null,null,null,null,null,null,null,null,null,null,null,null,null,null,null,null,null,null,null,null,null,null,null,"",null,null,null,null,null,null,null,null,null,null,null,null,null,null,null,null,null,null,null,null,null,null,null,null,null,null,null,null,null,null,null,null,null,null,null,null,null,null,null,"","","","","","","","","","","",null,null,null,null,0,0,0,0,0,0,0,0,0,0,0]
["0108201","Teleconsulta Médica de Especialidad en Dermatología",0,0,null,null,null,null,null,null,null,null,null,null,null,null,null,null,null,null,null,null,null,null,null,null,null,null,null,null,null,null,null,null,null,null,null,null,"",null,null,null,null,null,null,null,null,null,null,null,null,null,null,null,null,null,null,null,null,null,null,null,null,null,null,null,null,null,null,null,null,null,null,null,null,null,null,null,"","","","","","","","","","","",null,null,null,null,0,0,0,0,0,0,0,0,0,0,0]
["0108202","Teleconsulta Médica de Especialidad en Geriatría",0,0,null,null,null,null,null,null,null,null,null,null,null,null,null,null,null,null,null,null,null,null,null,null,null,null,null,null,null,null,null,null,null,null,null,null,{"$f":"CA77&CB77&CC77&CD77&CE77&CF77&CG77&CH77&CI77&CJ77&CK77","v":""},null,null,null,null,null,null,null,null,null,null,null,null,null,null,null,null,null,null,null,null,null,null,null,null,null,null,null,null,null,null,null,null,null,null,null,null,null,null,null,{"$f":"IF(AND($C77>0,AA77=\"\"),\" * No olvide digitar la variable \"&$AA$8&\"\"&\": Atención Cerrada. Digite Cero si no tiene.\",\"\")","v":""},{"$f":"IF(AND($C77>0,AB77=\"\"),\" * No olvide digitar la variable \"&$AA$8&\"\"&\": Atención Abierta. Digite Cero si no tiene.\",\"\")","v":""},{"$f":"IF(AND($C77>0,AC77=\"\"),\" * No olvide digitar la variable \"&$AA$8&\"\"&\": Emergencia. Digite Cero si no tiene.\",\"\")","v":""},{"$f":"IF(AND(C77<AA77+AB77+AC77),\" * La Suma de la variable \"&$AA$8&\"\"&\" no puede ser mayor al Total.\",\"\")","v":""},{"$f":"IF(AND($C77>0,AD77=\"\"),\" * No olvide digitar la variable \"&$AD$8&\"\"&\": Honorarios. Digite Cero si no tiene.\",\"\")","v":""},{"$f":"IF(AND($C77>0,AE77=\"\"),\" * No olvide digitar la variable \"&$AD$8&\"\"&\": Convenios. Digite Cero si no tiene.\",\"\")","v":""},{"$f":"IF(AND($C77>0,AF77=\"\"),\" * No olvide digitar la variable \"&$AD$8&\"\"&\": Consultores de llamada. Digite Cero si no tiene.\",\"\")","v":""},{"$f":"IF(AND($C77>0,AG77=\"\"),\" * No olvide digitar la variable \"&$AG$8&\"\"&\". Digite Cero si no tiene.\",\"\")","v":""},{"$f":"IF(AND($C77>0,AH77=\"\"),\" * No olvide digitar la variable \"&$AH$8&\"\"&\" Al Sistema. Digite Cero si no tiene.\",\"\")","v":""},{"$f":"IF(AND($C77>0,AI77=\"\"),\" * No olvide digitar la variable \"&$AH$8&\"\"&\" al Extrasistema. Digite Cero si no tiene.\",\"\")","v":""},{"$f":"IF(AND($C77>0,AJ77=\"\"),\" * No olvide digitar la variable \"&$AJ$8&\"\"&\". Digite Cero si no tiene.\",\"\")","v":""},null,null,null,null,{"$f":"IF(AND($C77>0,AA77=\"\"),1,0)","v":0},{"$f":"IF(AND($C77>0,AB77=\"\"),1,0)","v":0},{"$f":"IF(AND($C77>0,AC77=\"\"),1,0)","v":0},{"$f":"IF(AND(C77<AA77+AB77+AC77),1,0)","v":0},{"$f":"IF(AND($C77>0,AD77=\"\"),1,0)","v":0},{"$f":"IF(AND($C77>0,AE77=\"\"),1,0)","v":0},{"$f":"IF(AND($C77>0,AF77=\"\"),1,0)","v":0},{"$f":"IF(AND($C77>0,AG77=\"\"),1,0)","v":0},{"$f":"IF(AND($C77>0,AH77=\"\"),1,0)","v":0},{"$f":"IF(AND($C77>0,AI77=\"\"),1,0)","v":0},{"$f":"IF(AND($C77>0,AJ77=\"\"),1,0)","v":0}]
["0108206","Teleconsulta Médica de Especialidad en Reumatología",0,0,null,null,null,null,null,null,null,null,null,null,null,null,null,null,null,null,null,null,null,null,null,null,null,null,null,null,null,null,null,null,null,null,null,null,"",null,null,null,null,null,null,null,null,null,null,null,null,null,null,null,null,null,null,null,null,null,null,null,null,null,null,null,null,null,null,null,null,null,null,null,null,null,null,null,"","","","","","","","","","","",null,null,null,null,0,0,0,0,0,0,0,0,0,0,0]
["0108207","Teleconsulta Médica de Especialidad en Endocrinología Adulto",0,0,null,null,null,null,null,null,null,null,null,null,null,null,null,null,null,null,null,null,null,null,null,null,null,null,null,null,null,null,null,null,null,null,null,null,"",null,null,null,null,null,null,null,null,null,null,null,null,null,null,null,null,null,null,null,null,null,null,null,null,null,null,null,null,null,null,null,null,null,null,null,null,null,null,null,"","","","","","","","","","","",null,null,null,null,0,0,0,0,0,0,0,0,0,0,0]
["0108208","Teleconsulta Médica de Especialidad en Endocrinología Pediátrica",0,0,null,null,null,null,null,null,null,null,null,null,null,null,null,null,null,null,null,null,null,null,null,null,null,null,null,null,null,null,null,null,null,null,null,null,"",null,null,null,null,null,null,null,null,null,null,null,null,null,null,null,null,null,null,null,null,null,null,null,null,null,null,null,null,null,null,null,null,null,null,null,null,null,null,null,"","","","","","","","","","","",null,null,null,null,0,0,0,0,0,0,0,0,0,0,0]
["0108209","Teleconsulta Médica de Especialidad en Neurología Adultos",0,0,null,null,null,null,null,null,null,null,null,null,null,null,null,null,null,null,null,null,null,null,null,null,null,null,null,null,null,null,null,null,null,null,null,null,"",null,null,null,null,null,null,null,null,null,null,null,null,null,null,null,null,null,null,null,null,null,null,null,null,null,null,null,null,null,null,null,null,null,null,null,null,null,null,null,"","","","","","","","","","","",null,null,null,null,0,0,0,0,0,0,0,0,0,0,0]
["0108210","Teleconsulta Médica de Especialidad en Neurología Pediátrica",0,0,null,null,null,null,null,null,null,null,null,null,null,null,null,null,null,null,null,null,null,null,null,null,null,null,null,null,null,null,null,null,null,null,null,null,"",null,null,null,null,null,null,null,null,null,null,null,null,null,null,null,null,null,null,null,null,null,null,null,null,null,null,null,null,null,null,null,null,null,null,null,null,null,null,null,"","","","","","","","","","","",null,null,null,null,0,0,0,0,0,0,0,0,0,0,0]
["0108211","Teleconsulta Médica de Especialidad en Oncología Médica",0,0,null,null,null,null,null,null,null,null,null,null,null,null,null,null,null,null,null,null,null,null,null,null,null,null,null,null,null,null,null,null,null,null,null,null,"",null,null,null,null,null,null,null,null,null,null,null,null,null,null,null,null,null,null,null,null,null,null,null,null,null,null,null,null,null,null,null,null,null,null,null,null,null,null,null,"","","","","","","","","","","",null,null,null,null,0,0,0,0,0,0,0,0,0,0,0]
["0108212","Teleconsulta Médica de Especialidad en Psiquiatría adultos",0,0,null,null,null,null,null,null,null,null,null,null,null,null,null,null,null,null,null,null,null,null,null,null,null,null,null,null,null,null,null,null,null,null,null,null,"",null,null,null,null,null,null,null,null,null,null,null,null,null,null,null,null,null,null,null,null,null,null,null,null,null,null,null,null,null,null,null,null,null,null,null,null,null,null,null,"","","","","","","","","","","",null,null,null,null,0,0,0,0,0,0,0,0,0,0,0]
["0108213","Teleconsulta Médica de Especialidad en Psiquiatría pediátrica y de la adolescencia",0,0,null,null,null,null,null,null,null,null,null,null,null,null,null,null,null,null,null,null,null,null,null,null,null,null,null,null,null,null,null,null,null,null,null,null,"",null,null,null,null,null,null,null,null,null,null,null,null,null,null,null,null,null,null,null,null,null,null,null,null,null,null,null,null,null,null,null,null,null,null,null,null,null,null,null,"","","","","","","","","","","",null,null,null,null,0,0,0,0,0,0,0,0,0,0,0]
["0108301","Teleconsulta Médica de Especialidad en Cardiología",0,0,null,null,null,null,null,null,null,null,null,null,null,null,null,null,null,null,null,null,null,null,null,null,null,null,null,null,null,null,null,null,null,null,null,null,"",null,null,null,null,null,null,null,null,null,null,null,null,null,null,null,null,null,null,null,null,null,null,null,null,null,null,null,null,null,null,null,null,null,null,null,null,null,null,null,"","","","","","","","","","","",null,null,null,null,0,0,0,0,0,0,0,0,0,0,0]
["0108302","Teleconsulta Médica de Especialidad en Hematología",0,0,null,null,null,null,null,null,null,null,null,null,null,null,null,null,null,null,null,null,null,null,null,null,null,null,null,null,null,null,null,null,null,null,null,null,"",null,null,null,null,null,null,null,null,null,null,null,null,null,null,null,null,null,null,null,null,null,null,null,null,null,null,null,null,null,null,null,null,null,null,null,null,null,null,null,"","","","","","","","","","","",null,null,null,null,0,0,0,0,0,0,0,0,0,0,0]
["0108303","Teleconsulta Médica de Especialidad en Infectología",0,0,null,null,null,null,null,null,null,null,null,null,null,null,null,null,null,null,null,null,null,null,null,null,null,null,null,null,null,null,null,null,null,null,null,null,"",null,null,null,null,null,null,null,null,null,null,null,null,null,null,null,null,null,null,null,null,null,null,null,null,null,null,null,null,null,null,null,null,null,null,null,null,null,null,null,"","","","","","","","","","","",null,null,null,null,0,0,0,0,0,0,0,0,0,0,0]
["0108304","Teleconsulta Médica de Especialidad en Inmunología",0,0,null,null,null,null,null,null,null,null,null,null,null,null,null,null,null,null,null,null,null,null,null,null,null,null,null,null,null,null,null,null,null,null,null,null,"",null,null,null,null,null,null,null,null,null,null,null,null,null,null,null,null,null,null,null,null,null,null,null,null,null,null,null,null,null,null,null,null,null,null,null,null,null,null,null,"","","","","","","","","","","",null,null,null,null,0,0,0,0,0,0,0,0,0,0,0]
["0108305","Teleconsulta Médica de Especialidad en Medicina Familiar",0,0,null,null,null,null,null,null,null,null,null,null,null,null,null,null,null,null,null,null,null,null,null,null,null,null,null,null,null,null,null,null,null,null,null,null,"",null,null,null,null,null,null,null,null,null,null,null,null,null,null,null,null,null,null,null,null,null,null,null,null,null,null,null,null,null,null,null,null,null,null,null,null,null,null,null,"","","","","","","","","","","",null,null,null,null,0,0,0,0,0,0,0,0,0,0,0]
["0108306","Teleconsulta Médica de Especialidad en Medicina Física y Rehabilitación",0,0,null,null,null,null,null,null,null,null,null,null,null,null,null,null,null,null,null,null,null,null,null,null,null,null,null,null,null,null,null,null,null,null,null,null,"",null,null,null,null,null,null,null,null,null,null,null,null,null,null,null,null,null,null,null,null,null,null,null,null,null,null,null,null,null,null,null,null,null,null,null,null,null,null,null,"","","","","","","","","","","",null,null,null,null,0,0,0,0,0,0,0,0,0,0,0]
["0108307","Teleconsulta Médica de Especialidad en Medicina Interna",0,0,null,null,null,null,null,null,null,null,null,null,null,null,null,null,null,null,null,null,null,null,null,null,null,null,null,null,null,null,null,null,null,null,null,null,"",null,null,null,null,null,null,null,null,null,null,null,null,null,null,null,null,null,null,null,null,null,null,null,null,null,null,null,null,null,null,null,null,null,null,null,null,null,null,null,"","","","","","","","","","","",null,null,null,null,0,0,0,0,0,0,0,0,0,0,0]
["0108308","Teleconsulta Médica de Especialidad en Obstetricia y Ginecología",0,0,null,null,null,null,null,null,null,null,null,null,null,null,null,null,null,null,null,null,null,null,null,null,null,null,null,null,null,null,null,null,null,null,null,null,"",null,null,null,null,null,null,null,null,null,null,null,null,null,null,null,null,null,null,null,null,null,null,null,null,null,null,null,null,null,null,null,null,null,null,null,null,null,null,null,"","","","","","","","","","","",null,null,null,null,0,0,0,0,0,0,0,0,0,0,0]
["0108309","Teleconsulta Médica de Especialidad en Pediatría",0,0,null,null,null,null,null,null,null,null,null,null,null,null,null,null,null,null,null,null,null,null,null,null,null,null,null,null,null,null,null,null,null,null,null,null,"",null,null,null,null,null,null,null,null,null,null,null,null,null,null,null,null,null,null,null,null,null,null,null,null,null,null,null,null,null,null,null,null,null,null,null,null,null,null,null,"","","","","","","","","","","",null,null,null,null,0,0,0,0,0,0,0,0,0,0,0]
["0108310","Teleconsulta Médica de Especialidad en Traumatología y Ortopedia",0,0,null,null,null,null,null,null,null,null,null,null,null,null,null,null,null,null,null,null,null,null,null,null,null,null,null,null,null,null,null,null,null,null,null,null,"",null,null,null,null,null,null,null,null,null,null,null,null,null,null,null,null,null,null,null,null,null,null,null,null,null,null,null,null,null,null,null,null,null,null,null,null,null,null,null,"","","","","","","","","","","",null,null,null,null,0,0,0,0,0,0,0,0,0,0,0]
["0108311","Teleconsulta Médica de Especialidad en Urología",0,0,null,null,null,null,null,null,null,null,null,null,null,null,null,null,null,null,null,null,null,null,null,null,null,null,null,null,null,null,null,null,null,null,null,null,"",null,null,null,null,null,null,null,null,null,null,null,null,null,null,null,null,null,null,null,null,null,null,null,null,null,null,null,null,null,null,null,null,null,null,null,null,null,null,null,"","","","","","","","","","","",null,null,null,null,0,0,0,0,0,0,0,0,0,0,0]
["0108319","Teleconsulta Médica de Especialidad en Coloproctología",0,0,null,null,null,null,null,null,null,null,null,null,null,null,null,null,null,null,null,null,null,null,null,null,null,null,null,null,null,null,null,null,null,null,null,null,"",null,null,null,null,null,null,null,null,null,null,null,null,null,null,null,null,null,null,null,null,null,null,null,null,null,null,null,null,null,null,null,null,null,null,null,null,null,null,null,"","","","","","","","","","","",null,null,null,null,0,0,0,0,0,0,0,0,0,0,0]
["0108320","Teleconsulta Médica de Especialidad en Diabetología",0,0,null,null,null,null,null,null,null,null,null,null,null,null,null,null,null,null,null,null,null,null,null,null,null,null,null,null,null,null,null,null,null,null,null,null,"",null,null,null,null,null,null,null,null,null,null,null,null,null,null,null,null,null,null,null,null,null,null,null,null,null,null,null,null,null,null,null,null,null,null,null,null,null,null,null,"","","","","","","","","","","",null,null,null,null,0,0,0,0,0,0,0,0,0,0,0]
["0108321","Teleconsulta Médica de Especialidad en Enfermedades Respiratorias Adulto",0,0,null,null,null,null,null,null,null,null,null,null,null,null,null,null,null,null,null,null,null,null,null,null,null,null,null,null,null,null,null,null,null,null,null,null,"",null,null,null,null,null,null,null,null,null,null,null,null,null,null,null,null,null,null,null,null,null,null,null,null,null,null,null,null,null,null,null,null,null,null,null,null,null,null,null,"","","","","","","","","","","",null,null,null,null,0,0,0,0,0,0,0,0,0,0,0]
["0108322","Teleconsulta Médica de Especialidad en Enfermedades Respiratorias Pediátricas",0,0,null,null,null,null,null,null,null,null,null,null,null,null,null,null,null,null,null,null,null,null,null,null,null,null,null,null,null,null,null,null,null,null,null,null,"",null,null,null,null,null,null,null,null,null,null,null,null,null,null,null,null,null,null,null,null,null,null,null,null,null,null,null,null,null,null,null,null,null,null,null,null,null,null,null,"","","","","","","","","","","",null,null,null,null,0,0,0,0,0,0,0,0,0,0,0]
["0108323","Teleconsulta Médica de Especialidad en Gastroenterología Adulto",0,0,null,null,null,null,null,null,null,null,null,null,null,null,null,null,null,null,null,null,null,null,null,null,null,null,null,null,null,null,null,null,null,null,null,null,"",null,null,null,null,null,null,null,null,null,null,null,null,null,null,null,null,null,null,null,null,null,null,null,null,null,null,null,null,null,null,null,null,null,null,null,null,null,null,null,"","","","","","","","","","","",null,null,null,null,0,0,0,0,0,0,0,0,0,0,0]
["0108324","Teleconsulta Médica de Especialidad en Gastroenterología Pediátrico",0,0,null,null,null,null,null,null,null,null,null,null,null,null,null,null,null,null,null,null,null,null,null,null,null,null,null,null,null,null,null,null,null,null,null,null,"",null,null,null,null,null,null,null,null,null,null,null,null,null,null,null,null,null,null,null,null,null,null,null,null,null,null,null,null,null,null,null,null,null,null,null,null,null,null,null,"","","","","","","","","","","",null,null,null,null,0,0,0,0,0,0,0,0,0,0,0]
["0108325","Teleconsulta Médica de Especialidad en Genética Clínica",0,0,null,null,null,null,null,null,null,null,null,null,null,null,null,null,null,null,null,null,null,null,null,null,null,null,null,null,null,null,null,null,null,null,null,null,"",null,null,null,null,null,null,null,null,null,null,null,null,null,null,null,null,null,null,null,null,null,null,null,null,null,null,null,null,null,null,null,null,null,null,null,null,null,null,null,"","","","","","","","","","","",null,null,null,null,0,0,0,0,0,0,0,0,0,0,0]
["0108326","Teleconsulta Médica de Especialidad en Nefrología Adulto",0,0,null,null,null,null,null,null,null,null,null,null,null,null,null,null,null,null,null,null,null,null,null,null,null,null,null,null,null,null,null,null,null,null,null,null,"",null,null,null,null,null,null,null,null,null,null,null,null,null,null,null,null,null,null,null,null,null,null,null,null,null,null,null,null,null,null,null,null,null,null,null,null,null,null,null,"","","","","","","","","","","",null,null,null,null,0,0,0,0,0,0,0,0,0,0,0]
["0108327","Teleconsulta Médica de Especialidad en Nefrología Pediátrico",0,0,null,null,null,null,null,null,null,null,null,null,null,null,null,null,null,null,null,null,null,null,null,null,null,null,null,null,null,null,null,null,null,null,null,null,"",null,null,null,null,null,null,null,null,null,null,null,null,null,null,null,null,null,null,null,null,null,null,null,null,null,null,null,null,null,null,null,null,null,null,null,null,null,null,null,"","","","","","","","","","","",null,null,null,null,0,0,0,0,0,0,0,0,0,0,0]
["0108331","Teleconsulta Médica de Especialidad en Radioterapia Oncológica",0,0,null,null,null,null,null,null,null,null,null,null,null,null,null,null,null,null,null,null,null,null,null,null,null,null,null,null,null,null,null,null,null,null,null,null,"",null,null,null,null,null,null,null,null,null,null,null,null,null,null,null,null,null,null,null,null,null,null,null,null,null,null,null,null,null,null,null,null,null,null,null,null,null,null,null,"","","","","","","","","","","",null,null,null,null,0,0,0,0,0,0,0,0,0,0,0]
["0108203","Teleconsulta Médica de Especialidad en Neurocirugía",0,0,null,null,null,null,null,null,null,null,null,null,null,null,null,null,null,null,null,null,null,null,null,null,null,null,null,null,null,null,null,null,null,null,null,null,"",null,null,null,null,null,null,null,null,null,null,null,null,null,null,null,null,null,null,null,null,null,null,null,null,null,null,null,null,null,null,null,null,null,null,null,null,null,null,null,"","","","","","","","","","","",null,null,null,null,0,0,0,0,0,0,0,0,0,0,0]
["0108204","Teleconsulta Médica de Especialidad en Oftalmología",0,0,null,null,null,null,null,null,null,null,null,null,null,null,null,null,null,null,null,null,null,null,null,null,null,null,null,null,null,null,null,null,null,null,null,null,"",null,null,null,null,null,null,null,null,null,null,null,null,null,null,null,null,null,null,null,null,null,null,null,null,null,null,null,null,null,null,null,null,null,null,null,null,null,null,null,"","","","","","","","","","","",null,null,null,null,0,0,0,0,0,0,0,0,0,0,0]
["0108205","Teleconsulta Médica de Especialidad en Otorrinolaringología",0,0,null,null,null,null,null,null,null,null,null,null,null,null,null,null,null,null,null,null,null,null,null,null,null,null,null,null,null,null,null,null,null,null,null,null,"",null,null,null,null,null,null,null,null,null,null,null,null,null,null,null,null,null,null,null,null,null,null,null,null,null,null,null,null,null,null,null,null,null,null,null,null,null,null,null,"","","","","","","","","","","",null,null,null,null,0,0,0,0,0,0,0,0,0,0,0]
["0108312","Teleconsulta Médica de Especialidad en Cirugía General",0,0,null,null,null,null,null,null,null,null,null,null,null,null,null,null,null,null,null,null,null,null,null,null,null,null,null,null,null,null,null,null,null,null,null,null,"",null,null,null,null,null,null,null,null,null,null,null,null,null,null,null,null,null,null,null,null,null,null,null,null,null,null,null,null,null,null,null,null,null,null,null,null,null,null,null,"","","","","","","","","","","",null,null,null,null,0,0,0,0,0,0,0,0,0,0,0]
["0108313","Teleconsulta Médica de Especialidad en Cirugía de Cabeza, Cuello y Maxilofacial",0,0,null,null,null,null,null,null,null,null,null,null,null,null,null,null,null,null,null,null,null,null,null,null,null,null,null,null,null,null,null,null,null,null,null,null,"",null,null,null,null,null,null,null,null,null,null,null,null,null,null,null,null,null,null,null,null,null,null,null,null,null,null,null,null,null,null,null,null,null,null,null,null,null,null,null,"","","","","","","","","","","",null,null,null,null,0,0,0,0,0,0,0,0,0,0,0]
["0108314","Teleconsulta Médica de Especialidad en Cirugía Cardiovascular",0,0,null,null,null,null,null,null,null,null,null,null,null,null,null,null,null,null,null,null,null,null,null,null,null,null,null,null,null,null,null,null,null,null,null,null,"",null,null,null,null,null,null,null,null,null,null,null,null,null,null,null,null,null,null,null,null,null,null,null,null,null,null,null,null,null,null,null,null,null,null,null,null,null,null,null,"","","","","","","","","","","",null,null,null,null,0,0,0,0,0,0,0,0,0,0,0]
["0108315","Teleconsulta Médica de Especialidad en Cirugía de Tórax",0,0,null,null,null,null,null,null,null,null,null,null,null,null,null,null,null,null,null,null,null,null,null,null,null,null,null,null,null,null,null,null,null,null,null,null,"",null,null,null,null,null,null,null,null,null,null,null,null,null,null,null,null,null,null,null,null,null,null,null,null,null,null,null,null,null,null,null,null,null,null,null,null,null,null,null,"","","","","","","","","","","",null,null,null,null,0,0,0,0,0,0,0,0,0,0,0]
["0108316","Teleconsulta Médica de Especialidad en Cirugía Plástica y Reparadora",0,0,null,null,null,null,null,null,null,null,null,null,null,null,null,null,null,null,null,null,null,null,null,null,null,null,null,null,null,null,null,null,null,null,null,null,"",null,null,null,null,null,null,null,null,null,null,null,null,null,null,null,null,null,null,null,null,null,null,null,null,null,null,null,null,null,null,null,null,null,null,null,null,null,null,null,"","","","","","","","","","","",null,null,null,null,0,0,0,0,0,0,0,0,0,0,0]
["0108317","Teleconsulta Médica de Especialidad en Cirugía Pediátrica",0,0,null,null,null,null,null,null,null,null,null,null,null,null,null,null,null,null,null,null,null,null,null,null,null,null,null,null,null,null,null,null,null,null,null,null,"",null,null,null,null,null,null,null,null,null,null,null,null,null,null,null,null,null,null,null,null,null,null,null,null,null,null,null,null,null,null,null,null,null,null,null,null,null,null,null,"","","","","","","","","","","",null,null,null,null,0,0,0,0,0,0,0,0,0,0,0]
["0108318","Teleconsulta Médica de Especialidad en Cirugía Vascular Periférica",0,0,null,null,null,null,null,null,null,null,null,null,null,null,null,null,null,null,null,null,null,null,null,null,null,null,null,null,null,null,null,null,null,null,null,null,"",null,null,null,null,null,null,null,null,null,null,null,null,null,null,null,null,null,null,null,null,null,null,null,null,null,null,null,null,null,null,null,null,null,null,null,null,null,null,null,"","","","","","","","","","","",null,null,null,null,0,0,0,0,0,0,0,0,0,0,0]
["0108329","Teleconsulta Médica de Especialidad en Anestesiología",0,0,null,null,null,null,null,null,null,null,null,null,null,null,null,null,null,null,null,null,null,null,null,null,null,null,null,null,null,null,null,null,null,null,null,null,"",null,null,null,null,null,null,null,null,null,null,null,null,null,null,null,null,null,null,null,null,null,null,null,null,null,null,null,null,null,null,null,null,null,null,null,null,null,null,null,"","","","","","","","","","","",null,null,null,null,0,0,0,0,0,0,0,0,0,0,0]
["0108332","Teleconsulta Médica de Especialidad en Ginecología Pediátrica y de la Adolescencia",0,0,null,null,null,null,null,null,null,null,null,null,null,null,null,null,null,null,null,null,null,null,null,null,null,null,null,null,null,null,null,null,null,null,null,null,"",null,null,null,null,null,null,null,null,null,null,null,null,null,null,null,null,null,null,null,null,null,null,null,null,null,null,null,null,null,null,null,null,null,null,null,null,null,null,null,"","","","","","","","","","","",null,null,null,null,0,0,0,0,0,0,0,0,0,0,0]
["0108333","Teleconsulta Médica de Especialidad en Medicina Materno Fetal",0,0,null,null,null,null,null,null,null,null,null,null,null,null,null,null,null,null,null,null,null,null,null,null,null,null,null,null,null,null,null,null,null,null,null,null,"",null,null,null,null,null,null,null,null,null,null,null,null,null,null,null,null,null,null,null,null,null,null,null,null,null,null,null,null,null,null,null,null,null,null,null,null,null,null,null,"","","","","","","","","","","",null,null,null,null,0,0,0,0,0,0,0,0,0,0,0]
["0108334","Teleconsulta Médica de Especialidad en Medicina Nuclear",0,0,null,null,null,null,null,null,null,null,null,null,null,null,null,null,null,null,null,null,null,null,null,null,null,null,null,null,null,null,null,null,null,null,null,null,"",null,null,null,null,null,null,null,null,null,null,null,null,null,null,null,null,null,null,null,null,null,null,null,null,null,null,null,null,null,null,null,null,null,null,null,null,null,null,null,"","","","","","","","","","","",null,null,null,null,0,0,0,0,0,0,0,0,0,0,0]
["0108400","Teleconsulta: Atención Integral de Nutricionista (incluye 3 sesiones)",{"$f":"SUM(D121+G121)","v":0},{"$f":"SUM(E121:F121)","v":0},null,null,null,null,null,null,null,null,null,null,null,null,null,null,null,null,null,null,null,null,null,null,null,null,null,null,null,null,null,null,null,null,null,null,"",null,null,null,null,null,null,null,null,null,null,null,null,null,null,null,null,null,null,null,null,null,null,null,null,null,null,null,null,null,null,null,null,null,null,null,null,null,null,null,"","","","","","","","","","","",null,null,null,null,0,0,0,0,0,0,0,0,0,0,0]
["TOTAL",null,{"$f":"SUM(C75:C121)","v":0},{"$f":"SUM(D75:D121)","v":0},{"$f":"SUM(E75:E121)","v":0},{"$f":"SUM(F75:F121)","v":0},{"$f":"SUM(G75:G121)","v":0},null,null,null,null,null,null,null,null,null,null,null,null,null,null,null,null,null,null,null,{"$f":"SUM(AA75:AA121)","v":0},0,0,0,0,0,0,0,0,0]
["TELEINTERCONSULTA (TELEMEDICINA)"]
["0109001","Teleinterconsulta médica",{"$f":"SUM(D124+G124)","v":0},{"$f":"SUM(E124:F124)","v":0},null,null,null,null,null,null,null,null,null,null,null,null,null,null,null,null,null,null,null,null,null,null,null,null,null,null,null,null,null,null,null,null,null,null,"",null,null,null,null,null,null,null,null,null,null,null,null,null,null,null,null,null,null,null,null,null,null,null,null,null,null,null,null,null,null,null,null,null,null,null,null,null,null,null,"","","","","","","","","","","",null,null,null,null,0,0,0,0,0,0,0,0,0,0,0]
["0109002","Teleinterconsulta no médica",{"$f":"SUM(D125+G125)","v":0},{"$f":"SUM(E125:F125)","v":0},null,null,null,null,null,null,null,null,null,null,null,null,null,null,null,null,null,null,null,null,null,null,null,null,null,null,null,null,null,null,null,null,null,null,"",null,null,null,null,null,null,null,null,null,null,null,null,null,null,null,null,null,null,null,null,null,null,null,null,null,null,null,null,null,null,null,null,null,null,null,null,null,null,null,"","","","","","","","","","","",null,null,null,null,0,0,0,0,0,0,0,0,0,0,0]
["TOTAL",null,{"$f":"SUM(C124:C125)","v":0},{"$f":"SUM(D124:D125)","v":0},{"$f":"SUM(E124:E125)","v":0},{"$f":"SUM(F124:F125)","v":0},{"$f":"SUM(G124:G125)","v":0},null,null,null,null,null,null,null,null,null,null,null,null,null,null,null,null,null,null,null,{"$f":"SUM(AA124:AA125)","v":0},{"$f":"SUM(AB124:AB125)","v":0},0,0,0,0,0,0,0,0,null,null,""]
["EDUCACIÓN DE GRUPO                                                                                         ",null,null,null,null,null,null,null,null,null,null,null,null,null,null,null,null,null,null,null,null,null,null,null,null,null,null,null,null,null,null,null,null,null,null,null,null,null,""]
["0103001","Educación de grupo por médico",{"$f":"SUM(D128+G128)","v":0},{"$f":"SUM(E128:F128)","v":0},null,null,null,null,null,null,null,null,null,null,null,null,null,null,null,null,null,null,null,null,null,null,null,null,null,null,null,null,null,null,null,null,null,null,"",null,null,null,null,null,null,null,null,null,null,null,null,null,null,null,null,null,null,null,null,null,null,null,null,null,null,null,null,null,null,null,null,null,null,null,null,null,null,null,"","","","","","","","","","","",null,null,null,null,0,0,0,0,0,0,0,0,0,0,0]
["0103003","Educación de grupo por trabajador/a social",0,0,null,null,null,null,null,null,null,null,null,null,null,null,null,null,null,null,null,null,null,null,null,null,null,null,null,null,null,null,null,null,null,null,null,null,"",null,null,null,null,null,null,null,null,null,null,null,null,null,null,null,null,null,null,null,null,null,null,null,null,null,null,null,null,null,null,null,null,null,null,null,null,null,null,null,"","","","","","","","","","","",null,null,null,null,0,0,0,0,0,0,0,0,0,0,0]
["0103004","Educación de grupo por auxiliar de enfermería",0,0,null,null,null,null,null,null,null,null,null,null,null,null,null,null,null,null,null,null,null,null,null,null,null,null,null,null,null,null,null,null,null,null,null,null,"",null,null,null,null,null,null,null,null,null,null,null,null,null,null,null,null,null,null,null,null,null,null,null,null,null,null,null,null,null,null,null,null,null,null,null,null,null,null,null,"","","","","","","","","","","",null,null,null,null,0,0,0,0,0,0,0,0,0,0,0]
["0103005","Educación de grupo por enfermera",0,0,null,null,null,null,null,null,null,null,null,null,null,null,null,null,null,null,null,null,null,null,null,null,null,null,null,null,null,null,null,null,null,null,null,null,"",null,null,null,null,null,null,null,null,null,null,null,null,null,null,null,null,null,null,null,null,null,null,null,null,null,null,null,null,null,null,null,null,null,null,null,null,null,null,null,"","","","","","","","","","","",null,null,null,null,0,0,0,0,0,0,0,0,0,0,0]
["0103006","Educación de grupo por matrona ",0,0,null,null,null,null,null,null,null,null,null,null,null,null,null,null,null,null,null,null,null,null,null,null,null,null,null,null,null,null,null,null,null,null,null,null,"",null,null,null,null,null,null,null,null,null,null,null,null,null,null,null,null,null,null,null,null,null,null,null,null,null,null,null,null,null,null,null,null,null,null,null,null,null,null,null,"","","","","","","","","","","",null,null,null,null,0,0,0,0,0,0,0,0,0,0,0]
["0103007","Educación de grupo por nutricionista",0,0,null,null,null,null,null,null,null,null,null,null,null,null,null,null,null,null,null,null,null,null,null,null,null,null,null,null,null,null,null,null,null,null,null,null,"",null,null,null,null,null,null,null,null,null,null,null,null,null,null,null,null,null,null,null,null,null,null,null,null,null,null,null,null,null,null,null,null,null,null,null,null,null,null,null,"","","","","","","","","","","",null,null,null,null,0,0,0,0,0,0,0,0,0,0,0]
["01010033","Educación de grupo por otro integrante del equipo de salud",{"$f":"SUM(D134+G134)","v":0},{"$f":"SUM(E134:F134)","v":0},null,null,null,null,null,null,null,null,null,null,null,null,null,null,null,null,null,null,null,null,null,null,null,null,null,null,null,null,null,null,null,null,null,null,"",null,null,null,null,null,null,null,null,null,null,null,null,null,null,null,null,null,null,null,null,null,null,null,null,null,null,null,null,null,null,null,null,null,null,null,null,null,null,null,"","","","","","","","","","","",null,null,null,null,0,0,0,0,0,0,0,0,0,0,0]
["TOTAL",null,{"$f":"SUM(C128:C134)","v":0},{"$f":"SUM(D128:D134)","v":0},{"$f":"SUM(E128:E134)","v":0},{"$f":"SUM(F128:F134)","v":0},{"$f":"SUM(G128:G134)","v":0},null,null,null,null,null,null,null,null,null,null,null,null,null,null,null,null,null,null,null,{"$f":"SUM(AA128:AA134)","v":0},{"$f":"SUM(AB128:AB134)","v":0},0,0,0,0,0,0,0,{"$f":"SUM(AJ128:AJ134)","v":0}]
["VISITAS DOMICILIARIAS                                                                                       "]
["0104002","Visita a domicilio por trabajador/a social",{"$f":"SUM(D137+G137)","v":0},{"$f":"SUM(E137:F137)","v":0},null,null,null,null,null,null,null,null,null,null,null,null,null,null,null,null,null,null,null,null,null,null,null,null,null,null,null,null,null,null,null,null,null,null,"",null,null,null,null,null,null,null,null,null,null,null,null,null,null,null,null,null,null,null,null,null,null,null,null,null,null,null,null,null,null,null,null,null,null,null,null,null,null,null,"","","","","","","","","","","",null,null,null,null,0,0,0,0,0,0,0,0,0,0,0]
["0104003","Visita a domicilio por auxiliar de enfermería",0,0,null,null,null,null,null,null,null,null,null,null,null,null,null,null,null,null,null,null,null,null,null,null,null,null,null,null,null,null,null,null,null,null,null,null,"",null,null,null,null,null,null,null,null,null,null,null,null,null,null,null,null,null,null,null,null,null,null,null,null,null,null,null,null,null,null,null,null,null,null,null,null,null,null,null,"","","","","","","","","","","",null,null,null,null,0,0,0,0,0,0,0,0,0,0,0]
["0104004","Visita a domicilio por enfermera",0,0,null,null,null,null,null,null,null,null,null,null,null,null,null,null,null,null,null,null,null,null,null,null,null,null,null,null,null,null,null,null,null,null,null,null,"",null,null,null,null,null,null,null,null,null,null,null,null,null,null,null,null,null,null,null,null,null,null,null,null,null,null,null,null,null,null,null,null,null,null,null,null,null,null,null,"","","","","","","","","","","",null,null,null,null,0,0,0,0,0,0,0,0,0,0,0]
["0104005","Visita a domicilio por matrona",0,0,null,null,null,null,null,null,null,null,null,null,null,null,null,null,null,null,null,null,null,null,null,null,null,null,null,null,null,null,null,null,null,null,null,null,"",null,null,null,null,null,null,null,null,null,null,null,null,null,null,null,null,null,null,null,null,null,null,null,null,null,null,null,null,null,null,null,null,null,null,null,null,null,null,null,"","","","","","","","","","","",null,null,null,null,0,0,0,0,0,0,0,0,0,0,0]
["0104006","Visita a domicilio por nutricionista",0,0,null,null,null,null,null,null,null,null,null,null,null,null,null,null,null,null,null,null,null,null,null,null,null,null,null,null,null,null,null,null,null,null,null,null,{"$f":"CA141&CB141&CC141&CD141&CE141&CF141&CG141&CH141&CI141&CJ141&CK141","v":""},null,null,null,null,null,null,null,null,null,null,null,null,null,null,null,null,null,null,null,null,null,null,null,null,null,null,null,null,null,null,null,null,null,null,null,null,null,null,null,{"$f":"IF(AND($C141>0,AA141=\"\"),\" * No olvide digitar la variable \"&$AA$8&\"\"&\": Atención Cerrada. Digite Cero si no tiene.\",\"\")","v":""},{"$f":"IF(AND($C141>0,AB141=\"\"),\" * No olvide digitar la variable \"&$AA$8&\"\"&\": Atención Abierta. Digite Cero si no tiene.\",\"\")","v":""},{"$f":"IF(AND($C141>0,AC141=\"\"),\" * No olvide digitar la variable \"&$AA$8&\"\"&\": Emergencia. Digite Cero si no tiene.\",\"\")","v":""},{"$f":"IF(AND(C141<AA141+AB141+AC141),\" * La Suma de la variable \"&$AA$8&\"\"&\" no puede ser mayor al Total.\",\"\")","v":""},{"$f":"IF(AND($C141>0,AD141=\"\"),\" * No olvide digitar la variable \"&$AD$8&\"\"&\": Honorarios. Digite Cero si no tiene.\",\"\")","v":""},{"$f":"IF(AND($C141>0,AE141=\"\"),\" * No olvide digitar la variable \"&$AD$8&\"\"&\": Convenios. Digite Cero si no tiene.\",\"\")","v":""},{"$f":"IF(AND($C141>0,AF141=\"\"),\" * No olvide digitar la variable \"&$AD$8&\"\"&\": Consultores de llamada. Digite Cero si no tiene.\",\"\")","v":""},{"$f":"IF(AND($C141>0,AG141=\"\"),\" * No olvide digitar la variable \"&$AG$8&\"\"&\". Digite Cero si no tiene.\",\"\")","v":""},{"$f":"IF(AND($C141>0,AH141=\"\"),\" * No olvide digitar la variable \"&$AH$8&\"\"&\" Al Sistema. Digite Cero si no tiene.\",\"\")","v":""},{"$f":"IF(AND($C141>0,AI141=\"\"),\" * No olvide digitar la variable \"&$AH$8&\"\"&\" al Extrasistema. Digite Cero si no tiene.\",\"\")","v":""},{"$f":"IF(AND($C141>0,AJ141=\"\"),\" * No olvide digitar la variable \"&$AJ$8&\"\"&\". Digite Cero si no tiene.\",\"\")","v":""},null,null,null,null,{"$f":"IF(AND($C141>0,AA141=\"\"),1,0)","v":0},{"$f":"IF(AND($C141>0,AB141=\"\"),1,0)","v":0},{"$f":"IF(AND($C141>0,AC141=\"\"),1,0)","v":0},{"$f":"IF(AND(C141<AA141+AB141+AC141),1,0)","v":0},{"$f":"IF(AND($C141>0,AD141=\"\"),1,0)","v":0},{"$f":"IF(AND($C141>0,AE141=\"\"),1,0)","v":0},{"$f":"IF(AND($C141>0,AF141=\"\"),1,0)","v":0},{"$f":"IF(AND($C141>0,AG141=\"\"),1,0)","v":0},{"$f":"IF(AND($C141>0,AH141=\"\"),1,0)","v":0},{"$f":"IF(AND($C141>0,AI141=\"\"),1,0)","v":0},{"$f":"IF(AND($C141>0,AJ141=\"\"),1,0)","v":0}]
["01010037","Visita a domicilio por otro integrante del equipo de salud",0,0,null,null,null,null,null,null,null,null,null,null,null,null,null,null,null,null,null,null,null,null,null,null,null,null,null,null,null,null,null,null,null,null,null,null,"",null,null,null,null,null,null,null,null,null,null,null,null,null,null,null,null,null,null,null,null,null,null,null,null,null,null,null,null,null,null,null,null,null,null,null,null,null,null,null,"","","","","","","","","","","",null,null,null,null,0,0,0,0,0,0,0,0,0,0,0]
["01010038","Visita domiciaria por otro profesional y técnicos paramédico",0,0,null,null,null,null,null,null,null,null,null,null,null,null,null,null,null,null,null,null,null,null,null,null,null,null,null,null,null,null,null,null,null,null,null,null,"",null,null,null,null,null,null,null,null,null,null,null,null,null,null,null,null,null,null,null,null,null,null,null,null,null,null,null,null,null,null,null,null,null,null,null,null,null,null,null,"","","","","","","","","","","",null,null,null,null,0,0,0,0,0,0,0,0,0,0,0]
["TOTAL",null,{"$f":"SUM(C137:C143)","v":0},{"$f":"SUM(D137:D143)","v":0},{"$f":"SUM(E137:E143)","v":0},{"$f":"SUM(F137:F143)","v":0},{"$f":"SUM(G137:G143)","v":0},null,null,null,null,null,null,null,null,null,null,null,null,null,null,null,null,null,null,null,{"$f":"SUM(AA137:AA143)","v":0},{"$f":"SUM(AB137:AB143)","v":0},0,0,0,0,0,0,0,0]
["MISCELÁNEOS                                                                                            "]
["0106002","Curación simple ambulatoria",{"$f":"SUM(D146+G146)","v":0},{"$f":"SUM(E146:F146)","v":0},null,null,null,null,null,null,null,null,null,null,null,null,null,null,null,null,null,null,null,null,null,null,null,null,null,null,null,null,null,null,null,null,null,null,"",null,null,null,null,null,null,null,null,null,null,null,null,null,null,null,null,null,null,null,null,null,null,null,null,null,null,null,null,null,null,null,null,null,null,null,null,null,null,null,"","","","","","","","","","","",null,null,null,null,0,0,0,0,0,0,0,0,0,0,0]
["0106007","Oxigenoterapia Hiperbárica (1 sesión)",0,0,null,null,null,null,null,null,null,null,null,null,null,null,null,null,null,null,null,null,null,null,null,null,null,null,null,null,null,null,null,null,null,null,null,null,"",null,null,null,null,null,null,null,null,null,null,null,null,null,null,null,null,null,null,null,null,null,null,null,null,null,null,null,null,null,null,null,null,null,null,null,null,null,null,null,"","","","","","","","","","","",null,null,null,null,0,0,0,0,0,0,0,0,0,0,0]
["0106101","Atención Integral de Acupuntura ",0,0,null,null,null,null,null,null,null,null,null,null,null,null,null,null,null,null,null,null,null,null,null,null,null,null,null,null,null,null,null,null,null,null,null,null,"",null,null,null,null,null,null,null,null,null,null,null,null,null,null,null,null,null,null,null,null,null,null,null,null,null,null,null,null,null,null,null,null,null,null,null,null,null,null,null,"","","","","","","","","","","",null,null,null,null,0,0,0,0,0,0,0,0,0,0,0]
["01010043","Autocontrol pacientes Diabetico insulino dependiente (D.I.D. mensual)",0,0,null,null,null,null,null,null,null,null,null,null,null,null,null,null,null,null,null,null,null,null,null,null,null,null,null,null,null,null,null,null,null,null,null,null,"",null,null,null,null,null,null,null,null,null,null,null,null,null,null,null,null,null,null,null,null,null,null,null,null,null,null,null,null,null,null,null,null,null,null,null,null,null,null,null,"","","","","","","","","","","",null,null,null,null,0,0,0,0,0,0,0,0,0,0,0]
["01010044","Oxigenoterapia domiciliaria (pacientes oxígeno dependientes)",0,0,null,null,null,null,null,null,null,null,null,null,null,null,null,null,null,null,null,null,null,null,null,null,null,null,null,null,null,null,null,null,null,null,null,null,"",null,null,null,null,null,null,null,null,null,null,null,null,null,null,null,null,null,null,null,null,null,null,null,null,null,null,null,null,null,null,null,null,null,null,null,null,null,null,null,"","","","","","","","","","","",null,null,null,null,0,0,0,0,0,0,0,0,0,0,0]
["01010047","Procedimientos de podología",0,0,null,null,null,null,null,null,null,null,null,null,null,null,null,null,null,null,null,null,null,null,null,null,null,null,null,null,null,null,null,null,null,null,null,null,"",null,null,null,null,null,null,null,null,null,null,null,null,null,null,null,null,null,null,null,null,null,null,null,null,null,null,null,null,null,null,null,null,null,null,null,null,null,null,null,"","","","","","","","","","","",null,null,null,null,0,0,0,0,0,0,0,0,0,0,0]
[5099048,"Hemoglucotest instantáneo",0,0,null,null,null,null,null,null,null,null,null,null,null,null,null,null,null,null,null,null,null,null,null,null,null,null,null,null,null,null,null,null,null,null,null,null,"",null,null,null,null,null,null,null,null,null,null,null,null,null,null,null,null,null,null,null,null,null,null,null,null,null,null,null,null,null,null,null,null,null,null,null,null,null,null,null,"","","","","","","","","","","",null,null,null,null,0,0,0,0,0,0,0,0,0,0,0]
[5099008,"Actividad Básica",0,0,null,null,null,null,null,null,null,null,null,null,null,null,null,null,null,null,null,null,null,null,null,null,null,null,null,null,null,null,null,null,null,null,null,null,"",null,null,null,null,null,null,null,null,null,null,null,null,null,null,null,null,null,null,null,null,null,null,null,null,null,null,null,null,null,null,null,null,null,null,null,null,null,null,null,"","","","","","","","","","","",null,null,null,null,0,0,0,0,0,0,0,0,0,0,0]
[5099009,"Actividad Terapeutica",0,0,null,null,null,null,null,null,null,null,null,null,null,null,null,null,null,null,null,null,null,null,null,null,null,null,null,null,null,null,null,null,null,null,null,null,"",null,null,null,null,null,null,null,null,null,null,null,null,null,null,null,null,null,null,null,null,null,null,null,null,null,null,null,null,null,null,null,null,null,null,null,null,null,null,null,"","","","","","","","","","","",null,null,null,null,0,0,0,0,0,0,0,0,0,0,0]
[5099010,"Evaluación Actividad",0,0,null,null,null,null,null,null,null,null,null,null,null,null,null,null,null,null,null,null,null,null,null,null,null,null,null,null,null,null,null,null,null,null,null,null,"",null,null,null,null,null,null,null,null,null,null,null,null,null,null,null,null,null,null,null,null,null,null,null,null,null,null,null,null,null,null,null,null,null,null,null,null,null,null,null,"","","","","","","","","","","",null,null,null,null,0,0,0,0,0,0,0,0,0,0,0]
[5099011,"Evaluación  prevocaciónal",0,0,null,null,null,null,null,null,null,null,null,null,null,null,null,null,null,null,null,null,null,null,null,null,null,null,null,null,null,null,null,null,null,null,null,null,"",null,null,null,null,null,null,null,null,null,null,null,null,null,null,null,null,null,null,null,null,null,null,null,null,null,null,null,null,null,null,null,null,null,null,null,null,null,null,null,"","","","","","","","","","","",null,null,null,null,0,0,0,0,0,0,0,0,0,0,0]
[5099063,"Evaluación cognitiva",0,0,null,null,null,null,null,null,null,null,null,null,null,null,null,null,null,null,null,null,null,null,null,null,null,null,null,null,null,null,null,null,null,null,null,null,"",null,null,null,null,null,null,null,null,null,null,null,null,null,null,null,null,null,null,null,null,null,null,null,null,null,null,null,null,null,null,null,null,null,null,null,null,null,null,null,"","","","","","","","","","","",null,null,null,null,0,0,0,0,0,0,0,0,0,0,0]
[5099064,"Estimulación cognitiva",0,0,null,null,null,null,null,null,null,null,null,null,null,null,null,null,null,null,null,null,null,null,null,null,null,null,null,null,null,null,null,null,null,null,null,null,"",null,null,null,null,null,null,null,null,null,null,null,null,null,null,null,null,null,null,null,null,null,null,null,null,null,null,null,null,null,null,null,null,null,null,null,null,null,null,null,"","","","","","","","","","","",null,null,null,null,0,0,0,0,0,0,0,0,0,0,0]
[5099111,"Curación avanzada de herida",0,0,null,null,null,null,null,null,null,null,null,null,null,null,null,null,null,null,null,null,null,null,null,null,null,null,null,null,null,null,null,null,null,null,null,null,"",null,null,null,null,null,null,null,null,null,null,null,null,null,null,null,null,null,null,null,null,null,null,null,null,null,null,null,null,null,null,null,null,null,null,null,null,null,null,null,"","","","","","","","","","","",null,null,null,null,0,0,0,0,0,0,0,0,0,0,0]
["0102701","Evaluación Motriz Funcional",0,0,null,null,null,null,null,null,null,null,null,null,null,null,null,null,null,null,null,null,null,null,null,null,null,null,null,null,null,null,null,null,null,null,null,null,"",null,null,null,null,null,null,null,null,null,null,null,null,null,null,null,null,null,null,null,null,null,null,null,null,null,null,null,null,null,null,null,null,null,null,null,null,null,null,null,"","","","","","","","","","","",null,null,null,null,0,0,0,0,0,0,0,0,0,0,0]
["0102702","Evaluación cognitiva-perceptual",0,0,null,null,null,null,null,null,null,null,null,null,null,null,null,null,null,null,null,null,null,null,null,null,null,null,null,null,null,null,null,null,null,null,null,null,"",null,null,null,null,null,null,null,null,null,null,null,null,null,null,null,null,null,null,null,null,null,null,null,null,null,null,null,null,null,null,null,null,null,null,null,null,null,null,null,"","","","","","","","","","","",null,null,null,null,0,0,0,0,0,0,0,0,0,0,0]
["0102703","Evaluación independencia en actividades de la vida diaria",0,0,null,null,null,null,null,null,null,null,null,null,null,null,null,null,null,null,null,null,null,null,null,null,null,null,null,null,null,null,null,null,null,null,null,null,"",null,null,null,null,null,null,null,null,null,null,null,null,null,null,null,null,null,null,null,null,null,null,null,null,null,null,null,null,null,null,null,null,null,null,null,null,null,null,null,"","","","","","","","","","","",null,null,null,null,0,0,0,0,0,0,0,0,0,0,0]
["0102704","Evaluación barreras arquitectónicas",0,0,null,null,null,null,null,null,null,null,null,null,null,null,null,null,null,null,null,null,null,null,null,null,null,null,null,null,null,null,null,null,null,null,null,null,"",null,null,null,null,null,null,null,null,null,null,null,null,null,null,null,null,null,null,null,null,null,null,null,null,null,null,null,null,null,null,null,null,null,null,null,null,null,null,null,"","","","","","","","","","","",null,null,null,null,0,0,0,0,0,0,0,0,0,0,0]
["0102705","Evaluación puesto de trabajo",0,0,null,null,null,null,null,null,null,null,null,null,null,null,null,null,null,null,null,null,null,null,null,null,null,null,null,null,null,null,null,null,null,null,null,null,"",null,null,null,null,null,null,null,null,null,null,null,null,null,null,null,null,null,null,null,null,null,null,null,null,null,null,null,null,null,null,null,null,null,null,null,null,null,null,null,"","","","","","","","","","","",null,null,null,null,0,0,0,0,0,0,0,0,0,0,0]
["0102706","Evaluación del desarrollo Psicomotor",0,0,null,null,null,null,null,null,null,null,null,null,null,null,null,null,null,null,null,null,null,null,null,null,null,null,null,null,null,null,null,null,null,null,null,null,"",null,null,null,null,null,null,null,null,null,null,null,null,null,null,null,null,null,null,null,null,null,null,null,null,null,null,null,null,null,null,null,null,null,null,null,null,null,null,null,"","","","","","","","","","","",null,null,null,null,0,0,0,0,0,0,0,0,0,0,0]
["0102707","Reentrenamiento de las funciones cognitiva-perceptual",0,0,null,null,null,null,null,null,null,null,null,null,null,null,null,null,null,null,null,null,null,null,null,null,null,null,null,null,null,null,null,null,null,null,null,null,"",null,null,null,null,null,null,null,null,null,null,null,null,null,null,null,null,null,null,null,null,null,null,null,null,null,null,null,null,null,null,null,null,null,null,null,null,null,null,null,"","","","","","","","","","","",null,null,null,null,0,0,0,0,0,0,0,0,0,0,0]
["0102708","Reentrenamiento de las actividades de la vida diaria",0,0,null,null,null,null,null,null,null,null,null,null,null,null,null,null,null,null,null,null,null,null,null,null,null,null,null,null,null,null,null,null,null,null,null,null,"",null,null,null,null,null,null,null,null,null,null,null,null,null,null,null,null,null,null,null,null,null,null,null,null,null,null,null,null,null,null,null,null,null,null,null,null,null,null,null,"","","","","","","","","","","",null,null,null,null,0,0,0,0,0,0,0,0,0,0,0]
["0102709","Reentrenamiento laboral",0,0,null,null,null,null,null,null,null,null,null,null,null,null,null,null,null,null,null,null,null,null,null,null,null,null,null,null,null,null,null,null,null,null,null,null,"",null,null,null,null,null,null,null,null,null,null,null,null,null,null,null,null,null,null,null,null,null,null,null,null,null,null,null,null,null,null,null,null,null,null,null,null,null,null,null,"","","","","","","","","","","",null,null,null,null,0,0,0,0,0,0,0,0,0,0,0]
["01010065","Comité junta médica",0,0,null,null,null,null,null,null,null,null,null,null,null,null,null,null,null,null,null,null,null,null,null,null,null,null,null,null,null,null,null,null,null,null,null,null,"",null,null,null,null,null,null,null,null,null,null,null,null,null,null,null,null,null,null,null,null,null,null,null,null,null,null,null,null,null,null,null,null,null,null,null,null,null,null,null,"","","","","","","","","","","",null,null,null,null,0,0,0,0,0,0,0,0,0,0,0]
["01010066","Consultorías médicas de especialidades",0,0,null,null,null,null,null,null,null,null,null,null,null,null,null,null,null,null,null,null,null,null,null,null,null,null,null,null,null,null,null,null,null,null,null,null,"",null,null,null,null,null,null,null,null,null,null,null,null,null,null,null,null,null,null,null,null,null,null,null,null,null,null,null,null,null,null,null,null,null,null,null,null,null,null,null,"","","","","","","","","","","",null,null,null,null,0,0,0,0,0,0,0,0,0,0,0]
["01010067","Consultorías odontólogos",0,0,null,null,null,null,null,null,null,null,null,null,null,null,null,null,null,null,null,null,null,null,null,null,null,null,null,null,null,null,null,null,null,null,null,null,"",null,null,null,null,null,null,null,null,null,null,null,null,null,null,null,null,null,null,null,null,null,null,null,null,null,null,null,null,null,null,null,null,null,null,null,null,null,null,null,"","","","","","","","","","","",null,null,null,null,0,0,0,0,0,0,0,0,0,0,0]
["01010068","Consejeria Individual por profesional de salud",0,0,null,null,null,null,null,null,null,null,null,null,null,null,null,null,null,null,null,null,null,null,null,null,null,null,null,null,null,null,null,null,null,null,null,null,"",null,null,null,null,null,null,null,null,null,null,null,null,null,null,null,null,null,null,null,null,null,null,null,null,null,null,null,null,null,null,null,null,null,null,null,null,null,null,null,"","","","","","","","","","","",null,null,null,null,0,0,0,0,0,0,0,0,0,0,0]
["01010069","Consejeria Familiar por profesionales de salud",0,0,null,null,null,null,null,null,null,null,null,null,null,null,null,null,null,null,null,null,null,null,null,null,null,null,null,null,null,null,null,null,null,null,null,null,"",null,null,null,null,null,null,null,null,null,null,null,null,null,null,null,null,null,null,null,null,null,null,null,null,null,null,null,null,null,null,null,null,null,null,null,null,null,null,null,"","","","","","","","","","","",null,null,null,null,0,0,0,0,0,0,0,0,0,0,0]
["01010071","Instalación vendaje compresivo (Coban)",0,0,null,null,null,null,null,null,null,null,null,null,null,null,null,null,null,null,null,null,null,null,null,null,null,null,null,null,null,null,null,null,null,null,null,null,"",null,null,null,null,null,null,null,null,null,null,null,null,null,null,null,null,null,null,null,null,null,null,null,null,null,null,null,null,null,null,null,null,null,null,null,null,null,null,null,"","","","","","","","","","","",null,null,null,null,0,0,0,0,0,0,0,0,0,0,0]
["TOTAL",null,{"$f":"SUM(C146:C174)","v":0},{"$f":"SUM(D146:D174)","v":0},{"$f":"SUM(E146:E174)","v":0},{"$f":"SUM(F146:F174)","v":0},{"$f":"SUM(G146:G174)","v":0},null,null,null,null,null,null,null,null,null,null,null,null,null,null,null,null,null,null,null,{"$f":"SUM(AA146:AA174)","v":0},0,0,0,0,0,0,0,0,0]
["TRASPLANTES"]
["01010072","Estudio receptor donante cadáver ",0,{"$f":"SUM(E177:F177)","v":0},null,null,null,null,null,null,null,null,null,null,null,null,null,null,null,null,null,null,null,null,null,null,null,null,null,null,null,null,null,null,null,null,null,null,"",null,null,null,null,null,null,null,null,null,null,null,null,null,null,null,null,null,null,null,null,null,null,null,null,null,null,null,null,null,null,null,null,null,null,null,null,null,null,null,"","","","","","","","","","","",null,null,null,null,0,0,0,0,0,0,0,0,0,0,0]
["01010073","Estudio receptor donante vivo ",0,0,null,null,null,null,null,null,null,null,null,null,null,null,null,null,null,null,null,null,null,null,null,null,null,null,null,null,null,null,null,null,null,null,null,null,"",null,null,null,null,null,null,null,null,null,null,null,null,null,null,null,null,null,null,null,null,null,null,null,null,null,null,null,null,null,null,null,null,null,null,null,null,null,null,null,"","","","","","","","","","","",null,null,null,null,0,0,0,0,0,0,0,0,0,0,0]
["01010074","Estudio receptores corazón-pulmón ",0,0,null,null,null,null,null,null,null,null,null,null,null,null,null,null,null,null,null,null,null,null,null,null,null,null,null,null,null,null,null,null,null,null,null,null,"",null,null,null,null,null,null,null,null,null,null,null,null,null,null,null,null,null,null,null,null,null,null,null,null,null,null,null,null,null,null,null,null,null,null,null,null,null,null,null,"","","","","","","","","","","",null,null,null,null,0,0,0,0,0,0,0,0,0,0,0]
["01010075","Estudio pacientes trasplante medula ósea ",0,0,null,null,null,null,null,null,null,null,null,null,null,null,null,null,null,null,null,null,null,null,null,null,null,null,null,null,null,null,null,null,null,null,null,null,"",null,null,null,null,null,null,null,null,null,null,null,null,null,null,null,null,null,null,null,null,null,null,null,null,null,null,null,null,null,null,null,null,null,null,null,null,null,null,null,"","","","","","","","","","","",null,null,null,null,0,0,0,0,0,0,0,0,0,0,0]
["01010076","Trasplante de medula autólogo",0,0,null,null,null,null,null,null,null,null,null,null,null,null,null,null,null,null,null,null,null,null,null,null,null,null,null,null,null,null,null,null,null,null,null,null,"",null,null,null,null,null,null,null,null,null,null,null,null,null,null,null,null,null,null,null,null,null,null,null,null,null,null,null,null,null,null,null,null,null,null,null,null,null,null,null,"","","","","","","","","","","",null,null,null,null,0,0,0,0,0,0,0,0,0,0,0]
["01010077","Trasplante de medula alógeno",0,0,null,null,null,null,null,null,null,null,null,null,null,null,null,null,null,null,null,null,null,null,null,null,null,null,null,null,null,null,null,null,null,null,null,null,"",null,null,null,null,null,null,null,null,null,null,null,null,null,null,null,null,null,null,null,null,null,null,null,null,null,null,null,null,null,null,null,null,null,null,null,null,null,null,null,"","","","","","","","","","","",null,null,null,null,0,0,0,0,0,0,0,0,0,0,0]
["01010078","Trasplante medula de cordón",0,0,null,null,null,null,null,null,null,null,null,null,null,null,null,null,null,null,null,null,null,null,null,null,null,null,null,null,null,null,null,null,null,null,null,null,"",null,null,null,null,null,null,null,null,null,null,null,null,null,null,null,null,null,null,null,null,null,null,null,null,null,null,null,null,null,null,null,null,null,null,null,null,null,null,null,"","","","","","","","","","","",null,null,null,null,0,0,0,0,0,0,0,0,0,0,0]
["01010079","Trasplante medula aploidentico",0,0,null,null,null,null,null,null,null,null,null,null,null,null,null,null,null,null,null,null,null,null,null,null,null,null,null,null,null,null,null,null,null,null,null,null,"",null,null,null,null,null,null,null,null,null,null,null,null,null,null,null,null,null,null,null,null,null,null,null,null,null,null,null,null,null,null,null,null,null,null,null,null,null,null,null,"","","","","","","","","","","",null,null,null,null,0,0,0,0,0,0,0,0,0,0,0]
["01010080","Trasplante de córnea (incluye procuramiento y seguimiento por un año)",0,0,null,null,null,null,null,null,null,null,null,null,null,null,null,null,null,null,null,null,null,null,null,null,null,null,null,null,null,null,null,null,null,null,null,null,"",null,null,null,null,null,null,null,null,null,null,null,null,null,null,null,null,null,null,null,null,null,null,null,null,null,null,null,null,null,null,null,null,null,null,null,null,null,null,null,"","","","","","","","","","","",null,null,null,null,0,0,0,0,0,0,0,0,0,0,0]
["01010081","Soporte pretrasplante hepático extracorporeo por sesión ",0,0,null,null,null,null,null,null,null,null,null,null,null,null,null,null,null,null,null,null,null,null,null,null,null,null,null,null,null,null,null,null,null,null,null,null,"",null,null,null,null,null,null,null,null,null,null,null,null,null,null,null,null,null,null,null,null,null,null,null,null,null,null,null,null,null,null,null,null,null,null,null,null,null,null,null,"","","","","","","","","","","",null,null,null,null,0,0,0,0,0,0,0,0,0,0,0]
["01010082","Mantención donante cadáver (pulmón, corazón o hígado) (muerte cerebral) ",0,0,null,null,null,null,null,null,null,null,null,null,null,null,null,null,null,null,null,null,null,null,null,null,null,null,null,null,null,null,null,null,null,null,null,null,"",null,null,null,null,null,null,null,null,null,null,null,null,null,null,null,null,null,null,null,null,null,null,null,null,null,null,null,null,null,null,null,null,null,null,null,null,null,null,null,"","","","","","","","","","","",null,null,null,null,0,0,0,0,0,0,0,0,0,0,0]
["TOTAL",null,{"$f":"SUM(C177:C187)","v":0},{"$f":"SUM(D177:D187)","v":0},{"$f":"SUM(E177:E187)","v":0},{"$f":"SUM(F177:F187)","v":0},{"$f":"SUM(G177:G187)","v":0},null,null,null,null,null,null,null,null,null,null,null,null,null,null,null,null,null,null,null,{"$f":"SUM(AA177:AA187)","v":0},{"$f":"SUM(AB177:AB187)","v":0},0,0,0,0,0,0,0,0]
["ATENCIÓN CERRADA "]
["0201010","Dia Cama de Hospitalización Integral Cuidados Básicos",0,{"$f":"SUM(E190:F190)","v":0},null,null,null,null,null,null,null,null,null,null,null,null,null,null,null,null,null,null,null,null,null,null,null,null,null,null,null,null,null,null,null,null,null,null,"",null,null,null,null,null,null,null,null,null,null,null,null,null,null,null,null,null,null,null,null,null,null,null,null,null,null,null,null,null,null,null,null,null,null,null,null,null,null,null,"","","","","","","","","","","",null,null,null,null,0,0,0,0,0,0,0,0,0,0,0]
["0201110","Dia Cama de Hospitalización Integral Cuidados Medios",0,{"$f":"SUM(E191:F191)","v":0},null,null,null,null,null,null,null,null,null,null,null,null,null,null,null,null,null,null,null,null,null,null,null,null,null,null,null,null,null,null,null,null,null,null,"",null,null,null,null,null,null,null,null,null,null,null,null,null,null,null,null,null,null,null,null,null,null,null,null,null,null,null,null,null,null,null,null,null,null,null,null,null,null,null,"","","","","","","","","","","",null,null,null,null,0,0,0,0,0,0,0,0,0,0,0]
["0201301","Día Cama de Hospitalización Integral Adulto en Unidad de Tratamiento Intermedio (U.T.I)",0,0,null,null,null,null,null,null,null,null,null,null,null,null,null,null,null,null,null,null,null,null,null,null,null,null,null,null,null,null,null,null,null,null,null,null,"",null,null,null,null,null,null,null,null,null,null,null,null,null,null,null,null,null,null,null,null,null,null,null,null,null,null,null,null,null,null,null,null,null,null,null,null,null,null,null,"","","","","","","","","","","",null,null,null,null,0,0,0,0,0,0,0,0,0,0,0]
["0201302","Día Cama de Hospitalización Integral Pediátrica en Unidad de Tratamiento Intermedio (U.T.I)",0,0,null,null,null,null,null,null,null,null,null,null,null,null,null,null,null,null,null,null,null,null,null,null,null,null,null,null,null,null,null,null,null,null,null,null,"",null,null,null,null,null,null,null,null,null,null,null,null,null,null,null,null,null,null,null,null,null,null,null,null,null,null,null,null,null,null,null,null,null,null,null,null,null,null,null,"","","","","","","","","","","",null,null,null,null,0,0,0,0,0,0,0,0,0,0,0]
["0201303","Día Cama de Hospitalización Integral Neonatal en Unidad de Tratamiento Intermedio (U.T.I)",0,0,null,null,null,null,null,null,null,null,null,null,null,null,null,null,null,null,null,null,null,null,null,null,null,null,null,null,null,null,null,null,null,null,null,null,"",null,null,null,null,null,null,null,null,null,null,null,null,null,null,null,null,null,null,null,null,null,null,null,null,null,null,null,null,null,null,null,null,null,null,null,null,null,null,null,"","","","","","","","","","","",null,null,null,null,0,0,0,0,0,0,0,0,0,0,0]
["0201201","Día Cama de Hospitalización Integral Adulto en Unidad de Cuidado Intensivo (U.C.I.) ",0,0,null,null,null,null,null,null,null,null,null,null,null,null,null,null,null,null,null,null,null,null,null,null,null,null,null,null,null,null,null,null,null,null,null,null,"",null,null,null,null,null,null,null,null,null,null,null,null,null,null,null,null,null,null,null,null,null,null,null,null,null,null,null,null,null,null,null,null,null,null,null,null,null,null,null,"","","","","","","","","","","",null,null,null,null,0,0,0,0,0,0,0,0,0,0,0]
["0201202","Día Cama de Hospitalización Integral Pediátrica en Unidad de Cuidado Intensivo (U.C.I). ",0,0,null,null,null,null,null,null,null,null,null,null,null,null,null,null,null,null,null,null,null,null,null,null,null,null,null,null,null,null,null,null,null,null,null,null,"",null,null,null,null,null,null,null,null,null,null,null,null,null,null,null,null,null,null,null,null,null,null,null,null,null,null,null,null,null,null,null,null,null,null,null,null,null,null,null,"","","","","","","","","","","",null,null,null,null,0,0,0,0,0,0,0,0,0,0,0]
["0201203","Día Cama de Hospitalización Integral Neonatal en Unidad de Cuidado Intensivo (U.C.I.)",0,0,null,null,null,null,null,null,null,null,null,null,null,null,null,null,null,null,null,null,null,null,null,null,null,null,null,null,null,null,null,null,null,null,null,null,"",null,null,null,null,null,null,null,null,null,null,null,null,null,null,null,null,null,null,null,null,null,null,null,null,null,null,null,null,null,null,null,null,null,null,null,null,null,null,null,"","","","","","","","","","","",null,null,null,null,0,0,0,0,0,0,0,0,0,0,0]
["0201410","Día Cama de Hospitalización Integral Obstetricia ",0,0,null,null,null,null,null,null,null,null,null,null,null,null,null,null,null,null,null,null,null,null,null,null,null,null,null,null,null,null,null,null,null,null,null,null,"",null,null,null,null,null,null,null,null,null,null,null,null,null,null,null,null,null,null,null,null,null,null,null,null,null,null,null,null,null,null,null,null,null,null,null,null,null,null,null,"","","","","","","","","","","",null,null,null,null,0,0,0,0,0,0,0,0,0,0,0]
["0201403","Día Cama de Hospitalización Integral Sala Cuna",0,0,null,null,null,null,null,null,null,null,null,null,null,null,null,null,null,null,null,null,null,null,null,null,null,null,null,null,null,null,null,null,null,null,null,null,"",null,null,null,null,null,null,null,null,null,null,null,null,null,null,null,null,null,null,null,null,null,null,null,null,null,null,null,null,null,null,null,null,null,null,null,null,null,null,null,"","","","","","","","","","","",null,null,null,null,0,0,0,0,0,0,0,0,0,0,0]
["0201404","Día Cama de Hospitalización Integral Incubadora",0,0,null,null,null,null,null,null,null,null,null,null,null,null,null,null,null,null,null,null,null,null,null,null,null,null,null,null,null,null,null,null,null,null,null,null,"",null,null,null,null,null,null,null,null,null,null,null,null,null,null,null,null,null,null,null,null,null,null,null,null,null,null,null,null,null,null,null,null,null,null,null,null,null,null,null,"","","","","","","","","","","",null,null,null,null,0,0,0,0,0,0,0,0,0,0,0]
["0201405","Día Cama de Hospitalización Integral Psiquiatría Cuidados Básicos",0,0,null,null,null,null,null,null,null,null,null,null,null,null,null,null,null,null,null,null,null,null,null,null,null,null,null,null,null,null,null,null,null,null,null,null,"",null,null,null,null,null,null,null,null,null,null,null,null,null,null,null,null,null,null,null,null,null,null,null,null,null,null,null,null,null,null,null,null,null,null,null,null,null,null,null,"","","","","","","","","","","",null,null,null,null,0,0,0,0,0,0,0,0,0,0,0]
["0201406","Día Cama de Hospitalización Integral Psiquiatría Cuidados Medios",0,0,null,null,null,null,null,null,null,null,null,null,null,null,null,null,null,null,null,null,null,null,null,null,null,null,null,null,null,null,null,null,null,null,null,null,"",null,null,null,null,null,null,null,null,null,null,null,null,null,null,null,null,null,null,null,null,null,null,null,null,null,null,null,null,null,null,null,null,null,null,null,null,null,null,null,"","","","","","","","","","","",null,null,null,null,0,0,0,0,0,0,0,0,0,0,0]
["0201407","Día Cama de Hospitalización Integral de Observación - Ambulatorio",0,0,null,null,null,null,null,null,null,null,null,null,null,null,null,null,null,null,null,null,null,null,null,null,null,null,null,null,null,null,null,null,null,null,null,null,"",null,null,null,null,null,null,null,null,null,null,null,null,null,null,null,null,null,null,null,null,null,null,null,null,null,null,null,null,null,null,null,null,null,null,null,null,null,null,null,"","","","","","","","","","","",null,null,null,null,0,0,0,0,0,0,0,0,0,0,0]
["0201501","Dia Cama Hospitalización Domiciliaria Cuidados Básicos",0,0,null,null,null,null,null,null,null,null,null,null,null,null,null,null,null,null,null,null,null,null,null,null,null,null,null,null,null,null,null,null,null,null,null,null,"",null,null,null,null,null,null,null,null,null,null,null,null,null,null,null,null,null,null,null,null,null,null,null,null,null,null,null,null,null,null,null,null,null,null,null,null,null,null,null,"","","","","","","","","","","",null,null,null,null,0,0,0,0,0,0,0,0,0,0,0]
["0201502","Dia Cama Hospitalización Domiciliaria Cuidados Medios ",0,0,null,null,null,null,null,null,null,null,null,null,null,null,null,null,null,null,null,null,null,null,null,null,null,null,null,null,null,null,null,null,null,null,null,null,{"$f":"CA205&CB205&CC205&CD205&CE205&CF205&CG205&CH205&CI205&CJ205&CK205","v":""},null,null,null,null,null,null,null,null,null,null,null,null,null,null,null,null,null,null,null,null,null,null,null,null,null,null,null,null,null,null,null,null,null,null,null,null,null,null,null,{"$f":"IF(AND($C205>0,AA205=\"\"),\" * No olvide digitar la variable \"&$AA$8&\"\"&\": Atención Cerrada. Digite Cero si no tiene.\",\"\")","v":""},{"$f":"IF(AND($C205>0,AB205=\"\"),\" * No olvide digitar la variable \"&$AA$8&\"\"&\": Atención Abierta. Digite Cero si no tiene.\",\"\")","v":""},{"$f":"IF(AND($C205>0,AC205=\"\"),\" * No olvide digitar la variable \"&$AA$8&\"\"&\": Emergencia. Digite Cero si no tiene.\",\"\")","v":""},{"$f":"IF(AND(C205<AA205+AB205+AC205),\" * La Suma de la variable \"&$AA$8&\"\"&\" no puede ser mayor al Total.\",\"\")","v":""},{"$f":"IF(AND($C205>0,AD205=\"\"),\" * No olvide digitar la variable \"&$AD$8&\"\"&\": Honorarios. Digite Cero si no tiene.\",\"\")","v":""},{"$f":"IF(AND($C205>0,AE205=\"\"),\" * No olvide digitar la variable \"&$AD$8&\"\"&\": Convenios. Digite Cero si no tiene.\",\"\")","v":""},{"$f":"IF(AND($C205>0,AF205=\"\"),\" * No olvide digitar la variable \"&$AD$8&\"\"&\": Consultores de llamada. Digite Cero si no tiene.\",\"\")","v":""},{"$f":"IF(AND($C205>0,AG205=\"\"),\" * No olvide digitar la variable \"&$AG$8&\"\"&\". Digite Cero si no tiene.\",\"\")","v":""},{"$f":"IF(AND($C205>0,AH205=\"\"),\" * No olvide digitar la variable \"&$AH$8&\"\"&\" Al Sistema. Digite Cero si no tiene.\",\"\")","v":""},{"$f":"IF(AND($C205>0,AI205=\"\"),\" * No olvide digitar la variable \"&$AH$8&\"\"&\" al Extrasistema. Digite Cero si no tiene.\",\"\")","v":""},{"$f":"IF(AND($C205>0,AJ205=\"\"),\" * No olvide digitar la variable \"&$AJ$8&\"\"&\". Digite Cero si no tiene.\",\"\")","v":""},null,null,null,null,{"$f":"IF(AND($C205>0,AA205=\"\"),1,0)","v":0},{"$f":"IF(AND($C205>0,AB205=\"\"),1,0)","v":0},{"$f":"IF(AND($C205>0,AC205=\"\"),1,0)","v":0},{"$f":"IF(AND(C205<AA205+AB205+AC205),1,0)","v":0},{"$f":"IF(AND($C205>0,AD205=\"\"),1,0)","v":0},{"$f":"IF(AND($C205>0,AE205=\"\"),1,0)","v":0},{"$f":"IF(AND($C205>0,AF205=\"\"),1,0)","v":0},{"$f":"IF(AND($C205>0,AG205=\"\"),1,0)","v":0},{"$f":"IF(AND($C205>0,AH205=\"\"),1,0)","v":0},{"$f":"IF(AND($C205>0,AI205=\"\"),1,0)","v":0},{"$f":"IF(AND($C205>0,AJ205=\"\"),1,0)","v":0}]
["0201503","Dia Cama Hospitalización Domiciliaria Cuidados Alta Complejidad ",{"$f":"SUM(D206+G206)","v":0},{"$f":"SUM(E206:F206)","v":0},null,null,null,null,null,null,null,null,null,null,null,null,null,null,null,null,null,null,null,null,null,null,null,null,null,null,null,null,null,null,null,null,null,null,"",null,null,null,null,null,null,null,null,null,null,null,null,null,null,null,null,null,null,null,null,null,null,null,null,null,null,null,null,null,null,null,null,null,null,null,null,null,null,null,"","","","","","","","","","","",null,null,null,null,0,0,0,0,0,0,0,0,0,0,0]
["0203211","Día Cama Residencia Protegida",{"$f":"SUM(D207+G207)","v":0},{"$f":"SUM(E207:F207)","v":0},null,null,null,null,null,null,null,null,null,null,null,null,null,null,null,null,null,null,null,null,null,null,null,null,null,null,null,null,null,null,null,null,null,null,"",null,null,null,null,null,null,null,null,null,null,null,null,null,null,null,null,null,null,null,null,null,null,null,null,null,null,null,null,null,null,null,null,null,null,null,null,null,null,null,"","","","","","","","","","","",null,null,null,null,0,0,0,0,0,0,0,0,0,0,0]
[null,"Pensionado",{"$f":"SUM(D208+G208)","v":0},{"$f":"SUM(E208:F208)","v":0},null,null,null,null,null,null,null,null,null,null,null,null,null,null,null,null,null,null,null,null,null,null,null,null,null,null,null,null,null,null,null,null,null,null,"",null,null,null,null,null,null,null,null,null,null,null,null,null,null,null,null,null,null,null,null,null,null,null,null,null,null,null,null,null,null,null,null,null,null,null,null,null,null,null,"","","","","","","","","","","",null,null,null,null,0,0,0,0,0,0,0,0,0,0,0]
["TOTAL ",null,{"$f":"SUM(C190:C208)","v":0},{"$f":"SUM(D190:D208)","v":0},{"$f":"SUM(E190:E208)","v":0},{"$f":"SUM(F190:F208)","v":0},{"$f":"SUM(G190:G208)","v":0},null,null,null,null,null,null,null,null,null,null,null,null,null,null,null,null,null,null,null,{"$f":"SUM(AA190:AA208)","v":0},{"$f":"SUM(AB190:AB208)","v":0},0,0,0,0,0,0,0,0]
["EXAMENES DE LABORATORIO "]
["SANGRE, HEMATOLOGIA"]
["0301002","Acido fólico o folatos",{"$f":"SUM(D212+G212)","v":0},{"$f":"SUM(E212:F212)","v":0},null,null,null,null,null,null,null,null,null,null,null,null,null,null,null,null,null,null,null,null,null,null,null,null,null,null,null,null,null,null,null,null,null,null,"",null,null,null,null,null,null,null,null,null,null,null,null,null,null,null,null,null,null,null,null,null,null,null,null,null,null,null,null,null,null,null,null,null,null,null,null,null,null,null,"","","","","","","","","","","",null,null,null,null,0,0,0,0,0,0,0,0,0,0,0]
["0301003","Adenograma, mielograma, c/u",0,{"$f":"SUM(E213:F213)","v":0},null,null,null,null,null,null,null,null,null,null,null,null,null,null,null,null,null,null,null,null,null,null,null,null,null,null,null,null,null,null,null,null,null,null,"",null,null,null,null,null,null,null,null,null,null,null,null,null,null,null,null,null,null,null,null,null,null,null,null,null,null,null,null,null,null,null,null,null,null,null,null,null,null,null,"","","","","","","","","","","",null,null,null,null,0,0,0,0,0,0,0,0,0,0,0]
["0301006","Agregación plaquetaria con diferentes agonistas",0,0,null,null,null,null,null,null,null,null,null,null,null,null,null,null,null,null,null,null,null,null,null,null,null,null,null,null,null,null,null,null,null,null,null,null,"",null,null,null,null,null,null,null,null,null,null,null,null,null,null,null,null,null,null,null,null,null,null,null,null,null,null,null,null,null,null,null,null,null,null,null,null,null,null,null,"","","","","","","","","","","",null,null,null,null,0,0,0,0,0,0,0,0,0,0,0]
["0301007","Anticoagulantes circulantes o anticoagulante lúpico",0,0,null,null,null,null,null,null,null,null,null,null,null,null,null,null,null,null,null,null,null,null,null,null,null,null,null,null,null,null,null,null,null,null,null,null,"",null,null,null,null,null,null,null,null,null,null,null,null,null,null,null,null,null,null,null,null,null,null,null,null,null,null,null,null,null,null,null,null,null,null,null,null,null,null,null,"","","","","","","","","","","",null,null,null,null,0,0,0,0,0,0,0,0,0,0,0]
["0301008","Antitrombina III",0,0,null,null,null,null,null,null,null,null,null,null,null,null,null,null,null,null,null,null,null,null,null,null,null,null,null,null,null,null,null,null,null,null,null,null,"",null,null,null,null,null,null,null,null,null,null,null,null,null,null,null,null,null,null,null,null,null,null,null,null,null,null,null,null,null,null,null,null,null,null,null,null,null,null,null,"","","","","","","","","","","",null,null,null,null,0,0,0,0,0,0,0,0,0,0,0]
["0301011","Coagulación, tiempo de",0,0,null,null,null,null,null,null,null,null,null,null,null,null,null,null,null,null,null,null,null,null,null,null,null,null,null,null,null,null,null,null,null,null,null,null,"",null,null,null,null,null,null,null,null,null,null,null,null,null,null,null,null,null,null,null,null,null,null,null,null,null,null,null,null,null,null,null,null,null,null,null,null,null,null,null,"","","","","","","","","","","",null,null,null,null,0,0,0,0,0,0,0,0,0,0,0]
["0301013","Tiempo de lisis del coágulo",0,0,null,null,null,null,null,null,null,null,null,null,null,null,null,null,null,null,null,null,null,null,null,null,null,null,null,null,null,null,null,null,null,null,null,null,"",null,null,null,null,null,null,null,null,null,null,null,null,null,null,null,null,null,null,null,null,null,null,null,null,null,null,null,null,null,null,null,null,null,null,null,null,null,null,null,"","","","","","","","","","","",null,null,null,null,0,0,0,0,0,0,0,0,0,0,0]
["0301014","Prueba de antiglobulina directa",0,0,null,null,null,null,null,null,null,null,null,null,null,null,null,null,null,null,null,null,null,null,null,null,null,null,null,null,null,null,null,null,null,null,null,null,"",null,null,null,null,null,null,null,null,null,null,null,null,null,null,null,null,null,null,null,null,null,null,null,null,null,null,null,null,null,null,null,null,null,null,null,null,null,null,null,"","","","","","","","","","","",null,null,null,null,0,0,0,0,0,0,0,0,0,0,0]
["0301017","Deshidrogenasa glucosa-6-fosfato en eritrocitos",0,0,null,null,null,null,null,null,null,null,null,null,null,null,null,null,null,null,null,null,null,null,null,null,null,null,null,null,null,null,null,null,null,null,null,null,"",null,null,null,null,null,null,null,null,null,null,null,null,null,null,null,null,null,null,null,null,null,null,null,null,null,null,null,null,null,null,null,null,null,null,null,null,null,null,null,"","","","","","","","","","","",null,null,null,null,0,0,0,0,0,0,0,0,0,0,0]
["0301020","Tiempo de lisis de euglobulinas",0,0,null,null,null,null,null,null,null,null,null,null,null,null,null,null,null,null,null,null,null,null,null,null,null,null,null,null,null,null,null,null,null,null,null,null,"",null,null,null,null,null,null,null,null,null,null,null,null,null,null,null,null,null,null,null,null,null,null,null,null,null,null,null,null,null,null,null,null,null,null,null,null,null,null,null,"","","","","","","","","","","",null,null,null,null,0,0,0,0,0,0,0,0,0,0,0]
["0301021","Fibrinógeno",0,0,null,null,null,null,null,null,null,null,null,null,null,null,null,null,null,null,null,null,null,null,null,null,null,null,null,null,null,null,null,null,null,null,null,null,"",null,null,null,null,null,null,null,null,null,null,null,null,null,null,null,null,null,null,null,null,null,null,null,null,null,null,null,null,null,null,null,null,null,null,null,null,null,null,null,"","","","","","","","","","","",null,null,null,null,0,0,0,0,0,0,0,0,0,0,0]
["0301022","Test de neutralización plaquetaria",0,0,null,null,null,null,null,null,null,null,null,null,null,null,null,null,null,null,null,null,null,null,null,null,null,null,null,null,null,null,null,null,null,null,null,null,"",null,null,null,null,null,null,null,null,null,null,null,null,null,null,null,null,null,null,null,null,null,null,null,null,null,null,null,null,null,null,null,null,null,null,null,null,null,null,null,"","","","","","","","","","","",null,null,null,null,0,0,0,0,0,0,0,0,0,0,0]
["0301024","Factor V",0,0,null,null,null,null,null,null,null,null,null,null,null,null,null,null,null,null,null,null,null,null,null,null,null,null,null,null,null,null,null,null,null,null,null,null,"",null,null,null,null,null,null,null,null,null,null,null,null,null,null,null,null,null,null,null,null,null,null,null,null,null,null,null,null,null,null,null,null,null,null,null,null,null,null,null,"","","","","","","","","","","",null,null,null,null,0,0,0,0,0,0,0,0,0,0,0]
["0301025","Factores VII, VIII, IX, X, XI, XII, XIII, c/u",0,0,null,null,null,null,null,null,null,null,null,null,null,null,null,null,null,null,null,null,null,null,null,null,null,null,null,null,null,null,null,null,null,null,null,null,"",null,null,null,null,null,null,null,null,null,null,null,null,null,null,null,null,null,null,null,null,null,null,null,null,null,null,null,null,null,null,null,null,null,null,null,null,null,null,null,"","","","","","","","","","","",null,null,null,null,0,0,0,0,0,0,0,0,0,0,0]
["0301026","Ferritina",0,0,null,null,null,null,null,null,null,null,null,null,null,null,null,null,null,null,null,null,null,null,null,null,null,null,null,null,null,null,null,null,null,null,null,null,"",null,null,null,null,null,null,null,null,null,null,null,null,null,null,null,null,null,null,null,null,null,null,null,null,null,null,null,null,null,null,null,null,null,null,null,null,null,null,null,"","","","","","","","","","","",null,null,null,null,0,0,0,0,0,0,0,0,0,0,0]
["0301027","Fibrinógeno, productos de degradación del",0,0,null,null,null,null,null,null,null,null,null,null,null,null,null,null,null,null,null,null,null,null,null,null,null,null,null,null,null,null,null,null,null,null,null,null,"",null,null,null,null,null,null,null,null,null,null,null,null,null,null,null,null,null,null,null,null,null,null,null,null,null,null,null,null,null,null,null,null,null,null,null,null,null,null,null,"","","","","","","","","","","",null,null,null,null,0,0,0,0,0,0,0,0,0,0,0]
["0301028","Fierro sérico",0,0,null,null,null,null,null,null,null,null,null,null,null,null,null,null,null,null,null,null,null,null,null,null,null,null,null,null,null,null,null,null,null,null,null,null,"",null,null,null,null,null,null,null,null,null,null,null,null,null,null,null,null,null,null,null,null,null,null,null,null,null,null,null,null,null,null,null,null,null,null,null,null,null,null,null,"","","","","","","","","","","",null,null,null,null,0,0,0,0,0,0,0,0,0,0,0]
["0301029","Fierro, capacidad de fijación del (incluye fierro sérico)",0,0,null,null,null,null,null,null,null,null,null,null,null,null,null,null,null,null,null,null,null,null,null,null,null,null,null,null,null,null,null,null,null,null,null,null,"",null,null,null,null,null,null,null,null,null,null,null,null,null,null,null,null,null,null,null,null,null,null,null,null,null,null,null,null,null,null,null,null,null,null,null,null,null,null,null,"","","","","","","","","","","",null,null,null,null,0,0,0,0,0,0,0,0,0,0,0]
["0301030","Fierro, cinética del (cada determinación)",0,0,null,null,null,null,null,null,null,null,null,null,null,null,null,null,null,null,null,null,null,null,null,null,null,null,null,null,null,null,null,null,null,null,null,null,"",null,null,null,null,null,null,null,null,null,null,null,null,null,null,null,null,null,null,null,null,null,null,null,null,null,null,null,null,null,null,null,null,null,null,null,null,null,null,null,"","","","","","","","","","","",null,null,null,null,0,0,0,0,0,0,0,0,0,0,0]
["0301034","Clasificación sanguínea AB0 y RhD",0,0,null,null,null,null,null,null,null,null,null,null,null,null,null,null,null,null,null,null,null,null,null,null,null,null,null,null,null,null,null,null,null,null,null,null,"",null,null,null,null,null,null,null,null,null,null,null,null,null,null,null,null,null,null,null,null,null,null,null,null,null,null,null,null,null,null,null,null,null,null,null,null,null,null,null,"","","","","","","","","","","",null,null,null,null,0,0,0,0,0,0,0,0,0,0,0]
["0301035","Haptoglobina cuantitativa",0,0,null,null,null,null,null,null,null,null,null,null,null,null,null,null,null,null,null,null,null,null,null,null,null,null,null,null,null,null,null,null,null,null,null,null,"",null,null,null,null,null,null,null,null,null,null,null,null,null,null,null,null,null,null,null,null,null,null,null,null,null,null,null,null,null,null,null,null,null,null,null,null,null,null,null,"","","","","","","","","","","",null,null,null,null,0,0,0,0,0,0,0,0,0,0,0]
["0301036","Hematocrito (proc. aut.)",0,0,null,null,null,null,null,null,null,null,null,null,null,null,null,null,null,null,null,null,null,null,null,null,null,null,null,null,null,null,null,null,null,null,null,null,"",null,null,null,null,null,null,null,null,null,null,null,null,null,null,null,null,null,null,null,null,null,null,null,null,null,null,null,null,null,null,null,null,null,null,null,null,null,null,null,"","","","","","","","","","","",null,null,null,null,0,0,0,0,0,0,0,0,0,0,0]
["0301038","Hemoglobina en sangre total (proc. aut.)",0,0,null,null,null,null,null,null,null,null,null,null,null,null,null,null,null,null,null,null,null,null,null,null,null,null,null,null,null,null,null,null,null,null,null,null,"",null,null,null,null,null,null,null,null,null,null,null,null,null,null,null,null,null,null,null,null,null,null,null,null,null,null,null,null,null,null,null,null,null,null,null,null,null,null,null,"","","","","","","","","","","",null,null,null,null,0,0,0,0,0,0,0,0,0,0,0]
["0301040","Hemoglobina fetal cuantitativa en eritrocitos",0,0,null,null,null,null,null,null,null,null,null,null,null,null,null,null,null,null,null,null,null,null,null,null,null,null,null,null,null,null,null,null,null,null,null,null,"",null,null,null,null,null,null,null,null,null,null,null,null,null,null,null,null,null,null,null,null,null,null,null,null,null,null,null,null,null,null,null,null,null,null,null,null,null,null,null,"","","","","","","","","","","",null,null,null,null,0,0,0,0,0,0,0,0,0,0,0]
["0301041","Hemoglobina glicada A1c",0,0,null,null,null,null,null,null,null,null,null,null,null,null,null,null,null,null,null,null,null,null,null,null,null,null,null,null,null,null,null,null,null,null,null,null,"",null,null,null,null,null,null,null,null,null,null,null,null,null,null,null,null,null,null,null,null,null,null,null,null,null,null,null,null,null,null,null,null,null,null,null,null,null,null,null,"","","","","","","","","","","",null,null,null,null,0,0,0,0,0,0,0,0,0,0,0]
["0301042","Hemoglobina plasmática",0,0,null,null,null,null,null,null,null,null,null,null,null,null,null,null,null,null,null,null,null,null,null,null,null,null,null,null,null,null,null,null,null,null,null,null,"",null,null,null,null,null,null,null,null,null,null,null,null,null,null,null,null,null,null,null,null,null,null,null,null,null,null,null,null,null,null,null,null,null,null,null,null,null,null,null,"","","","","","","","","","","",null,null,null,null,0,0,0,0,0,0,0,0,0,0,0]
["0301044","Electroforesis de hemoglobina",0,0,null,null,null,null,null,null,null,null,null,null,null,null,null,null,null,null,null,null,null,null,null,null,null,null,null,null,null,null,null,null,null,null,null,null,"",null,null,null,null,null,null,null,null,null,null,null,null,null,null,null,null,null,null,null,null,null,null,null,null,null,null,null,null,null,null,null,null,null,null,null,null,null,null,null,"","","","","","","","","","","",null,null,null,null,0,0,0,0,0,0,0,0,0,0,0]
["0301045","Hemograma (incluye recuentos de leucocitos, eritrocitos, plaquetas, hemoglobina, hematocrito, fórmula leucocitaria, características de los elementos figurados y velocidad de eritrosedimentación)",0,0,null,null,null,null,null,null,null,null,null,null,null,null,null,null,null,null,null,null,null,null,null,null,null,null,null,null,null,null,null,null,null,null,null,null,"",null,null,null,null,null,null,null,null,null,null,null,null,null,null,null,null,null,null,null,null,null,null,null,null,null,null,null,null,null,null,null,null,null,null,null,null,null,null,null,"","","","","","","","","","","",null,null,null,null,0,0,0,0,0,0,0,0,0,0,0]
["0301048","Hemosiderina medular",0,0,null,null,null,null,null,null,null,null,null,null,null,null,null,null,null,null,null,null,null,null,null,null,null,null,null,null,null,null,null,null,null,null,null,null,"",null,null,null,null,null,null,null,null,null,null,null,null,null,null,null,null,null,null,null,null,null,null,null,null,null,null,null,null,null,null,null,null,null,null,null,null,null,null,null,"","","","","","","","","","","",null,null,null,null,0,0,0,0,0,0,0,0,0,0,0]
["0301049","Cuantificación de heparina",0,0,null,null,null,null,null,null,null,null,null,null,null,null,null,null,null,null,null,null,null,null,null,null,null,null,null,null,null,null,null,null,null,null,null,null,"",null,null,null,null,null,null,null,null,null,null,null,null,null,null,null,null,null,null,null,null,null,null,null,null,null,null,null,null,null,null,null,null,null,null,null,null,null,null,null,"","","","","","","","","","","",null,null,null,null,0,0,0,0,0,0,0,0,0,0,0]
["0301051","Identificación de anticuerpos irregulares eritrocitarios",0,0,null,null,null,null,null,null,null,null,null,null,null,null,null,null,null,null,null,null,null,null,null,null,null,null,null,null,null,null,null,null,null,null,null,null,"",null,null,null,null,null,null,null,null,null,null,null,null,null,null,null,null,null,null,null,null,null,null,null,null,null,null,null,null,null,null,null,null,null,null,null,null,null,null,null,"","","","","","","","","","","",null,null,null,null,0,0,0,0,0,0,0,0,0,0,0]
["0301054","Metahemoglobina",0,0,null,null,null,null,null,null,null,null,null,null,null,null,null,null,null,null,null,null,null,null,null,null,null,null,null,null,null,null,null,null,null,null,null,null,"",null,null,null,null,null,null,null,null,null,null,null,null,null,null,null,null,null,null,null,null,null,null,null,null,null,null,null,null,null,null,null,null,null,null,null,null,null,null,null,"","","","","","","","","","","",null,null,null,null,0,0,0,0,0,0,0,0,0,0,0]
["0301059","Tiempo de protrombina (incluye INR, Razón Internacional Normalizada)",0,0,null,null,null,null,null,null,null,null,null,null,null,null,null,null,null,null,null,null,null,null,null,null,null,null,null,null,null,null,null,null,null,null,null,null,"",null,null,null,null,null,null,null,null,null,null,null,null,null,null,null,null,null,null,null,null,null,null,null,null,null,null,null,null,null,null,null,null,null,null,null,null,null,null,null,"","","","","","","","","","","",null,null,null,null,0,0,0,0,0,0,0,0,0,0,0]
["0301062","Recuento de basófilos (absoluto)",0,0,null,null,null,null,null,null,null,null,null,null,null,null,null,null,null,null,null,null,null,null,null,null,null,null,null,null,null,null,null,null,null,null,null,null,"",null,null,null,null,null,null,null,null,null,null,null,null,null,null,null,null,null,null,null,null,null,null,null,null,null,null,null,null,null,null,null,null,null,null,null,null,null,null,null,"","","","","","","","","","","",null,null,null,null,0,0,0,0,0,0,0,0,0,0,0]
["0301063","Recuento de eosinófilos (absoluto)",0,0,null,null,null,null,null,null,null,null,null,null,null,null,null,null,null,null,null,null,null,null,null,null,null,null,null,null,null,null,null,null,null,null,null,null,"",null,null,null,null,null,null,null,null,null,null,null,null,null,null,null,null,null,null,null,null,null,null,null,null,null,null,null,null,null,null,null,null,null,null,null,null,null,null,null,"","","","","","","","","","","",null,null,null,null,0,0,0,0,0,0,0,0,0,0,0]
["0301064","Recuento de eritrocitos, absoluto (proc. aut.)",0,0,null,null,null,null,null,null,null,null,null,null,null,null,null,null,null,null,null,null,null,null,null,null,null,null,null,null,null,null,null,null,null,null,null,null,"",null,null,null,null,null,null,null,null,null,null,null,null,null,null,null,null,null,null,null,null,null,null,null,null,null,null,null,null,null,null,null,null,null,null,null,null,null,null,null,"","","","","","","","","","","",null,null,null,null,0,0,0,0,0,0,0,0,0,0,0]
["0301065","Recuento de leucocitos, absoluto (proc. aut.)",0,0,null,null,null,null,null,null,null,null,null,null,null,null,null,null,null,null,null,null,null,null,null,null,null,null,null,null,null,null,null,null,null,null,null,null,"",null,null,null,null,null,null,null,null,null,null,null,null,null,null,null,null,null,null,null,null,null,null,null,null,null,null,null,null,null,null,null,null,null,null,null,null,null,null,null,"","","","","","","","","","","",null,null,null,null,0,0,0,0,0,0,0,0,0,0,0]
["0301066","Recuento de linfocitos (absoluto)",0,0,null,null,null,null,null,null,null,null,null,null,null,null,null,null,null,null,null,null,null,null,null,null,null,null,null,null,null,null,null,null,null,null,null,null,"",null,null,null,null,null,null,null,null,null,null,null,null,null,null,null,null,null,null,null,null,null,null,null,null,null,null,null,null,null,null,null,null,null,null,null,null,null,null,null,"","","","","","","","","","","",null,null,null,null,0,0,0,0,0,0,0,0,0,0,0]
["0301067","Recuento de plaquetas (absoluto)",0,0,null,null,null,null,null,null,null,null,null,null,null,null,null,null,null,null,null,null,null,null,null,null,null,null,null,null,null,null,null,null,null,null,null,null,"",null,null,null,null,null,null,null,null,null,null,null,null,null,null,null,null,null,null,null,null,null,null,null,null,null,null,null,null,null,null,null,null,null,null,null,null,null,null,null,"","","","","","","","","","","",null,null,null,null,0,0,0,0,0,0,0,0,0,0,0]
["0301072","Tiempo de sangría (no incluye dispositivo asociado)",0,0,null,null,null,null,null,null,null,null,null,null,null,null,null,null,null,null,null,null,null,null,null,null,null,null,null,null,null,null,null,null,null,null,null,null,"",null,null,null,null,null,null,null,null,null,null,null,null,null,null,null,null,null,null,null,null,null,null,null,null,null,null,null,null,null,null,null,null,null,null,null,null,null,null,null,"","","","","","","","","","","",null,null,null,null,0,0,0,0,0,0,0,0,0,0,0]
["0301094","Estudio de la hemoglobinuria paroxística nocturna (HPN) por citometría de flujo",0,0,null,null,null,null,null,null,null,null,null,null,null,null,null,null,null,null,null,null,null,null,null,null,null,null,null,null,null,null,null,null,null,null,null,null,"",null,null,null,null,null,null,null,null,null,null,null,null,null,null,null,null,null,null,null,null,null,null,null,null,null,null,null,null,null,null,null,null,null,null,null,null,null,null,null,"","","","","","","","","","","",null,null,null,null,0,0,0,0,0,0,0,0,0,0,0]
["0301111","Mutación G20210A del gen de la protrombina",0,0,null,null,null,null,null,null,null,null,null,null,null,null,null,null,null,null,null,null,null,null,null,null,null,null,null,null,null,null,null,null,null,null,null,null,"",null,null,null,null,null,null,null,null,null,null,null,null,null,null,null,null,null,null,null,null,null,null,null,null,null,null,null,null,null,null,null,null,null,null,null,null,null,null,null,"","","","","","","","","","","",null,null,null,null,0,0,0,0,0,0,0,0,0,0,0]
["0302004","Lactato en sangre",0,0,null,null,null,null,null,null,null,null,null,null,null,null,null,null,null,null,null,null,null,null,null,null,null,null,null,null,null,null,null,null,null,null,null,null,"",null,null,null,null,null,null,null,null,null,null,null,null,null,null,null,null,null,null,null,null,null,null,null,null,null,null,null,null,null,null,null,null,null,null,null,null,null,null,null,"","","","","","","","","","","",null,null,null,null,0,0,0,0,0,0,0,0,0,0,0]
["0302011","Bicarbonato (proc. aut.)",0,0,null,null,null,null,null,null,null,null,null,null,null,null,null,null,null,null,null,null,null,null,null,null,null,null,null,null,null,null,null,null,null,null,null,null,"",null,null,null,null,null,null,null,null,null,null,null,null,null,null,null,null,null,null,null,null,null,null,null,null,null,null,null,null,null,null,null,null,null,null,null,null,null,null,null,"","","","","","","","","","","",null,null,null,null,0,0,0,0,0,0,0,0,0,0,0]
["0302031","Deshidrogenasa láctica total (LDH), con separación de isoenzimas",0,0,null,null,null,null,null,null,null,null,null,null,null,null,null,null,null,null,null,null,null,null,null,null,null,null,null,null,null,null,null,null,null,null,null,null,"",null,null,null,null,null,null,null,null,null,null,null,null,null,null,null,null,null,null,null,null,null,null,null,null,null,null,null,null,null,null,null,null,null,null,null,null,null,null,null,"","","","","","","","","","","",null,null,null,null,0,0,0,0,0,0,0,0,0,0,0]
["0302039","Fosfatasas alcalinas con separación de isoenzimas hepáticas, intestinales, óseas c/u",0,0,null,null,null,null,null,null,null,null,null,null,null,null,null,null,null,null,null,null,null,null,null,null,null,null,null,null,null,null,null,null,null,null,null,null,"",null,null,null,null,null,null,null,null,null,null,null,null,null,null,null,null,null,null,null,null,null,null,null,null,null,null,null,null,null,null,null,null,null,null,null,null,null,null,null,"","","","","","","","","","","",null,null,null,null,0,0,0,0,0,0,0,0,0,0,0]
["0302055","Litio en sangre",0,0,null,null,null,null,null,null,null,null,null,null,null,null,null,null,null,null,null,null,null,null,null,null,null,null,null,null,null,null,null,null,null,null,null,null,"",null,null,null,null,null,null,null,null,null,null,null,null,null,null,null,null,null,null,null,null,null,null,null,null,null,null,null,null,null,null,null,null,null,null,null,null,null,null,null,"","","","","","","","","","","",null,null,null,null,0,0,0,0,0,0,0,0,0,0,0]
["0302064","Triglicéridos en sangre (proc.aut.)",0,0,null,null,null,null,null,null,null,null,null,null,null,null,null,null,null,null,null,null,null,null,null,null,null,null,null,null,null,null,null,null,null,null,null,null,"",null,null,null,null,null,null,null,null,null,null,null,null,null,null,null,null,null,null,null,null,null,null,null,null,null,null,null,null,null,null,null,null,null,null,null,null,null,null,null,"","","","","","","","","","","",null,null,null,null,0,0,0,0,0,0,0,0,0,0,0]
["0302093","Panel de glicemia (incluye glucosa basal, glucosa 2 horas post desayuno y glucosa 2 horas post almuerzo)",0,0,null,null,null,null,null,null,null,null,null,null,null,null,null,null,null,null,null,null,null,null,null,null,null,null,null,null,null,null,null,null,null,null,null,null,"",null,null,null,null,null,null,null,null,null,null,null,null,null,null,null,null,null,null,null,null,null,null,null,null,null,null,null,null,null,null,null,null,null,null,null,null,null,null,null,"","","","","","","","","","","",null,null,null,null,0,0,0,0,0,0,0,0,0,0,0]
["0302099","Pesquisa neonatal ampliada en GSS (incluye perfil de aminoácidos y acilcarnitinas; succinilacetona; hormona tiroestimulante, neonatal; biotinidasa; galactosa total; galactosa-1-fosfato uridiltransferasa; 17-hidroxiprogesterona; tripsina inmunorreactiva).",0,0,null,null,null,null,null,null,null,null,null,null,null,null,null,null,null,null,null,null,null,null,null,null,null,null,null,null,null,null,null,null,null,null,null,null,"",null,null,null,null,null,null,null,null,null,null,null,null,null,null,null,null,null,null,null,null,null,null,null,null,null,null,null,null,null,null,null,null,null,null,null,null,null,null,null,"","","","","","","","","","","",null,null,null,null,0,0,0,0,0,0,0,0,0,0,0]
["0303006","Cortisol",0,0,null,null,null,null,null,null,null,null,null,null,null,null,null,null,null,null,null,null,null,null,null,null,null,null,null,null,null,null,null,null,null,null,null,null,"",null,null,null,null,null,null,null,null,null,null,null,null,null,null,null,null,null,null,null,null,null,null,null,null,null,null,null,null,null,null,null,null,null,null,null,null,null,null,null,"","","","","","","","","","","",null,null,null,null,0,0,0,0,0,0,0,0,0,0,0]
["0303021","Renina",0,0,null,null,null,null,null,null,null,null,null,null,null,null,null,null,null,null,null,null,null,null,null,null,null,null,null,null,null,null,null,null,null,null,null,null,"",null,null,null,null,null,null,null,null,null,null,null,null,null,null,null,null,null,null,null,null,null,null,null,null,null,null,null,null,null,null,null,null,null,null,null,null,null,null,null,"","","","","","","","","","","",null,null,null,null,0,0,0,0,0,0,0,0,0,0,0]
["0303028","Triyodotironina (T3)",0,0,null,null,null,null,null,null,null,null,null,null,null,null,null,null,null,null,null,null,null,null,null,null,null,null,null,null,null,null,null,null,null,null,null,null,"",null,null,null,null,null,null,null,null,null,null,null,null,null,null,null,null,null,null,null,null,null,null,null,null,null,null,null,null,null,null,null,null,null,null,null,null,null,null,null,"","","","","","","","","","","",null,null,null,null,0,0,0,0,0,0,0,0,0,0,0]
["0303033","Angiotensina (en orina)",0,0,null,null,null,null,null,null,null,null,null,null,null,null,null,null,null,null,null,null,null,null,null,null,null,null,null,null,null,null,null,null,null,null,null,null,"",null,null,null,null,null,null,null,null,null,null,null,null,null,null,null,null,null,null,null,null,null,null,null,null,null,null,null,null,null,null,null,null,null,null,null,null,null,null,null,"","","","","","","","","","","",null,null,null,null,0,0,0,0,0,0,0,0,0,0,0]
["0304013","Amplificación de ADN por PCR convencional de 1 fragmento",0,0,null,null,null,null,null,null,null,null,null,null,null,null,null,null,null,null,null,null,null,null,null,null,null,null,null,null,null,null,null,null,null,null,null,null,"",null,null,null,null,null,null,null,null,null,null,null,null,null,null,null,null,null,null,null,null,null,null,null,null,null,null,null,null,null,null,null,null,null,null,null,null,null,null,null,"","","","","","","","","","","",null,null,null,null,0,0,0,0,0,0,0,0,0,0,0]
["0305005","Anticuerpos antinucleares (ANA), antimitocondriales, anti DNA (ADNA), anti músculo liso, anticentrómero, u otros, c/u.",0,0,null,null,null,null,null,null,null,null,null,null,null,null,null,null,null,null,null,null,null,null,null,null,null,null,null,null,null,null,null,null,null,null,null,null,"",null,null,null,null,null,null,null,null,null,null,null,null,null,null,null,null,null,null,null,null,null,null,null,null,null,null,null,null,null,null,null,null,null,null,null,null,null,null,null,"","","","","","","","","","","",null,null,null,null,0,0,0,0,0,0,0,0,0,0,0]
["0305010","Beta-2-microglobulina",0,0,null,null,null,null,null,null,null,null,null,null,null,null,null,null,null,null,null,null,null,null,null,null,null,null,null,null,null,null,null,null,null,null,null,null,"",null,null,null,null,null,null,null,null,null,null,null,null,null,null,null,null,null,null,null,null,null,null,null,null,null,null,null,null,null,null,null,null,null,null,null,null,null,null,null,"","","","","","","","","","","",null,null,null,null,0,0,0,0,0,0,0,0,0,0,0]
["0305083","Determinación de isotipos de anticuerpos anticitoplasma de neutrófilos (G-M-A-C'3), por IFI, c/u.",0,0,null,null,null,null,null,null,null,null,null,null,null,null,null,null,null,null,null,null,null,null,null,null,null,null,null,null,null,null,null,null,null,null,null,null,"",null,null,null,null,null,null,null,null,null,null,null,null,null,null,null,null,null,null,null,null,null,null,null,null,null,null,null,null,null,null,null,null,null,null,null,null,null,null,null,"","","","","","","","","","","",null,null,null,null,0,0,0,0,0,0,0,0,0,0,0]
["0305107","Anticuerpos anti-MPO (mieloperoxidasa)",0,0,null,null,null,null,null,null,null,null,null,null,null,null,null,null,null,null,null,null,null,null,null,null,null,null,null,null,null,null,null,null,null,null,null,null,"",null,null,null,null,null,null,null,null,null,null,null,null,null,null,null,null,null,null,null,null,null,null,null,null,null,null,null,null,null,null,null,null,null,null,null,null,null,null,null,"","","","","","","","","","","",null,null,null,null,0,0,0,0,0,0,0,0,0,0,0]
["0305035","Detección, identificación y titulación de crioaglutininas",0,0,null,null,null,null,null,null,null,null,null,null,null,null,null,null,null,null,null,null,null,null,null,null,null,null,null,null,null,null,null,null,null,null,null,null,"",null,null,null,null,null,null,null,null,null,null,null,null,null,null,null,null,null,null,null,null,null,null,null,null,null,null,null,null,null,null,null,null,null,null,null,null,null,null,null,"","","","","","","","","","","",null,null,null,null,0,0,0,0,0,0,0,0,0,0,0]
["0305049","Transformación linfoblástica a drogas, análisis de transformación espontánea con estímulo inespecífico y con diferentes concentraciones de la droga en 1000 células",0,0,null,null,null,null,null,null,null,null,null,null,null,null,null,null,null,null,null,null,null,null,null,null,null,null,null,null,null,null,null,null,null,null,null,null,"",null,null,null,null,null,null,null,null,null,null,null,null,null,null,null,null,null,null,null,null,null,null,null,null,null,null,null,null,null,null,null,null,null,null,null,null,null,null,null,"","","","","","","","","","","",null,null,null,null,0,0,0,0,0,0,0,0,0,0,0]
["0305117","HLA-ABDR Tipificación  (Biología Molecular)",0,0,null,null,null,null,null,null,null,null,null,null,null,null,null,null,null,null,null,null,null,null,null,null,null,null,null,null,null,null,null,null,null,null,null,null,"",null,null,null,null,null,null,null,null,null,null,null,null,null,null,null,null,null,null,null,null,null,null,null,null,null,null,null,null,null,null,null,null,null,null,null,null,null,null,null,"","","","","","","","","","","",null,null,null,null,0,0,0,0,0,0,0,0,0,0,0]
["0305123","Seroteca  Mensual y Mantención en Lista De Espera",0,0,null,null,null,null,null,null,null,null,null,null,null,null,null,null,null,null,null,null,null,null,null,null,null,null,null,null,null,null,null,null,null,null,null,null,"",null,null,null,null,null,null,null,null,null,null,null,null,null,null,null,null,null,null,null,null,null,null,null,null,null,null,null,null,null,null,null,null,null,null,null,null,null,null,null,"","","","","","","","","","","",null,null,null,null,0,0,0,0,0,0,0,0,0,0,0]
["0306104","Tinción para campylobacter",0,0,null,null,null,null,null,null,null,null,null,null,null,null,null,null,null,null,null,null,null,null,null,null,null,null,null,null,null,null,null,null,null,null,null,null,"",null,null,null,null,null,null,null,null,null,null,null,null,null,null,null,null,null,null,null,null,null,null,null,null,null,null,null,null,null,null,null,null,null,null,null,null,null,null,null,"","","","","","","","","","","",null,null,null,null,0,0,0,0,0,0,0,0,0,0,0]
["0306022","Cultivo y Tipificación de micobacterias",0,0,null,null,null,null,null,null,null,null,null,null,null,null,null,null,null,null,null,null,null,null,null,null,null,null,null,null,null,null,null,null,null,null,null,null,"",null,null,null,null,null,null,null,null,null,null,null,null,null,null,null,null,null,null,null,null,null,null,null,null,null,null,null,null,null,null,null,null,null,null,null,null,null,null,null,"","","","","","","","","","","",null,null,null,null,0,0,0,0,0,0,0,0,0,0,0]
["0306027","Antibiograma de estudio de sensibilidad por dilución (CIM) (mínimo 6 fármacos) (en caso de urocultivo, no corresponde su cobro; incluido en el valor código 03-06-011)",0,0,null,null,null,null,null,null,null,null,null,null,null,null,null,null,null,null,null,null,null,null,null,null,null,null,null,null,null,null,null,null,null,null,null,null,"",null,null,null,null,null,null,null,null,null,null,null,null,null,null,null,null,null,null,null,null,null,null,null,null,null,null,null,null,null,null,null,null,null,null,null,null,null,null,null,"","","","","","","","","","","",null,null,null,null,0,0,0,0,0,0,0,0,0,0,0]
["0306135","Beta-d- glucano",0,0,null,null,null,null,null,null,null,null,null,null,null,null,null,null,null,null,null,null,null,null,null,null,null,null,null,null,null,null,null,null,null,null,null,null,"",null,null,null,null,null,null,null,null,null,null,null,null,null,null,null,null,null,null,null,null,null,null,null,null,null,null,null,null,null,null,null,null,null,null,null,null,null,null,null,"","","","","","","","","","","",null,null,null,null,0,0,0,0,0,0,0,0,0,0,0]
["TOTAL",null,{"$f":"SUM(C512:C568)","v":0},{"$f":"SUM(D512:D568)","v":0},{"$f":"SUM(E512:E568)","v":0},{"$f":"SUM(F512:F568)","v":0},{"$f":"SUM(G512:G568)","v":0},null,null,null,null,null,null,null,null,null,null,null,null,null,null,null,null,null,null,null,{"$f":"SUM(AA512:AA568)","v":0},{"$f":"SUM(AB512:AB568)","v":0},0,0,0,0,0,0,0,0]
["0306052","Estudio de gusanos macroscópicos",0,0,null,null,null,null,null,null,null,null,null,null,null,null,null,null,null,null,null,null,null,null,null,null,null,null,null,null,null,null,null,null,null,null,null,null,"",null,null,null,null,null,null,null,null,null,null,null,null,null,null,null,null,null,null,null,null,null,null,null,null,null,null,null,null,null,null,null,null,null,null,null,null,null,null,null,"","","","","","","","","","","",null,null,null,null,0,0,0,0,0,0,0,0,0,0,0]
["0306061","Parásitos IgG/IgM (Chagas, Hidatidosis, Toxocariasis y otros por Elisa o Inmunofluorescencia), c/u",0,0,null,null,null,null,null,null,null,null,null,null,null,null,null,null,null,null,null,null,null,null,null,null,null,null,null,null,null,null,null,null,null,null,null,null,"",null,null,null,null,null,null,null,null,null,null,null,null,null,null,null,null,null,null,null,null,null,null,null,null,null,null,null,null,null,null,null,null,null,null,null,null,null,null,null,"","","","","","","","","","","",null,null,null,null,0,0,0,0,0,0,0,0,0,0,0]
["0306270","Antígenos virales determ. de virus sincicial, por cualquier técnica ",0,0,null,null,null,null,null,null,null,null,null,null,null,null,null,null,null,null,null,null,null,null,null,null,null,null,null,null,null,null,null,null,null,null,null,null,"",null,null,null,null,null,null,null,null,null,null,null,null,null,null,null,null,null,null,null,null,null,null,null,null,null,null,null,null,null,null,null,null,null,null,null,null,null,null,null,"","","","","","","","","","","",null,null,null,null,0,0,0,0,0,0,0,0,0,0,0]
["0306109","VIH, Genotipificación antivirales",0,0,null,null,null,null,null,null,null,null,null,null,null,null,null,null,null,null,null,null,null,null,null,null,null,null,null,null,null,null,null,null,null,null,null,null,"",null,null,null,null,null,null,null,null,null,null,null,null,null,null,null,null,null,null,null,null,null,null,null,null,null,null,null,null,null,null,null,null,null,null,null,null,null,null,null,"","","","","","","","","","","",null,null,null,null,0,0,0,0,0,0,0,0,0,0,0]
["0306121","Hanta virus, anticuerpos IgM test rápido",0,0,null,null,null,null,null,null,null,null,null,null,null,null,null,null,null,null,null,null,null,null,null,null,null,null,null,null,null,null,null,null,null,null,null,null,"",null,null,null,null,null,null,null,null,null,null,null,null,null,null,null,null,null,null,null,null,null,null,null,null,null,null,null,null,null,null,null,null,null,null,null,null,null,null,null,"","","","","","","","","","","",null,null,null,null,0,0,0,0,0,0,0,0,0,0,0]
["0306144","HTLV virus por PCR",0,0,null,null,null,null,null,null,null,null,null,null,null,null,null,null,null,null,null,null,null,null,null,null,null,null,null,null,null,null,null,null,null,null,null,null,"",null,null,null,null,null,null,null,null,null,null,null,null,null,null,null,null,null,null,null,null,null,null,null,null,null,null,null,null,null,null,null,null,null,null,null,null,null,null,null,"","","","","","","","","","","",null,null,null,null,0,0,0,0,0,0,0,0,0,0,0]
["0307008","Vasopresina test o similares (incluye además mediciones de diuresis)",0,0,null,null,null,null,null,null,null,null,null,null,null,null,null,null,null,null,null,null,null,null,null,null,null,null,null,null,null,null,null,null,null,null,null,null,"",null,null,null,null,null,null,null,null,null,null,null,null,null,null,null,null,null,null,null,null,null,null,null,null,null,null,null,null,null,null,null,null,null,null,null,null,null,null,null,"","","","","","","","","","","",null,null,null,null,0,0,0,0,0,0,0,0,0,0,0]
["0307010","Toma de muestra arterial en niños y lactantes",0,0,null,null,null,null,null,null,null,null,null,null,null,null,null,null,null,null,null,null,null,null,null,null,null,null,null,null,null,null,null,null,null,null,null,null,"",null,null,null,null,null,null,null,null,null,null,null,null,null,null,null,null,null,null,null,null,null,null,null,null,null,null,null,null,null,null,null,null,null,null,null,null,null,null,null,"","","","","","","","","","","",null,null,null,null,0,0,0,0,0,0,0,0,0,0,0]
["0308049","Calprotectina cuantitativa por Elisa",0,0,null,null,null,null,null,null,null,null,null,null,null,null,null,null,null,null,null,null,null,null,null,null,null,null,null,null,null,null,null,null,null,null,null,null,"",null,null,null,null,null,null,null,null,null,null,null,null,null,null,null,null,null,null,null,null,null,null,null,null,null,null,null,null,null,null,null,null,null,null,null,null,null,null,null,"","","","","","","","","","","",null,null,null,null,0,0,0,0,0,0,0,0,0,0,0]
["0308051","Albúminas en exudados, secreciones y otros líquidos",0,0,null,null,null,null,null,null,null,null,null,null,null,null,null,null,null,null,null,null,null,null,null,null,null,null,null,null,null,null,null,null,null,null,null,null,"",null,null,null,null,null,null,null,null,null,null,null,null,null,null,null,null,null,null,null,null,null,null,null,null,null,null,null,null,null,null,null,null,null,null,null,null,null,null,null,"","","","","","","","","","","",null,null,null,null,0,0,0,0,0,0,0,0,0,0,0]
["0308025","Prueba de estimulación máxima con histamina, mínimo 5 muestras (no incluye la histamina ni el antihistamínico).",0,0,null,null,null,null,null,null,null,null,null,null,null,null,null,null,null,null,null,null,null,null,null,null,null,null,null,null,null,null,null,null,null,null,null,null,"",null,null,null,null,null,null,null,null,null,null,null,null,null,null,null,null,null,null,null,null,null,null,null,null,null,null,null,null,null,null,null,null,null,null,null,null,null,null,null,"","","","","","","","","","","",null,null,null,null,0,0,0,0,0,0,0,0,0,0,0]
["0308055","Trigliceridos en exudados, secreciones y otros líquidos",0,0,null,null,null,null,null,null,null,null,null,null,null,null,null,null,null,null,null,null,null,null,null,null,null,null,null,null,null,null,null,null,null,null,null,null,"",null,null,null,null,null,null,null,null,null,null,null,null,null,null,null,null,null,null,null,null,null,null,null,null,null,null,null,null,null,null,null,null,null,null,null,null,null,null,null,"","","","","","","","","","","",null,null,null,null,0,0,0,0,0,0,0,0,0,0,0]
["0309002","Acido delta aminolevulínico",0,0,null,null,null,null,null,null,null,null,null,null,null,null,null,null,null,null,null,null,null,null,null,null,null,null,null,null,null,null,null,null,null,null,null,null,"",null,null,null,null,null,null,null,null,null,null,null,null,null,null,null,null,null,null,null,null,null,null,null,null,null,null,null,null,null,null,null,null,null,null,null,null,null,null,null,"","","","","","","","","","","",null,null,null,null,0,0,0,0,0,0,0,0,0,0,0]
["0309014","Gonadotrofina coriónica, sub-unidad beta en orina (test rápido)",0,0,null,null,null,null,null,null,null,null,null,null,null,null,null,null,null,null,null,null,null,null,null,null,null,null,null,null,null,null,null,null,null,null,null,null,"",null,null,null,null,null,null,null,null,null,null,null,null,null,null,null,null,null,null,null,null,null,null,null,null,null,null,null,null,null,null,null,null,null,null,null,null,null,null,null,"","","","","","","","","","","",null,null,null,null,0,0,0,0,0,0,0,0,0,0,0]
["0309031","Screening de drogas",0,0,null,null,null,null,null,null,null,null,null,null,null,null,null,null,null,null,null,null,null,null,null,null,null,null,null,null,null,null,null,null,null,null,null,null,"",null,null,null,null,null,null,null,null,null,null,null,null,null,null,null,null,null,null,null,null,null,null,null,null,null,null,null,null,null,null,null,null,null,null,null,null,null,null,null,"","","","","","","","","","","",null,null,null,null,0,0,0,0,0,0,0,0,0,0,0]
["0309043","Ph en orina con peachimetro",0,0,null,null,null,null,null,null,null,null,null,null,null,null,null,null,null,null,null,null,null,null,null,null,null,null,null,null,null,null,null,null,null,null,null,null,"",null,null,null,null,null,null,null,null,null,null,null,null,null,null,null,null,null,null,null,null,null,null,null,null,null,null,null,null,null,null,null,null,null,null,null,null,null,null,null,"","","","","","","","","","","",null,null,null,null,0,0,0,0,0,0,0,0,0,0,0]
["0401004","Radiografía de tórax, proyección complementaria (oblicuas, selectivas u otras)",0,0,null,null,null,null,null,null,null,null,null,null,null,null,null,null,null,null,null,null,null,null,null,null,null,null,null,null,null,null,null,null,null,null,null,null,"",null,null,null,null,null,null,null,null,null,null,null,null,null,null,null,null,null,null,null,null,null,null,null,null,null,null,null,null,null,null,null,null,null,null,null,null,null,null,null,"","","","","","","","","","","",null,"",null,null,0,0,0,0,0,0,0,0,0,0,0,null,0]
["0401022","Estudio radiológico de deglución faríngea",0,0,null,null,null,null,null,null,null,null,null,null,null,null,null,null,null,null,null,null,null,null,null,null,null,null,null,null,null,null,null,null,null,null,null,null,"",null,null,null,null,null,null,null,null,null,null,null,null,null,null,null,null,null,null,null,null,null,null,null,null,null,null,null,null,null,null,null,null,null,null,null,null,null,null,null,"","","","","","","","","","","",null,"",null,null,0,0,0,0,0,0,0,0,0,0,0,null,0]
["0401031","Radiografía de cavidades perinasales, órbitas, articulaciones temporomandibulares, huesos propios de la nariz, malar, maxilar, arco cigomático y cara",0,0,null,null,null,null,null,null,null,null,null,null,null,null,null,null,null,null,null,null,null,null,null,null,null,null,null,null,null,null,null,null,null,null,null,null,"",null,null,null,null,null,null,null,null,null,null,null,null,null,null,null,null,null,null,null,null,null,null,null,null,null,null,null,null,null,null,null,null,null,null,null,null,null,null,null,"","","","","","","","","","","",null,"",null,null,0,0,0,0,0,0,0,0,0,0,0,null,0]
["0401047","Radiografía columna lumbar o lumbosacra  flexión y  extensión (Dinámicas)",0,0,null,null,null,null,null,null,null,null,null,null,null,null,null,null,null,null,null,null,null,null,null,null,null,null,null,null,null,null,null,null,null,null,null,null,"",null,null,null,null,null,null,null,null,null,null,null,null,null,null,null,null,null,null,null,null,null,null,null,null,null,null,null,null,null,null,null,null,null,null,null,null,null,null,null,"","","","","","","","","","","",null,"",null,null,0,0,0,0,0,0,0,0,0,0,0,null,0]
["0401071","Mamografía bilateral digital 3D con tomosíntesis",0,0,null,null,null,null,null,null,null,null,null,null,null,null,null,null,null,null,null,null,null,null,null,null,null,null,null,null,null,null,null,null,null,null,null,null,"",null,null,null,null,null,null,null,null,null,null,null,null,null,null,null,null,null,null,null,null,null,null,null,null,null,null,null,null,null,null,null,null,null,null,null,null,null,null,null,"","","","","","","","","","","",null,"",null,null,0,0,0,0,0,0,0,0,0,0,0,null,0]
["0402011","Histerosalpingografía (a.c. 20-01-013) (4 exp.; incluye prueba de Cotte tardía)",0,0,null,null,null,null,null,null,null,null,null,null,null,null,null,null,null,null,null,null,null,null,null,null,null,null,null,null,null,null,null,null,null,null,null,null,"",null,null,null,null,null,null,null,null,null,null,null,null,null,null,null,null,null,null,null,null,null,null,null,null,null,null,null,null,null,null,null,null,null,null,null,null,null,null,null,"","","","","","","","","","","",null,"",null,null,0,0,0,0,0,0,0,0,0,0,0,null,0]
["0402024","Aortografía con AOT o cineangiografía",0,0,null,null,null,null,null,null,null,null,null,null,null,null,null,null,null,null,null,null,null,null,null,null,null,null,null,null,null,null,null,null,null,null,null,null,"",null,null,null,null,null,null,null,null,null,null,null,null,null,null,null,null,null,null,null,null,null,null,null,null,null,null,null,null,null,null,null,null,null,null,null,null,null,null,null,"","","","","","","","","","","",null,"",null,null,0,0,0,0,0,0,0,0,0,0,0,null,0]
["0403008","Tomografía Computarizada de columna cervical ",0,0,null,null,null,null,null,null,null,null,null,null,null,null,null,null,null,null,null,null,null,null,null,null,null,null,null,null,null,null,null,null,null,null,null,null,"",null,null,null,null,null,null,null,null,null,null,null,null,null,null,null,null,null,null,null,null,null,null,null,null,null,null,null,null,null,null,null,null,null,null,null,null,null,null,null,"","","","","","","","","","","",null,"",null,null,0,0,0,0,0,0,0,0,0,0,0,null,0]
["0403023","Tomografía Computarizada de Colonoscopía Virtual. No incluye instalación de sonda",0,0,null,null,null,null,null,null,null,null,null,null,null,null,null,null,null,null,null,null,null,null,null,null,null,null,null,null,null,null,null,null,null,null,null,null,"",null,null,null,null,null,null,null,null,null,null,null,null,null,null,null,null,null,null,null,null,null,null,null,null,null,null,null,null,null,null,null,null,null,null,null,null,null,null,null,"","","","","","","","","","","",null,"",null,null,0,0,0,0,0,0,0,0,0,0,0,null,0]
["0403017","Tomografía Computarizada Musculoesquelética por zona anatómica. Por cada segmento o articulación: muslo, pierna, rodillas, antebrazo, codo, muñeca, mano, hombro, pie, tobillo u otros. Bilateral sólo para rodillas",0,0,null,null,null,null,null,null,null,null,null,null,null,null,null,null,null,null,null,null,null,null,null,null,null,null,null,null,null,null,null,null,null,null,null,null,"",null,null,null,null,null,null,null,null,null,null,null,null,null,null,null,null,null,null,null,null,null,null,null,null,null,null,null,null,null,null,null,null,null,null,null,null,null,null,null,"","","","","","","","","","","",null,"",null,null,0,0,0,0,0,0,0,0,0,0,0,null,0]
["0404003","Ecografía abdominal (incluye hígado, vía biliar, vesícula, páncreas, riñones, bazo, retroperitoneo y grandes vasos)",0,0,null,null,null,null,null,null,null,null,null,null,null,null,null,null,null,null,null,null,null,null,null,null,null,null,null,null,null,null,null,null,null,null,null,null,"",null,null,null,null,null,null,null,null,null,null,null,null,null,null,null,null,null,null,null,null,null,null,null,null,null,null,null,null,null,null,null,null,null,null,null,null,null,null,null,"","","","","","","","","","","",null,"",null,null,0,0,0,0,0,0,0,0,0,0,0,null,0]
["0404012","Ecografía mamaria bilateral (incluye Doppler)",0,0,null,null,null,null,null,null,null,null,null,null,null,null,null,null,null,null,null,null,null,null,null,null,null,null,null,null,null,null,null,null,null,null,null,null,"",null,null,null,null,null,null,null,null,null,null,null,null,null,null,null,null,null,null,null,null,null,null,null,null,null,null,null,null,null,null,null,null,null,null,null,null,null,null,null,"","","","","","","","","","","",null,"",null,null,0,0,0,0,0,0,0,0,0,0,0,null,0]
["0405001","Resonancia Magnética Cráneo Encefálica u Oídos, bilateral",{"$f":"SUM(D891+G891)","v":0},{"$f":"SUM(E891:F891)","v":0},null,null,null,null,null,null,null,null,null,null,null,null,null,null,null,null,null,null,null,null,null,null,null,null,null,null,null,null,null,null,null,null,null,null,{"$f":"CA891&CB891&CC891&CD891&CE891&CF891&CG891&CH891&CI891&CJ891&CK891&CL891&CM891","v":""},null,null,null,null,null,null,null,null,null,null,null,null,null,null,null,null,null,null,null,null,null,null,null,null,null,null,null,null,null,null,null,null,null,null,null,null,null,null,null,"","","","","","","","","","","",null,{"$f":"IF(AND($C891>0,AL891=\"\"),\" * No olvide digitar la variable Asistencia Anestésica. Digite Cero si no tiene.\",IF(AL891>$C891,\" *  La variable Asistencia Anestésica No puede ser mayor al Total.\",\"\"))","v":""},null,null,0,0,0,0,0,0,0,0,0,0,0,null,{"$f":"IF(AND($C891>0,AL891=\"\"),1,IF(AL891>$C891,1,0))","v":0}]
["0405020","Resonancia Magnética Angiografía de Abdomen ",0,0,null,null,null,null,null,null,null,null,null,null,null,null,null,null,null,null,null,null,null,null,null,null,null,null,null,null,null,null,null,null,null,null,null,null,"",null,null,null,null,null,null,null,null,null,null,null,null,null,null,null,null,null,null,null,null,null,null,null,null,null,null,null,null,null,null,null,null,null,null,null,null,null,null,null,"","","","","","","","","","","",null,"",null,null,0,0,0,0,0,0,0,0,0,0,0,null,0]
["0405031","Resonancia Magnética de Mama (bilateral)",0,0,null,null,null,null,null,null,null,null,null,null,null,null,null,null,null,null,null,null,null,null,null,null,null,null,null,null,null,null,null,null,null,null,null,null,"",null,null,null,null,null,null,null,null,null,null,null,null,null,null,null,null,null,null,null,null,null,null,null,null,null,null,null,null,null,null,null,null,null,null,null,null,null,null,null,"","","","","","","","","","","",null,"",null,null,0,0,0,0,0,0,0,0,0,0,0,null,0]
["0405036","Resonancia magnética espectroscopía encefálica",0,0,null,null,null,null,null,null,null,null,null,null,null,null,null,null,null,null,null,null,null,null,null,null,null,null,null,null,null,null,null,null,null,null,null,null,"",null,null,null,null,null,null,null,null,null,null,null,null,null,null,null,null,null,null,null,null,null,null,null,null,null,null,null,null,null,null,null,null,null,null,null,null,null,null,null,"","","","","","","","","","","",null,"",null,null,0,0,0,0,0,0,0,0,0,0,0,null,0]
["01010755","Ecotomografia portátil (traslado desde imagenología al servicio que lo requiere)",0,0,null,null,null,null,null,null,null,null,null,null,null,null,null,null,null,null,null,null,null,null,null,null,null,null,null,null,null,null,null,null,null,null,null,null,"",null,null,null,null,null,null,null,null,null,null,null,null,null,null,null,null,null,null,null,null,null,null,null,null,null,null,null,null,null,null,null,null,null,null,null,null,null,null,null,"","","","","","","","","","","",null,"",null,null,0,0,0,0,0,0,0,0,0,0,0,null,0]
["01010796","Biopsia muscular",0,0,null,null,null,null,null,null,null,null,null,null,null,null,null,null,null,null,null,null,null,null,null,null,null,null,null,null,null,null,null,null,null,null,null,null,"",null,null,null,null,null,null,null,null,null,null,null,null,null,null,null,null,null,null,null,null,null,null,null,null,null,null,null,null,null,null,null,null,null,null,null,null,null,null,null,"","","","","","","","","","","",null,"",null,null,0,0,0,0,0,0,0,0,0,0,0,null,0]
["0501137","Cintigrafía de médula ósea ",0,0,null,null,null,null,null,null,null,null,null,null,null,null,null,null,null,null,null,null,null,null,null,null,null,null,null,null,null,null,null,null,null,null,null,null,"",null,null,null,null,null,null,null,null,null,null,null,null,null,null,null,null,null,null,null,null,null,null,null,null,null,null,null,null,null,null,null,null,null,null,null,null,null,null,null,"","","","","","","","","","","",null,"",null,null,0,0,0,0,0,0,0,0,0,0,0,null,0]
["ESTUDIOS CARDIOVASCULARES"]
["0501116","Spect hepatoesplénico, evaluación hemangioma o hiperplasia (incluye mediciones fase precoz y tardía)",0,0,null,null,null,null,null,null,null,null,null,null,null,null,null,null,null,null,null,null,null,null,null,null,null,null,null,null,null,null,null,null,null,null,null,null,"",null,null,null,null,null,null,null,null,null,null,null,null,null,null,null,null,null,null,null,null,null,null,null,null,null,null,null,null,null,null,null,null,null,null,null,null,null,null,null,"","","","","","","","","","","",null,"",null,null,0,0,0,0,0,0,0,0,0,0,0,null,0]
["0501122","Cintigrafía pulmonar perfusión o ventilación o difusión, c/u",0,0,null,null,null,null,null,null,null,null,null,null,null,null,null,null,null,null,null,null,null,null,null,null,null,null,null,null,null,null,null,null,null,null,null,null,{"$f":"CA995&CB995&CC995&CD995&CE995&CF995&CG995&CH995&CI995&CJ995&CK995&CL995&CM995","v":""},null,null,null,null,null,null,null,null,null,null,null,null,null,null,null,null,null,null,null,null,null,null,null,null,null,null,null,null,null,null,null,null,null,null,null,null,null,null,null,"","","","","","","","","","","",null,"",null,null,0,0,0,0,0,0,0,0,0,0,0,null,0]
["TOTAL",null,{"$f":"SUM(C999:C1000)","v":0},{"$f":"SUM(D999:D1000)","v":0},{"$f":"SUM(E999:E1000)","v":0},{"$f":"SUM(F999:F1000)","v":0},{"$f":"SUM(G999:G1000)","v":0},null,null,null,null,null,null,null,null,null,null,null,null,null,null,null,null,null,null,null,{"$f":"SUM(AA999:AA1000)","v":0},0,0,0,0,0,0,0,0,0,null,{"$f":"SUM(AL999:AL1000)","v":0}]
["DENSITOMETRÍA OSEA",null,null,null,null,null,null,null,null,null,null,null,null,null,null,null,null,null,null,null,null,null,null,null,null,null,null,null,null,null,null,null,null,null,null,null,null,null,null,null,null,null,null,null,null,null,null,null,null,null,null,null,null,null,null,null,null,null,null,null,null,null,null,null,null,null,null,null,null,null,null,null,null,null,null,null,null,null,null,null,null,null,null,null,null,null,null,null,null,null,null,null,null,null,null,null,null,null,null,null,null,null,null,null,null,0]
["BRAQUITERAPIA"]
[2902001,"Tratamiento integral de radioterapia altamente compleja con Linac ",{"$f":"SUM(D1035+G1035)","v":0},{"$f":"SUM(E1035:F1035)","v":0},null,null,null,null,null,null,null,null,null,null,null,null,null,null,null,null,null,null,null,null,null,null,null,null,null,null,null,null,null,null,null,null,null,null,{"$f":"CA1035&CB1035&CC1035&CD1035&CE1035&CF1035&CG1035&CH1035&CI1035&CJ1035&CK1035&CL1035&CM1035","v":""},null,null,null,null,null,null,null,null,null,null,null,null,null,null,null,null,null,null,null,null,null,null,null,null,null,null,null,null,null,null,null,null,null,null,null,null,null,null,null,"","","","","","","","","","","",null,{"$f":"IF(AND($C1035>0,AL1035=\"\"),\" * No olvide digitar la variable Asistencia Anestésica. Digite Cero si no tiene.\",IF(AL1035>$C1035,\" *  La variable Asistencia Anestésica No puede ser mayor al Total.\",\"\"))","v":""},null,null,0,0,0,0,0,0,0,0,0,0,0,null,{"$f":"IF(AND($C1035>0,AL1035=\"\"),1,IF(AL1035>$C1035,1,0))","v":0}]
[2904001,"Quimioterapia alto riesgo 1 (por ciclo)",{"$f":"SUM(D1045+G1045)","v":0},{"$f":"SUM(E1045:F1045)","v":0},null,null,null,null,null,null,null,null,null,null,null,null,null,null,null,null,null,null,null,null,null,null,null,null,null,null,null,null,null,null,null,null,null,null,{"$f":"CA1045&CB1045&CC1045&CD1045&CE1045&CF1045&CG1045&CH1045&CI1045&CJ1045&CK1045&CL1045&CM1045","v":""},null,null,null,null,null,null,null,null,null,null,null,null,null,null,null,null,null,null,null,null,null,null,null,null,null,null,null,null,null,null,null,null,null,null,null,null,null,null,null,"","","","","","","","","","","",null,{"$f":"IF(AND($C1045>0,AL1045=\"\"),\" * No olvide digitar la variable Asistencia Anestésica. Digite Cero si no tiene.\",IF(AL1045>$C1045,\" *  La variable Asistencia Anestésica No puede ser mayor al Total.\",\"\"))","v":""},null,null,0,0,0,0,0,0,0,0,0,0,0,null,{"$f":"IF(AND($C1045>0,AL1045=\"\"),1,IF(AL1045>$C1045,1,0))","v":0}]
["TOTAL",null,{"$f":"SUM(C1045:C1061)","v":0},{"$f":"SUM(D1045:D1061)","v":0},{"$f":"SUM(E1045:E1061)","v":0},{"$f":"SUM(F1045:F1061)","v":0},{"$f":"SUM(G1045:G1061)","v":0},null,null,null,null,null,null,null,null,null,null,null,null,null,null,null,null,null,null,null,{"$f":"SUM(AA1045:AA1061)","v":0},0,0,0,0,0,0,0,0,0,null,{"$f":"SUM(AL1045:AL1061)","v":0}]
["0601103","Atención Kinesiológica Integral en Pacientes hospitalizados",{"$f":"SUM(D1068+G1068)","v":0},{"$f":"SUM(E1068:F1068)","v":0},null,null,null,null,null,null,null,null,null,null,null,null,null,null,null,null,null,null,null,null,null,null,null,null,null,null,null,null,null,null,null,null,null,null,"",null,null,null,null,null,null,null,null,null,null,null,null,null,null,null,null,null,null,null,null,null,null,null,null,null,null,null,null,null,null,null,null,null,null,null,null,null,null,null,"","","","","","","","","","","",null,null,null,null,0,0,0,0,0,0,0,0,0,0,0]
["0601009","Onda corta (ultratermia), microondas, c/u (proc.aut.)",0,0,null,null,null,null,null,null,null,null,null,null,null,null,null,null,null,null,null,null,null,null,null,null,null,null,null,null,null,null,null,null,null,null,null,null,"",null,null,null,null,null,null,null,null,null,null,null,null,null,null,null,null,null,null,null,null,null,null,null,null,null,null,null,null,null,null,null,null,null,null,null,null,null,null,null,"","","","","","","","","","","",null,null,null,null,0,0,0,0,0,0,0,0,0,0,0]
["0601028","Entrenamiento cardiorespiratorio funcional",0,0,null,null,null,null,null,null,null,null,null,null,null,null,null,null,null,null,null,null,null,null,null,null,null,null,null,null,null,null,null,null,null,null,null,null,"",null,null,null,null,null,null,null,null,null,null,null,null,null,null,null,null,null,null,null,null,null,null,null,null,null,null,null,null,null,null,null,null,null,null,null,null,null,null,null,"","","","","","","","","","","",null,null,null,null,0,0,0,0,0,0,0,0,0,0,0]
["0601030","Maniobras permeabilización de la vía aérea (proc.aut.)",0,0,null,null,null,null,null,null,null,null,null,null,null,null,null,null,null,null,null,null,null,null,null,null,null,null,null,null,null,null,null,null,null,null,null,null,"",null,null,null,null,null,null,null,null,null,null,null,null,null,null,null,null,null,null,null,null,null,null,null,null,null,null,null,null,null,null,null,null,null,null,null,null,null,null,null,"","","","","","","","","","","",null,null,null,null,0,0,0,0,0,0,0,0,0,0,0]
["0102501","Reeducación de la tos y respiración en pacientes con traqueostomía",0,0,null,null,null,null,null,null,null,null,null,null,null,null,null,null,null,null,null,null,null,null,null,null,null,null,null,null,null,null,null,null,null,null,null,null,"",null,null,null,null,null,null,null,null,null,null,null,null,null,null,null,null,null,null,null,null,null,null,null,null,null,null,null,null,null,null,null,null,null,null,null,null,null,null,null,"","","","","","","","","","","",null,null,null,null,0,0,0,0,0,0,0,0,0,0,0]
["0702101","Producción de glóbulo rojo ",{"$f":"SUM(D1129+G1129)","v":0},{"$f":"SUM(E1129:F1129)","v":0},null,null,null,null,null,null,null,null,null,null,null,null,null,null,null,null,null,null,null,null,null,null,null,null,null,null,null,null,null,null,null,null,null,null,{"$f":"CA1129&CB1129&CC1129&CD1129&CE1129&CF1129&CG1129&CH1129&CI1129&CJ1129&CK1129&CL1129&CM1129","v":""},null,null,null,null,null,null,null,null,null,null,null,null,null,null,null,null,null,null,null,null,null,null,null,null,null,null,null,null,null,null,null,null,null,null,null,null,null,null,null,"","","","","","","","","","","",null,null,null,null,0,0,0,0,0,0,0,0,0,0,0]
["0702201","Calificación microbiológica por donante estudiado, componente sanguíneo producido o producto de aféresis automática",0,0,null,null,null,null,null,null,null,null,null,null,null,null,null,null,null,null,null,null,null,null,null,null,null,null,null,null,null,null,null,null,null,null,null,null,"",null,null,null,null,null,null,null,null,null,null,null,null,null,null,null,null,null,null,null,null,null,null,null,null,null,null,null,null,null,null,null,null,null,null,null,null,null,null,null,"","","","","","","","","","","",null,null,null,null,0,0,0,0,0,0,0,0,0,0,0]
["0702207","Detección de anticuerpos irregulares eritrocitarios",0,0,null,null,null,null,null,null,null,null,null,null,null,null,null,null,null,null,null,null,null,null,null,null,null,null,null,null,null,null,null,null,null,null,null,null,"",null,null,null,null,null,null,null,null,null,null,null,null,null,null,null,null,null,null,null,null,null,null,null,null,null,null,null,null,null,null,null,null,null,null,null,null,null,null,null,"","","","","","","","","","","",null,null,null,null,0,0,0,0,0,0,0,0,0,0,0]
["0704024","Cubo de Tejido óseo (Liofilizado/congelado), c/u",0,0,null,null,null,null,null,null,null,null,null,null,null,null,null,null,null,null,null,null,null,null,null,null,null,null,null,null,null,null,null,null,null,null,null,null,"",null,null,null,null,null,null,null,null,null,null,null,null,null,null,null,null,null,null,null,null,null,null,null,null,null,null,null,null,null,null,null,null,null,null,null,null,null,null,null,"","","","","","","","","","","",null,null,null,null,0,0,0,0,0,0,0,0,0,0,0]
["ANATOMIA PATOLÓGICA                                     "]
["0801006","Consulta intraoperatoria (por cada muestra / tejido o asistencia a pabellón) (no incluye biopsia diferida)",0,0,null,null,null,null,null,null,null,null,null,null,null,null,null,null,null,null,null,null,null,null,null,null,null,null,null,null,null,null,null,null,null,null,null,null,"",null,null,null,null,null,null,null,null,null,null,null,null,null,null,null,null,null,null,null,null,null,null,null,null,null,null,null,null,null,null,null,null,null,null,null,null,null,null,null,"","","","","","","","","","","",null,null,null,null,0,0,0,0,0,0,0,0,0,0,0]
["PSIQUIATRÍA Y SALUD MENTAL     "]
["0902002","Sesión de Psicoterapia individual",0,0,null,null,null,null,null,null,null,null,null,null,null,null,null,null,null,null,null,null,null,null,null,null,null,null,null,null,null,null,null,null,null,null,null,null,"",null,null,null,null,null,null,null,null,null,null,null,null,null,null,null,null,null,null,null,null,null,null,null,null,null,null,null,null,null,null,null,null,null,null,null,null,null,null,null,"","","","","","","","","","","",null,null,null,null,0,0,0,0,0,0,0,0,0,0,0]
[1101004,"E.E.G. de 16 o más canales (incluye el cód. 11-01-006)",{"$f":"SUM(D1212+G1212)","v":0},{"$f":"SUM(E1212:F1212)","v":0},null,null,null,null,null,null,null,null,null,null,null,null,null,null,null,null,null,null,null,null,null,null,null,null,null,null,null,null,null,null,null,null,null,null,{"$f":"CA1212&CB1212&CC1212&CD1212&CE1212&CF1212&CG1212&CH1212&CI1212&CJ1212&CK1212&CL1212&CM1212","v":""},null,null,null,null,null,null,null,null,null,null,null,null,null,null,null,null,null,null,null,null,null,null,null,null,null,null,null,null,null,null,null,null,null,null,null,null,null,null,null,"","","","","","","","","","","",null,null,null,null,0,0,0,0,0,0,0,0,0,0,0]
[1101008,"Monitoreo EEG invasivo con electrodos subdurales",0,0,null,null,null,null,null,null,null,null,null,null,null,null,null,null,null,null,null,null,null,null,null,null,null,null,null,null,null,null,null,null,null,null,null,null,"",null,null,null,null,null,null,null,null,null,null,null,null,null,null,null,null,null,null,null,null,null,null,null,null,null,null,null,null,null,null,null,null,null,null,null,null,null,null,null,"","","","","","","","","","","",null,null,null,null,0,0,0,0,0,0,0,0,0,0,0]
[1101013,"Carótida-vertebral por cateterización de la subclavia, axilar, humeral o femoral. ",0,0,null,null,null,null,null,null,null,null,null,null,null,null,null,null,null,null,null,null,null,null,null,null,null,null,null,null,null,null,null,null,null,null,null,null,"",null,null,null,null,null,null,null,null,null,null,null,null,null,null,null,null,null,null,null,null,null,null,null,null,null,null,null,null,null,null,null,null,null,null,null,null,null,null,null,"","","","","","","","","","","",{"$f":"IF(AND($C1240>0,AK1240=\"\"),\" * No olvide digitar la variable Quirófano Cirugía Mayor. Digite Cero si no tiene.\",IF(AK1240>$C1240,\" *  La variable Quirófano Cirugía Mayor No puede ser mayor al Total.\",\"\"))","v":""},{"$f":"IF(AND($C1240>0,AL1240=\"\"),\" * No olvide digitar la variable Asistencia Anestésica. Digite Cero si no tiene.\",IF(AL1240>$C1240,\" *  La variable Asistencia Anestésica No puede ser mayor al Total.\",\"\"))","v":""},null,null,0,0,0,0,0,0,0,0,0,0,0,{"$f":"IF(AND($C1240>0,AK1240=\"\"),1,IF(AK1240>$C1240,1,0))","v":0},{"$f":"IF(AND($C1240>0,AL1240=\"\"),1,IF(AL1240>$C1240,1,0))","v":0}]
[1101031,"Infiltración o bloqueo intercostales (cualquier número)",0,0,null,null,null,null,null,null,null,null,null,null,null,null,null,null,null,null,null,null,null,null,null,null,null,null,null,null,null,null,null,null,null,null,null,null,"",null,null,null,null,null,null,null,null,null,null,null,null,null,null,null,null,null,null,null,null,null,null,null,null,null,null,null,null,null,null,null,null,null,null,null,null,null,null,null,"","","","","","","","","","","","","",null,null,0,0,0,0,0,0,0,0,0,0,0,0,0]
[5099112,"Infiltración intramuscular (Fenol y Toxina Botulínica)",0,0,null,null,null,null,null,null,null,null,null,null,null,null,null,null,null,null,null,null,null,null,null,null,null,null,null,null,null,null,null,null,null,null,null,null,"",null,null,null,null,null,null,null,null,null,null,null,null,null,null,null,null,null,null,null,null,null,null,null,null,null,null,null,null,null,null,null,null,null,null,null,null,null,null,null,"","","","","","","","","","","",null,null,null,null,0,0,0,0,0,0,0,0,0,0,0]
[1103071,"Retiro de material de osteosíntesis o distractores en cirugía de craneosinostosis",0,null,null,null,null,0,null,null,null,null,null,null,0,null,null,0,null,null,0,null,null,0,null,null,null,null,null,null,null,null,null,null,null,null,null,null,"",null,null,null,null,null,null,null,null,null,null,null,null,null,null,null,null,null,null,null,null,null,null,null,null,null,null,null,null,null,null,null,null,null,null,null,null,null,null,null,"","","","","","","","","","","",null,null,null,null,0,0,0,0,0,0,0,0,0,0,0]
[1103023,"Hematoma intracerebral, vaciamiento de",0,null,null,null,null,0,null,null,null,null,null,null,0,null,null,0,null,null,0,null,null,0,null,null,null,null,null,null,null,null,null,null,null,null,null,null,"",null,null,null,null,null,null,null,null,null,null,null,null,null,null,null,null,null,null,null,null,null,null,null,null,null,null,null,null,null,null,null,null,null,null,null,null,null,null,null,"","","","","","","","","","","",null,null,null,null,0,0,0,0,0,0,0,0,0,0,0]
[1103033,"Revisión o exteriorización de derivativa",0,null,null,null,null,0,null,null,null,null,null,null,0,null,null,0,null,null,0,null,null,0,null,null,null,null,null,null,null,null,null,null,null,null,null,null,"",null,null,null,null,null,null,null,null,null,null,null,null,null,null,null,null,null,null,null,null,null,null,null,null,null,null,null,null,null,null,null,null,null,null,null,null,null,null,null,"","","","","","","","","","","",null,null,null,null,0,0,0,0,0,0,0,0,0,0,0]
[1103046,"Instalación de estimuladores medulares",0,null,null,null,null,0,null,null,null,null,null,null,0,null,null,0,null,null,0,null,null,0,null,null,null,null,null,null,null,null,null,null,null,null,null,null,"",null,null,null,null,null,null,null,null,null,null,null,null,null,null,null,null,null,null,null,null,null,null,null,null,null,null,null,null,null,null,null,null,null,null,null,null,null,null,null,"","","","","","","","","","","",null,null,null,null,0,0,0,0,0,0,0,0,0,0,0]
[1103055,"Cordotomía percutánea",0,null,null,null,null,0,null,null,null,null,null,null,0,null,null,0,null,null,0,null,null,0,null,null,null,null,null,null,null,null,null,null,null,null,null,null,"",null,null,null,null,null,null,null,null,null,null,null,null,null,null,null,null,null,null,null,null,null,null,null,null,null,null,null,null,null,null,null,null,null,null,null,null,null,null,null,"","","","","","","","","","","",null,null,null,null,0,0,0,0,0,0,0,0,0,0,0]
[1103075,"Laminoplastía cervical",0,null,null,null,null,0,null,null,null,null,null,null,0,null,null,0,null,null,0,null,null,0,null,null,null,null,null,null,null,null,null,null,null,null,null,null,"",null,null,null,null,null,null,null,null,null,null,null,null,null,null,null,null,null,null,null,null,null,null,null,null,null,null,null,null,null,null,null,null,null,null,null,null,null,null,null,"","","","","","","","","","","",null,null,null,null,0,0,0,0,0,0,0,0,0,0,0]
[1103068,"Neurectomía, cualquier localización, cada zona quirúrgica",0,null,null,null,null,0,null,null,null,null,null,null,0,null,null,0,null,null,0,null,null,0,null,null,null,null,null,null,null,null,null,null,null,null,null,null,"",null,null,null,null,null,null,null,null,null,null,null,null,null,null,null,null,null,null,null,null,null,null,null,null,null,null,null,null,null,null,null,null,null,null,null,null,null,null,null,"","","","","","","","","","","",null,null,null,null,0,0,0,0,0,0,0,0,0,0,0]
[1201004,"Curva de tensión aplanática (por cada día), unilateral",0,0,null,null,null,null,null,null,null,null,null,null,null,null,null,null,null,null,null,null,null,null,null,null,null,null,null,null,null,null,null,null,null,null,null,null,"",null,null,null,null,null,null,null,null,null,null,null,null,null,null,null,null,null,null,null,null,null,null,null,null,null,null,null,null,null,null,null,null,null,null,null,null,null,null,null,"","","","","","","","","","","",null,null,null,null,0,0,0,0,0,0,0,0,0,0,0]
[1201017,"Angioscopia retinal y/o iris (con fluoresceína o similar), unilateral (proc.aut.)",0,0,null,null,null,null,null,null,null,null,null,null,null,null,null,null,null,null,null,null,null,null,null,null,null,null,null,null,null,null,null,null,null,null,null,null,"",null,null,null,null,null,null,null,null,null,null,null,null,null,null,null,null,null,null,null,null,null,null,null,null,null,null,null,null,null,null,null,null,null,null,null,null,null,null,null,"","","","","","","","","","","","","",null,null,0,0,0,0,0,0,0,0,0,0,0,0,0]
[1201023,"Potencial visual evocado en adultos, bilateral",0,0,null,null,null,null,null,null,null,null,null,null,null,null,null,null,null,null,null,null,null,null,null,null,null,null,null,null,null,null,null,null,null,null,null,null,"",null,null,null,null,null,null,null,null,null,null,null,null,null,null,null,null,null,null,null,null,null,null,null,null,null,null,null,null,null,null,null,null,null,null,null,null,null,null,null,"","","","","","","","","","","",null,null,null,null,0,0,0,0,0,0,0,0,0,0,0]
[5099014,"Toma agudeza visual (ambos ojos)",0,0,null,null,null,null,null,null,null,null,null,null,null,null,null,null,null,null,null,null,null,null,null,null,null,null,null,null,null,null,null,null,null,null,null,null,"",null,null,null,null,null,null,null,null,null,null,null,null,null,null,null,null,null,null,null,null,null,null,null,null,null,null,null,null,null,null,null,null,null,null,null,null,null,null,null,"","","","","","","","","","","",null,null,null,null,0,0,0,0,0,0,0,0,0,0,0]
["01011176","Examen de visión cromática",0,0,null,null,null,null,null,null,null,null,null,null,null,null,null,null,null,null,null,null,null,null,null,null,null,null,null,null,null,null,null,null,null,null,null,null,"",null,null,null,null,null,null,null,null,null,null,null,null,null,null,null,null,null,null,null,null,null,null,null,null,null,null,null,null,null,null,null,null,null,null,null,null,null,null,null,"","","","","","","","","","","",null,null,null,null,0,0,0,0,0,0,0,0,0,0,0]
["CIRUGÍA OFTALMOLÓGICA          ",null,null,null,null,null,null,null,null,null,null,null,null,null,null,null,null,null,null,null,null,null,null,null,null,null,null,null,null,null,null,null,null,null,null,null,null,null,null,null,null,null,null,null,null,null,null,null,null,null,null,null,null,null,null,null,null,null,null,null,null,null,null,null,null,null,null,null,null,null,null,null,null,null,null,null,null,null,"","","","","","","","","","","",null,null,null,null,0,0,0,0,0,0,0,0,0,0,0]
[1202017,"Coloboma, plastía de",0,null,null,null,null,0,null,null,null,null,null,null,0,null,null,0,null,null,0,null,null,0,null,null,null,null,null,null,null,null,null,null,null,null,null,null,"",null,null,null,null,null,null,null,null,null,null,null,null,null,null,null,null,null,null,null,null,null,null,null,null,null,null,null,null,null,null,null,null,null,null,null,null,null,null,null,"","","","","","","","","","","",null,null,null,null,0,0,0,0,0,0,0,0,0,0,0]
[1202025,"Herida o dehiscencia de la conjuntiva, sutura de (proc. aut.)",0,null,null,null,null,0,null,null,null,null,null,null,null,null,null,null,null,null,null,null,null,null,null,null,null,null,null,null,null,null,null,null,null,null,null,null,"",null,null,null,null,null,null,null,null,null,null,null,null,null,null,null,null,null,null,null,null,null,null,null,null,null,null,null,null,null,null,null,null,null,null,null,null,null,null,null,"","","","","","","","","","","",{"$f":"IF(AND($C1427>0,AK1427=\"\"),\" * No olvide digitar la variable Quirófano Cirugía Mayor. Digite Cero si no tiene.\",IF(AK1427>$C1427,\" *  La variable Quirófano Cirugía Mayor No puede ser mayor al Total.\",\"\"))","v":""},{"$f":"IF(AND($C1427>0,AL1427=\"\"),\" * No olvide digitar la variable Asistencia Anestésica. Digite Cero si no tiene.\",IF(AL1427>$C1427,\" *  La variable Asistencia Anestésica No puede ser mayor al Total.\",\"\"))","v":""},null,null,0,0,0,0,0,0,0,0,0,0,0,{"$f":"IF(AND($C1427>0,AK1427=\"\"),1,IF(AK1427>$C1427,1,0))","v":0},{"$f":"IF(AND($C1427>0,AL1427=\"\"),1,IF(AL1427>$C1427,1,0))","v":0}]
[1202039,"Exanteración ocular (proc. aut.)",0,null,null,null,null,0,null,null,null,null,null,null,0,null,null,0,null,null,0,null,null,0,null,null,null,null,null,null,null,null,null,null,null,null,null,null,"",null,null,null,null,null,null,null,null,null,null,null,null,null,null,null,null,null,null,null,null,null,null,null,null,null,null,null,null,null,null,null,null,null,null,null,null,null,null,null,"","","","","","","","","","","",null,null,null,null,0,0,0,0,0,0,0,0,0,0,0]
[1202046,"Herida corneal o corneo-escleral o dehiscencia de sutura",0,null,null,null,null,0,null,null,null,null,null,null,0,null,null,0,null,null,0,null,null,0,null,null,null,null,null,null,null,null,null,null,null,null,null,null,"",null,null,null,null,null,null,null,null,null,null,null,null,null,null,null,null,null,null,null,null,null,null,null,null,null,null,null,null,null,null,null,null,null,null,null,null,null,null,null,"","","","","","","","","","","",null,null,null,null,0,0,0,0,0,0,0,0,0,0,0]
[1202053,"Iridectomía periférica y/u óptica, (proc. aut.)",0,null,null,null,null,0,null,null,null,null,null,null,0,null,null,0,null,null,0,null,null,0,null,null,null,null,null,null,null,null,null,null,null,null,null,null,"",null,null,null,null,null,null,null,null,null,null,null,null,null,null,null,null,null,null,null,null,null,null,null,null,null,null,null,null,null,null,null,null,null,null,null,null,null,null,null,"","","","","","","","","","","",null,null,null,null,0,0,0,0,0,0,0,0,0,0,0]
[1202059,"Vasculopatía retinal (excepto retinopatía proliferativa) diatermo y/o crio y/o fotocoagulación ( incluye endofotocoagulación intraquirùrgica)",0,null,null,null,null,0,null,null,null,null,null,null,null,null,null,null,null,null,null,null,null,null,null,null,null,null,null,null,null,null,null,null,null,null,null,null,"",null,null,null,null,null,null,null,null,null,null,null,null,null,null,null,null,null,null,null,null,null,null,null,null,null,null,null,null,null,null,null,null,null,null,null,null,null,null,null,"","","","","","","","","","","",{"$f":"IF(AND($C1467>0,AK1467=\"\"),\" * No olvide digitar la variable Quirófano Cirugía Mayor. Digite Cero si no tiene.\",IF(AK1467>$C1467,\" *  La variable Quirófano Cirugía Mayor No puede ser mayor al Total.\",\"\"))","v":""},{"$f":"IF(AND($C1467>0,AL1467=\"\"),\" * No olvide digitar la variable Asistencia Anestésica. Digite Cero si no tiene.\",IF(AL1467>$C1467,\" *  La variable Asistencia Anestésica No puede ser mayor al Total.\",\"\"))","v":""},null,null,0,0,0,0,0,0,0,0,0,0,0,{"$f":"IF(AND($C1467>0,AK1467=\"\"),1,IF(AK1467>$C1467,1,0))","v":0},{"$f":"IF(AND($C1467>0,AL1467=\"\"),1,IF(AL1467>$C1467,1,0))","v":0}]
[1301047,"Nasofibroscopía de la deglución",{"$f":"SUM(D1488+G1488)","v":0},{"$f":"SUM(E1488:F1488)","v":0},null,null,null,null,null,null,null,null,null,null,null,null,null,null,null,null,null,null,null,null,null,null,null,null,null,null,null,null,null,null,null,null,null,null,"",null,null,null,null,null,null,null,null,null,null,null,null,null,null,null,null,null,null,null,null,null,null,null,null,null,null,null,null,null,null,null,null,null,null,null,null,null,null,null,"","","","","","","","","","","",{"$f":"IF(AND($C1488>0,AK1488=\"\"),\" * No olvide digitar la variable Quirófano Cirugía Mayor. Digite Cero si no tiene.\",IF(AK1488>$C1488,\" *  La variable Quirófano Cirugía Mayor No puede ser mayor al Total.\",\"\"))","v":""},{"$f":"IF(AND($C1488>0,AL1488=\"\"),\" * No olvide digitar la variable Asistencia Anestésica. Digite Cero si no tiene.\",IF(AL1488>$C1488,\" *  La variable Asistencia Anestésica No puede ser mayor al Total.\",\"\"))","v":""},null,null,0,0,0,0,0,0,0,0,0,0,0,{"$f":"IF(AND($C1488>0,AK1488=\"\"),1,IF(AK1488>$C1488,1,0))","v":0},{"$f":"IF(AND($C1488>0,AL1488=\"\"),1,IF(AL1488>$C1488,1,0))","v":0}]
[1301021,"Audiometría adultos",{"$f":"SUM(D1494+G1494)","v":0},{"$f":"SUM(E1494:F1494)","v":0},null,null,null,null,null,null,null,null,null,null,null,null,null,null,null,null,null,null,null,null,null,null,null,null,null,null,null,null,null,null,null,null,null,null,"",null,null,null,null,null,null,null,null,null,null,null,null,null,null,null,null,null,null,null,null,null,null,null,null,null,null,null,null,null,null,null,null,null,null,null,null,null,null,null,"","","","","","","","","","","",null,null,null,null,0,0,0,0,0,0,0,0,0,0,0]
[1301016,"Función tubaria",0,0,null,null,null,null,null,null,null,null,null,null,null,null,null,null,null,null,null,null,null,null,null,null,null,null,null,null,null,null,null,null,null,null,null,null,"",null,null,null,null,null,null,null,null,null,null,null,null,null,null,null,null,null,null,null,null,null,null,null,null,null,null,null,null,null,null,null,null,null,null,null,null,null,null,null,"","","","","","","","","","","",null,null,null,null,0,0,0,0,0,0,0,0,0,0,0]
[1301025,"Taponamiento nasal anterior (proc. aut.)",0,0,null,null,null,null,null,null,null,null,null,null,null,null,null,null,null,null,null,null,null,null,null,null,null,null,null,null,null,null,null,null,null,null,null,null,"",null,null,null,null,null,null,null,null,null,null,null,null,null,null,null,null,null,null,null,null,null,null,null,null,null,null,null,null,null,null,null,null,null,null,null,null,null,null,null,"","","","","","","","","","","","","",null,null,0,0,0,0,0,0,0,0,0,0,0,0,0]
[1301035,"Cuerpo extraño en laringe y/o tráquea, extracción de (incluye la endoscopia con tubo rígido) - En adultos",0,0,null,null,null,null,null,null,null,null,null,null,null,null,null,null,null,null,null,null,null,null,null,null,null,null,null,null,null,null,null,null,null,null,null,null,"",null,null,null,null,null,null,null,null,null,null,null,null,null,null,null,null,null,null,null,null,null,null,null,null,null,null,null,null,null,null,null,null,null,null,null,null,null,null,null,"","","","","","","","","","","","","",null,null,0,0,0,0,0,0,0,0,0,0,0,0,0]
[1301041,"Trompa de Eustaquio, insuflación instrumental (proc. aut.)",0,0,null,null,null,null,null,null,null,null,null,null,null,null,null,null,null,null,null,null,null,null,null,null,null,null,null,null,null,null,null,null,null,null,null,null,"",null,null,null,null,null,null,null,null,null,null,null,null,null,null,null,null,null,null,null,null,null,null,null,null,null,null,null,null,null,null,null,null,null,null,null,null,null,null,null,"","","","","","","","","","","","","",null,null,0,0,0,0,0,0,0,0,0,0,0,0,0]
[1302007,"Mastoidectomía c/s sección cuerda del tímpano",0,null,null,null,null,0,null,null,null,null,null,null,{"$f":"SUM(P1555:Q1555)","v":0},null,null,{"$f":"SUM(S1555:T1555)","v":0},null,null,{"$f":"SUM(V1555:W1555)","v":0},null,null,{"$f":"SUM(Y1555:Z1555)","v":0},null,null,null,null,null,null,null,null,null,null,null,null,null,null,"",null,null,null,null,null,null,null,null,null,null,null,null,null,null,null,null,null,null,null,null,null,null,null,null,null,null,null,null,null,null,null,null,null,null,null,null,null,null,null,"","","","","","","","","","","",null,null,null,null,0,0,0,0,0,0,0,0,0,0,0]
[1302077,"Implante activo de oído medio",0,null,null,null,null,0,null,null,null,null,null,null,{"$f":"SUM(P1561:Q1561)","v":0},null,null,{"$f":"SUM(S1561:T1561)","v":0},null,null,{"$f":"SUM(V1561:W1561)","v":0},null,null,{"$f":"SUM(Y1561:Z1561)","v":0},null,null,null,null,null,null,null,null,null,null,null,null,null,null,"",null,null,null,null,null,null,null,null,null,null,null,null,null,null,null,null,null,null,null,null,null,null,null,null,null,null,null,null,null,null,null,null,null,null,null,null,null,null,null,"","","","","","","","","","","",null,null,null,null,0,0,0,0,0,0,0,0,0,0,0]
[1302091,"Tumor glómico petro-tímpano-mástoídeo, tratamiento quirúrgico",0,null,null,null,null,0,null,null,null,null,null,null,0,null,null,0,null,null,0,null,null,0,null,null,null,null,null,null,null,null,null,null,null,null,null,null,"",null,null,null,null,null,null,null,null,null,null,null,null,null,null,null,null,null,null,null,null,null,null,null,null,null,null,null,null,null,null,null,null,null,null,null,null,null,null,null,"","","","","","","","","","","",null,null,null,null,0,0,0,0,0,0,0,0,0,0,0]
[1302026,"Drenaje de absceso o flegmón retrofaríngeo o faringolaríngeo",0,null,null,null,null,0,null,null,null,null,null,null,null,null,null,null,null,null,null,null,null,null,null,null,null,null,null,null,null,null,null,null,null,null,null,null,"",null,null,null,null,null,null,null,null,null,null,null,null,null,null,null,null,null,null,null,null,null,null,null,null,null,null,null,null,null,null,null,null,null,null,null,null,null,null,null,"","","","","","","","","","","","","",null,null,0,0,0,0,0,0,0,0,0,0,0,0,0]
[1302032,"Tumor maligno de las amígdalas, trat. quir.",0,null,null,null,null,0,null,null,null,null,null,null,{"$f":"SUM(P1595:Q1595)","v":0},null,null,{"$f":"SUM(S1595:T1595)","v":0},null,null,{"$f":"SUM(V1595:W1595)","v":0},null,null,{"$f":"SUM(Y1595:Z1595)","v":0},null,null,null,null,null,null,null,null,null,null,null,null,null,null,"",null,null,null,null,null,null,null,null,null,null,null,null,null,null,null,null,null,null,null,null,null,null,null,null,null,null,null,null,null,null,null,null,null,null,null,null,null,null,null,"","","","","","","","","","","",null,null,null,null,0,0,0,0,0,0,0,0,0,0,0]
[1302042,"Turbinectomía o cauterización de cornetes, cualquier técnica ",0,null,null,null,null,0,null,null,null,null,null,null,null,null,null,null,null,null,null,null,null,null,null,null,null,null,null,null,null,null,null,null,null,null,null,null,"",null,null,null,null,null,null,null,null,null,null,null,null,null,null,null,null,null,null,null,null,null,null,null,null,null,null,null,null,null,null,null,null,null,null,null,null,null,null,null,"","","","","","","","","","","",{"$f":"IF(AND($C1605>0,AK1605=\"\"),\" * No olvide digitar la variable Quirófano Cirugía Mayor. Digite Cero si no tiene.\",IF(AK1605>$C1605,\" *  La variable Quirófano Cirugía Mayor No puede ser mayor al Total.\",\"\"))","v":""},{"$f":"IF(AND($C1605>0,AL1605=\"\"),\" * No olvide digitar la variable Asistencia Anestésica. Digite Cero si no tiene.\",IF(AL1605>$C1605,\" *  La variable Asistencia Anestésica No puede ser mayor al Total.\",\"\"))","v":""},null,null,0,0,0,0,0,0,0,0,0,0,0,{"$f":"IF(AND($C1605>0,AK1605=\"\"),1,IF(AK1605>$C1605,1,0))","v":0},{"$f":"IF(AND($C1605>0,AL1605=\"\"),1,IF(AL1605>$C1605,1,0))","v":0}]
[1302058,"Vaciamiento etmoidal por vía nasal c/s polipectomía",0,null,null,null,null,0,null,null,null,null,null,null,0,null,null,0,null,null,0,null,null,0,null,null,null,null,null,null,null,null,null,null,null,null,null,null,"",null,null,null,null,null,null,null,null,null,null,null,null,null,null,null,null,null,null,null,null,null,null,null,null,null,null,null,null,null,null,null,null,null,null,null,null,null,null,null,"","","","","","","","","","","",null,null,null,null,0,0,0,0,0,0,0,0,0,0,0]
[1302098,"Tumor maligno nasosinusal y/o rinofaríngeo, tratamiento quirúrgico por vía endoscópica",0,null,null,null,null,0,null,null,null,null,null,null,0,null,null,0,null,null,0,null,null,0,null,null,null,null,null,null,null,null,null,null,null,null,null,null,"",null,null,null,null,null,null,null,null,null,null,null,null,null,null,null,null,null,null,null,null,null,null,null,null,null,null,null,null,null,null,null,null,null,null,null,null,null,null,null,"","","","","","","","","","","",null,null,null,null,0,0,0,0,0,0,0,0,0,0,0]
[1302066,"Laringectomía parcial o subtotal (cualquier técnica)",0,null,null,null,null,0,null,null,null,null,null,null,0,null,null,0,null,null,0,null,null,0,null,null,null,null,null,null,null,null,null,null,null,null,null,null,"",null,null,null,null,null,null,null,null,null,null,null,null,null,null,null,null,null,null,null,null,null,null,null,null,null,null,null,null,null,null,null,null,null,null,null,null,null,null,null,"","","","","","","","","","","",null,null,null,null,0,0,0,0,0,0,0,0,0,0,0]
["TOTAL ",null,{"$f":"SUM(C1548:C1655)","v":0},null,null,null,null,0,0,0,0,0,0,0,0,0,0,0,0,0,0,0,0,0,0,0,0,0,0,0,0,0,0,0,0,0,0,0]
[1402006,"Tiroidectomía total ampliada (incluye extirpación de estructuras anatómicas vecinas)",0,null,null,null,null,0,null,null,null,null,null,null,0,null,null,0,null,null,0,null,null,0,null,null,null,null,null,null,null,null,null,null,null,null,null,null,"",null,null,null,null,null,null,null,null,null,null,null,null,null,null,null,null,null,null,null,null,null,null,null,null,null,null,null,null,null,null,null,null,null,null,null,null,null,null,null,"","","","","","","","","","","",null,null,null,null,0,0,0,0,0,0,0,0,0,0,0]
[1402012,"Parotidectomía total, con disección y preservación del nervio facial.",0,null,null,null,null,0,null,null,null,null,null,null,0,null,null,0,null,null,0,null,null,0,null,null,null,null,null,null,null,null,null,null,null,null,null,null,"",null,null,null,null,null,null,null,null,null,null,null,null,null,null,null,null,null,null,null,null,null,null,null,null,null,null,null,null,null,null,null,null,null,null,null,null,null,null,null,"","","","","","","","","","","",null,null,null,null,0,0,0,0,0,0,0,0,0,0,0]
[1402029,"Resección cutánea simple (sutura primaria)",0,null,null,null,null,0,null,null,null,null,null,null,null,null,null,null,null,null,null,null,null,null,null,null,null,null,null,null,null,null,null,null,null,null,null,null,"",null,null,null,null,null,null,null,null,null,null,null,null,null,null,null,null,null,null,null,null,null,null,null,null,null,null,null,null,null,null,null,null,null,null,null,null,null,null,null,"","","","","","","","","","","",{"$f":"IF(AND($C1689>0,AK1689=\"\"),\" * No olvide digitar la variable Quirófano Cirugía Mayor. Digite Cero si no tiene.\",IF(AK1689>$C1689,\" *  La variable Quirófano Cirugía Mayor No puede ser mayor al Total.\",\"\"))","v":""},{"$f":"IF(AND($C1689>0,AL1689=\"\"),\" * No olvide digitar la variable Asistencia Anestésica. Digite Cero si no tiene.\",IF(AL1689>$C1689,\" *  La variable Asistencia Anestésica No puede ser mayor al Total.\",\"\"))","v":""},null,null,0,0,0,0,0,0,0,0,0,0,0,{"$f":"IF(AND($C1689>0,AK1689=\"\"),1,IF(AK1689>$C1689,1,0))","v":0},{"$f":"IF(AND($C1689>0,AL1689=\"\"),1,IF(AL1689>$C1689,1,0))","v":0}]
[1402039,"Maxilectomía radical ampliada (incluye exanteración orbitaria y de fosa craneal anterior o media)",0,null,null,null,null,0,null,null,null,null,null,null,0,null,null,0,null,null,0,null,null,0,null,null,null,null,null,null,null,null,null,null,null,null,null,null,"",null,null,null,null,null,null,null,null,null,null,null,null,null,null,null,null,null,null,null,null,null,null,null,null,null,null,null,null,null,null,null,null,null,null,null,null,null,null,null,"","","","","","","","","","","",null,null,null,null,0,0,0,0,0,0,0,0,0,0,0]
[1402045,"Mandibulectomía total",0,null,null,null,null,0,null,null,null,null,null,null,0,null,null,0,null,null,0,null,null,0,null,null,null,null,null,null,null,null,null,null,null,null,null,null,"",null,null,null,null,null,null,null,null,null,null,null,null,null,null,null,null,null,null,null,null,null,null,null,null,null,null,null,null,null,null,null,null,null,null,null,null,null,null,null,"","","","","","","","","","","",null,null,null,null,0,0,0,0,0,0,0,0,0,0,0]
[1402053,"Osteotomias totales del maxilar o mandibula (tipo Le Fort I o sagital de rama)",0,null,null,null,null,0,null,null,null,null,null,null,0,null,null,0,null,null,0,null,null,0,null,null,null,null,null,null,null,null,null,null,null,null,null,null,"",null,null,null,null,null,null,null,null,null,null,null,null,null,null,null,null,null,null,null,null,null,null,null,null,null,null,null,null,null,null,null,null,null,null,null,null,null,null,null,"","","","","","","","","","","",null,null,null,null,0,0,0,0,0,0,0,0,0,0,0]
[1502012,"Toma de injertos cartílago (auricular, costal o similares) c/u",0,null,null,null,null,0,null,null,null,null,null,null,null,null,null,null,null,null,null,null,null,null,null,null,null,null,null,null,null,null,null,null,null,null,null,null,"",null,null,null,null,null,null,null,null,null,null,null,null,null,null,null,null,null,null,null,null,null,null,null,null,null,null,null,null,null,null,null,null,null,null,null,null,null,null,null,"","","","","","","","","","","",{"$f":"IF(AND($C1733>0,AK1733=\"\"),\" * No olvide digitar la variable Quirófano Cirugía Mayor. Digite Cero si no tiene.\",IF(AK1733>$C1733,\" *  La variable Quirófano Cirugía Mayor No puede ser mayor al Total.\",\"\"))","v":""},{"$f":"IF(AND($C1733>0,AL1733=\"\"),\" * No olvide digitar la variable Asistencia Anestésica. Digite Cero si no tiene.\",IF(AL1733>$C1733,\" *  La variable Asistencia Anestésica No puede ser mayor al Total.\",\"\"))","v":""},null,null,0,0,0,0,0,0,0,0,0,0,0,{"$f":"IF(AND($C1733>0,AK1733=\"\"),1,IF(AK1733>$C1733,1,0))","v":0},{"$f":"IF(AND($C1733>0,AL1733=\"\"),1,IF(AL1733>$C1733,1,0))","v":0}]
[1502071,"Expansor de piel (único) segundo tiempo o retiro",0,null,null,null,null,0,null,null,null,null,null,null,0,null,null,0,null,null,0,null,null,0,null,null,null,null,null,null,null,null,null,null,null,null,null,null,"",null,null,null,null,null,null,null,null,null,null,null,null,null,null,null,null,null,null,null,null,null,null,null,null,null,null,null,null,null,null,null,null,null,null,null,null,null,null,null,"","","","","","","","","","","",null,null,null,null,0,0,0,0,0,0,0,0,0,0,0]
[1502023,"Ridectomía cérvico-facial, un lado",0,null,null,null,null,0,null,null,null,null,null,null,0,null,null,0,null,null,0,null,null,0,null,null,null,null,null,null,null,null,null,null,null,null,null,null,"",null,null,null,null,null,null,null,null,null,null,null,null,null,null,null,null,null,null,null,null,null,null,null,null,null,null,null,null,null,null,null,null,null,null,null,null,null,null,null,"","","","","","","","","","","",null,null,null,null,0,0,0,0,0,0,0,0,0,0,0]
[1502040,"Distoplasias orbitarias: movilización unilateral o vertical tiempo facial",0,null,null,null,null,0,null,null,null,null,null,null,0,null,null,0,null,null,0,null,null,0,null,null,null,null,null,null,null,null,null,null,null,null,null,null,"",null,null,null,null,null,null,null,null,null,null,null,null,null,null,null,null,null,null,null,null,null,null,null,null,null,null,null,null,null,null,null,null,null,null,null,null,null,null,null,"","","","","","","","","","","",null,null,null,null,0,0,0,0,0,0,0,0,0,0,0]
[1502046,"Movilización orbitaria intracraneana, tiempo facial",0,null,null,null,null,0,null,null,null,null,null,null,0,null,null,0,null,null,0,null,null,0,null,null,null,null,null,null,null,null,null,null,null,null,null,null,"",null,null,null,null,null,null,null,null,null,null,null,null,null,null,null,null,null,null,null,null,null,null,null,null,null,null,null,null,null,null,null,null,null,null,null,null,null,null,null,"","","","","","","","","","","",null,null,null,null,0,0,0,0,0,0,0,0,0,0,0]
[1502055,"Tratamiento de escaras de decubito, con resección ósea y colgajos musculares o musculocutáneos",0,null,null,null,null,0,null,null,null,null,null,null,0,null,null,0,null,null,0,null,null,0,null,null,null,null,null,null,null,null,null,null,null,null,null,null,"",null,null,null,null,null,null,null,null,null,null,null,null,null,null,null,null,null,null,null,null,null,null,null,null,null,null,null,null,null,null,null,null,null,null,null,null,null,null,null,"","","","","","","","","","","",null,null,null,null,0,0,0,0,0,0,0,0,0,0,0]
[1601116,"Crioterapia hasta 5 lesiones por sesión",0,0,null,null,null,null,null,null,null,null,null,null,null,null,null,null,null,null,null,null,null,null,null,null,null,null,null,null,null,null,null,null,null,null,null,null,"",null,null,null,null,null,null,null,null,null,null,null,null,null,null,null,null,null,null,null,null,null,null,null,null,null,null,null,null,null,null,null,null,null,null,null,null,null,null,null,"","","","","","","","","","","",null,null,null,null,0,0,0,0,0,0,0,0,0,0,0]
["TOTAL",null,{"$f":"SUM(C1795:C1809)","v":0},{"$f":"SUM(D1795:D1809)","v":0},{"$f":"SUM(E1795:E1809)","v":0},{"$f":"SUM(F1795:F1809)","v":0},{"$f":"SUM(G1795:G1809)","v":0},null,null,null,null,null,null,null,null,null,null,null,null,null,null,null,null,null,null,null,{"$f":"SUM(AA1795:AA1809)","v":0},{"$f":"SUM(AB1795:AB1809)","v":0},{"$f":"SUM(AC1795:AC1809)","v":0},0,0,0,0,0,0,0,0,0]
[1602205,"Resto del cuerpo desde 4 y hasta 6 lesiones: extirpación, reparación o biopsia, total o parcial, de lesiones benignas cutáneas por excisión",0,null,null,null,null,0,null,null,null,null,null,null,null,null,null,null,null,null,null,null,null,null,null,null,null,null,null,null,null,null,null,null,null,null,null,null,"",null,null,null,null,null,null,null,null,null,null,null,null,null,null,null,null,null,null,null,null,null,null,null,null,null,null,null,null,null,null,null,null,null,null,null,null,null,null,null,"","","","","","","","","","","","","",null,null,0,0,0,0,0,0,0,0,0,0,0,0,0]
[1602240,"Curación por Médico, Quemadura o Similar  menor al 5% superficie corporal en pabellón",0,null,null,null,null,0,null,null,null,null,null,null,null,null,null,null,null,null,null,null,null,null,null,null,null,null,null,null,null,null,null,null,null,null,null,null,"",null,null,null,null,null,null,null,null,null,null,null,null,null,null,null,null,null,null,null,null,null,null,null,null,null,null,null,null,null,null,null,null,null,null,null,null,null,null,null,"","","","","","","","","","","","","",null,null,0,0,0,0,0,0,0,0,0,0,0,0,0]
[1701008,"Ecocardiograma bidimensional (incluye registro modo M, papel fotosensible y fotografía), en adultos o niños (proc. aut.)",0,0,null,null,null,null,null,null,null,null,null,null,null,null,null,null,null,null,null,null,null,null,null,null,null,null,null,null,null,null,null,null,null,null,null,null,"",null,null,null,null,null,null,null,null,null,null,null,null,null,null,null,null,null,null,null,null,null,null,null,null,null,null,null,null,null,null,null,null,null,null,null,null,null,null,null,"","","","","","","","","","","",null,null,null,null,0,0,0,0,0,0,0,0,0,0,0]
[1701022,"Aortografía, en adultos o niños (Incluye proc. rad.)",0,0,null,null,null,null,null,null,null,null,null,null,null,null,null,null,null,null,null,null,null,null,null,null,null,null,null,null,null,null,null,null,null,null,null,null,"",null,null,null,null,null,null,null,null,null,null,null,null,null,null,null,null,null,null,null,null,null,null,null,null,null,null,null,null,null,null,null,null,null,null,null,null,null,null,null,"","","","","","","","","","","","","",null,null,0,0,0,0,0,0,0,0,0,0,0,0,0]
[1701142,"Valvuloplastía aórtica y/o pulmonar c/u (incl. proc. radiológico,  incluye balón)",0,0,null,null,null,null,null,null,null,null,null,null,null,null,null,null,null,null,null,null,null,null,null,null,null,null,null,null,null,null,null,null,null,null,null,null,"",null,null,null,null,null,null,null,null,null,null,null,null,null,null,null,null,null,null,null,null,null,null,null,null,null,null,null,null,null,null,null,null,null,null,null,null,null,null,null,"","","","","","","","","","","","","",null,null,0,0,0,0,0,0,0,0,0,0,0,0,0]
[1701039,"Trombólisis arterial periférica",0,0,null,null,null,null,null,null,null,null,null,null,null,null,null,null,null,null,null,null,null,null,null,null,null,null,null,null,null,null,null,null,null,null,null,null,"",null,null,null,null,null,null,null,null,null,null,null,null,null,null,null,null,null,null,null,null,null,null,null,null,null,null,null,null,null,null,null,null,null,null,null,null,null,null,null,"","","","","","","","","","","",null,null,null,null,0,0,0,0,0,0,0,0,0,0,0]
[1701061,"Arteriografía selectiva o superselectiva pulmonar en adultos o niños (incl. proc. rad.)",0,0,null,null,null,null,null,null,null,null,null,null,null,null,null,null,null,null,null,null,null,null,null,null,null,null,null,null,null,null,null,null,null,null,null,null,"",null,null,null,null,null,null,null,null,null,null,null,null,null,null,null,null,null,null,null,null,null,null,null,null,null,null,null,null,null,null,null,null,null,null,null,null,null,null,null,"","","","","","","","","","","","","",null,null,0,0,0,0,0,0,0,0,0,0,0,0,0]
[1701079,"Retiro de reservorio subcutáneo (catéter de quimioterapia) ",0,0,null,null,null,null,null,null,null,null,null,null,null,null,null,null,null,null,null,null,null,null,null,null,null,null,null,null,null,null,null,null,null,null,null,null,"",null,null,null,null,null,null,null,null,null,null,null,null,null,null,null,null,null,null,null,null,null,null,null,null,null,null,null,null,null,null,null,null,null,null,null,null,null,null,null,"","","","","","","","","","","","","",null,null,0,0,0,0,0,0,0,0,0,0,0,0,0]
["CIRUGÍA CARDIOVASCULAR                                   "]
[1703008,"Aneurismas periféricos, trat. quir.",0,null,null,null,null,0,null,null,null,null,null,null,0,null,null,0,null,null,0,null,null,0,null,null,null,null,null,null,null,null,null,null,null,null,null,null,"",null,null,null,null,null,null,null,null,null,null,null,null,null,null,null,null,null,null,null,null,null,null,null,null,null,null,null,null,null,null,null,null,null,null,null,null,null,null,null,"","","","","","","","","","","",null,null,null,null,0,0,0,0,0,0,0,0,0,0,0]
[1703015,"Endarterectomía femoral común, superficial o profunda, poplítea u otras c/s injerto (proc. aut.)",0,null,null,null,null,0,null,null,null,null,null,null,0,null,null,0,null,null,0,null,null,0,null,null,null,null,null,null,null,null,null,null,null,null,null,null,"",null,null,null,null,null,null,null,null,null,null,null,null,null,null,null,null,null,null,null,null,null,null,null,null,null,null,null,null,null,null,null,null,null,null,null,null,null,null,null,"","","","","","","","","","","",null,null,null,null,0,0,0,0,0,0,0,0,0,0,0]
[1703029,"Resección cutáneo-aponeurótica unilateral (incluye fasciotomía interna o posterior)",0,null,null,null,null,0,null,null,null,null,null,null,0,null,null,0,null,null,0,null,null,0,null,null,null,null,null,null,null,null,null,null,null,null,null,null,"",null,null,null,null,null,null,null,null,null,null,null,null,null,null,null,null,null,null,null,null,null,null,null,null,null,null,null,null,null,null,null,null,null,null,null,null,null,null,null,"","","","","","","","","","","",null,null,null,null,0,0,0,0,0,0,0,0,0,0,0]
[1703035,"Biopsia quir. ganglionar (cualquier región periférica superficial o profunda) (proc. aut.)",0,null,null,null,null,0,null,null,null,null,null,null,null,null,null,null,null,null,null,null,null,null,null,null,null,null,null,null,null,null,null,null,null,null,null,null,"",null,null,null,null,null,null,null,null,null,null,null,null,null,null,null,null,null,null,null,null,null,null,null,null,null,null,null,null,null,null,null,null,null,null,null,null,null,null,null,"","","","","","","","","","","",{"$f":"IF(AND($C1954>0,AK1954=\"\"),\" * No olvide digitar la variable Quirófano Cirugía Mayor. Digite Cero si no tiene.\",IF(AK1954>$C1954,\" *  La variable Quirófano Cirugía Mayor No puede ser mayor al Total.\",\"\"))","v":""},{"$f":"IF(AND($C1954>0,AL1954=\"\"),\" * No olvide digitar la variable Asistencia Anestésica. Digite Cero si no tiene.\",IF(AL1954>$C1954,\" *  La variable Asistencia Anestésica No puede ser mayor al Total.\",\"\"))","v":""},null,null,0,0,0,0,0,0,0,0,0,0,0,{"$f":"IF(AND($C1954>0,AK1954=\"\"),1,IF(AK1954>$C1954,1,0))","v":0},{"$f":"IF(AND($C1954>0,AL1954=\"\"),1,IF(AL1954>$C1954,1,0))","v":0}]
[1703068,"Resección ganglios mediastínicos por toracotomía",0,null,null,null,null,0,null,null,null,null,null,null,0,null,null,0,null,null,0,null,null,0,null,null,null,null,null,null,null,null,null,null,null,null,null,null,"",null,null,null,null,null,null,null,null,null,null,null,null,null,null,null,null,null,null,null,null,null,null,null,null,null,null,null,null,null,null,null,null,null,null,null,null,null,null,null,"","","","","","","","","","","",null,null,null,null,0,0,0,0,0,0,0,0,0,0,0]
[1703053,"Implantación de marcapaso c/electrod. intraven. o epicárdico (no incluye el valor de la prótesis)",0,null,null,null,null,0,null,null,null,null,null,null,0,null,null,0,null,null,0,null,null,0,null,null,null,null,null,null,null,null,null,null,null,null,null,null,"",null,null,null,null,null,null,null,null,null,null,null,null,null,null,null,null,null,null,null,null,null,null,null,null,null,null,null,null,null,null,null,null,null,null,null,null,null,null,null,"","","","","","","","","","","",null,null,null,null,0,0,0,0,0,0,0,0,0,0,0]
[1703061,"De complejidad mayor: incluye reemplazo valvular múltiple, tres o más puentes aortocoronarios y/o anastomosis con arteria mamaria, corrección de cardiopatías congénitas complejas (por ejemplo: Fallot; atresia tricuspídea; doble salida del ventrículo derecho; transposición grandes vasos; ventrículo único o similares), aneurisma aórtico torácico, trasplante cardíaco y cualquier operación cardíaca en lactantes",0,null,null,null,null,0,null,null,null,null,null,null,0,null,null,0,null,null,0,null,null,0,null,null,null,null,null,null,null,null,null,null,null,null,null,null,"",null,null,null,null,null,null,null,null,null,null,null,null,null,null,null,null,null,null,null,null,null,null,null,null,null,null,null,null,null,null,null,null,null,null,null,null,null,null,null,"","","","","","","","","","","",null,null,null,null,0,0,0,0,0,0,0,0,0,0,0]
[1704005,"Resección de costillas y/o pared costal y/o cartílago y/o esternón s/plastía (proc. aut.)",0,null,null,null,null,0,null,null,null,null,null,null,0,null,null,0,null,null,0,null,null,0,null,null,null,null,null,null,null,null,null,null,null,null,null,null,"",null,null,null,null,null,null,null,null,null,null,null,null,null,null,null,null,null,null,null,null,null,null,null,null,null,null,null,null,null,null,null,null,null,null,null,null,null,null,null,"","","","","","","","","","","",null,null,null,null,0,0,0,0,0,0,0,0,0,0,0]
[1704015,"Timectomía  vía torácica medioesternal",0,null,null,null,null,0,null,null,null,null,null,null,0,null,null,0,null,null,0,null,null,0,null,null,null,null,null,null,null,null,null,null,null,null,null,null,"",null,null,null,null,null,null,null,null,null,null,null,null,null,null,null,null,null,null,null,null,null,null,null,null,null,null,null,null,null,null,null,null,null,null,null,null,null,null,null,"","","","","","","","","","","",null,null,null,null,0,0,0,0,0,0,0,0,0,0,0]
[1704019,"Heridas traumáticas del diafragma, trat. quir.",0,null,null,null,null,0,null,null,null,null,null,null,0,null,null,0,null,null,0,null,null,0,null,null,null,null,null,null,null,null,null,null,null,null,null,null,"",null,null,null,null,null,null,null,null,null,null,null,null,null,null,null,null,null,null,null,null,null,null,null,null,null,null,null,null,null,null,null,null,null,null,null,null,null,null,null,"","","","","","","","","","","",null,null,null,null,0,0,0,0,0,0,0,0,0,0,0]
[1704068,"Heridas traumáticas, trat. quir. por vía videotoracoscopia",{"$f":"SUM(I2027:N2027)","v":0},null,null,null,null,{"$f":"+I2027+J2027","v":0},null,null,null,null,null,null,{"$f":"SUM(P2027:Q2027)","v":0},null,null,{"$f":"SUM(S2027:T2027)","v":0},null,null,{"$f":"SUM(V2027:W2027)","v":0},null,null,{"$f":"SUM(Y2027:Z2027)","v":0},null,null,null,null,null,null,null,null,null,null,null,null,null,null,"",null,null,null,null,null,null,null,null,null,null,null,null,null,null,null,null,null,null,null,null,null,null,null,null,null,null,null,null,null,null,null,null,null,null,null,null,null,null,null,"","","","","","","","","","","",null,null,null,null,0,0,0,0,0,0,0,0,0,0,0]
[1704087,"Cirugía del mesotelioma maligno",0,null,null,null,null,0,null,null,null,null,null,null,0,null,null,0,null,null,0,null,null,0,null,null,null,null,null,null,null,null,null,null,null,null,null,null,"",null,null,null,null,null,null,null,null,null,null,null,null,null,null,null,null,null,null,null,null,null,null,null,null,null,null,null,null,null,null,null,null,null,null,null,null,null,null,null,"","","","","","","","","","","",null,null,null,null,0,0,0,0,0,0,0,0,0,0,0]
[1704040,"Lobectomía o bilobectomía",0,null,null,null,null,0,null,null,null,null,null,null,0,null,null,0,null,null,0,null,null,0,null,null,null,null,null,null,null,null,null,null,null,null,null,null,"",null,null,null,null,null,null,null,null,null,null,null,null,null,null,null,null,null,null,null,null,null,null,null,null,null,null,null,null,null,null,null,null,null,null,null,null,null,null,null,"","","","","","","","","","","",null,null,null,null,0,0,0,0,0,0,0,0,0,0,0]
[1704094,"Extracción cuerpo extraño esofágico por vía videotoracoscopica",0,null,null,null,null,0,null,null,null,null,null,null,0,null,null,0,null,null,0,null,null,0,null,null,null,null,null,null,null,null,null,null,null,null,null,null,"",null,null,null,null,null,null,null,null,null,null,null,null,null,null,null,null,null,null,null,null,null,null,null,null,null,null,null,null,null,null,null,null,null,null,null,null,null,null,null,"","","","","","","","","","","",null,null,null,null,0,0,0,0,0,0,0,0,0,0,0]
[1704050,"Tumores benignos y/o quistes esofágicos,  trat. quir., vía cervical",0,null,null,null,null,0,null,null,null,null,null,null,0,null,null,0,null,null,0,null,null,0,null,null,null,null,null,null,null,null,null,null,null,null,null,null,"",null,null,null,null,null,null,null,null,null,null,null,null,null,null,null,null,null,null,null,null,null,null,null,null,null,null,null,null,null,null,null,null,null,null,null,null,null,null,null,"","","","","","","","","","","",null,null,null,null,0,0,0,0,0,0,0,0,0,0,0]
[1704076,"Atresia esofágica con fístula traqueoesofágica por toracoscopia",{"$f":"SUM(I2088:N2088)","v":0},null,null,null,null,{"$f":"+I2088+J2088","v":0},null,null,null,null,null,null,{"$f":"SUM(P2088:Q2088)","v":0},null,null,{"$f":"SUM(S2088:T2088)","v":0},null,null,{"$f":"SUM(V2088:W2088)","v":0},null,null,{"$f":"SUM(Y2088:Z2088)","v":0},null,null,null,null,null,null,null,null,null,null,null,null,null,null,"",null,null,null,null,null,null,null,null,null,null,null,null,null,null,null,null,null,null,null,null,null,null,null,null,null,null,null,null,null,null,null,null,null,null,null,null,null,null,null,"","","","","","","","","","","",null,null,null,null,0,0,0,0,0,0,0,0,0,0,0]
[1707051,"Curva dosis respuesta a broncodilatadores.",0,0,null,null,null,null,null,null,null,null,null,null,null,null,null,null,null,null,null,null,null,null,null,null,null,null,null,null,null,null,null,null,null,null,null,null,"",null,null,null,null,null,null,null,null,null,null,null,null,null,null,null,null,null,null,null,null,null,null,null,null,null,null,null,null,null,null,null,null,null,null,null,null,null,null,null,"","","","","","","","","","","",null,null,null,null,0,0,0,0,0,0,0,0,0,0,0]
[1707011,"Curva de relación flujo-volumen basal",0,0,null,null,null,null,null,null,null,null,null,null,null,null,null,null,null,null,null,null,null,null,null,null,null,null,null,null,null,null,null,null,null,null,null,null,"",null,null,null,null,null,null,null,null,null,null,null,null,null,null,null,null,null,null,null,null,null,null,null,null,null,null,null,null,null,null,null,null,null,null,null,null,null,null,null,"","","","","","","","","","","",null,null,null,null,0,0,0,0,0,0,0,0,0,0,0]
[1707060,"Colocación de stent endobronquial por broncoscopía",0,0,null,null,null,null,null,null,null,null,null,null,null,null,null,null,null,null,null,null,null,null,null,null,null,null,null,null,null,null,null,null,null,null,null,null,"",null,null,null,null,null,null,null,null,null,null,null,null,null,null,null,null,null,null,null,null,null,null,null,null,null,null,null,null,null,null,null,null,null,null,null,null,null,null,null,"","","","","","","","","","","","","",null,null,0,0,0,0,0,0,0,0,0,0,0,0,0]
[1707056,"Endosonografía bronquial (EBUS)",0,0,null,null,null,null,null,null,null,null,null,null,null,null,null,null,null,null,null,null,null,null,null,null,null,null,null,null,null,null,null,null,null,null,null,null,"",null,null,null,null,null,null,null,null,null,null,null,null,null,null,null,null,null,null,null,null,null,null,null,null,null,null,null,null,null,null,null,null,null,null,null,null,null,null,null,"","","","","","","","","","","",null,null,null,null,0,0,0,0,0,0,0,0,0,0,0]
[1801037,"Ureasa, test de (para Helicobacter pylori) o similar",{"$f":"SUM(D2138+G2138)","v":0},{"$f":"SUM(E2138:F2138)","v":0},null,null,null,null,null,null,null,null,null,null,null,null,null,null,null,null,null,null,null,null,null,null,null,null,null,null,null,null,null,null,null,null,null,null,"",null,null,null,null,null,null,null,null,null,null,null,null,null,null,null,null,null,null,null,null,null,null,null,null,null,null,null,null,null,null,null,null,null,null,null,null,null,null,null,"","","","","","","","","","","","","",null,null,0,0,0,0,0,0,0,0,0,0,0,0,0]
[1801025,"Dilatación de estenosis benignas o malignas del tracto digestivo por balón",0,0,null,null,null,null,null,null,null,null,null,null,null,null,null,null,null,null,null,null,null,null,null,null,null,null,null,null,null,null,null,null,null,null,null,null,"",null,null,null,null,null,null,null,null,null,null,null,null,null,null,null,null,null,null,null,null,null,null,null,null,null,null,null,null,null,null,null,null,null,null,null,null,null,null,null,"","","","","","","","","","","","","",null,null,0,0,0,0,0,0,0,0,0,0,0,0,0]
[1801035,"Ligadura hemorroides",0,0,null,null,null,null,null,null,null,null,null,null,null,null,null,null,null,null,null,null,null,null,null,null,null,null,null,null,null,null,null,null,null,null,null,null,"",null,null,null,null,null,null,null,null,null,null,null,null,null,null,null,null,null,null,null,null,null,null,null,null,null,null,null,null,null,null,null,null,null,null,null,null,null,null,null,"","","","","","","","","","","","","",null,null,0,0,0,0,0,0,0,0,0,0,0,0,0]
[1801046,"Hemorroidopexia grapada",0,0,null,null,null,null,null,null,null,null,null,null,null,null,null,null,null,null,null,null,null,null,null,null,null,null,null,null,null,null,null,null,null,null,null,null,"",null,null,null,null,null,null,null,null,null,null,null,null,null,null,null,null,null,null,null,null,null,null,null,null,null,null,null,null,null,null,null,null,null,null,null,null,null,null,null,"","","","","","","","","","","","","",null,null,0,0,0,0,0,0,0,0,0,0,0,0,0]
[1801056,"Dilatación de acalasia",0,0,null,null,null,null,null,null,null,null,null,null,null,null,null,null,null,null,null,null,null,null,null,null,null,null,null,null,null,null,null,null,null,null,null,null,"",null,null,null,null,null,null,null,null,null,null,null,null,null,null,null,null,null,null,null,null,null,null,null,null,null,null,null,null,null,null,null,null,null,null,null,null,null,null,null,"","","","","","","","","","","","","",null,null,0,0,0,0,0,0,0,0,0,0,0,0,0]
[1802004,"Laparotomía exploradora, c/s liberación de adherencias, c/s drenaje, c/s biopsias como proc. aut. o como resultado de una herida penetrante abdominal no complicada o de un hemoperitoneo postoperatorio o como tratamiento de una peritonitis (laparostomía contenida -máximo cuatro-, resuturas, etc.)",0,null,null,null,null,0,null,null,null,null,null,null,0,null,null,0,null,null,0,null,null,0,null,null,null,null,null,null,null,null,null,null,null,null,null,null,"",null,null,null,null,null,null,null,null,null,null,null,null,null,null,null,null,null,null,null,null,null,null,null,null,null,null,null,null,null,null,null,null,null,null,null,null,null,null,null,"","","","","","","","","","","",null,null,null,null,0,0,0,0,0,0,0,0,0,0,0]
[1802009,"Tumor y/o quiste retroperitoneal",0,null,null,null,null,0,null,null,null,null,null,null,0,null,null,0,null,null,0,null,null,0,null,null,null,null,null,null,null,null,null,null,null,null,null,null,"",null,null,null,null,null,null,null,null,null,null,null,null,null,null,null,null,null,null,null,null,null,null,null,null,null,null,null,null,null,null,null,null,null,null,null,null,null,null,null,"","","","","","","","","","","",null,null,null,null,0,0,0,0,0,0,0,0,0,0,0]
[1802018,"Gastrectomía subtotal sin disección ganglionar",0,null,null,null,null,0,null,null,null,null,null,null,0,null,null,0,null,null,0,null,null,0,null,null,null,null,null,null,null,null,null,null,null,null,null,null,"",null,null,null,null,null,null,null,null,null,null,null,null,null,null,null,null,null,null,null,null,null,null,null,null,null,null,null,null,null,null,null,null,null,null,null,null,null,null,null,"","","","","","","","","","","",null,null,null,null,0,0,0,0,0,0,0,0,0,0,0]
[1802027,"Colangioenteroanastomosis intrahepática",0,null,null,null,null,0,null,null,null,null,null,null,0,null,null,0,null,null,0,null,null,0,null,null,null,null,null,null,null,null,null,null,null,null,null,null,"",null,null,null,null,null,null,null,null,null,null,null,null,null,null,null,null,null,null,null,null,null,null,null,null,null,null,null,null,null,null,null,null,null,null,null,null,null,null,null,"","","","","","","","","","","",null,null,null,null,0,0,0,0,0,0,0,0,0,0,0]
[1802032,"Colédoco o hepatoenteroanastomosis",0,null,null,null,null,0,null,null,null,null,null,null,0,null,null,0,null,null,0,null,null,0,null,null,null,null,null,null,null,null,null,null,null,null,null,null,"",null,null,null,null,null,null,null,null,null,null,null,null,null,null,null,null,null,null,null,null,null,null,null,null,null,null,null,null,null,null,null,null,null,null,null,null,null,null,null,"","","","","","","","","","","",null,null,null,null,0,0,0,0,0,0,0,0,0,0,0]
[1802040,"Herida traumática de hígado y/o vía biliar, trat. quir.",0,null,null,null,null,0,null,null,null,null,null,null,0,null,null,0,null,null,0,null,null,0,null,null,null,null,null,null,null,null,null,null,null,null,null,null,"",null,null,null,null,null,null,null,null,null,null,null,null,null,null,null,null,null,null,null,null,null,null,null,null,null,null,null,null,null,null,null,null,null,null,null,null,null,null,null,"","","","","","","","","","","",null,null,null,null,0,0,0,0,0,0,0,0,0,0,0]
[1802050,"Esplenectomía total o parcial (proc. aut.)",0,null,null,null,null,0,null,null,null,null,null,null,0,null,null,0,null,null,0,null,null,0,null,null,null,null,null,null,null,null,null,null,null,null,null,null,"",null,null,null,null,null,null,null,null,null,null,null,null,null,null,null,null,null,null,null,null,null,null,null,null,null,null,null,null,null,null,null,null,null,null,null,null,null,null,null,"","","","","","","","","","","",null,null,null,null,0,0,0,0,0,0,0,0,0,0,0]
[1802066,"Oclusión intestinal sin resección",0,null,null,null,null,0,null,null,null,null,null,null,0,null,null,0,null,null,0,null,null,0,null,null,null,null,null,null,null,null,null,null,null,null,null,null,"",null,null,null,null,null,null,null,null,null,null,null,null,null,null,null,null,null,null,null,null,null,null,null,null,null,null,null,null,null,null,null,null,null,null,null,null,null,null,null,"","","","","","","","","","","",null,null,null,null,0,0,0,0,0,0,0,0,0,0,0]
[1802068,"Colectomía total abdominal",0,null,null,null,null,0,null,null,null,null,null,null,0,null,null,0,null,null,0,null,null,0,null,null,null,null,null,null,null,null,null,null,null,null,null,null,"",null,null,null,null,null,null,null,null,null,null,null,null,null,null,null,null,null,null,null,null,null,null,null,null,null,null,null,null,null,null,null,null,null,null,null,null,null,null,null,"","","","","","","","","","","",null,null,null,null,0,0,0,0,0,0,0,0,0,0,0]
[1802099,"Reconstitución de transito post enterocolitis neonatal con una entero-entero anastomosis",0,null,null,null,null,0,null,null,null,null,null,null,0,null,null,0,null,null,0,null,null,0,null,null,null,null,null,null,null,null,null,null,null,null,null,null,"",null,null,null,null,null,null,null,null,null,null,null,null,null,null,null,null,null,null,null,null,null,null,null,null,null,null,null,null,null,null,null,null,null,null,null,null,null,null,null,"","","","","","","","","","","",null,null,null,null,0,0,0,0,0,0,0,0,0,0,0]
[1803002,"Absceso anorrectal simple, trat. quir.",{"$f":"SUM(I2309:N2309)","v":0},null,null,null,null,0,null,null,null,null,null,null,null,null,null,null,null,null,null,null,null,null,null,null,null,null,null,null,null,null,null,null,null,null,null,null,"",null,null,null,null,null,null,null,null,null,null,null,null,null,null,null,null,null,null,null,null,null,null,null,null,null,null,null,null,null,null,null,null,null,null,null,null,null,null,null,"","","","","","","","","","","",{"$f":"IF(AND($C2309>0,AK2309=\"\"),\" * No olvide digitar la variable Quirófano Cirugía Mayor. Digite Cero si no tiene.\",IF(AK2309>$C2309,\" *  La variable Quirófano Cirugía Mayor No puede ser mayor al Total.\",\"\"))","v":""},{"$f":"IF(AND($C2309>0,AL2309=\"\"),\" * No olvide digitar la variable Asistencia Anestésica. Digite Cero si no tiene.\",IF(AL2309>$C2309,\" *  La variable Asistencia Anestésica No puede ser mayor al Total.\",\"\"))","v":""},null,null,0,0,0,0,0,0,0,0,0,0,0,{"$f":"IF(AND($C2309>0,AK2309=\"\"),1,IF(AK2309>$C2309,1,0))","v":0},{"$f":"IF(AND($C2309>0,AL2309=\"\"),1,IF(AL2309>$C2309,1,0))","v":0}]
[1803009,"Desgarros y heridas anorrectales sin compromiso del esfínter",0,null,null,null,null,0,null,null,null,null,null,null,0,null,null,0,null,null,0,null,null,0,null,null,null,null,null,null,null,null,null,null,null,null,null,null,"",null,null,null,null,null,null,null,null,null,null,null,null,null,null,null,null,null,null,null,null,null,null,null,null,null,null,null,null,null,null,null,null,null,null,null,null,null,null,null,"","","","","","","","","","","",null,null,null,null,0,0,0,0,0,0,0,0,0,0,0]
[1803031,"Quiste sacrocoxígeo, trat. quir.",0,null,null,null,null,0,null,null,null,null,null,null,0,null,null,0,null,null,0,null,null,0,null,null,null,null,null,null,null,null,null,null,null,null,null,null,"",null,null,null,null,null,null,null,null,null,null,null,null,null,null,null,null,null,null,null,null,null,null,null,null,null,null,null,null,null,null,null,null,null,null,null,null,null,null,null,"","","","","","","","","","","",null,null,null,null,0,0,0,0,0,0,0,0,0,0,0]
[1803032,"Resección abdómino-perineal de ano y recto (2 equipos)",0,null,null,null,null,0,null,null,null,null,null,null,0,null,null,0,null,null,0,null,null,0,null,null,null,null,null,null,null,null,null,null,null,null,null,null,"",null,null,null,null,null,null,null,null,null,null,null,null,null,null,null,null,null,null,null,null,null,null,null,null,null,null,null,null,null,null,null,null,null,null,null,null,null,null,null,"","","","","","","","","","","",null,null,null,null,0,0,0,0,0,0,0,0,0,0,0]
[1901002,"Cistoscopía con o sin sondeo de uno o ambos uréteres, con o sin biopsia ",0,0,null,null,null,null,null,null,null,null,null,null,null,null,null,null,null,null,null,null,null,null,null,null,null,null,null,null,null,null,null,null,null,null,null,null,"",null,null,null,null,null,null,null,null,null,null,null,null,null,null,null,null,null,null,null,null,null,null,null,null,null,null,null,null,null,null,null,null,null,null,null,null,null,null,null,"","","","","","","","","","","","","",null,null,0,0,0,0,0,0,0,0,0,0,0,0,0]
["01012046","Plasmaferesis en patología renal",0,0,null,null,null,null,null,null,null,null,null,null,null,null,null,null,null,null,null,null,null,null,null,null,null,null,null,null,null,null,null,null,null,null,null,null,"",null,null,null,null,null,null,null,null,null,null,null,null,null,null,null,null,null,null,null,null,null,null,null,null,null,null,null,null,null,null,null,null,null,null,null,null,null,null,null,"","","","","","","","","","","",null,null,null,null,0,0,0,0,0,0,0,0,0,0,0]
[1901126,"Instalación de Catéter para Peritoneodiálisis",0,0,null,null,null,null,null,null,null,null,null,null,null,null,null,null,null,null,null,null,null,null,null,null,null,null,null,null,null,null,null,null,null,null,null,null,"",null,null,null,null,null,null,null,null,null,null,null,null,null,null,null,null,null,null,null,null,null,null,null,null,null,null,null,null,null,null,null,null,null,null,null,null,null,null,null,"","","","","","","","","","","",{"$f":"IF(AND($C2376>0,AK2376=\"\"),\" * No olvide digitar la variable Quirófano Cirugía Mayor. Digite Cero si no tiene.\",IF(AK2376>$C2376,\" *  La variable Quirófano Cirugía Mayor No puede ser mayor al Total.\",\"\"))","v":""},{"$f":"IF(AND($C2376>0,AL2376=\"\"),\" * No olvide digitar la variable Asistencia Anestésica. Digite Cero si no tiene.\",IF(AL2376>$C2376,\" *  La variable Asistencia Anestésica No puede ser mayor al Total.\",\"\"))","v":""},null,null,0,0,0,0,0,0,0,0,0,0,0,{"$f":"IF(AND($C2376>0,AK2376=\"\"),1,IF(AK2376>$C2376,1,0))","v":0},{"$f":"IF(AND($C2376>0,AL2376=\"\"),1,IF(AL2376>$C2376,1,0))","v":0}]
[1901033,"Revisión de catéter de peritoneodiálisis laparoscopia",{"$f":"SUM(D2382+G2382)","v":0},{"$f":"SUM(E2382:F2382)","v":0},null,null,null,null,null,null,null,null,null,null,null,null,null,null,null,null,null,null,null,null,null,null,null,null,null,null,null,null,null,null,null,null,null,null,"",null,null,null,null,null,null,null,null,null,null,null,null,null,null,null,null,null,null,null,null,null,null,null,null,null,null,null,null,null,null,null,null,null,null,null,null,null,null,null,"","","","","","","","","","","",{"$f":"IF(AND($C2382>0,AK2382=\"\"),\" * No olvide digitar la variable Quirófano Cirugía Mayor. Digite Cero si no tiene.\",IF(AK2382>$C2382,\" *  La variable Quirófano Cirugía Mayor No puede ser mayor al Total.\",\"\"))","v":""},{"$f":"IF(AND($C2382>0,AL2382=\"\"),\" * No olvide digitar la variable Asistencia Anestésica. Digite Cero si no tiene.\",IF(AL2382>$C2382,\" *  La variable Asistencia Anestésica No puede ser mayor al Total.\",\"\"))","v":""},null,null,0,0,0,0,0,0,0,0,0,0,0,0,0]
[1902021,"Urétero o nefro-litotomía endoscópica c/ureteroscopia rígida o flexible, con o sin fragmentación",0,null,null,null,null,0,null,null,null,null,null,null,0,null,null,0,null,null,0,null,null,0,null,null,null,null,null,null,null,null,null,null,null,null,null,null,"",null,null,null,null,null,null,null,null,null,null,null,null,null,null,null,null,null,null,null,null,null,null,null,null,null,null,null,null,null,null,null,null,null,null,null,null,null,null,null,"","","","","","","","","","","",null,null,null,null,0,0,0,0,0,0,0,0,0,0,0]
[1902024,"Ureterostomía bilateral: vesical, cutánea o intestinal",0,null,null,null,null,0,null,null,null,null,null,null,0,null,null,0,null,null,0,null,null,0,null,null,null,null,null,null,null,null,null,null,null,null,null,null,"",null,null,null,null,null,null,null,null,null,null,null,null,null,null,null,null,null,null,null,null,null,null,null,null,null,null,null,null,null,null,null,null,null,null,null,null,null,null,null,"","","","","","","","","","","",null,null,null,null,0,0,0,0,0,0,0,0,0,0,0]
[1902037,"Resección endoscópica de cáncer vesical",0,null,null,null,null,0,null,null,null,null,null,null,0,null,null,0,null,null,0,null,null,0,null,null,null,null,null,null,null,null,null,null,null,null,null,null,"",null,null,null,null,null,null,null,null,null,null,null,null,null,null,null,null,null,null,null,null,null,null,null,null,null,null,null,null,null,null,null,null,null,null,null,null,null,null,null,"","","","","","","","","","","",null,null,null,null,0,0,0,0,0,0,0,0,0,0,0]
[1902057,"Prostatectomía radical por cáncer prostático, vía abierta, laparoscópica o robótica, incluye linfadenectomía si corresponde",0,null,null,null,null,0,null,null,null,null,null,null,0,null,null,0,null,null,0,null,null,0,null,null,null,null,null,null,null,null,null,null,null,null,null,null,"",null,null,null,null,null,null,null,null,null,null,null,null,null,null,null,null,null,null,null,null,null,null,null,null,null,null,null,null,null,null,null,null,null,null,null,null,null,null,null,"","","","","","","","","","","",null,null,null,null,0,0,0,0,0,0,0,0,0,0,0]
[1902064,"Hidrocele y/o hematocele, incluye quistes cordón y/o epidídimo y/o hidatidectomías y/o cirugía intravaginal del mismo lado ",0,null,null,null,null,0,null,null,null,null,null,null,0,null,null,0,null,null,0,null,null,0,null,null,null,null,null,null,null,null,null,null,null,null,null,null,"",null,null,null,null,null,null,null,null,null,null,null,null,null,null,null,null,null,null,null,null,null,null,null,null,null,null,null,null,null,null,null,null,null,null,null,null,null,null,null,"","","","","","","","","","","",null,null,null,null,0,0,0,0,0,0,0,0,0,0,0]
[1902074,"Exploración escroto agudo. Incluye hematocele por trauma, destorsión y fijación testículo, hidatidectomía  y eversión bilateral si corresponde ",0,null,null,null,null,0,null,null,null,null,null,null,0,null,null,0,null,null,0,null,null,0,null,null,null,null,null,null,null,null,null,null,null,null,null,null,"",null,null,null,null,null,null,null,null,null,null,null,null,null,null,null,null,null,null,null,null,null,null,null,null,null,null,null,null,null,null,null,null,null,null,null,null,null,null,null,"","","","","","","","","","","",null,null,null,null,0,0,0,0,0,0,0,0,0,0,0]
[2001009,"Monitoreo basal con informe",0,0,null,null,null,null,null,null,null,null,null,null,null,null,null,null,null,null,null,null,null,null,null,null,null,null,null,null,null,null,null,null,null,null,null,null,"",null,null,null,null,null,null,null,null,null,null,null,null,null,null,null,null,null,null,null,null,null,null,null,null,null,null,null,null,null,null,null,null,null,null,null,null,null,null,null,"","","","","","","","","","","",null,null,null,null,0,0,0,0,0,0,0,0,0,0,0]
[2001022,"Punción evacuadora de quistes mamarios, c/s toma de muestras, c/s inyección de medicamentos",0,0,null,null,null,null,null,null,null,null,null,null,null,null,null,null,null,null,null,null,null,null,null,null,null,null,null,null,null,null,null,null,null,null,null,null,"",null,null,null,null,null,null,null,null,null,null,null,null,null,null,null,null,null,null,null,null,null,null,null,null,null,null,null,null,null,null,null,null,null,null,null,null,null,null,null,"","","","","","","","","","","",{"$f":"IF(AND($C2479>0,AK2479=\"\"),\" * No olvide digitar la variable Quirófano Cirugía Mayor. Digite Cero si no tiene.\",IF(AK2479>$C2479,\" *  La variable Quirófano Cirugía Mayor No puede ser mayor al Total.\",\"\"))","v":""},{"$f":"IF(AND($C2479>0,AL2479=\"\"),\" * No olvide digitar la variable Asistencia Anestésica. Digite Cero si no tiene.\",IF(AL2479>$C2479,\" *  La variable Asistencia Anestésica No puede ser mayor al Total.\",\"\"))","v":""},null,null,0,0,0,0,0,0,0,0,0,0,0,{"$f":"IF(AND($C2479>0,AK2479=\"\"),1,IF(AK2479>$C2479,1,0))","v":0},{"$f":"IF(AND($C2479>0,AL2479=\"\"),1,IF(AL2479>$C2479,1,0))","v":0}]
[2003051,"Explante de neuroelectrodo sacro cuadripolar espiculado o revisión de bolsillo glúteo",0,0,null,null,null,null,null,null,null,null,null,null,null,null,null,null,null,null,null,null,null,null,null,null,null,null,null,null,null,null,null,null,null,null,null,null,"",null,null,null,null,null,null,null,null,null,null,null,null,null,null,null,null,null,null,null,null,null,null,null,null,null,null,null,null,null,null,null,null,null,null,null,null,null,null,null,"","","","","","","","","","","","","",null,null,0,0,0,0,0,0,0,0,0,0,0,0,0]
[2003042,"Linfadenectomía pélvica bilateral laparoscopia ",0,null,null,null,null,{"$f":"+I2504+J2504","v":0},null,null,null,null,null,null,0,null,null,0,null,null,0,null,null,0,null,null,null,null,null,null,null,null,null,null,null,null,null,null,"",null,null,null,null,null,null,null,null,null,null,null,null,null,null,null,null,null,null,null,null,null,null,null,null,null,null,null,null,null,null,null,null,null,null,null,null,null,null,null,"","","","","","","","","","","",null,null,null,null,0,0,0,0,0,0,0,0,0,0,0]
[2003006,"Esterilidad tubaria, operación plástica uni o bilateral con microcirugía",0,null,null,null,null,0,null,null,null,null,null,null,0,null,null,0,null,null,0,null,null,0,null,null,null,null,null,null,null,null,null,null,null,null,null,null,"",null,null,null,null,null,null,null,null,null,null,null,null,null,null,null,null,null,null,null,null,null,null,null,null,null,null,null,null,null,null,null,null,null,null,null,null,null,null,null,"","","","","","","","","","","",null,null,null,null,0,0,0,0,0,0,0,0,0,0,0]
[2003011,"Ligamento ancho: abscesos y/o hematomas y/o flegmones y/o quistomas y/o várices u otros, trat. quir. (proc. aut.)",0,null,null,null,null,0,null,null,null,null,null,null,0,null,null,0,null,null,0,null,null,0,null,null,null,null,null,null,null,null,null,null,null,null,null,null,"",null,null,null,null,null,null,null,null,null,null,null,null,null,null,null,null,null,null,null,null,null,null,null,null,null,null,null,null,null,null,null,null,null,null,null,null,null,null,null,"","","","","","","","","","","",null,null,null,null,0,0,0,0,0,0,0,0,0,0,0]
[2003026,"Bartolinitis, vaciamiento y drenaje (proc. aut.)",0,null,null,null,null,0,null,null,null,null,null,null,null,null,null,null,null,null,null,null,null,null,null,null,null,null,null,null,null,null,null,null,null,null,null,null,"",null,null,null,null,null,null,null,null,null,null,null,null,null,null,null,null,null,null,null,null,null,null,null,null,null,null,null,null,null,null,null,null,null,null,null,null,null,null,null,"","","","","","","","","","","",{"$f":"IF(AND($C2537>0,AK2537=\"\"),\" * No olvide digitar la variable Quirófano Cirugía Mayor. Digite Cero si no tiene.\",IF(AK2537>$C2537,\" *  La variable Quirófano Cirugía Mayor No puede ser mayor al Total.\",\"\"))","v":""},{"$f":"IF(AND($C2537>0,AL2537=\"\"),\" * No olvide digitar la variable Asistencia Anestésica. Digite Cero si no tiene.\",IF(AL2537>$C2537,\" *  La variable Asistencia Anestésica No puede ser mayor al Total.\",\"\"))","v":""},null,null,0,0,0,0,0,0,0,0,0,0,0,{"$f":"IF(AND($C2537>0,AK2537=\"\"),1,IF(AK2537>$C2537,1,0))","v":0},{"$f":"IF(AND($C2537>0,AL2537=\"\"),1,IF(AL2537>$C2537,1,0))","v":0}]
[2004006,"Cesárea c/s salpingoligadura o salpingectomía",{"$f":"SUM(I2547:N2547)","v":0},null,null,null,null,{"$f":"+I2547+J2547","v":0},null,null,null,null,null,null,{"$f":"SUM(P2547:Q2547)","v":0},null,null,{"$f":"SUM(S2547:T2547)","v":0},null,null,{"$f":"SUM(V2547:W2547)","v":0},null,null,{"$f":"SUM(Y2547:Z2547)","v":0},null,null,null,null,null,null,null,null,null,null,null,null,null,null,"",null,null,null,null,null,null,null,null,null,null,null,null,null,null,null,null,null,null,null,null,null,null,null,null,null,null,null,null,null,null,null,null,null,null,null,null,null,null,null,"","","","","","","","","","","",null,null,null,null,0,0,0,0,0,0,0,0,0,0,0]
["TOTAL",null,{"$f":"SUM(C2543:C2555)","v":0},{"$f":"SUM(D2543:D2555)","v":0},0,0,0,0,0,0,0,0,0,0,0,0,0,0,0,0,0,0,0,0,0,0,0,0,0,0,0,0,0,0,0,0,0,0,null,null,null,null,null,null,null,null,null,null,null,null,null,null,null,null,null,null,null,null,null,null,null,null,null,null,null,null,null,null,null,null,null,null,null,null,null,null,null,null,"","","","","","","","","","","",null,null,null,null,0,0,0,0,0,0,0,0,0,0,0]
[2105006,"Yeso antebraquial c/s férula digital",0,0,null,null,null,null,null,null,null,null,null,null,null,null,null,null,null,null,null,null,null,null,null,null,null,null,null,null,null,null,null,null,null,null,null,null,"",null,null,null,null,null,null,null,null,null,null,null,null,null,null,null,null,null,null,null,null,null,null,null,null,null,null,null,null,null,null,null,null,null,null,null,null,null,null,null,"","","","","","","","","","","",null,null,null,null,0,0,0,0,0,0,0,0,0,0,0]
[2104009,"Artrodesis de mano o pie c/u",0,null,null,null,null,0,null,null,null,null,null,null,null,null,null,null,null,null,null,null,null,null,null,null,null,null,null,null,null,null,null,null,null,null,null,null,"",null,null,null,null,null,null,null,null,null,null,null,null,null,null,null,null,null,null,null,null,null,null,null,null,null,null,null,null,null,null,null,null,null,null,null,null,null,null,null,"","","","","","","","","","","",{"$f":"IF(AND($C2581>0,AK2581=\"\"),\" * No olvide digitar la variable Quirófano Cirugía Mayor. Digite Cero si no tiene.\",IF(AK2581>$C2581,\" *  La variable Quirófano Cirugía Mayor No puede ser mayor al Total.\",\"\"))","v":""},{"$f":"IF(AND($C2581>0,AL2581=\"\"),\" * No olvide digitar la variable Asistencia Anestésica. Digite Cero si no tiene.\",IF(AL2581>$C2581,\" *  La variable Asistencia Anestésica No puede ser mayor al Total.\",\"\"))","v":""},null,null,0,0,0,0,0,0,0,0,0,0,0,{"$f":"IF(AND($C2581>0,AK2581=\"\"),1,IF(AK2581>$C2581,1,0))","v":0},{"$f":"IF(AND($C2581>0,AL2581=\"\"),1,IF(AL2581>$C2581,1,0))","v":0}]
[2104015,"Artrotomía hombro o cadera c/u",0,null,null,null,null,0,null,null,null,null,null,null,0,null,null,0,null,null,0,null,null,0,null,null,null,null,null,null,null,null,null,null,null,null,null,null,"",null,null,null,null,null,null,null,null,null,null,null,null,null,null,null,null,null,null,null,null,null,null,null,null,null,null,null,null,null,null,null,null,null,null,null,null,null,null,null,"","","","","","","","","","","",null,null,null,null,0,0,0,0,0,0,0,0,0,0,0]
[2104025,"Tumor óseo, resección en bloque, c/s osteosíntesis y/o aparato inmovilización postoperatorio",0,null,null,null,null,0,null,null,null,null,null,null,0,null,null,0,null,null,0,null,null,0,null,null,null,null,null,null,null,null,null,null,null,null,null,null,"",null,null,null,null,null,null,null,null,null,null,null,null,null,null,null,null,null,null,null,null,null,null,null,null,null,null,null,null,null,null,null,null,null,null,null,null,null,null,null,"","","","","","","","","","","",null,null,null,null,0,0,0,0,0,0,0,0,0,0,0]
[2104041,"Desarticulación escápulo-humeral",0,null,null,null,null,0,null,null,null,null,null,null,0,null,null,0,null,null,0,null,null,0,null,null,null,null,null,null,null,null,null,null,null,null,null,null,"",null,null,null,null,null,null,null,null,null,null,null,null,null,null,null,null,null,null,null,null,null,null,null,null,null,null,null,null,null,null,null,null,null,null,null,null,null,null,null,"","","","","","","","","","","",null,null,null,null,0,0,0,0,0,0,0,0,0,0,0]
[2104053,"Amputación brazo",0,null,null,null,null,0,null,null,null,null,null,null,0,null,null,0,null,null,0,null,null,0,null,null,null,null,null,null,null,null,null,null,null,null,null,null,"",null,null,null,null,null,null,null,null,null,null,null,null,null,null,null,null,null,null,null,null,null,null,null,null,null,null,null,null,null,null,null,null,null,null,null,null,null,null,null,"","","","","","","","","","","",null,null,null,null,0,0,0,0,0,0,0,0,0,0,0]
[2104059,"Artroplastía con fascia codo",0,null,null,null,null,0,null,null,null,null,null,null,0,null,null,0,null,null,0,null,null,0,null,null,null,null,null,null,null,null,null,null,null,null,null,null,"",null,null,null,null,null,null,null,null,null,null,null,null,null,null,null,null,null,null,null,null,null,null,null,null,null,null,null,null,null,null,null,null,null,null,null,null,null,null,null,"","","","","","","","","","","",null,null,null,null,0,0,0,0,0,0,0,0,0,0,0]
[2104076,"Sinostosis radio-cubital, trat. quir., c/s injerto",0,null,null,null,null,0,null,null,null,null,null,null,0,null,null,0,null,null,0,null,null,0,null,null,null,null,null,null,null,null,null,null,null,null,null,null,"",null,null,null,null,null,null,null,null,null,null,null,null,null,null,null,null,null,null,null,null,null,null,null,null,null,null,null,null,null,null,null,null,null,null,null,null,null,null,null,"","","","","","","","","","","",null,null,null,null,0,0,0,0,0,0,0,0,0,0,0]
[2104087,"Amputación dedos (tres o más)",0,null,null,null,null,0,null,null,null,null,null,null,0,null,null,0,null,null,0,null,null,0,null,null,null,null,null,null,null,null,null,null,null,null,null,null,"",null,null,null,null,null,null,null,null,null,null,null,null,null,null,null,null,null,null,null,null,null,null,null,null,null,null,null,null,null,null,null,null,null,null,null,null,null,null,null,"","","","","","","","","","","",null,null,null,null,0,0,0,0,0,0,0,0,0,0,0]
[2104093,"Dedos en gatillo, trat. quir., cualquier número",0,null,null,null,null,0,null,null,null,null,null,null,null,null,null,null,null,null,null,null,null,null,null,null,null,null,null,null,null,null,null,null,null,null,null,null,"",null,null,null,null,null,null,null,null,null,null,null,null,null,null,null,null,null,null,null,null,null,null,null,null,null,null,null,null,null,null,null,null,null,null,null,null,null,null,null,"","","","","","","","","","","",{"$f":"IF(AND($C2664>0,AK2664=\"\"),\" * No olvide digitar la variable Quirófano Cirugía Mayor. Digite Cero si no tiene.\",IF(AK2664>$C2664,\" *  La variable Quirófano Cirugía Mayor No puede ser mayor al Total.\",\"\"))","v":""},{"$f":"IF(AND($C2664>0,AL2664=\"\"),\" * No olvide digitar la variable Asistencia Anestésica. Digite Cero si no tiene.\",IF(AL2664>$C2664,\" *  La variable Asistencia Anestésica No puede ser mayor al Total.\",\"\"))","v":""},null,null,0,0,0,0,0,0,0,0,0,0,0,{"$f":"IF(AND($C2664>0,AK2664=\"\"),1,IF(AK2664>$C2664,1,0))","v":0},0]
[2104110,"Trasplante microquirúrgico para pulgar",0,null,null,null,null,0,null,null,null,null,null,null,0,null,null,0,null,null,0,null,null,0,null,null,null,null,null,null,null,null,null,null,null,null,null,null,"",null,null,null,null,null,null,null,null,null,null,null,null,null,null,null,null,null,null,null,null,null,null,null,null,null,null,null,null,null,null,null,null,null,null,null,null,null,null,null,"","","","","","","","","","","",null,null,null,null,0,0,0,0,0,0,0,0,0,0,0]
[2104213,"Escoliosis, trat. quir., cualquier vía de abordaje, con instrumentación (incluye elementos de osteosíntesis)",0,null,null,null,null,0,null,null,null,null,null,null,0,null,null,0,null,null,0,null,null,0,null,null,null,null,null,null,null,null,null,null,null,null,null,null,"",null,null,null,null,null,null,null,null,null,null,null,null,null,null,null,null,null,null,null,null,null,null,null,null,null,null,null,null,null,null,null,null,null,null,null,null,null,null,null,"","","","","","","","","","","",null,null,null,null,0,0,0,0,0,0,0,0,0,0,0]
[2104124,"Osteotomía pelviana (Salter, Chiari o similares)",0,null,null,null,null,0,null,null,null,null,null,null,0,null,null,0,null,null,0,null,null,0,null,null,null,null,null,null,null,null,null,null,null,null,null,null,"",null,null,null,null,null,null,null,null,null,null,null,null,null,null,null,null,null,null,null,null,null,null,null,null,null,null,null,null,null,null,null,null,null,null,null,null,null,null,null,"","","","","","","","","","","",null,null,null,null,0,0,0,0,0,0,0,0,0,0,0]
[2104131,"Fractura de cuello de fémur, osteosíntesis, cualquier técnica ",0,null,null,null,null,0,null,null,null,null,null,null,0,null,null,0,null,null,0,null,null,0,null,null,null,null,null,null,null,null,null,null,null,null,null,null,"",null,null,null,null,null,null,null,null,null,null,null,null,null,null,null,null,null,null,null,null,null,null,null,null,null,null,null,null,null,null,null,null,null,null,null,null,null,null,null,"","","","","","","","","","","",null,null,null,null,0,0,0,0,0,0,0,0,0,0,0]
[2104147,"Osteotomía en rosario con enclavijamiento clavo telescópico",0,null,null,null,null,0,null,null,null,null,null,null,0,null,null,0,null,null,0,null,null,0,null,null,null,null,null,null,null,null,null,null,null,null,null,null,"",null,null,null,null,null,null,null,null,null,null,null,null,null,null,null,null,null,null,null,null,null,null,null,null,null,null,null,null,null,null,null,null,null,null,null,null,null,null,null,"","","","","","","","","","","",null,null,null,null,0,0,0,0,0,0,0,0,0,0,0]
[2104153,"Endoprótesis total de rodilla, (cualquier técnica)",0,null,null,null,null,0,null,null,null,null,null,null,0,null,null,0,null,null,0,null,null,0,null,null,null,null,null,null,null,null,null,null,null,null,null,null,"",null,null,null,null,null,null,null,null,null,null,null,null,null,null,null,null,null,null,null,null,null,null,null,null,null,null,null,null,null,null,null,null,null,null,null,null,null,null,null,"","","","","","","","","","","",null,null,null,null,0,0,0,0,0,0,0,0,0,0,0]
[2104162,"Reparación quirúrgica ligamentos colaterales y/o cruzados de rodilla",0,null,null,null,null,0,null,null,null,null,null,null,0,null,null,0,null,null,0,null,null,0,null,null,null,null,null,null,null,null,null,null,null,null,null,null,"",null,null,null,null,null,null,null,null,null,null,null,null,null,null,null,null,null,null,null,null,null,null,null,null,null,null,null,null,null,null,null,null,null,null,null,null,null,null,null,"","","","","","","","","","","",null,null,null,null,0,0,0,0,0,0,0,0,0,0,0]
[2104176,"Fractura astrágalo y/o calcáneo, osteosíntesis (cualq. técn.)",0,null,null,null,null,0,null,null,null,null,null,null,0,null,null,0,null,null,0,null,null,0,null,null,null,null,null,null,null,null,null,null,null,null,null,null,"",null,null,null,null,null,null,null,null,null,null,null,null,null,null,null,null,null,null,null,null,null,null,null,null,null,null,null,null,null,null,null,null,null,null,null,null,null,null,null,"","","","","","","","","","","",null,null,null,null,0,0,0,0,0,0,0,0,0,0,0]
[2104186,"Astrágalo vertical, trat. quir.",0,null,null,null,null,0,null,null,null,null,null,null,0,null,null,0,null,null,0,null,null,0,null,null,null,null,null,null,null,null,null,null,null,null,null,null,{"$f":"CA2765&CB2765&CC2765&CD2765&CE2765&CF2765&CG2765&CH2765&CI2765&CJ2765&CK2765&CL2765&CM2765","v":""},null,null,null,null,null,null,null,null,null,null,null,null,null,null,null,null,null,null,null,null,null,null,null,null,null,null,null,null,null,null,null,null,null,null,null,null,null,null,null,{"$f":"IF(AND($C2765>0,AA2765=\"\"),\" * No olvide digitar la variable \"&$AA$8&\"\"&\": Atención Cerrada. Digite Cero si no tiene.\",\"\")","v":""},{"$f":"IF(AND($C2765>0,AB2765=\"\"),\" * No olvide digitar la variable \"&$AA$8&\"\"&\": Atención Abierta. Digite Cero si no tiene.\",\"\")","v":""},{"$f":"IF(AND($C2765>0,AC2765=\"\"),\" * No olvide digitar la variable \"&$AA$8&\"\"&\": Emergencia. Digite Cero si no tiene.\",\"\")","v":""},{"$f":"IF(AND(C2765<AA2765+AB2765+AC2765),\" * La Suma de la variable \"&$AA$8&\"\"&\" no puede ser mayor al Total.\",\"\")","v":""},{"$f":"IF(AND($C2765>0,AD2765=\"\"),\" * No olvide digitar la variable \"&$AD$8&\"\"&\": Honorarios. Digite Cero si no tiene.\",\"\")","v":""},{"$f":"IF(AND($C2765>0,AE2765=\"\"),\" * No olvide digitar la variable \"&$AD$8&\"\"&\": Convenios. Digite Cero si no tiene.\",\"\")","v":""},{"$f":"IF(AND($C2765>0,AF2765=\"\"),\" * No olvide digitar la variable \"&$AD$8&\"\"&\": Consultores de llamada. Digite Cero si no tiene.\",\"\")","v":""},{"$f":"IF(AND($C2765>0,AG2765=\"\"),\" * No olvide digitar la variable \"&$AG$8&\"\"&\". Digite Cero si no tiene.\",\"\")","v":""},{"$f":"IF(AND($C2765>0,AH2765=\"\"),\" * No olvide digitar la variable \"&$AH$8&\"\"&\" Al Sistema. Digite Cero si no tiene.\",\"\")","v":""},{"$f":"IF(AND($C2765>0,AI2765=\"\"),\" * No olvide digitar la variable \"&$AH$8&\"\"&\" al Extrasistema. Digite Cero si no tiene.\",\"\")","v":""},{"$f":"IF(AND($C2765>0,AJ2765=\"\"),\" * No olvide digitar la variable \"&$AJ$8&\"\"&\". Digite Cero si no tiene.\",\"\")","v":""},null,null,null,null,{"$f":"IF(AND($C2765>0,AA2765=\"\"),1,0)","v":0},{"$f":"IF(AND($C2765>0,AB2765=\"\"),1,0)","v":0},{"$f":"IF(AND($C2765>0,AC2765=\"\"),1,0)","v":0},{"$f":"IF(AND(C2765<AA2765+AB2765+AC2765),1,0)","v":0},{"$f":"IF(AND($C2765>0,AD2765=\"\"),1,0)","v":0},{"$f":"IF(AND($C2765>0,AE2765=\"\"),1,0)","v":0},{"$f":"IF(AND($C2765>0,AF2765=\"\"),1,0)","v":0},{"$f":"IF(AND($C2765>0,AG2765=\"\"),1,0)","v":0},{"$f":"IF(AND($C2765>0,AH2765=\"\"),1,0)","v":0},{"$f":"IF(AND($C2765>0,AI2765=\"\"),1,0)","v":0},{"$f":"IF(AND($C2765>0,AJ2765=\"\"),1,0)","v":0}]
[2104196,"Pie bot u otras malformaciones congénitas, trat. quir. (cualquier técnica)",0,null,null,null,null,0,null,null,null,null,null,null,0,null,null,0,null,null,0,null,null,0,null,null,null,null,null,null,null,null,null,null,null,null,null,null,"",null,null,null,null,null,null,null,null,null,null,null,null,null,null,null,null,null,null,null,null,null,null,null,null,null,null,null,null,null,null,null,null,null,null,null,null,null,null,null,"","","","","","","","","","","",null,null,null,null,0,0,0,0,0,0,0,0,0,0,0]
[2107001,"Luxaciones de articulaciones medianas (hombro, codo, rodilla, tobillo, muñeca, tarso y esternoclavicular)",{"$f":"SUM(D2792+G2792)","v":0},{"$f":"SUM(E2792:F2792)","v":0},null,null,null,null,null,null,null,null,null,null,null,null,null,null,null,null,null,null,null,null,null,null,null,null,null,null,null,null,null,null,null,null,null,null,{"$f":"CA2792&CB2792&CC2792&CD2792&CE2792&CF2792&CG2792&CH2792&CI2792&CJ2792&CK2792&CL2792&CM2792","v":""},null,null,null,null,null,null,null,null,null,null,null,null,null,null,null,null,null,null,null,null,null,null,null,null,null,null,null,null,null,null,null,null,null,null,null,null,null,null,null,"","","","","","","","","","","",null,null,null,null,0,0,0,0,0,0,0,0,0,0,0]
[2301020,"Ortesis Muslo-Pie o Isquiopedio",0,0,null,null,null,null,null,null,null,null,null,null,null,null,null,null,null,null,null,null,null,null,null,null,null,null,null,null,null,null,null,null,null,null,null,null,"",null,null,null,null,null,null,null,null,null,null,null,null,null,null,null,null,null,null,null,null,null,null,null,null,null,null,null,null,null,null,null,null,null,null,null,null,null,null,null,"","","","","","","","","","","",null,null,null,null,0,0,0,0,0,0,0,0,0,0,0]
[2301035,"Ortesis radial de posición",0,0,null,null,null,null,null,null,null,null,null,null,null,null,null,null,null,null,null,null,null,null,null,null,null,null,null,null,null,null,null,null,null,null,null,null,"",null,null,null,null,null,null,null,null,null,null,null,null,null,null,null,null,null,null,null,null,null,null,null,null,null,null,null,null,null,null,null,null,null,null,null,null,null,null,null,"","","","","","","","","","","",null,null,null,null,0,0,0,0,0,0,0,0,0,0,0]
[5099073,"Correas desrotadoras parálisis braquial obstétrica",0,0,null,null,null,null,null,null,null,null,null,null,null,null,null,null,null,null,null,null,null,null,null,null,null,null,null,null,null,null,null,null,null,null,null,null,"",null,null,null,null,null,null,null,null,null,null,null,null,null,null,null,null,null,null,null,null,null,null,null,null,null,null,null,null,null,null,null,null,null,null,null,null,null,null,null,"","","","","","","","","","","",null,null,null,null,0,0,0,0,0,0,0,0,0,0,0]
[5099089,"Mentonera",0,0,null,null,null,null,null,null,null,null,null,null,null,null,null,null,null,null,null,null,null,null,null,null,null,null,null,null,null,null,null,null,null,null,null,null,"",null,null,null,null,null,null,null,null,null,null,null,null,null,null,null,null,null,null,null,null,null,null,null,null,null,null,null,null,null,null,null,null,null,null,null,null,null,null,null,"","","","","","","","","","","",null,null,null,null,0,0,0,0,0,0,0,0,0,0,0]
[2201002,"Anestesia peridural continua, proc. aut.",0,0,null,null,null,null,null,null,null,null,null,null,null,null,null,null,null,null,null,null,null,null,null,null,null,null,null,null,null,null,null,null,null,null,null,null,"",null,null,null,null,null,null,null,null,null,null,null,null,null,null,null,null,null,null,null,null,null,null,null,null,null,null,null,null,null,null,null,null,null,null,null,null,null,null,null,"","","","","","","","","","","",null,null,null,null,0,0,0,0,0,0,0,0,0,0,0]
[2701101,"Consulta especialidad Periodoncia",{"$f":"SUM(D2859+G2859)","v":0},{"$f":"SUM(E2859:F2859)","v":0},null,null,null,null,null,null,null,null,null,null,null,null,null,null,null,null,null,null,null,null,null,null,null,null,null,null,null,null,null,null,null,null,null,null,{"$f":"CA2859&CB2859&CC2859&CD2859&CE2859&CF2859&CG2859&CH2859&CI2859&CJ2859&CK2859&CL2859&CM2859","v":""},null,null,null,null,null,null,null,null,null,null,null,null,null,null,null,null,null,null,null,null,null,null,null,null,null,null,null,null,null,null,null,null,null,null,null,null,null,null,null,"","","","","","","","","","","",null,null,null,null,0,0,0,0,0,0,0,0,0,0,0]
[2701111,"Consulta especialidad Somato-Prótesis ",0,0,null,null,null,null,null,null,null,null,null,null,null,null,null,null,null,null,null,null,null,null,null,null,null,null,null,null,null,null,null,null,null,null,null,null,"",null,null,null,null,null,null,null,null,null,null,null,null,null,null,null,null,null,null,null,null,null,null,null,null,null,null,null,null,null,null,null,null,null,null,null,null,null,null,null,"","","","","","","","","","","",null,null,null,null,0,0,0,0,0,0,0,0,0,0,0]
["EXÁMENES IMAGENOLÓGICOS ODONTOLÓGICA"]
[2702110,"Radiografía de ATM Bilateral en Boca Cerrada y Boca Abierta",0,0,null,null,null,null,null,null,null,null,null,null,null,null,null,null,null,null,null,null,null,null,null,null,null,null,null,null,null,null,null,null,null,null,null,null,"",null,null,null,null,null,null,null,null,null,null,null,null,null,null,null,null,null,null,null,null,null,null,null,null,null,null,null,null,null,null,null,null,null,null,null,null,null,null,null,"","","","","","","","","","","",null,null,null,null,0,0,0,0,0,0,0,0,0,0,0]
[2703111,"Obturación Vidrio Ionómero",0,0,null,null,null,null,null,null,null,null,null,null,null,null,null,null,null,null,null,null,null,null,null,null,null,null,null,null,null,null,null,null,null,null,null,null,"",null,null,null,null,null,null,null,null,null,null,null,null,null,null,null,null,null,null,null,null,null,null,null,null,null,null,null,null,null,null,null,null,null,null,null,null,null,null,null,"","","","","","","","","","","",{"$f":"IF(AND($C2905>0,AK2905=\"\"),\" * No olvide digitar la variable Quirófano Cirugía Mayor. Digite Cero si no tiene.\",IF(AK2905>$C2905,\" *  La variable Quirófano Cirugía Mayor No puede ser mayor al Total.\",\"\"))","v":""},{"$f":"IF(AND($C2905>0,AL2905=\"\"),\" * No olvide digitar la variable Asistencia Anestésica. Digite Cero si no tiene.\",IF(AL2905>$C2905,\" *  La variable Asistencia Anestésica No puede ser mayor al Total.\",\"\"))","v":""},null,null,0,0,0,0,0,0,0,0,0,0,0,0,0]
[2703115,"Recubrimiento Directo",0,0,null,null,null,null,null,null,null,null,null,null,null,null,null,null,null,null,null,null,null,null,null,null,null,null,null,null,null,null,null,null,null,null,null,null,"",null,null,null,null,null,null,null,null,null,null,null,null,null,null,null,null,null,null,null,null,null,null,null,null,null,null,null,null,null,null,null,null,null,null,null,null,null,null,null,"","","","","","","","","","","",{"$f":"IF(AND($C2909>0,AK2909=\"\"),\" * No olvide digitar la variable Quirófano Cirugía Mayor. Digite Cero si no tiene.\",IF(AK2909>$C2909,\" *  La variable Quirófano Cirugía Mayor No puede ser mayor al Total.\",\"\"))","v":""},{"$f":"IF(AND($C2909>0,AL2909=\"\"),\" * No olvide digitar la variable Asistencia Anestésica. Digite Cero si no tiene.\",IF(AL2909>$C2909,\" *  La variable Asistencia Anestésica No puede ser mayor al Total.\",\"\"))","v":""},null,null,0,0,0,0,0,0,0,0,0,0,0,{"$f":"IF(AND($C2909>0,AK2909=\"\"),1,IF(AK2909>$C2909,1,0))","v":0},{"$f":"IF(AND($C2909>0,AL2909=\"\"),1,IF(AL2909>$C2909,1,0))","v":0}]
[2704007,"Reparación corona",0,0,null,null,null,null,null,null,null,null,null,null,null,null,null,null,null,null,null,null,null,null,null,null,null,null,null,null,null,null,null,null,null,null,null,null,"",null,null,null,null,null,null,null,null,null,null,null,null,null,null,null,null,null,null,null,null,null,null,null,null,null,null,null,null,null,null,null,null,null,null,null,null,null,null,null,"","","","","","","","","","","",{"$f":"IF(AND($C2919>0,AK2919=\"\"),\" * No olvide digitar la variable Quirófano Cirugía Mayor. Digite Cero si no tiene.\",IF(AK2919>$C2919,\" *  La variable Quirófano Cirugía Mayor No puede ser mayor al Total.\",\"\"))","v":""},{"$f":"IF(AND($C2919>0,AL2919=\"\"),\" * No olvide digitar la variable Asistencia Anestésica. Digite Cero si no tiene.\",IF(AL2919>$C2919,\" *  La variable Asistencia Anestésica No puede ser mayor al Total.\",\"\"))","v":""},null,null,0,0,0,0,0,0,0,0,0,0,0,{"$f":"IF(AND($C2919>0,AK2919=\"\"),1,IF(AK2919>$C2919,1,0))","v":0},{"$f":"IF(AND($C2919>0,AL2919=\"\"),1,IF(AL2919>$C2919,1,0))","v":0}]
[2704024,"Cateterismo de Conducto Excretor Glándula Salival en Niños (c/u)",0,0,null,null,null,null,null,null,null,null,null,null,null,null,null,null,null,null,null,null,null,null,null,null,null,null,null,null,null,null,null,null,null,null,null,null,"",null,null,null,null,null,null,null,null,null,null,null,null,null,null,null,null,null,null,null,null,null,null,null,null,null,null,null,null,null,null,null,null,null,null,null,null,null,null,null,"","","","","","","","","","","","","",null,null,0,0,0,0,0,0,0,0,0,0,0,0,0]
["CIRUGÍAS ODONTOLÓGICAS"]
[2705006,"Glosectomías",0,null,null,null,null,0,null,null,null,null,null,null,{"$f":"SUM(P2952:Q2952)","v":0},null,null,{"$f":"SUM(S2952:T2952)","v":0},null,null,{"$f":"SUM(V2952:W2952)","v":0},null,null,{"$f":"SUM(Y2952:Z2952)","v":0},null,null,null,null,null,null,null,null,null,null,null,null,null,null,"",null,null,null,null,null,null,null,null,null,null,null,null,null,null,null,null,null,null,null,null,null,null,null,null,null,null,null,null,null,null,null,null,null,null,null,null,null,null,null,"","","","","","","","","","","",null,null,null,null,0,0,0,0,0,0,0,0,0,0,0]
[2705016,"Reimplante y trasplante dentario",0,null,null,null,null,0,null,null,null,null,null,null,null,null,null,null,null,null,null,null,null,null,null,null,null,null,null,null,null,null,null,null,null,null,null,null,"",null,null,null,null,null,null,null,null,null,null,null,null,null,null,null,null,null,null,null,null,null,null,null,null,null,null,null,null,null,null,null,null,null,null,null,null,null,null,null,"","","","","","","","","","","",{"$f":"IF(AND($C2962>0,AK2962=\"\"),\" * No olvide digitar la variable Quirófano Cirugía Mayor. Digite Cero si no tiene.\",IF(AK2962>$C2962,\" *  La variable Quirófano Cirugía Mayor No puede ser mayor al Total.\",\"\"))","v":""},{"$f":"IF(AND($C2962>0,AL2962=\"\"),\" * No olvide digitar la variable Asistencia Anestésica. Digite Cero si no tiene.\",IF(AL2962>$C2962,\" *  La variable Asistencia Anestésica No puede ser mayor al Total.\",\"\"))","v":""},null,null,0,0,0,0,0,0,0,0,0,0,0,{"$f":"IF(AND($C2962>0,AK2962=\"\"),1,IF(AK2962>$C2962,1,0))","v":0},0]
[1302031,"Tumor benigno de la mucosa bucal,  extirp. c/s  biopsia bucofaríngea",0,null,null,null,null,0,null,null,null,null,null,null,null,null,null,null,null,null,null,null,null,null,null,null,null,null,null,null,null,null,null,null,null,null,null,null,"",null,null,null,null,null,null,null,null,null,null,null,null,null,null,null,null,null,null,null,null,null,null,null,null,null,null,null,null,null,null,null,null,null,null,null,null,null,null,null,"","","","","","","","","","","","","",null,null,0,0,0,0,0,0,0,0,0,0,0,0,0]
[1402021,"Cierre de fístula salival: reparación del conducto de excreción",0,null,null,null,null,0,null,null,null,null,null,null,null,null,null,null,null,null,null,null,null,null,null,null,null,null,null,null,null,null,null,null,null,null,null,null,"",null,null,null,null,null,null,null,null,null,null,null,null,null,null,null,null,null,null,null,null,null,null,null,null,null,null,null,null,null,null,null,null,null,null,null,null,null,null,null,"","","","","","","","","","","",{"$f":"IF(AND($C2986>0,AK2986=\"\"),\" * No olvide digitar la variable Quirófano Cirugía Mayor. Digite Cero si no tiene.\",IF(AK2986>$C2986,\" *  La variable Quirófano Cirugía Mayor No puede ser mayor al Total.\",\"\"))","v":""},{"$f":"IF(AND($C2986>0,AL2986=\"\"),\" * No olvide digitar la variable Asistencia Anestésica. Digite Cero si no tiene.\",IF(AL2986>$C2986,\" *  La variable Asistencia Anestésica No puede ser mayor al Total.\",\"\"))","v":""},null,null,0,0,0,0,0,0,0,0,0,0,0,{"$f":"IF(AND($C2986>0,AK2986=\"\"),1,IF(AK2986>$C2986,1,0))","v":0},{"$f":"IF(AND($C2986>0,AL2986=\"\"),1,IF(AL2986>$C2986,1,0))","v":0}]
[1502032,"Queiloplastía primaria, un lado (proc. quir. completo por cualquier técnica)",0,null,null,null,null,0,null,null,null,null,null,null,0,null,null,0,null,null,0,null,null,0,null,null,null,null,null,null,null,null,null,null,null,null,null,null,"",null,null,null,null,null,null,null,null,null,null,null,null,null,null,null,null,null,null,null,null,null,null,null,null,null,null,null,null,null,null,null,null,null,null,null,null,null,null,null,"","","","","","","","","","","",null,null,null,null,0,0,0,0,0,0,0,0,0,0,0]
[2104013,"Osteomielitis aguda hematógena, drenaje quirúrgico, c/s dispositivos de osteoclisis",0,null,null,null,null,0,null,null,null,null,null,null,0,null,null,0,null,null,0,null,null,0,null,null,null,null,null,null,null,null,null,null,null,null,null,null,"",null,null,null,null,null,null,null,null,null,null,null,null,null,null,null,null,null,null,null,null,null,null,null,null,null,null,null,null,null,null,null,null,null,null,null,null,null,null,null,"","","","","","","","","","","",null,null,null,null,0,0,0,0,0,0,0,0,0,0,0]
[5099023,"Fenestracion",{"$f":"SUM(I3019:N3019)","v":0},null,null,null,null,0,null,null,null,null,null,null,null,null,null,null,null,null,null,null,null,null,null,null,null,null,null,null,null,null,null,null,null,null,null,null,"",null,null,null,null,null,null,null,null,null,null,null,null,null,null,null,null,null,null,null,null,null,null,null,null,null,null,null,null,null,null,null,null,null,null,null,null,null,null,null,"","","","","","","","","","","",{"$f":"IF(AND($C3019>0,AK3019=\"\"),\" * No olvide digitar la variable Quirófano Cirugía Mayor. Digite Cero si no tiene.\",IF(AK3019>$C3019,\" *  La variable Quirófano Cirugía Mayor No puede ser mayor al Total.\",\"\"))","v":""},{"$f":"IF(AND($C3019>0,AL3019=\"\"),\" * No olvide digitar la variable Asistencia Anestésica. Digite Cero si no tiene.\",IF(AL3019>$C3019,\" *  La variable Asistencia Anestésica No puede ser mayor al Total.\",\"\"))","v":""},null,null,0,0,0,0,0,0,0,0,0,0,0,0,0]
[5099034,"Instalación aparato ortopedia prequirurgica (fisura labiopalatina)",0,0,null,null,null,null,null,null,null,null,null,null,null,null,null,null,null,null,null,null,null,null,null,null,null,null,null,null,null,null,null,null,null,null,null,null,"",null,null,null,null,null,null,null,null,null,null,null,null,null,null,null,null,null,null,null,null,null,null,null,null,null,null,null,null,null,null,null,null,null,null,null,null,null,null,null,{"$f":"IF(AND($C3035>0,AA3035=\"\"),\" * No olvide digitar la variable \"&$AA$8&\"\"&\": Atención Cerrada. Digite Cero si no tiene.\",\"\")","v":""},{"$f":"IF(AND($C3035>0,AB3035=\"\"),\" * No olvide digitar la variable \"&$AA$8&\"\"&\": Atención Abierta. Digite Cero si no tiene.\",\"\")","v":""},{"$f":"IF(AND($C3035>0,AC3035=\"\"),\" * No olvide digitar la variable \"&$AA$8&\"\"&\": Emergencia. Digite Cero si no tiene.\",\"\")","v":""},{"$f":"IF(AND(C3035<AA3035+AB3035+AC3035),\" * La Suma de la variable \"&$AA$8&\"\"&\" no puede ser mayor al Total.\",\"\")","v":""},{"$f":"IF(AND($C3035>0,AD3035=\"\"),\" * No olvide digitar la variable \"&$AD$8&\"\"&\": Honorarios. Digite Cero si no tiene.\",\"\")","v":""},{"$f":"IF(AND($C3035>0,AE3035=\"\"),\" * No olvide digitar la variable \"&$AD$8&\"\"&\": Convenios. Digite Cero si no tiene.\",\"\")","v":""},{"$f":"IF(AND($C3035>0,AF3035=\"\"),\" * No olvide digitar la variable \"&$AD$8&\"\"&\": Consultores de llamada. Digite Cero si no tiene.\",\"\")","v":""},{"$f":"IF(AND($C3035>0,AG3035=\"\"),\" * No olvide digitar la variable \"&$AG$8&\"\"&\". Digite Cero si no tiene.\",\"\")","v":""},{"$f":"IF(AND($C3035>0,AH3035=\"\"),\" * No olvide digitar la variable \"&$AH$8&\"\"&\" Al Sistema. Digite Cero si no tiene.\",\"\")","v":""},{"$f":"IF(AND($C3035>0,AI3035=\"\"),\" * No olvide digitar la variable \"&$AH$8&\"\"&\" al Extrasistema. Digite Cero si no tiene.\",\"\")","v":""},{"$f":"IF(AND($C3035>0,AJ3035=\"\"),\" * No olvide digitar la variable \"&$AJ$8&\"\"&\". Digite Cero si no tiene.\",\"\")","v":""},null,null,null,null,{"$f":"IF(AND($C3035>0,AA3035=\"\"),1,0)","v":0},{"$f":"IF(AND($C3035>0,AB3035=\"\"),1,0)","v":0},{"$f":"IF(AND($C3035>0,AC3035=\"\"),1,0)","v":0},{"$f":"IF(AND(C3035<AA3035+AB3035+AC3035),1,0)","v":0},{"$f":"IF(AND($C3035>0,AD3035=\"\"),1,0)","v":0},{"$f":"IF(AND($C3035>0,AE3035=\"\"),1,0)","v":0},{"$f":"IF(AND($C3035>0,AF3035=\"\"),1,0)","v":0},{"$f":"IF(AND($C3035>0,AG3035=\"\"),1,0)","v":0},{"$f":"IF(AND($C3035>0,AH3035=\"\"),1,0)","v":0},{"$f":"IF(AND($C3035>0,AI3035=\"\"),1,0)","v":0},{"$f":"IF(AND($C3035>0,AJ3035=\"\"),1,0)","v":0}]
[5099038,"Terapia articular especifica",0,0,null,null,null,null,null,null,null,null,null,null,null,null,null,null,null,null,null,null,null,null,null,null,null,null,null,null,null,null,null,null,null,null,null,null,"",null,null,null,null,null,null,null,null,null,null,null,null,null,null,null,null,null,null,null,null,null,null,null,null,null,null,null,null,null,null,null,null,null,null,null,null,null,null,null,{"$f":"IF(AND($C3041>0,AA3041=\"\"),\" * No olvide digitar la variable \"&$AA$8&\"\"&\": Atención Cerrada. Digite Cero si no tiene.\",\"\")","v":""},{"$f":"IF(AND($C3041>0,AB3041=\"\"),\" * No olvide digitar la variable \"&$AA$8&\"\"&\": Atención Abierta. Digite Cero si no tiene.\",\"\")","v":""},{"$f":"IF(AND($C3041>0,AC3041=\"\"),\" * No olvide digitar la variable \"&$AA$8&\"\"&\": Emergencia. Digite Cero si no tiene.\",\"\")","v":""},{"$f":"IF(AND(C3041<AA3041+AB3041+AC3041),\" * La Suma de la variable \"&$AA$8&\"\"&\" no puede ser mayor al Total.\",\"\")","v":""},{"$f":"IF(AND($C3041>0,AD3041=\"\"),\" * No olvide digitar la variable \"&$AD$8&\"\"&\": Honorarios. Digite Cero si no tiene.\",\"\")","v":""},{"$f":"IF(AND($C3041>0,AE3041=\"\"),\" * No olvide digitar la variable \"&$AD$8&\"\"&\": Convenios. Digite Cero si no tiene.\",\"\")","v":""},{"$f":"IF(AND($C3041>0,AF3041=\"\"),\" * No olvide digitar la variable \"&$AD$8&\"\"&\": Consultores de llamada. Digite Cero si no tiene.\",\"\")","v":""},{"$f":"IF(AND($C3041>0,AG3041=\"\"),\" * No olvide digitar la variable \"&$AG$8&\"\"&\". Digite Cero si no tiene.\",\"\")","v":""},{"$f":"IF(AND($C3041>0,AH3041=\"\"),\" * No olvide digitar la variable \"&$AH$8&\"\"&\" Al Sistema. Digite Cero si no tiene.\",\"\")","v":""},{"$f":"IF(AND($C3041>0,AI3041=\"\"),\" * No olvide digitar la variable \"&$AH$8&\"\"&\" al Extrasistema. Digite Cero si no tiene.\",\"\")","v":""},{"$f":"IF(AND($C3041>0,AJ3041=\"\"),\" * No olvide digitar la variable \"&$AJ$8&\"\"&\". Digite Cero si no tiene.\",\"\")","v":""},null,null,null,null,{"$f":"IF(AND($C3041>0,AA3041=\"\"),1,0)","v":0},{"$f":"IF(AND($C3041>0,AB3041=\"\"),1,0)","v":0},{"$f":"IF(AND($C3041>0,AC3041=\"\"),1,0)","v":0},{"$f":"IF(AND(C3041<AA3041+AB3041+AC3041),1,0)","v":0},{"$f":"IF(AND($C3041>0,AD3041=\"\"),1,0)","v":0},{"$f":"IF(AND($C3041>0,AE3041=\"\"),1,0)","v":0},{"$f":"IF(AND($C3041>0,AF3041=\"\"),1,0)","v":0},{"$f":"IF(AND($C3041>0,AG3041=\"\"),1,0)","v":0},{"$f":"IF(AND($C3041>0,AH3041=\"\"),1,0)","v":0},{"$f":"IF(AND($C3041>0,AI3041=\"\"),1,0)","v":0},{"$f":"IF(AND($C3041>0,AJ3041=\"\"),1,0)","v":0}]
["01012602","Férula Periodoncia",0,0,null,null,null,null,null,null,null,null,null,null,null,null,null,null,null,null,null,null,null,null,null,null,null,null,null,null,null,null,null,null,null,null,null,null,"",null,null,null,null,null,null,null,null,null,null,null,null,null,null,null,null,null,null,null,null,null,null,null,null,null,null,null,null,null,null,null,null,null,null,null,null,null,null,null,"","","","","","","","","","","",null,null,null,null,0,0,0,0,0,0,0,0,0,0,0]
[null,"Prótesis",0,0,{"$f":"SUM(E3044:E3054)","v":0},{"$f":"SUM(F3044:F3054)","v":0},{"$f":"SUM(G3044:G3054)","v":0},null,null,null,null,null,null,null,null,null,null,null,null,null,null,null,null,null,null,null,{"$f":"SUM(AA3044:AA3054)","v":0},0,0,0,0,0,0,0,0,0,null,null,""]
[5099057,"Instalación aparotología fija",0,0,null,null,null,null,null,null,null,null,null,null,null,null,null,null,null,null,null,null,null,null,null,null,null,null,null,null,null,null,null,null,null,null,null,null,"",null,null,null,null,null,null,null,null,null,null,null,null,null,null,null,null,null,null,null,null,null,null,null,null,null,null,null,null,null,null,null,null,null,null,null,null,null,null,null,{"$f":"IF(AND($C3044>0,AA3044=\"\"),\" * No olvide digitar la variable \"&$AA$8&\"\"&\": Atención Cerrada. Digite Cero si no tiene.\",\"\")","v":""},{"$f":"IF(AND($C3044>0,AB3044=\"\"),\" * No olvide digitar la variable \"&$AA$8&\"\"&\": Atención Abierta. Digite Cero si no tiene.\",\"\")","v":""},{"$f":"IF(AND($C3044>0,AC3044=\"\"),\" * No olvide digitar la variable \"&$AA$8&\"\"&\": Emergencia. Digite Cero si no tiene.\",\"\")","v":""},{"$f":"IF(AND(C3044<AA3044+AB3044+AC3044),\" * La Suma de la variable \"&$AA$8&\"\"&\" no puede ser mayor al Total.\",\"\")","v":""},{"$f":"IF(AND($C3044>0,AD3044=\"\"),\" * No olvide digitar la variable \"&$AD$8&\"\"&\": Honorarios. Digite Cero si no tiene.\",\"\")","v":""},{"$f":"IF(AND($C3044>0,AE3044=\"\"),\" * No olvide digitar la variable \"&$AD$8&\"\"&\": Convenios. Digite Cero si no tiene.\",\"\")","v":""},{"$f":"IF(AND($C3044>0,AF3044=\"\"),\" * No olvide digitar la variable \"&$AD$8&\"\"&\": Consultores de llamada. Digite Cero si no tiene.\",\"\")","v":""},{"$f":"IF(AND($C3044>0,AG3044=\"\"),\" * No olvide digitar la variable \"&$AG$8&\"\"&\". Digite Cero si no tiene.\",\"\")","v":""},{"$f":"IF(AND($C3044>0,AH3044=\"\"),\" * No olvide digitar la variable \"&$AH$8&\"\"&\" Al Sistema. Digite Cero si no tiene.\",\"\")","v":""},{"$f":"IF(AND($C3044>0,AI3044=\"\"),\" * No olvide digitar la variable \"&$AH$8&\"\"&\" al Extrasistema. Digite Cero si no tiene.\",\"\")","v":""},{"$f":"IF(AND($C3044>0,AJ3044=\"\"),\" * No olvide digitar la variable \"&$AJ$8&\"\"&\". Digite Cero si no tiene.\",\"\")","v":""},null,null,null,null,{"$f":"IF(AND($C3044>0,AA3044=\"\"),1,0)","v":0},{"$f":"IF(AND($C3044>0,AB3044=\"\"),1,0)","v":0},{"$f":"IF(AND($C3044>0,AC3044=\"\"),1,0)","v":0},{"$f":"IF(AND(C3044<AA3044+AB3044+AC3044),1,0)","v":0},{"$f":"IF(AND($C3044>0,AD3044=\"\"),1,0)","v":0},{"$f":"IF(AND($C3044>0,AE3044=\"\"),1,0)","v":0},{"$f":"IF(AND($C3044>0,AF3044=\"\"),1,0)","v":0},{"$f":"IF(AND($C3044>0,AG3044=\"\"),1,0)","v":0},{"$f":"IF(AND($C3044>0,AH3044=\"\"),1,0)","v":0},{"$f":"IF(AND($C3044>0,AI3044=\"\"),1,0)","v":0},{"$f":"IF(AND($C3044>0,AJ3044=\"\"),1,0)","v":0}]
[5099058,"Instalación prótesis removible",0,0,null,null,null,null,null,null,null,null,null,null,null,null,null,null,null,null,null,null,null,null,null,null,null,null,null,null,null,null,null,null,null,null,null,null,"",null,null,null,null,null,null,null,null,null,null,null,null,null,null,null,null,null,null,null,null,null,null,null,null,null,null,null,null,null,null,null,null,null,null,null,null,null,null,null,"","","","","","","","","","","",null,null,null,null,0,0,0,0,0,0,0,0,0,0,0]
["01012608","Prótesis Removible Acrílica",0,0,null,null,null,null,null,null,null,null,null,null,null,null,null,null,null,null,null,null,null,null,null,null,null,null,null,null,null,null,null,null,null,null,null,null,"",null,null,null,null,null,null,null,null,null,null,null,null,null,null,null,null,null,null,null,null,null,null,null,null,null,null,null,null,null,null,null,null,null,null,null,null,null,null,null,"","","","","","","","","","","",null,null,null,null,0,0,0,0,0,0,0,0,0,0,0]
["01012610","Instalación Aparato de Contención",0,0,null,null,null,null,null,null,null,null,null,null,null,null,null,null,null,null,null,null,null,null,null,null,null,null,null,null,null,null,null,null,null,null,null,null,"",null,null,null,null,null,null,null,null,null,null,null,null,null,null,null,null,null,null,null,null,null,null,null,null,null,null,null,null,null,null,null,null,null,null,null,null,null,null,null,"","","","","","","","","","","",null,null,null,null,0,0,0,0,0,0,0,0,0,0,0]
["01012612","Prótesis Fija Provisoria (unitaria o Plural)",0,0,null,null,null,null,null,null,null,null,null,null,null,null,null,null,null,null,null,null,null,null,null,null,null,null,null,null,null,null,null,null,null,null,null,null,"",null,null,null,null,null,null,null,null,null,null,null,null,null,null,null,null,null,null,null,null,null,null,null,null,null,null,null,null,null,null,null,null,null,null,null,null,null,null,null,"","","","","","","","","","","",null,null,null,null,0,0,0,0,0,0,0,0,0,0,0]
["01012614","Instalación de Implante Endo-Oseo Oseointegrable. ",0,0,null,null,null,null,null,null,null,null,null,null,null,null,null,null,null,null,null,null,null,null,null,null,null,null,null,null,null,null,null,null,null,null,null,null,"",null,null,null,null,null,null,null,null,null,null,null,null,null,null,null,null,null,null,null,null,null,null,null,null,null,null,null,null,null,null,null,null,null,null,null,null,null,null,null,"","","","","","","","","","","",null,null,null,null,0,0,0,0,0,0,0,0,0,0,0]
["01012615","Tratamiento Temporo Mandibular ",0,0,null,null,null,null,null,null,null,null,null,null,null,null,null,null,null,null,null,null,null,null,null,null,null,null,null,null,null,null,null,null,null,null,null,null,"",null,null,null,null,null,null,null,null,null,null,null,null,null,null,null,null,null,null,null,null,null,null,null,null,null,null,null,null,null,null,null,null,null,null,null,null,null,null,null,"","","","","","","","","","","",null,null,null,null,0,0,0,0,0,0,0,0,0,0,0]
["01012616","Prevención odontológica niño discapacitado ",0,0,null,null,null,null,null,null,null,null,null,null,null,null,null,null,null,null,null,null,null,null,null,null,null,null,null,null,null,null,null,null,null,null,null,null,"",null,null,null,null,null,null,null,null,null,null,null,null,null,null,null,null,null,null,null,null,null,null,null,null,null,null,null,null,null,null,null,null,null,null,null,null,null,null,null,"","","","","","","","","","","",null,null,null,null,0,0,0,0,0,0,0,0,0,0,0]
["01012617","Tratamiento aparatología fija niños de 12 a 14 años año 1 ",0,0,null,null,null,null,null,null,null,null,null,null,null,null,null,null,null,null,null,null,null,null,null,null,null,null,null,null,null,null,null,null,null,null,null,null,"",null,null,null,null,null,null,null,null,null,null,null,null,null,null,null,null,null,null,null,null,null,null,null,null,null,null,null,null,null,null,null,null,null,null,null,null,null,null,null,"","","","","","","","","","","",null,null,null,null,0,0,0,0,0,0,0,0,0,0,0]
["01012618","Tratamiento aparatología fija niños de 12 a 14 años año 2 ",0,0,null,null,null,null,null,null,null,null,null,null,null,null,null,null,null,null,null,null,null,null,null,null,null,null,null,null,null,null,null,null,null,null,null,null,"",null,null,null,null,null,null,null,null,null,null,null,null,null,null,null,null,null,null,null,null,null,null,null,null,null,null,null,null,null,null,null,null,null,null,null,null,null,null,null,"","","","","","","","","","","",null,null,null,null,0,0,0,0,0,0,0,0,0,0,0]
["01012621","Desinfección Bucal Total",0,0,null,null,null,null,null,null,null,null,null,null,null,null,null,null,null,null,null,null,null,null,null,null,null,null,null,null,null,null,null,null,null,null,null,null,"",null,null,null,null,null,null,null,null,null,null,null,null,null,null,null,null,null,null,null,null,null,null,null,null,null,null,null,null,null,null,null,null,null,null,null,null,null,null,null,"","","","","","","","","","","",null,null,null,null,0,0,0,0,0,0,0,0,0,0,0]
[null,"Traumatología Maxilofacial",{"$f":"SUM(D3055+G3055)","v":0},{"$f":"SUM(E3055:F3055)","v":0},{"$f":"SUM(E3056:E3057)","v":0},{"$f":"SUM(F3056:F3057)","v":0},{"$f":"SUM(G3056:G3057)","v":0},null,null,null,null,null,null,null,null,null,null,null,null,null,null,null,null,null,null,null,{"$f":"SUM(AA3056:AA3057)","v":0},{"$f":"SUM(AB3056:AB3057)","v":0},0,0,0,0,0,0,0,0,null,null,""]
[5099059,"Examen y diagnóstico ttm eje I  ",0,0,null,null,null,null,null,null,null,null,null,null,null,null,null,null,null,null,null,null,null,null,null,null,null,null,null,null,null,null,null,null,null,null,null,null,"",null,null,null,null,null,null,null,null,null,null,null,null,null,null,null,null,null,null,null,null,null,null,null,null,null,null,null,null,null,null,null,null,null,null,null,null,null,null,null,{"$f":"IF(AND($C3056>0,AA3056=\"\"),\" * No olvide digitar la variable \"&$AA$8&\"\"&\": Atención Cerrada. Digite Cero si no tiene.\",\"\")","v":""},{"$f":"IF(AND($C3056>0,AB3056=\"\"),\" * No olvide digitar la variable \"&$AA$8&\"\"&\": Atención Abierta. Digite Cero si no tiene.\",\"\")","v":""},{"$f":"IF(AND($C3056>0,AC3056=\"\"),\" * No olvide digitar la variable \"&$AA$8&\"\"&\": Emergencia. Digite Cero si no tiene.\",\"\")","v":""},{"$f":"IF(AND(C3056<AA3056+AB3056+AC3056),\" * La Suma de la variable \"&$AA$8&\"\"&\" no puede ser mayor al Total.\",\"\")","v":""},{"$f":"IF(AND($C3056>0,AD3056=\"\"),\" * No olvide digitar la variable \"&$AD$8&\"\"&\": Honorarios. Digite Cero si no tiene.\",\"\")","v":""},{"$f":"IF(AND($C3056>0,AE3056=\"\"),\" * No olvide digitar la variable \"&$AD$8&\"\"&\": Convenios. Digite Cero si no tiene.\",\"\")","v":""},{"$f":"IF(AND($C3056>0,AF3056=\"\"),\" * No olvide digitar la variable \"&$AD$8&\"\"&\": Consultores de llamada. Digite Cero si no tiene.\",\"\")","v":""},{"$f":"IF(AND($C3056>0,AG3056=\"\"),\" * No olvide digitar la variable \"&$AG$8&\"\"&\". Digite Cero si no tiene.\",\"\")","v":""},{"$f":"IF(AND($C3056>0,AH3056=\"\"),\" * No olvide digitar la variable \"&$AH$8&\"\"&\" Al Sistema. Digite Cero si no tiene.\",\"\")","v":""},{"$f":"IF(AND($C3056>0,AI3056=\"\"),\" * No olvide digitar la variable \"&$AH$8&\"\"&\" al Extrasistema. Digite Cero si no tiene.\",\"\")","v":""},{"$f":"IF(AND($C3056>0,AJ3056=\"\"),\" * No olvide digitar la variable \"&$AJ$8&\"\"&\". Digite Cero si no tiene.\",\"\")","v":""},null,null,null,null,{"$f":"IF(AND($C3056>0,AA3056=\"\"),1,0)","v":0},{"$f":"IF(AND($C3056>0,AB3056=\"\"),1,0)","v":0},{"$f":"IF(AND($C3056>0,AC3056=\"\"),1,0)","v":0},{"$f":"IF(AND(C3056<AA3056+AB3056+AC3056),1,0)","v":0},{"$f":"IF(AND($C3056>0,AD3056=\"\"),1,0)","v":0},{"$f":"IF(AND($C3056>0,AE3056=\"\"),1,0)","v":0},{"$f":"IF(AND($C3056>0,AF3056=\"\"),1,0)","v":0},{"$f":"IF(AND($C3056>0,AG3056=\"\"),1,0)","v":0},{"$f":"IF(AND($C3056>0,AH3056=\"\"),1,0)","v":0},{"$f":"IF(AND($C3056>0,AI3056=\"\"),1,0)","v":0},{"$f":"IF(AND($C3056>0,AJ3056=\"\"),1,0)","v":0}]
[5099060,"Examen y diagnóstico ttm eje I y II montaje",0,0,null,null,null,null,null,null,null,null,null,null,null,null,null,null,null,null,null,null,null,null,null,null,null,null,null,null,null,null,null,null,null,null,null,null,"",null,null,null,null,null,null,null,null,null,null,null,null,null,null,null,null,null,null,null,null,null,null,null,null,null,null,null,null,null,null,null,null,null,null,null,null,null,null,null,"","","","","","","","","","","",null,null,null,null,0,0,0,0,0,0,0,0,0,0,0]
[null,"Trastornos Temporomandibular y dolor orofacial",0,0,{"$f":"SUM(E3059)","v":0},{"$f":"SUM(F3059)","v":0},{"$f":"SUM(G3059)","v":0},null,null,null,null,null,null,null,null,null,null,null,null,null,null,null,null,null,null,null,{"$f":"SUM(AA3059)","v":0},{"$f":"SUM(AB3059)","v":0},0,0,0,0,0,0,0,0,null,null,""]
[5099039,"Terapia cognitiva conductual y autocontrol TTM (trastornos temporomandibulares)",0,0,null,null,null,null,null,null,null,null,null,null,null,null,null,null,null,null,null,null,null,null,null,null,null,null,null,null,null,null,null,null,null,null,null,null,"",null,null,null,null,null,null,null,null,null,null,null,null,null,null,null,null,null,null,null,null,null,null,null,null,null,null,null,null,null,null,null,null,null,null,null,null,null,null,null,{"$f":"IF(AND($C3059>0,AA3059=\"\"),\" * No olvide digitar la variable \"&$AA$8&\"\"&\": Atención Cerrada. Digite Cero si no tiene.\",\"\")","v":""},{"$f":"IF(AND($C3059>0,AB3059=\"\"),\" * No olvide digitar la variable \"&$AA$8&\"\"&\": Atención Abierta. Digite Cero si no tiene.\",\"\")","v":""},{"$f":"IF(AND($C3059>0,AC3059=\"\"),\" * No olvide digitar la variable \"&$AA$8&\"\"&\": Emergencia. Digite Cero si no tiene.\",\"\")","v":""},{"$f":"IF(AND(C3059<AA3059+AB3059+AC3059),\" * La Suma de la variable \"&$AA$8&\"\"&\" no puede ser mayor al Total.\",\"\")","v":""},{"$f":"IF(AND($C3059>0,AD3059=\"\"),\" * No olvide digitar la variable \"&$AD$8&\"\"&\": Honorarios. Digite Cero si no tiene.\",\"\")","v":""},{"$f":"IF(AND($C3059>0,AE3059=\"\"),\" * No olvide digitar la variable \"&$AD$8&\"\"&\": Convenios. Digite Cero si no tiene.\",\"\")","v":""},{"$f":"IF(AND($C3059>0,AF3059=\"\"),\" * No olvide digitar la variable \"&$AD$8&\"\"&\": Consultores de llamada. Digite Cero si no tiene.\",\"\")","v":""},{"$f":"IF(AND($C3059>0,AG3059=\"\"),\" * No olvide digitar la variable \"&$AG$8&\"\"&\". Digite Cero si no tiene.\",\"\")","v":""},{"$f":"IF(AND($C3059>0,AH3059=\"\"),\" * No olvide digitar la variable \"&$AH$8&\"\"&\" Al Sistema. Digite Cero si no tiene.\",\"\")","v":""},{"$f":"IF(AND($C3059>0,AI3059=\"\"),\" * No olvide digitar la variable \"&$AH$8&\"\"&\" al Extrasistema. Digite Cero si no tiene.\",\"\")","v":""},{"$f":"IF(AND($C3059>0,AJ3059=\"\"),\" * No olvide digitar la variable \"&$AJ$8&\"\"&\". Digite Cero si no tiene.\",\"\")","v":""},null,null,null,null,{"$f":"IF(AND($C3059>0,AA3059=\"\"),1,0)","v":0},{"$f":"IF(AND($C3059>0,AB3059=\"\"),1,0)","v":0},{"$f":"IF(AND($C3059>0,AC3059=\"\"),1,0)","v":0},{"$f":"IF(AND(C3059<AA3059+AB3059+AC3059),1,0)","v":0},{"$f":"IF(AND($C3059>0,AD3059=\"\"),1,0)","v":0},{"$f":"IF(AND($C3059>0,AE3059=\"\"),1,0)","v":0},{"$f":"IF(AND($C3059>0,AF3059=\"\"),1,0)","v":0},{"$f":"IF(AND($C3059>0,AG3059=\"\"),1,0)","v":0},{"$f":"IF(AND($C3059>0,AH3059=\"\"),1,0)","v":0},{"$f":"IF(AND($C3059>0,AI3059=\"\"),1,0)","v":0},{"$f":"IF(AND($C3059>0,AJ3059=\"\"),1,0)","v":0}]
["TOTAL",null,{"$f":"SUM(C3024,C3026:C3029,C3031:C3033,C3035:C3036,C3038:C3039,C3041:C3042,C3044:C3054,C3056:C3057,C3059)","v":0},{"$f":"SUM(D3024,D3026:D3029,D3031:D3033,D3035:D3036,D3038:D3039,D3041:D3042,D3044:D3054,D3056:D3057,D3059)","v":0},{"$f":"SUM(E3024,E3026:E3029,E3031:E3033,E3035:E3036,E3038:E3039,E3041:E3042,E3044:E3054,E3056:E3057,E3059)","v":0},{"$f":"SUM(F3024,F3026:F3029,F3031:F3033,F3035:F3036,F3038:F3039,F3041:F3042,F3044:F3054,F3056:F3057,F3059)","v":0},0,null,null,null,null,null,null,null,null,null,null,null,null,null,null,null,null,null,null,null,{"$f":"SUM(AA3024,AA3026:AA3029,AA3031:AA3033,AA3035:AA3036,AA3038:AA3039,AA3041:AA3042,AA3044:AA3054,AA3056:AA3057,AA3059)","v":0},{"$f":"SUM(AB3024,AB3026:AB3029,AB3031:AB3033,AB3035:AB3036,AB3038:AB3039,AB3041:AB3042,AB3044:AB3054,AB3056:AB3057,AB3059)","v":0},0,0,0,0,0,0,0,0]
["LENTES Y AUDÍFONOS                                          "]
[3001001,"Lentes ópticos",0,0,null,null,null,null,null,null,null,null,null,null,null,null,null,null,null,null,null,null,null,null,null,null,null,null,null,null,null,null,null,null,null,null,null,null,{"$f":"CA3062&CB3062&CC3062&CD3062&CE3062&CF3062&CG3062&CH3062&CI3062&CJ3062&CK3062&CL3062&CM3062","v":""},null,null,null,null,null,null,null,null,null,null,null,null,null,null,null,null,null,null,null,null,null,null,null,null,null,null,null,null,null,null,null,null,null,null,null,null,null,null,null,{"$f":"IF(AND($C3062>0,AA3062=\"\"),\" * No olvide digitar la variable \"&$AA$8&\"\"&\": Atención Cerrada. Digite Cero si no tiene.\",\"\")","v":""},{"$f":"IF(AND($C3062>0,AB3062=\"\"),\" * No olvide digitar la variable \"&$AA$8&\"\"&\": Atención Abierta. Digite Cero si no tiene.\",\"\")","v":""},{"$f":"IF(AND($C3062>0,AC3062=\"\"),\" * No olvide digitar la variable \"&$AA$8&\"\"&\": Emergencia. Digite Cero si no tiene.\",\"\")","v":""},{"$f":"IF(AND(C3062<AA3062+AB3062+AC3062),\" * La Suma de la variable \"&$AA$8&\"\"&\" no puede ser mayor al Total.\",\"\")","v":""},{"$f":"IF(AND($C3062>0,AD3062=\"\"),\" * No olvide digitar la variable \"&$AD$8&\"\"&\": Honorarios. Digite Cero si no tiene.\",\"\")","v":""},{"$f":"IF(AND($C3062>0,AE3062=\"\"),\" * No olvide digitar la variable \"&$AD$8&\"\"&\": Convenios. Digite Cero si no tiene.\",\"\")","v":""},{"$f":"IF(AND($C3062>0,AF3062=\"\"),\" * No olvide digitar la variable \"&$AD$8&\"\"&\": Consultores de llamada. Digite Cero si no tiene.\",\"\")","v":""},{"$f":"IF(AND($C3062>0,AG3062=\"\"),\" * No olvide digitar la variable \"&$AG$8&\"\"&\". Digite Cero si no tiene.\",\"\")","v":""},{"$f":"IF(AND($C3062>0,AH3062=\"\"),\" * No olvide digitar la variable \"&$AH$8&\"\"&\" Al Sistema. Digite Cero si no tiene.\",\"\")","v":""},{"$f":"IF(AND($C3062>0,AI3062=\"\"),\" * No olvide digitar la variable \"&$AH$8&\"\"&\" al Extrasistema. Digite Cero si no tiene.\",\"\")","v":""},{"$f":"IF(AND($C3062>0,AJ3062=\"\"),\" * No olvide digitar la variable \"&$AJ$8&\"\"&\". Digite Cero si no tiene.\",\"\")","v":""},null,null,null,null,{"$f":"IF(AND($C3062>0,AA3062=\"\"),1,0)","v":0},{"$f":"IF(AND($C3062>0,AB3062=\"\"),1,0)","v":0},{"$f":"IF(AND($C3062>0,AC3062=\"\"),1,0)","v":0},{"$f":"IF(AND(C3062<AA3062+AB3062+AC3062),1,0)","v":0},{"$f":"IF(AND($C3062>0,AD3062=\"\"),1,0)","v":0},{"$f":"IF(AND($C3062>0,AE3062=\"\"),1,0)","v":0},{"$f":"IF(AND($C3062>0,AF3062=\"\"),1,0)","v":0},{"$f":"IF(AND($C3062>0,AG3062=\"\"),1,0)","v":0},{"$f":"IF(AND($C3062>0,AH3062=\"\"),1,0)","v":0},{"$f":"IF(AND($C3062>0,AI3062=\"\"),1,0)","v":0},{"$f":"IF(AND($C3062>0,AJ3062=\"\"),1,0)","v":0}]
[3001002,"Audífonos",0,0,null,null,null,null,null,null,null,null,null,null,null,null,null,null,null,null,null,null,null,null,null,null,null,null,null,null,null,null,null,null,null,null,null,null,"",null,null,null,null,null,null,null,null,null,null,null,null,null,null,null,null,null,null,null,null,null,null,null,null,null,null,null,null,null,null,null,null,null,null,null,null,null,null,null,"","","","","","","","","","","",null,null,null,null,0,0,0,0,0,0,0,0,0,0,0]
["TOTAL",null,{"$f":"SUM(C3062:C3063)","v":0},{"$f":"SUM(D3062:D3063)","v":0},{"$f":"SUM(E3062:E3063)","v":0},{"$f":"SUM(F3062:F3063)","v":0},{"$f":"SUM(G3062:G3063)","v":0},null,null,null,null,null,null,null,null,null,null,null,null,null,null,null,null,null,null,null,{"$f":"SUM(AA3062:AA3063)","v":0},0,0,0,0,0,0,0,0,0,0,0]
["PROGRAMA CÁNCER"]
["01012665","Test Inmunoquímico de Deposiciones",{"$f":"SUM(D3066+G3066)","v":0},{"$f":"SUM(E3066:F3066)","v":0},null,null,null,null,null,null,null,null,null,null,null,null,null,null,null,null,null,null,null,null,null,null,null,null,null,null,null,null,null,null,null,null,null,null,{"$f":"CA3066&CB3066&CC3066&CD3066&CE3066&CF3066&CG3066&CH3066&CI3066&CJ3066&CK3066&CL3066&CM3066","v":""},null,null,null,null,null,null,null,null,null,null,null,null,null,null,null,null,null,null,null,null,null,null,null,null,null,null,null,null,null,null,null,null,null,null,null,null,null,null,null,{"$f":"IF(AND($C3066>0,AA3066=\"\"),\" * No olvide digitar la variable \"&$AA$8&\"\"&\": Atención Cerrada. Digite Cero si no tiene.\",\"\")","v":""},{"$f":"IF(AND($C3066>0,AB3066=\"\"),\" * No olvide digitar la variable \"&$AA$8&\"\"&\": Atención Abierta. Digite Cero si no tiene.\",\"\")","v":""},{"$f":"IF(AND($C3066>0,AC3066=\"\"),\" * No olvide digitar la variable \"&$AA$8&\"\"&\": Emergencia. Digite Cero si no tiene.\",\"\")","v":""},{"$f":"IF(AND(C3066<AA3066+AB3066+AC3066),\" * La Suma de la variable \"&$AA$8&\"\"&\" no puede ser mayor al Total.\",\"\")","v":""},{"$f":"IF(AND($C3066>0,AD3066=\"\"),\" * No olvide digitar la variable \"&$AD$8&\"\"&\": Honorarios. Digite Cero si no tiene.\",\"\")","v":""},{"$f":"IF(AND($C3066>0,AE3066=\"\"),\" * No olvide digitar la variable \"&$AD$8&\"\"&\": Convenios. Digite Cero si no tiene.\",\"\")","v":""},{"$f":"IF(AND($C3066>0,AF3066=\"\"),\" * No olvide digitar la variable \"&$AD$8&\"\"&\": Consultores de llamada. Digite Cero si no tiene.\",\"\")","v":""},{"$f":"IF(AND($C3066>0,AG3066=\"\"),\" * No olvide digitar la variable \"&$AG$8&\"\"&\". Digite Cero si no tiene.\",\"\")","v":""},{"$f":"IF(AND($C3066>0,AH3066=\"\"),\" * No olvide digitar la variable \"&$AH$8&\"\"&\" Al Sistema. Digite Cero si no tiene.\",\"\")","v":""},{"$f":"IF(AND($C3066>0,AI3066=\"\"),\" * No olvide digitar la variable \"&$AH$8&\"\"&\" al Extrasistema. Digite Cero si no tiene.\",\"\")","v":""},{"$f":"IF(AND($C3066>0,AJ3066=\"\"),\" * No olvide digitar la variable \"&$AJ$8&\"\"&\". Digite Cero si no tiene.\",\"\")","v":""},null,null,null,null,{"$f":"IF(AND($C3066>0,AA3066=\"\"),1,0)","v":0},{"$f":"IF(AND($C3066>0,AB3066=\"\"),1,0)","v":0},{"$f":"IF(AND($C3066>0,AC3066=\"\"),1,0)","v":0},{"$f":"IF(AND(C3066<AA3066+AB3066+AC3066),1,0)","v":0},{"$f":"IF(AND($C3066>0,AD3066=\"\"),1,0)","v":0},{"$f":"IF(AND($C3066>0,AE3066=\"\"),1,0)","v":0},{"$f":"IF(AND($C3066>0,AF3066=\"\"),1,0)","v":0},{"$f":"IF(AND($C3066>0,AG3066=\"\"),1,0)","v":0},{"$f":"IF(AND($C3066>0,AH3066=\"\"),1,0)","v":0},{"$f":"IF(AND($C3066>0,AI3066=\"\"),1,0)","v":0},{"$f":"IF(AND($C3066>0,AJ3066=\"\"),1,0)","v":0}]
["01012666","Yodoterapia",0,0,null,null,null,null,null,null,null,null,null,null,null,null,null,null,null,null,null,null,null,null,null,null,null,null,null,null,null,null,null,null,null,null,null,null,"",null,null,null,null,null,null,null,null,null,null,null,null,null,null,null,null,null,null,null,null,null,null,null,null,null,null,null,null,null,null,null,null,null,null,null,null,null,null,null,"","","","","","","","","","","",null,null,null,null,0,0,0,0,0,0,0,0,0,0,0]
["01012668","Braquiterapia baja tasa en dosis (LDR)",0,0,null,null,null,null,null,null,null,null,null,null,null,null,null,null,null,null,null,null,null,null,null,null,null,null,null,null,null,null,null,null,null,null,null,null,"",null,null,null,null,null,null,null,null,null,null,null,null,null,null,null,null,null,null,null,null,null,null,null,null,null,null,null,null,null,null,null,null,null,null,null,null,null,null,null,"","","","","","","","","","","",null,null,null,null,0,0,0,0,0,0,0,0,0,0,0]
["01012669","Teleterapia de alta complejidad con acelerador lineal (3D)",0,0,null,null,null,null,null,null,null,null,null,null,null,null,null,null,null,null,null,null,null,null,null,null,null,null,null,null,null,null,null,null,null,null,null,null,"",null,null,null,null,null,null,null,null,null,null,null,null,null,null,null,null,null,null,null,null,null,null,null,null,null,null,null,null,null,null,null,null,null,null,null,null,null,null,null,"","","","","","","","","","","",null,null,null,null,0,0,0,0,0,0,0,0,0,0,0]
["01012670","Teleterapia estándar (3D) con acelerador lineal ",0,0,null,null,null,null,null,null,null,null,null,null,null,null,null,null,null,null,null,null,null,null,null,null,null,null,null,null,null,null,null,null,null,null,null,null,"",null,null,null,null,null,null,null,null,null,null,null,null,null,null,null,null,null,null,null,null,null,null,null,null,null,null,null,null,null,null,null,null,null,null,null,null,null,null,null,"","","","","","","","","","","",null,null,null,null,0,0,0,0,0,0,0,0,0,0,0]
["01012671","Telecobaltoterapia con acelerador lineal",0,0,null,null,null,null,null,null,null,null,null,null,null,null,null,null,null,null,null,null,null,null,null,null,null,null,null,null,null,null,null,null,null,null,null,null,"",null,null,null,null,null,null,null,null,null,null,null,null,null,null,null,null,null,null,null,null,null,null,null,null,null,null,null,null,null,null,null,null,null,null,null,null,null,null,null,"","","","","","","","","","","",null,null,null,null,0,0,0,0,0,0,0,0,0,0,0]
["TOTAL",null,{"$f":"SUM(C3066:C3071)","v":0},{"$f":"SUM(D3066:D3071)","v":0},{"$f":"SUM(E3066:E3071)","v":0},{"$f":"SUM(F3066:F3071)","v":0},{"$f":"SUM(G3066:G3071)","v":0},null,null,null,null,null,null,null,null,null,null,null,null,null,null,null,null,null,null,null,{"$f":"SUM(AA3066:AA3071)","v":0},0,0,0,0,0,0,0,0,0,0,0]
["TRATAMIENTO ABREVIADO DE LA TUBERCULOSIS     "]
[3003001,"TBC, esquema primario (mensual)",0,0,null,null,null,null,null,null,null,null,null,null,null,null,null,null,null,null,null,null,null,null,null,null,null,null,null,null,null,null,null,null,null,null,null,null,{"$f":"CA3074&CB3074&CC3074&CD3074&CE3074&CF3074&CG3074&CH3074&CI3074&CJ3074&CK3074&CL3074&CM3074","v":""},null,null,null,null,null,null,null,null,null,null,null,null,null,null,null,null,null,null,null,null,null,null,null,null,null,null,null,null,null,null,null,null,null,null,null,null,null,null,null,{"$f":"IF(AND($C3074>0,AA3074=\"\"),\" * No olvide digitar la variable \"&$AA$8&\"\"&\": Atención Cerrada. Digite Cero si no tiene.\",\"\")","v":""},{"$f":"IF(AND($C3074>0,AB3074=\"\"),\" * No olvide digitar la variable \"&$AA$8&\"\"&\": Atención Abierta. Digite Cero si no tiene.\",\"\")","v":""},{"$f":"IF(AND($C3074>0,AC3074=\"\"),\" * No olvide digitar la variable \"&$AA$8&\"\"&\": Emergencia. Digite Cero si no tiene.\",\"\")","v":""},{"$f":"IF(AND(C3074<AA3074+AB3074+AC3074),\" * La Suma de la variable \"&$AA$8&\"\"&\" no puede ser mayor al Total.\",\"\")","v":""},{"$f":"IF(AND($C3074>0,AD3074=\"\"),\" * No olvide digitar la variable \"&$AD$8&\"\"&\": Honorarios. Digite Cero si no tiene.\",\"\")","v":""},{"$f":"IF(AND($C3074>0,AE3074=\"\"),\" * No olvide digitar la variable \"&$AD$8&\"\"&\": Convenios. Digite Cero si no tiene.\",\"\")","v":""},{"$f":"IF(AND($C3074>0,AF3074=\"\"),\" * No olvide digitar la variable \"&$AD$8&\"\"&\": Consultores de llamada. Digite Cero si no tiene.\",\"\")","v":""},{"$f":"IF(AND($C3074>0,AG3074=\"\"),\" * No olvide digitar la variable \"&$AG$8&\"\"&\". Digite Cero si no tiene.\",\"\")","v":""},{"$f":"IF(AND($C3074>0,AH3074=\"\"),\" * No olvide digitar la variable \"&$AH$8&\"\"&\" Al Sistema. Digite Cero si no tiene.\",\"\")","v":""},{"$f":"IF(AND($C3074>0,AI3074=\"\"),\" * No olvide digitar la variable \"&$AH$8&\"\"&\" al Extrasistema. Digite Cero si no tiene.\",\"\")","v":""},{"$f":"IF(AND($C3074>0,AJ3074=\"\"),\" * No olvide digitar la variable \"&$AJ$8&\"\"&\". Digite Cero si no tiene.\",\"\")","v":""},null,null,null,null,{"$f":"IF(AND($C3074>0,AA3074=\"\"),1,0)","v":0},{"$f":"IF(AND($C3074>0,AB3074=\"\"),1,0)","v":0},{"$f":"IF(AND($C3074>0,AC3074=\"\"),1,0)","v":0},{"$f":"IF(AND(C3074<AA3074+AB3074+AC3074),1,0)","v":0},{"$f":"IF(AND($C3074>0,AD3074=\"\"),1,0)","v":0},{"$f":"IF(AND($C3074>0,AE3074=\"\"),1,0)","v":0},{"$f":"IF(AND($C3074>0,AF3074=\"\"),1,0)","v":0},{"$f":"IF(AND($C3074>0,AG3074=\"\"),1,0)","v":0},{"$f":"IF(AND($C3074>0,AH3074=\"\"),1,0)","v":0},{"$f":"IF(AND($C3074>0,AI3074=\"\"),1,0)","v":0},{"$f":"IF(AND($C3074>0,AJ3074=\"\"),1,0)","v":0}]
[3003002,"TBC, esquema primario simplificado (mensual)",0,0,null,null,null,null,null,null,null,null,null,null,null,null,null,null,null,null,null,null,null,null,null,null,null,null,null,null,null,null,null,null,null,null,null,null,"",null,null,null,null,null,null,null,null,null,null,null,null,null,null,null,null,null,null,null,null,null,null,null,null,null,null,null,null,null,null,null,null,null,null,null,null,null,null,null,"","","","","","","","","","","",null,null,null,null,0,0,0,0,0,0,0,0,0,0,0]
[3003003,"TBC, esquema secundario (mensual)",0,0,null,null,null,null,null,null,null,null,null,null,null,null,null,null,null,null,null,null,null,null,null,null,null,null,null,null,null,null,null,null,null,null,null,null,"",null,null,null,null,null,null,null,null,null,null,null,null,null,null,null,null,null,null,null,null,null,null,null,null,null,null,null,null,null,null,null,null,null,null,null,null,null,null,null,"","","","","","","","","","","",null,null,null,null,0,0,0,0,0,0,0,0,0,0,0]
[3003004,"TBC, esquema normado de retratamiento (mensual)",0,0,null,null,null,null,null,null,null,null,null,null,null,null,null,null,null,null,null,null,null,null,null,null,null,null,null,null,null,null,null,null,null,null,null,null,"",null,null,null,null,null,null,null,null,null,null,null,null,null,null,null,null,null,null,null,null,null,null,null,null,null,null,null,null,null,null,null,null,null,null,null,null,null,null,null,"","","","","","","","","","","",null,null,null,null,0,0,0,0,0,0,0,0,0,0,0]
[3003005,"TBC, esquema especial de retratamiento (mensual)",0,0,null,null,null,null,null,null,null,null,null,null,null,null,null,null,null,null,null,null,null,null,null,null,null,null,null,null,null,null,null,null,null,null,null,null,"",null,null,null,null,null,null,null,null,null,null,null,null,null,null,null,null,null,null,null,null,null,null,null,null,null,null,null,null,null,null,null,null,null,null,null,null,null,null,null,"","","","","","","","","","","",null,null,null,null,0,0,0,0,0,0,0,0,0,0,0]
["TOTAL",null,{"$f":"SUM(C3074:C3078)","v":0},{"$f":"SUM(D3074:D3078)","v":0},{"$f":"SUM(E3074:E3078)","v":0},{"$f":"SUM(F3074:F3078)","v":0},{"$f":"SUM(G3074:G3078)","v":0},null,null,null,null,null,null,null,null,null,null,null,null,null,null,null,null,null,null,null,{"$f":"SUM(AA3074:AA3078)","v":0},0,0,0,0,0,0,0,0,0,0,0]
[]
[]
[]
[]
[]
[]
[]
[]
[]
[]
[]
[]
[]
[]
[]
[]
[]
[]
[]
[]
[]
[]
[{"$f":"SUM(C12:D60,C63:D71,C75:D121,C124:D125,C128:D134,C137:D143,C146:D174,C177:D187,C190:D208,C212:D286,C289:D367,C370:D413,C416:D428,C431:D508,C512:D568,C571:D588,C591:D638,C641:D648,C651:D659,C662:D709,C712:D751,C755:D811,C814:D833,C836:D863,C866:D888,C891:D930,C954:D958,C933:D949,C961:D966,C969:D975,C978:D985,C988:D992,C995:D996,C999:D1000,C1003:D1004,C1007:D1012,C1015:D1015,C1018:D1018,C1022:D1026,C1030:D1032,C1035:D1042,C1045:D1061,C1064:D1064,C1067:D1126,C1129:D1171,C1174:D1187,C1190:D1199,C1202:D1208,C1212:D1259,C1262:C1342,C1345:C1398,C1401:C1484,C1487:C1545,C1548:C1655,C1658,C1661:C1719,C1722:C1792,C1795:C1809,C1812:C1835,C1838:D1908,C1911:C1992,C1995:C2090,C2093:D2132,C2135:D2190,C2193:C2305,C2308:C2345,C2348:D2370,C2374:D2382,C2385:C2463,C2466:D2493,C2496:C2500,C2503:C2540,C2543:D2546,C2547:C2553,C2554:D2555,C2558:D2570,C2573:C2784,C2787:C2789,C2792:D2798,C2801:D2838,C2841:D2846,C2849:D2855,C2859:D2873,C2876:D2892,C2895:D2910,C2913:D2944,C2947:C3021,C3024:D3059,C3062:D3063,C3066:D3071,C3074:D3078)","v":0},{"$f":"SUM(CP12:CZ3078)","v":0}]

{"sheet":"B17","index":2,"n_rows":250,"n_cols":33,"rows_kept":250,"cut":false,"hidden":false,"merged":[[246,0,246,1],[247,0,249,0],[239,0,239,1],[240,0,240,1],[241,0,241,1],[242,0,242,1],[243,0,243,1],[244,0,244,1],[229,0,229,1],[232,0,232,1],[233,0,233,1],[234,0,234,2],[236,0,237,0],[238,0,238,1],[222,0,222,1],[224,0,224,1],[225,0,225,1],[226,0,226,1],[227,0,227,1],[228,0,228,1],[216,0,216,1],[217,0,217,1],[218,0,218,1],[219,0,219,1],[220,0,220,1],[221,0,221,1],[210,0,210,1],[211,0,211,1],[212,0,212,1],[213,0,213,1],[214,0,214,1],[215,0,215,1],[208,9,209,9],[208,10,209,10],[208,11,209,11],[208,12,209,12],[208,14,209,14],[208,15,209,15],[207,7,207,9],[207,10,207,12],[207,13,209,13],[207,14,207,15],[207,16,209,16],[208,3,209,3],[208,4,208,5],[208,6,209,6],[208,7,209,7],[208,8,209,8],[202,3,203,3],[204,0,204,1],[205,0,205,1],[206,0,206,1],[207,0,209,1],[207,2,209,2],[207,3,207,6],[197,0,197,1],[198,0,198,1],[199,0,200,0],[201,0,201,1],[202,0,203,1],[202,2,203,2],[194,0,194,5],[195,0,196,1],[195,2,196,2],[195,3,196,3],[195,4,196,4],[195,5,196,5],[185,0,185,1],[186,0,189,0],[190,0,190,1],[191,0,191,1],[192,0,192,1],[193,0,193,1],[179,0,179,1],[180,0,180,1],[181,0,181,1],[182,0,182,1],[183,0,183,1],[184,0,184,1],[173,0,173,1],[174,0,174,1],[175,0,175,1],[176,0,176,1],[177,0,177,1],[178,0,178,1],[170,10,172,10],[170,11,171,13],[170,14,172,14],[170,15,171,16],[170,17,172,17],[171,4,171,6],[171,7,171,9],[168,0,168,1],[169,0,169,1],[170,0,172,1],[170,2,172,2],[170,3,172,3],[170,4,170,9],[156,16,158,16],[157,3,158,3],[157,4,157,5],[157,6,158,6],[157,7,158,7],[157,8,158,8],[157,9,158,9],[157,10,158,10],[157,11,158,11],[157,12,158,12],[149,0,149,1],[146,10,146,12],[146,13,148,13],[146,14,146,15],[156,2,158,2],[156,3,156,6],[156,7,156,9],[156,10,156,12],[156,13,158,13],[156,14,156,15],[157,14,158,14],[157,15,158,15],[150,0,150,1],[151,0,151,1],[152,0,152,1],[153,0,153,1],[154,0,154,1],[156,0,158,1],[146,16,148,16],[147,3,148,3],[147,4,147,5],[147,6,148,6],[147,7,148,7],[147,8,148,8],[147,9,148,9],[143,0,143,1],[144,0,144,1],[146,0,148,1],[146,2,148,2],[146,3,146,6],[146,7,146,9],[147,10,148,10],[147,11,148,11],[147,12,148,12],[147,14,148,14],[147,15,148,15],[126,0,129,0],[133,0,133,1],[137,0,140,0],[117,14,117,15],[117,16,119,16],[117,17,119,17],[118,3,119,3],[118,4,118,5],[118,6,119,6],[118,7,119,7],[118,8,119,8],[118,9,119,9],[118,10,119,10],[117,0,119,1],[117,2,119,2],[117,3,117,6],[117,7,117,9],[117,10,117,12],[117,13,119,13],[118,11,119,11],[118,12,119,12],[5,0,5,3],[7,0,7,2],[56,0,56,1],[84,0,84,1],[94,0,94,1],[99,0,99,1],[118,14,119,14],[118,15,119,15],[120,0,120,1]]}
["SERVICIO DE SALUD / ESTABLECIMIENTO MUNICIPAL"]
[{"$f":"CONCATENATE(\"COMUNA: \",NOMBRE!B2,\" (\",NOMBRE!C2,NOMBRE!D2,NOMBRE!E2,NOMBRE!F2,NOMBRE!G2,\" )\")","v":"COMUNA:  ( )"}]
[{"$f":"CONCATENATE(\"ESTABLECIMIENTO/ESTRATEGIA: \",NOMBRE!B3,\" (\",NOMBRE!C3,NOMBRE!D3,NOMBRE!E3,NOMBRE!F3,NOMBRE!G3,NOMBRE!H3,\" )\")","v":"ESTABLECIMIENTO/ESTRATEGIA:  ( )"}]
[{"$f":"CONCATENATE(\"MES: \", NOMBRE!B6, \" (\", NOMBRE!C6,NOMBRE!D6,\")\")","v":"MES:  ()"}]
[{"$f":"CONCATENATE(\"AÑO: \",NOMBRE!B7)","v":"AÑO: 2025"}]
["REM-B17.   ACTIVIDADES DE APOYO DIAGNÓSTICO y TERAPEUTICO"]
[]
["SECCION A: CONSULTAS Y ATENCIONES "]
["CÓDIGOS","IDENTIFICACIÓN DE PRESTACIONES","TOTAL ","TOTAL BENEFICIARIOS MAI"]
[null,"CONSULTAS Y ATENCIÓN MÉDICA ",{"$f":"SUM(C11:C17)","v":0},{"$f":"SUM(D11:D17)","v":0}]
[null,"Consulta Médica general",{"$f":"B!C58","v":0},{"$f":"B!E58","v":0}]
[null,"Consulta Médica de Especialidades",{"$f":"SUM(B!C12:C57)","v":0},{"$f":"SUM(B!E12:E57)","v":0}]
[null,"Consulta en Unidades de Urgencia Hospitalaria",{"$f":"B!C60","v":0},{"$f":"B!E60","v":0}]
[null,"Atención médica del recién nacido en sala de parto o pabellón quirúrgico c/s reanimación cardio-respiratoria",{"$f":"B!C59","v":0},{"$f":"B!E59","v":0}]
[null,"Telemedicina/ Teleconsulta por profesional médico",{"$f":"SUM(B!C75:C120)","v":0},{"$f":"SUM(B!E75:E120)","v":0}]
[null,"Teleinterconsulta (Telemedicina)",{"$f":"B!C124","v":0},{"$f":"B!E124","v":0}]
["0903006","Consultoría de salud mental por psiquiatra (sesión 4 hrs.) (mínimo 8 pacientes)",{"$f":"B!C1194","v":0},{"$f":"B!E1194","v":0}]
[null,"CONSULTAS POR OTROS PROFESIONALES DE LA SALUD",{"$f":"SUM(C19:C29)","v":0},{"$f":"SUM(D19:D29)","v":0}]
["0102008","Consulta o control por enfermera/o",{"$f":"B!C66","v":0},{"$f":"B!E66","v":0}]
["0102002","Control de salud niño con EDP por enfermera/o",{"$f":"B!C63","v":0},{"$f":"B!E63","v":0}]
["0102003","Consulta o control por auxiliar de enfermería",{"$f":"B!C64","v":0},{"$f":"B!E64","v":0}]
["0102005","Consulta por fonoaudiólogo/a",{"$f":"B!C65","v":0},{"$f":"B!E65","v":0}]
["0102009","Consulta o control por matrón/a",{"$f":"B!C67","v":0},{"$f":"B!E67","v":0}]
["0102010","Consulta o control por nutricionista",{"$f":"B!C68","v":0},{"$f":"B!E68","v":0}]
["0903002","Consulta o control psicológico clínico",{"$f":"B!C1190","v":0},{"$f":"B!E1190","v":0}]
["0903003","Consulta de salud mental por otros profesionales",{"$f":"B!C1191","v":0},{"$f":"B!E1191","v":0}]
["0903004","Intervención psicosocial grupal (4 a 8 pacientes, familiares o cuidadores)",{"$f":"B!C1192","v":0},{"$f":"B!E1192","v":0}]
["0903005","Psicoterapia de grupo (por psicólogo o psiquiatra) (4 a 8 pacientes)"]
[null,"Telemedicina/ Teleconsulta por profesional no médico",{"$f":"B!C121","v":0},{"$f":"B!E121","v":0}]
[null,"OTRAS CONSULTAS Y ATENCIÓN MEDICA",{"$f":"SUM(C31:C32)","v":0}]
[null,"Consulta por otros profesionales ",{"$f":"B!C70","v":0}]
[null,"Consulta por Trabajador/a Social",{"$f":"B!C71","v":0}]
[null,"PROGRAMA DE REHABILITACIÓN",{"$f":"SUM(C34:C35)","v":0},{"$f":"SUM(D34:D35)","v":0}]
["0903007","Programa de rehabilitación tipo 1 (mensual, grupo 6 a 10 pers.)",{"$f":"B!C1195","v":0},{"$f":"B!E1195","v":0}]
["0903008","Programa de rehabilitación tipo 2 (mensual, grupo 5 a 7 pers.)",{"$f":"B!C1196","v":0},{"$f":"B!E1196","v":0}]
[null,"OTROS PROGRAMAS",{"$f":"C37","v":0}]
["0901003","Sesión de terapia electroconvulsivante (hasta 6 sesiones por ciclo o sesiones de mantención) c/ sesión",{"$f":"B!C1203","v":0}]
[null,"EDUCACION DE GRUPO",{"$f":"SUM(C39:C44)","v":0},{"$f":"SUM(D39:D44)","v":0}]
["0103001","Educación de grupo por médico",{"$f":"B!C128","v":0},{"$f":"B!E128","v":0}]
["0103005","Educación de grupo por enfermera",{"$f":"B!C131","v":0},{"$f":"B!E131","v":0}]
["0103003","Educación de grupo por Trabajador/a Social",{"$f":"B!C129","v":0},{"$f":"B!E129","v":0}]
["0103004","Educación de grupo por auxiliar de enfermería",{"$f":"B!C130","v":0},{"$f":"B!E130","v":0}]
["0103006","Educación de grupo por matrona ",{"$f":"B!C132","v":0},{"$f":"B!E132","v":0}]
["0103007","Educación de grupo por nutricionista",{"$f":"B!C133","v":0},{"$f":"B!E133","v":0}]
[null,"OTRA EDUCACIÓN DE GRUPO",{"$f":"C46","v":0}]
[null,"Educación de grupo por otro integrante del equipo de salud",{"$f":"B!C134","v":0}]
[null,"VISITAS DOMICILIARIAS",{"$f":"SUM(C48:C52)","v":0},{"$f":"SUM(D48:D52)","v":0}]
["0104004","Visita a domicilio por enfermera",{"$f":"B!C139","v":0},{"$f":"B!E139","v":0}]
["0104002","Visita a domicilio por asistente social",{"$f":"B!C137","v":0},{"$f":"B!E137","v":0}]
["0104003","Visita a domicilio por auxiliar de enfermería",{"$f":"B!C138","v":0},{"$f":"B!E138","v":0}]
["0104005","Visita a domicilio por matrona",{"$f":"B!C140","v":0},{"$f":"B!E140","v":0}]
["0104006","Visita a domicilio por nutricionista",{"$f":"B!C141","v":0},{"$f":"B!E141","v":0}]
[null,"OTRAS VISITAS DOMICILIARIAS",{"$f":"SUM(C54:C55)","v":0}]
[null,"Visita a domicilio por otro integrante del equipo de salud",{"$f":"B!C142","v":0}]
[null,"Visita domiciliaria por profesional y técnico paramédico",{"$f":"B!C143","v":0}]
[null,"TOTAL ",{"$f":"C10+C18+C33+C38+C47+C30+C36+C45+C53","v":0},{"$f":"D10+D18+D33+D38+D47","v":0}]
["SECCION B: ATENCIÓN CERRADA, DIAS DE HOSPITALIZACION "]
["CÓDIGOS","IDENTIFICACIÓN DE PRESTACIONES","TOTAL ","TOTAL BENEFICIARIOS MAI"]
[null,"ATENCIÓN CERRADA "]
["0201010","Dia Cama de Hospitalización Integral Cuidados Básicos",{"$f":"B!C190","v":0},{"$f":"B!E190","v":0}]
["0201110","Dia Cama de Hospitalización Integral Cuidados Medios",{"$f":"B!C191","v":0},{"$f":"B!E191","v":0}]
["0201301","Día Cama de Hospitalización Integral Adulto en Unidad de Tratamiento Intermedio (U.T.I)",{"$f":"B!C192","v":0},{"$f":"B!E192","v":0}]
["0201302","Día Cama de Hospitalización Integral Pediátrica en Unidad de Tratamiento Intermedio (U.T.I)",{"$f":"B!C193","v":0},{"$f":"B!E193","v":0}]
["0201303","Día Cama de Hospitalización Integral Neonatal en Unidad de Tratamiento Intermedio (U.T.I)",{"$f":"B!C194","v":0},{"$f":"B!E194","v":0}]
["0201201","Día Cama de Hospitalización Integral Adulto en Unidad de Cuidado Intensivo (U.C.I.) ",{"$f":"B!C195","v":0},{"$f":"B!E195","v":0}]
["0201202","Día Cama de Hospitalización Integral Pediátrica en Unidad de Cuidado Intensivo (U.C.I). ",{"$f":"B!C196","v":0},{"$f":"B!E196","v":0}]
["0201203","Día Cama de Hospitalización Integral Neonatal en Unidad de Cuidado Intensivo (U.C.I.)",{"$f":"B!C197","v":0},{"$f":"B!E197","v":0}]
["0201410","Día Cama de Hospitalización Integral Obstetricia ",{"$f":"B!C198","v":0},{"$f":"B!E198","v":0}]
["0201403","Día Cama de Hospitalización Integral Sala Cuna",{"$f":"B!C199","v":0},{"$f":"B!E199","v":0}]
["0201404","Día Cama de Hospitalización Integral Incubadora",{"$f":"B!C200","v":0},{"$f":"B!E200","v":0}]
["0201406","Día Cama de Hospitalización Integral Psiquiatría Cuidados Medios",{"$f":"B!C202","v":0},{"$f":"B!E202","v":0}]
["0201407","Día Cama de Hospitalizacion Integral de Observación - Ambulatorio",{"$f":"B!C203","v":0},{"$f":"B!E203","v":0}]
["0201501","Dia Cama Hospitalizacion Domiciliaria Cuidados Básicos",{"$f":"B!C204","v":0},{"$f":"B!E204","v":0}]
["0201502","Dia Cama Hospitalizacion Domiciliaria Cuidados Medios ",{"$f":"B!C205","v":0},{"$f":"B!E205","v":0}]
["0201503","Dia Cama Hospitalizacion Domiciliaria Cuidados Alta Complejidad ",{"$f":"B!C206","v":0},{"$f":"B!E206","v":0}]
[null,"TOTAL ",{"$f":"SUM(C60:C75)","v":0},{"$f":"SUM(D60:D75)","v":0}]
["SECCIÓN C:TRATAMIENTO ABREVIADO DE LA TUBERCULOSIS"]
["CÓDIGOS","TRATAMIENTO ABREVIADO DE LA TUBERCULOSIS","TOTAL ","TOTAL BENEFICIARIOS MAI"]
[3003001,"TBC, Esquema primario (mensual)",{"$f":"B!C3074","v":0},{"$f":"B!E3074","v":0}]
["3003002","TBC, Esquema primario simplificado (mensual)",{"$f":"B!C3075","v":0},{"$f":"B!E3075","v":0}]
["3003003","TBC, Esquema secundario (mensual)",{"$f":"B!C3076","v":0},{"$f":"B!E3076","v":0}]
["3003004","TBC, Esquema normado de retratamiento (mensual)",{"$f":"B!C3077","v":0},{"$f":"B!E3077","v":0}]
["3003005","TBC, Esquema especial de retratamiento (mensual)",{"$f":"B!C3078","v":0},{"$f":"B!E3078","v":0}]
[null,"TOTAL ",{"$f":"SUM(C79:C83)","v":0},{"$f":"SUM(D79:D83)","v":0}]
["SECCIÓN D:TRASLADO, RESCATES Y RONDAS RURALES"]
["CÓDIGOS","TRASLADO, RESCATES Y RONDAS RURALES","TOTAL ","TOTAL BENEFICIARIOS MAI"]
[2401061,"Rescate simple y/o traslado en móvil 1",{"$f":"B!C2849","v":0},{"$f":"B!E2849","v":0}]
["2401062","Rescate profesionalizado y/o traslado paciente complejo móvil 2",{"$f":"B!C2850","v":0},{"$f":"B!E2850","v":0}]
["2401063","Rescate medicalizado y/o traslado paciente critico en móvil 3",{"$f":"B!C2851","v":0},{"$f":"B!E2851","v":0}]
["2401064","Traslado en ambulancia",{"$f":"B!C2852","v":0},{"$f":"B!E2852","v":0}]
["2401065","Ronda rural terrestre, c/ km recorrido",{"$f":"B!C2853","v":0},{"$f":"B!E2853","v":0}]
["2401066","Ronda rural aérea, c/ hora de vuelo",{"$f":"B!C2854","v":0},{"$f":"B!E2854","v":0}]
["2401067","Ronda rural marítima, c/ hora de navegación",{"$f":"B!C2855","v":0},{"$f":"B!E2855","v":0}]
[null,"TOTAL ",{"$f":"SUM(C87:C93)","v":0},{"$f":"SUM(D87:D93)","v":0}]
["SECCION E: PARTOS"]
["CÓDIGOS","IDENTIFICACION DE PRESTACIONES","TOTAL ","TOTAL BENEFICIARIOS MAI"]
[2004103,"Parto normal",{"$f":"B!C2554","v":0},{"$f":"B!E2554","v":0}]
["2004113","Parto distósico vaginal",{"$f":"B!C2555","v":0},{"$f":"B!E2555","v":0}]
[null,"TOTAL ",{"$f":"SUM(C97:C98)","v":0},{"$f":"SUM(D97:D98)","v":0}]
["SECCION F: ATENCIÓN ODONTOLOGICA"]
["CÓDIGOS","PRESTACIONES","TOTAL ","TOTAL BENEFICIARIOS MAI"]
["2701XXX","Consulta y atención odontológica",{"$f":"B!C2874","v":0},{"$f":"B!E2874","v":0}]
["2702XXX","Exámenes imagenológicos odontológico",{"$f":"B!C2893","v":0},{"$f":"B!E2893","v":0}]
["2703XXX","Odontología general: Actividades preventivas y recuperativas",{"$f":"B!C2911","v":0},{"$f":"B!E2911","v":0}]
["2704XXX","Especialidades",{"$f":"B!C2945","v":0},{"$f":"B!E2945","v":0}]
["2705XXX","Cirugías",{"$f":"SUM(B!C2947:C3018)","v":0},{"$f":"SUM(B!E2947:E3018)","v":0}]
[null,"Otras prestaciones odontológicas",{"$f":"B!C3060","v":0}]
[null,"TOTAL",{"$f":"SUM(C102:C107)","v":0},{"$f":"SUM(D102:D106)","v":0}]
["SECCION G: LENTES, AUDIFONOS"]
["CÓDIGOS","IDENTIFICACIÓN DE PRESTACIONES","TOTAL  ","TOTAL BENEFICIARIOS MAI"]
[3001001,"Lentes ópticos ",{"$f":"B!C3062","v":0},{"$f":"B!E3062","v":0}]
["3001002","Audífonos ",{"$f":"B!C3063","v":0},{"$f":"B!E3063","v":0}]
[null,"TOTAL",{"$f":"SUM(C111:C112)","v":0},{"$f":"SUM(D111:D112)","v":0}]
["SECCIÓN H: MEDICINA TRANSFUSIONAL"]
["CÓDIGOS","IDENTIFICACIÓN DE PRESTACIONES","TOTAL  ","TOTAL BENEFICIARIOS MAI"]
["Grupo 07","Medicina Transfusional",{"$f":"B!C1172","v":0},{"$f":"B!E1172","v":0}]
["SECCION I: EXÁMENES DE DIAGNÓSTICO"]
["TIPO DE EXAMEN",null,"TOTAL","EXAMENES REALIZADOS",null,null,null,"PROCEDENCIA",null,null,"PRODUCCION INTRA HOSPITAL",null,null,"OPERATIVO","COMPRAS REALIZADAS",null,"VENTAS DE SERVICIOS","TOTAL DE PROCEDIMIENTOS INFORMADOS"]
[null,null,null,"TOTAL Beneficiarios","Beneficiarios",null,"NO Beneficiarios","Atención Cerrada","Atención Abierta","Emergencia","Por Honorarios","Por Convenios","Por Consultores de llamada",null,"Al Sistema","Extrasistema"]
[null,null,null,null,"MAI","MLE"]
["TOTAL EXÁMENES LABORATORIO",null,{"$f":"+C122+C123+C124+C125+C126+C127+C131+C132+C133","v":0},{"$f":"+D122+D123+D124+D125+D126+D127+D131+D132+D133","v":0},0,0,0,0,0,0,0,0,0,0,0,0,{"$f":"+Q122+Q123+Q124+Q125+Q126+Q127+Q131+Q132+Q133","v":0},null,null,null,null,null,null,null,null,null,{"$f":"IF(C121<D121,\"Beneficiarios no puede ser mayor al TOTAL\",\"\")","v":""},null,null,null,null,{"$f":"IF(C121<D121,1,0)","v":0}]
["I  ","Hematológicos",{"$f":"B!C287","v":0},{"$f":"B!D287","v":0},{"$f":"B!E287","v":0},{"$f":"B!F287","v":0},{"$f":"B!G287","v":0},{"$f":"B!AA287","v":0},{"$f":"B!AB287","v":0},{"$f":"B!AC287","v":0},{"$f":"B!AD287","v":0},{"$f":"B!AE287","v":0},{"$f":"B!AF287","v":0},{"$f":"B!AG287","v":0},{"$f":"B!AH287","v":0},{"$f":"B!AI287","v":0},{"$f":"B!AJ287","v":0},null,null,null,null,null,null,null,null,null,{"$f":"IF(C122<D122,\"Beneficiarios no puede ser mayor al TOTAL\",\"\")","v":""},null,null,null,null,0]
["II  ","Bioquímicos",{"$f":"B!C368","v":0},{"$f":"B!D368","v":0},{"$f":"B!E368","v":0},{"$f":"B!F368","v":0},{"$f":"B!G368","v":0},{"$f":"B!AA368","v":0},{"$f":"B!AB368","v":0},{"$f":"B!AC368","v":0},{"$f":"B!AD368","v":0},{"$f":"B!AE368","v":0},{"$f":"B!AF368","v":0},{"$f":"B!AG368","v":0},{"$f":"B!AH368","v":0},{"$f":"B!AI368","v":0},{"$f":"B!AJ368","v":0},null,null,null,null,null,null,null,null,null,"",null,null,null,null,0]
["III","Hormonales",{"$f":"B!C414","v":0},{"$f":"B!D414","v":0},{"$f":"B!E414","v":0},{"$f":"B!F414","v":0},{"$f":"B!G414","v":0},{"$f":"B!AA414","v":0},{"$f":"B!AB414","v":0},{"$f":"B!AC414","v":0},{"$f":"B!AD414","v":0},{"$f":"B!AE414","v":0},{"$f":"B!AF414","v":0},{"$f":"B!AG414","v":0},{"$f":"B!AH414","v":0},{"$f":"B!AI414","v":0},{"$f":"B!AJ414","v":0},null,null,null,null,null,null,null,null,null,"",null,null,null,null,0]
["IV","Genética",{"$f":"B!C429","v":0},{"$f":"B!D429","v":0},{"$f":"B!E429","v":0},{"$f":"B!F429","v":0},{"$f":"B!G429","v":0},{"$f":"B!AA429","v":0},{"$f":"B!AB429","v":0},{"$f":"B!AC429","v":0},{"$f":"B!AD429","v":0},{"$f":"B!AE429","v":0},{"$f":"B!AF429","v":0},{"$f":"B!AG429","v":0},{"$f":"B!AH429","v":0},{"$f":"B!AI429","v":0},{"$f":"B!AJ429","v":0},null,null,null,null,null,null,null,null,null,"",null,null,null,null,0]
["V","Inmunológicos",{"$f":"B!C509","v":0},{"$f":"B!D509","v":0},{"$f":"B!E509","v":0},{"$f":"B!F509","v":0},{"$f":"B!G509","v":0},{"$f":"B!AA509","v":0},{"$f":"B!AB509","v":0},{"$f":"B!AC509","v":0},{"$f":"B!AD509","v":0},{"$f":"B!AE509","v":0},{"$f":"B!AF509","v":0},{"$f":"B!AG509","v":0},{"$f":"B!AH509","v":0},{"$f":"B!AI509","v":0},{"$f":"B!AJ509","v":0},null,null,null,null,null,null,null,null,null,"",null,null,null,null,0]
["VI  ","Microbiológicos",{"$f":"SUM(C128:C130)","v":0},{"$f":"SUM(D128:D130)","v":0},{"$f":"SUM(E128:E130)","v":0},0,0,0,0,0,0,0,0,0,0,0,{"$f":"SUM(Q128:Q130)","v":0},null,null,null,null,null,null,null,null,null,"",null,null,null,null,0]
[null,"a) Bacterias y Hongos",{"$f":"B!C569","v":0},{"$f":"B!D569","v":0},{"$f":"B!E569","v":0},{"$f":"B!F569","v":0},{"$f":"B!G569","v":0},{"$f":"B!AA569","v":0},{"$f":"B!AB569","v":0},{"$f":"B!AC569","v":0},{"$f":"B!AD569","v":0},{"$f":"B!AE569","v":0},{"$f":"B!AF569","v":0},{"$f":"B!AG569","v":0},{"$f":"B!AH569","v":0},{"$f":"B!AI569","v":0},{"$f":"B!AJ569","v":0},null,null,null,null,null,null,null,null,null,"",null,null,null,null,0]
[null,"b) Parásitos",{"$f":"B!C589","v":0},{"$f":"B!D589","v":0},{"$f":"B!E589","v":0},{"$f":"B!F589","v":0},{"$f":"B!G589","v":0},{"$f":"B!AA589","v":0},{"$f":"B!AB589","v":0},{"$f":"B!AC589","v":0},{"$f":"B!AD589","v":0},{"$f":"B!AE589","v":0},{"$f":"B!AF589","v":0},{"$f":"B!AG589","v":0},{"$f":"B!AH589","v":0},{"$f":"B!AI589","v":0},{"$f":"B!AJ589","v":0},null,null,null,null,null,null,null,null,null,"",null,null,null,null,0]
[null,"c) Virus",{"$f":"B!C639","v":0},{"$f":"B!D639","v":0},{"$f":"B!E639","v":0},{"$f":"B!F639","v":0},{"$f":"B!G639","v":0},{"$f":"B!AA639","v":0},{"$f":"B!AB639","v":0},{"$f":"B!AC639","v":0},{"$f":"B!AD639","v":0},{"$f":"B!AE639","v":0},{"$f":"B!AF639","v":0},{"$f":"B!AG639","v":0},{"$f":"B!AH639","v":0},{"$f":"B!AI639","v":0},{"$f":"B!AJ639","v":0},null,null,null,null,null,null,null,null,null,"",null,null,null,null,0]
["VII","Procedimiento o Determinación Directa c/Paciente",{"$f":"B!C649","v":0},{"$f":"B!D649","v":0},{"$f":"B!E649","v":0},{"$f":"B!F649","v":0},{"$f":"B!G649","v":0},{"$f":"B!AA649","v":0},{"$f":"B!AB649","v":0},{"$f":"B!AC649","v":0},{"$f":"B!AD649","v":0},{"$f":"B!AE649","v":0},{"$f":"B!AF649","v":0},{"$f":"B!AG649","v":0},{"$f":"B!AH649","v":0},{"$f":"B!AI649","v":0},{"$f":"B!AJ649","v":0},null,null,null,null,null,null,null,null,null,"",null,null,null,null,0]
["VIII  ","Ex. De Deposiciones Exudados. Secrec. y Otros Liq.  ",{"$f":"B!C710","v":0},{"$f":"B!D710","v":0},{"$f":"B!E710","v":0},{"$f":"B!F710","v":0},{"$f":"B!G710","v":0},{"$f":"B!AA710","v":0},{"$f":"B!AB710","v":0},{"$f":"B!AC710","v":0},{"$f":"B!AD710","v":0},{"$f":"B!AE710","v":0},{"$f":"B!AF710","v":0},{"$f":"B!AG710","v":0},{"$f":"B!AH710","v":0},{"$f":"B!AI710","v":0},{"$f":"B!AJ710","v":0},null,null,null,null,null,null,null,null,null,"",null,null,null,null,0]
["IX   ","Orina",{"$f":"B!C752","v":0},{"$f":"B!D752","v":0},{"$f":"B!E752","v":0},{"$f":"B!F752","v":0},{"$f":"B!G752","v":0},{"$f":"B!AA752","v":0},{"$f":"B!AB752","v":0},{"$f":"B!AC752","v":0},{"$f":"B!AD752","v":0},{"$f":"B!AE752","v":0},{"$f":"B!AF752","v":0},{"$f":"B!AG752","v":0},{"$f":"B!AH752","v":0},{"$f":"B!AI752","v":0},{"$f":"B!AJ752","v":0},null,null,null,null,null,null,null,null,null,"",null,null,null,null,0]
["TOTAL EXAMENES IMAGENOLOGIA",null,{"$f":"+C135+C136+C137+C138+C142+C143","v":0},{"$f":"+D135+D136+D137+D138+D142+D143","v":0},0,0,0,0,0,0,0,0,0,0,0,0,{"$f":"+Q135+Q136+Q137+Q138+Q142+Q143","v":0},{"$f":"+R135+R136+R137","v":0},null,null,null,null,null,null,null,null,"",null,null,null,null,0]
["I. a)","Ex. Radiológicos Simples",{"$f":"B!C812","v":0},{"$f":"B!D812","v":0},{"$f":"B!E812","v":0},{"$f":"B!F812","v":0},{"$f":"B!G812","v":0},{"$f":"B!AA812","v":0},{"$f":"B!AB812","v":0},{"$f":"B!AC812","v":0},{"$f":"B!AD812","v":0},{"$f":"B!AE812","v":0},{"$f":"B!AF812","v":0},{"$f":"B!AG812","v":0},{"$f":"B!AH812","v":0},{"$f":"B!AI812","v":0},{"$f":"B!AJ812","v":0},null,null,null,null,null,null,null,null,null,"",null,null,null,null,0]
["I. b)","Ex. Radiológicos Complejos",{"$f":"B!C834","v":0},{"$f":"B!D834","v":0},{"$f":"B!E834","v":0},{"$f":"B!F834","v":0},{"$f":"B!G834","v":0},{"$f":"B!AA834","v":0},{"$f":"B!AB834","v":0},{"$f":"B!AC834","v":0},{"$f":"B!AD834","v":0},{"$f":"B!AE834","v":0},{"$f":"B!AF834","v":0},{"$f":"B!AG834","v":0},{"$f":"B!AH834","v":0},{"$f":"B!AI834","v":0},{"$f":"B!AJ834","v":0},null,null,null,null,null,null,null,null,null,"",null,null,null,null,0]
["II.","Tomografía Axial Comp.",{"$f":"B!C864","v":0},{"$f":"B!D864","v":0},{"$f":"B!E864","v":0},{"$f":"B!F864","v":0},{"$f":"B!G864","v":0},{"$f":"B!AA864","v":0},{"$f":"B!AB864","v":0},{"$f":"B!AC864","v":0},{"$f":"B!AD864","v":0},{"$f":"B!AE864","v":0},{"$f":"B!AF864","v":0},{"$f":"B!AG864","v":0},{"$f":"B!AH864","v":0},{"$f":"B!AI864","v":0},{"$f":"B!AJ864","v":0},null,null,null,null,null,null,null,null,null,"",null,null,null,null,0]
["III","Ultrasonografía",{"$f":"SUM(C139:C141)","v":0},{"$f":"SUM(D139:D141)","v":0},{"$f":"SUM(E139:E141)","v":0},0,0,0,0,0,0,0,0,{"$f":"SUM(N139:N141)","v":0},0,0,{"$f":"SUM(Q139:Q141)","v":0},{"$f":"SUM(R139:R142)","v":0},null,null,null,null,null,null,null,null,"",null,null,null,null,0]
[null,"Ecotomografias ( Sin Ecografía Obstetr. Y Abdominal )",{"$f":"SUM(B!C868:C888)","v":0},{"$f":"SUM(B!D868:D888)","v":0},{"$f":"SUM(B!E868:E888)","v":0},{"$f":"SUM(B!F868:F888)","v":0},{"$f":"SUM(B!G868:G888)","v":0},{"$f":"SUM(B!AA868:AA888)","v":0},{"$f":"SUM(B!AB868:AB888)","v":0},{"$f":"SUM(B!AC868:AC888)","v":0},{"$f":"SUM(B!AD868:AD888)","v":0},{"$f":"SUM(B!AE868:AE888)","v":0},{"$f":"SUM(B!AF868:AF888)","v":0},{"$f":"SUM(B!AG868:AG888)","v":0},{"$f":"SUM(B!AH868:AH888)","v":0},{"$f":"SUM(B!AI868:AI888)","v":0},{"$f":"SUM(B!AJ868:AJ888)","v":0},null,null,null,null,null,null,null,null,null,"",null,null,null,null,0]
[null,"Ecografías Obstétricas",{"$f":"B!C866","v":0},{"$f":"B!D866","v":0},{"$f":"B!E866","v":0},{"$f":"B!F866","v":0},{"$f":"B!G866","v":0},{"$f":"B!AA866","v":0},{"$f":"B!AB866","v":0},{"$f":"B!AC866","v":0},{"$f":"B!AD866","v":0},{"$f":"B!AE866","v":0},{"$f":"B!AF866","v":0},{"$f":"B!AG866","v":0},{"$f":"B!AH866","v":0},{"$f":"B!AI866","v":0},{"$f":"B!AJ866","v":0},null,null,null,null,null,null,null,null,null,"",null,null,null,null,0]
[null,"Ecotomografias abdominal ",{"$f":"B!C867","v":0},{"$f":"B!D867","v":0},{"$f":"B!E867","v":0},{"$f":"B!F867","v":0},{"$f":"B!G867","v":0},{"$f":"B!AA867","v":0},{"$f":"B!AB867","v":0},{"$f":"B!AC867","v":0},{"$f":"B!AD867","v":0},{"$f":"B!AE867","v":0},{"$f":"B!AF867","v":0},{"$f":"B!AG867","v":0},{"$f":"B!AH867","v":0},{"$f":"B!AI867","v":0},{"$f":"B!AJ867","v":0},null,null,null,null,null,null,null,null,null,"",null,null,null,null,0]
["IV","Resonancia Magnética",{"$f":"B!C931","v":0},{"$f":"B!D931","v":0},{"$f":"B!E931","v":0},{"$f":"B!F931","v":0},{"$f":"B!G931","v":0},{"$f":"B!AA931","v":0},{"$f":"B!AB931","v":0},{"$f":"B!AC931","v":0},{"$f":"B!AD931","v":0},{"$f":"B!AE931","v":0},{"$f":"B!AF931","v":0},{"$f":"B!AG931","v":0},{"$f":"B!AH931","v":0},{"$f":"B!AI931","v":0},{"$f":"B!AJ931","v":0},null,null,null,null,null,null,null,null,null,"",null,null,null,null,0]
[null,"Otros Exámenes de Imágenes",{"$f":"B!C950","v":0},{"$f":"B!D950","v":0},{"$f":"B!E950","v":0},{"$f":"B!F950","v":0},{"$f":"B!G950","v":0},{"$f":"B!AA950","v":0},{"$f":"B!AB950","v":0},{"$f":"B!AC950","v":0},{"$f":"B!AD950","v":0},{"$f":"B!AE950","v":0},{"$f":"B!AF950","v":0},{"$f":"B!AG950","v":0},{"$f":"B!AH950","v":0},{"$f":"B!AI950","v":0},{"$f":"B!AJ950","v":0},null,null,null,null,null,null,null,null,null,"",null,null,null,null,0]
["Toma de Muestras",null,{"$f":"B!C660","v":0},{"$f":"B!D660","v":0},{"$f":"B!E660","v":0},{"$f":"B!F660","v":0},{"$f":"B!G660","v":0},{"$f":"B!AA660","v":0},{"$f":"B!AB660","v":0},{"$f":"B!AC660","v":0},{"$f":"B!AD660","v":0},{"$f":"B!AE660","v":0},{"$f":"B!AF660","v":0},{"$f":"B!AG660","v":0},{"$f":"B!AH660","v":0},{"$f":"B!AI660","v":0},{"$f":"B!AJ660","v":0},null,null,null,null,null,null,null,null,null,"",null,null,null,null,0]
["Exámenes Anatomía Patológica",null,{"$f":"B!C1188","v":0},{"$f":"B!D1188","v":0},{"$f":"B!E1188","v":0},{"$f":"B!F1188","v":0},{"$f":"B!G1188","v":0},{"$f":"B!AA1188","v":0},{"$f":"B!AB1188","v":0},{"$f":"B!AC1188","v":0},{"$f":"B!AD1188","v":0},{"$f":"B!AE1188","v":0},{"$f":"B!AF1188","v":0},{"$f":"B!AG1188","v":0},{"$f":"B!AH1188","v":0},{"$f":"B!AI1188","v":0},{"$f":"B!AJ1188","v":0},null,null,null,null,null,null,null,null,null,"",null,null,null,null,0]
["SECCION J:  MEDICINA NUCLEAR Y RADIOTERAPIA"]
["TIPO DE PROCEDIMIENTO",null,"TOTAL","PROCEDIMIENTOS",null,null,null,"PROCEDENCIA",null,null,"PRODUCCION INTRA HOSPITAL",null,null,"OPERATIVO","COMPRAS REALIZADAS",null,"VENTAS DE SERVICIOS"]
[null,null,null,"TOTAL Beneficiarios","Beneficiarios",null,"No Beneficiarios","Atención Cerrada","Atención Abierta","Emergencia","Por Honorarios","Por Convenios","Por Consultores de llamada",null,"Al Sistema","Extrasistema"]
[null,null,null,null,"MAI","MLE"]
["Medicina Nuclear",null,{"$f":"SUM(B!C959,B!C967,B!C976,B!C986,B!C993,B!C997,B!C1001,B!C1005,B!C1013,B!C1016,B!C1019,B!C1027)","v":0},{"$f":"SUM(B!D959,B!D967,B!D976,B!D986,B!D993,B!D997,B!D1001,B!D1005,B!D1013,B!D1016,B!D1019,B!D1027)","v":0},{"$f":"SUM(B!E959,B!E967,B!E976,B!E986,B!E993,B!E997,B!E1001,B!E1005,B!E1013,B!E1016,B!E1019,B!E1027)","v":0},{"$f":"SUM(B!F959,B!F967,B!F976,B!F986,B!F993,B!F997,B!F1001,B!F1005,B!F1013,B!F1016,B!F1019,B!F1027)","v":0},{"$f":"SUM(B!G959,B!G967,B!G976,B!G986,B!G993,B!G997,B!G1001,B!G1005,B!G1013,B!G1016,B!G1019,B!G1027)","v":0},{"$f":"SUM(B!AA959,B!AA967,B!AA976,B!AA986,B!AA993,B!AA997,B!AA1001,B!AA1005,B!AA1013,B!AA1016,B!AA1019,B!AA1027)","v":0},{"$f":"SUM(B!AB959,B!AB967,B!AB976,B!AB986,B!AB993,B!AB997,B!AB1001,B!AB1005,B!AB1013,B!AB1016,B!AB1019,B!AB1027)","v":0},{"$f":"SUM(B!AC959,B!AC967,B!AC976,B!AC986,B!AC993,B!AC997,B!AC1001,B!AC1005,B!AC1013,B!AC1016,B!AC1019,B!AC1027)","v":0},{"$f":"SUM(B!AD959,B!AD967,B!AD976,B!AD986,B!AD993,B!AD997,B!AD1001,B!AD1005,B!AD1013,B!AD1016,B!AD1019,B!AD1027)","v":0},{"$f":"SUM(B!AE959,B!AE967,B!AE976,B!AE986,B!AE993,B!AE997,B!AE1001,B!AE1005,B!AE1013,B!AE1016,B!AE1019,B!AE1027)","v":0},{"$f":"SUM(B!AF959,B!AF967,B!AF976,B!AF986,B!AF993,B!AF997,B!AF1001,B!AF1005,B!AF1013,B!AF1016,B!AF1019,B!AF1027)","v":0},{"$f":"SUM(B!AG959,B!AG967,B!AG976,B!AG986,B!AG993,B!AG997,B!AG1001,B!AG1005,B!AG1013,B!AG1016,B!AG1019,B!AG1027)","v":0},{"$f":"SUM(B!AH959,B!AH967,B!AH976,B!AH986,B!AH993,B!AH997,B!AH1001,B!AH1005,B!AH1013,B!AH1016,B!AH1019,B!AH1027)","v":0},{"$f":"SUM(B!AI959,B!AI967,B!AI976,B!AI986,B!AI993,B!AI997,B!AI1001,B!AI1005,B!AI1013,B!AI1016,B!AI1019,B!AI1027)","v":0},{"$f":"SUM(B!AJ959,B!AJ967,B!AJ976,B!AJ986,B!AJ993,B!AJ997,B!AJ1001,B!AJ1005,B!AJ1013,B!AJ1016,B!AJ1019,B!AJ1027)","v":0}]
["Braquiterapia",null,{"$f":"B!C1033","v":0},{"$f":"B!D1033","v":0},{"$f":"B!E1033","v":0},{"$f":"B!F1033","v":0},{"$f":"B!G1033","v":0},{"$f":"B!AA1033","v":0},{"$f":"B!AB1033","v":0},{"$f":"B!AC1033","v":0},{"$f":"B!AD1033","v":0},{"$f":"B!AE1033","v":0},{"$f":"B!AF1033","v":0},{"$f":"B!AG1033","v":0},{"$f":"B!AH1033","v":0},{"$f":"B!AI1033","v":0},{"$f":"B!AJ1033","v":0}]
["Radioterapia",null,{"$f":"B!C1043","v":0},{"$f":"B!D1043","v":0},{"$f":"B!E1043","v":0},{"$f":"B!F1043","v":0},{"$f":"B!G1043","v":0},{"$f":"B!AA1043","v":0},{"$f":"B!AB1043","v":0},{"$f":"B!AC1043","v":0},{"$f":"B!AD1043","v":0},{"$f":"B!AE1043","v":0},{"$f":"B!AF1043","v":0},{"$f":"B!AG1043","v":0},{"$f":"B!AH1043","v":0},{"$f":"B!AI1043","v":0},{"$f":"B!AJ1043","v":0}]
["Quimioterapia",null,{"$f":"B!C1062","v":0},{"$f":"B!D1062","v":0},{"$f":"B!E1062","v":0},{"$f":"B!F1062","v":0},{"$f":"B!G1062","v":0},{"$f":"B!AA1062","v":0},{"$f":"B!AB1062","v":0},{"$f":"B!AC1062","v":0},{"$f":"B!AD1062","v":0},{"$f":"B!AE1062","v":0},{"$f":"B!AF1062","v":0},{"$f":"B!AG1062","v":0},{"$f":"B!AH1062","v":0},{"$f":"B!AI1062","v":0},{"$f":"B!AJ1062","v":0}]
["Radiocirugía",null,{"$f":"B!C1065","v":0},{"$f":"B!D1065","v":0},{"$f":"B!E1065","v":0},{"$f":"B!F1065","v":0},{"$f":"B!G1065","v":0},{"$f":"B!AA1065","v":0},{"$f":"B!AB1065","v":0},{"$f":"B!AC1065","v":0},{"$f":"B!AD1065","v":0},{"$f":"B!AE1065","v":0},{"$f":"B!AF1065","v":0},{"$f":"B!AG1065","v":0},{"$f":"B!AH1065","v":0},{"$f":"B!AI1065","v":0},{"$f":"B!AJ1065","v":0}]
["TOTAL ",null,{"$f":"SUM(C150:C154)","v":0},{"$f":"SUM(D150+D151+D152+D153+D154)","v":0},{"$f":"SUM(E150+E151+E152+E153+E154)","v":0},{"$f":"SUM(F150+F151+F152+F153+F154)","v":0},0,{"$f":"SUM(H150+H151+H152+H153+H154)","v":0},0,0,0,0,0,0,0,0,0]
["SECCION K:  HEMODIÁLISIS"]
["HEMODIÁLISIS",null,"TOTAL","PROCEDIMIENTOS",null,null,null,"PROCEDENCIA",null,null,"PRODUCCION INTRA HOSPITAL",null,null,"OPERATIVO","COMPRAS REALIZADAS",null,"VENTAS DE SERVICIOS"]
[null,null,null,"TOTAL Beneficiarios","Beneficiarios",null,"No Beneficiarios","Atención Cerrada","Atención Abierta","Emergencia","Por Honorarios","Por Convenios","Por Consultores de llamada",null,"Al Sistema","Extrasistema"]
[null,null,null,null,"MAI","MLE"]
["1901025","Peritoneodiálisis por sesión (incluye insumos)",{"$f":"B!C2374","v":0},{"$f":"B!D2374","v":0},{"$f":"B!E2374","v":0},{"$f":"B!F2374","v":0},{"$f":"B!G2374","v":0},{"$f":"B!AA2374","v":0},{"$f":"B!AB2374","v":0},{"$f":"B!AC2374","v":0},{"$f":"B!AD2374","v":0},{"$f":"B!AE2374","v":0},{"$f":"B!AF2374","v":0},{"$f":"B!AG2374","v":0},{"$f":"B!AH2374","v":0},{"$f":"B!AI2374","v":0},{"$f":"B!AJ2374","v":0}]
["1901026","Peritoneodiálisis continua en paciente crónico (adulto o niños) (tratamiento mensual)",{"$f":"B!C2375","v":0},{"$f":"B!D2375","v":0},{"$f":"B!E2375","v":0},{"$f":"B!F2375","v":0},{"$f":"B!G2375","v":0},{"$f":"B!AA2375","v":0},{"$f":"B!AB2375","v":0},{"$f":"B!AC2375","v":0},{"$f":"B!AD2375","v":0},{"$f":"B!AE2375","v":0},{"$f":"B!AF2375","v":0},{"$f":"B!AG2375","v":0},{"$f":"B!AH2375","v":0},{"$f":"B!AI2375","v":0},{"$f":"B!AJ2375","v":0}]
["1901126","Instalación de Catéter para Peritoneodiálisis",{"$f":"B!C2376","v":0},{"$f":"B!D2376","v":0},{"$f":"B!E2376","v":0},{"$f":"B!F2376","v":0},{"$f":"B!G2376","v":0},{"$f":"B!AA2376","v":0},{"$f":"B!AB2376","v":0},{"$f":"B!AC2376","v":0},{"$f":"B!AD2376","v":0},{"$f":"B!AE2376","v":0},{"$f":"B!AF2376","v":0},{"$f":"B!AG2376","v":0},{"$f":"B!AH2376","v":0},{"$f":"B!AI2376","v":0},{"$f":"B!AJ2376","v":0}]
["1901028","Hemodiálisis con bicarbonato con insumos (por sesión, incluye traslado paciente)",{"$f":"B!C2377","v":0},{"$f":"B!D2377","v":0},{"$f":"B!E2377","v":0},{"$f":"B!F2377","v":0},{"$f":"B!G2377","v":0},{"$f":"B!AA2377","v":0},{"$f":"B!AB2377","v":0},{"$f":"B!AC2377","v":0},{"$f":"B!AD2377","v":0},{"$f":"B!AE2377","v":0},{"$f":"B!AF2377","v":0},{"$f":"B!AG2377","v":0},{"$f":"B!AH2377","v":0},{"$f":"B!AI2377","v":0},{"$f":"B!AJ2377","v":0}]
["1901128","Hemodiálisis con bicarbonato con insumos (por sesión, sin traslado paciente)",{"$f":"B!C2378","v":0},{"$f":"B!D2378","v":0},{"$f":"B!E2378","v":0},{"$f":"B!F2378","v":0},{"$f":"B!G2378","v":0},{"$f":"B!AA2378","v":0},{"$f":"B!AB2378","v":0},{"$f":"B!AC2378","v":0},{"$f":"B!AD2378","v":0},{"$f":"B!AE2378","v":0},{"$f":"B!AF2378","v":0},{"$f":"B!AG2378","v":0},{"$f":"B!AH2378","v":0},{"$f":"B!AI2378","v":0},{"$f":"B!AJ2378","v":0}]
["1901029","Hemodiálisis con bicarbonato con insumos (tratamiento mensual)",{"$f":"B!C2379","v":0},{"$f":"B!D2379","v":0},{"$f":"B!E2379","v":0},{"$f":"B!F2379","v":0},{"$f":"B!G2379","v":0},{"$f":"B!AA2379","v":0},{"$f":"B!AB2379","v":0},{"$f":"B!AC2379","v":0},{"$f":"B!AD2379","v":0},{"$f":"B!AE2379","v":0},{"$f":"B!AF2379","v":0},{"$f":"B!AG2379","v":0},{"$f":"B!AH2379","v":0},{"$f":"B!AI2379","v":0},{"$f":"B!AJ2379","v":0}]
[1901031,"Instalación de catéter de peritoneodiálisis laparoscopia",{"$f":"B!C2380","v":0},{"$f":"B!D2380","v":0},{"$f":"B!E2380","v":0},{"$f":"B!F2380","v":0},{"$f":"B!G2380","v":0},{"$f":"B!AA2380","v":0},{"$f":"B!AB2380","v":0},{"$f":"B!AC2380","v":0},{"$f":"B!AD2380","v":0},{"$f":"B!AE2380","v":0},{"$f":"B!AF2380","v":0},{"$f":"B!AG2380","v":0},{"$f":"B!AH2380","v":0},{"$f":"B!AI2380","v":0},{"$f":"B!AJ2380","v":0}]
["1901032","Retiro de catéter de peritoneodiálisis",{"$f":"B!C2381","v":0},{"$f":"B!D2381","v":0},{"$f":"B!E2381","v":0},{"$f":"B!F2381","v":0},{"$f":"B!G2381","v":0},{"$f":"B!AA2381","v":0},{"$f":"B!AB2381","v":0},{"$f":"B!AC2381","v":0},{"$f":"B!AD2381","v":0},{"$f":"B!AE2381","v":0},{"$f":"B!AF2381","v":0},{"$f":"B!AG2381","v":0},{"$f":"B!AH2381","v":0},{"$f":"B!AI2381","v":0},{"$f":"B!AJ2381","v":0}]
[1901033,"Revisión de catéter de peritoneodiálisis laparoscopia",{"$f":"B!C2382","v":0},{"$f":"B!D2382","v":0},{"$f":"B!E2382","v":0},{"$f":"B!F2382","v":0},{"$f":"B!G2382","v":0},{"$f":"B!AA2382","v":0},{"$f":"B!AB2382","v":0},{"$f":"B!AC2382","v":0},{"$f":"B!AD2382","v":0},{"$f":"B!AE2382","v":0},{"$f":"B!AF2382","v":0},{"$f":"B!AG2382","v":0},{"$f":"B!AH2382","v":0},{"$f":"B!AI2382","v":0},{"$f":"B!AJ2382","v":0}]
["TOTAL",null,{"$f":"SUM(C160:C168)","v":0},0,0,{"$f":"SUM(F160:F168)","v":0},0,0,0,0,0,0,0,0,0,0,0]
["SECCION L: INTERVENCIONES QUIRÚRGICAS"]
["TIPO DE INTERVENCIÓN QUIRÚRGICA",null,"TOTAL ","TOTAL Beneficiarios","INTERVENCIONES QUIRÚRGICAS",null,null,null,null,null,"CIRUGÍAS MENORES","PRODUCCION INTRA HOSPITAL",null,null,"OPERATIVO","COMPRAS REALIZADAS",null,"VENTAS DE SERVICIOS"]
[null,null,null,null,"PRINCIPAL",null,null,"SECUNDARIA"]
[null,null,null,null,"MAI","MLE","No Beneficiarios","MAI","MLE","No Beneficiarios",null,"Por Honorarios","Por Convenios","Por Consultores de llamada",null,"Al sistema","Extrasistema"]
["Neurocirugía",null,{"$f":"B!C1343","v":0},{"$f":"B!H1343","v":0},{"$f":"B!I1343","v":0},{"$f":"B!J1343","v":0},{"$f":"B!K1343","v":0},{"$f":"B!L1343","v":0},{"$f":"B!M1343","v":0},{"$f":"B!N1343","v":0},{"$f":"B!C1342","v":0},{"$f":"B!AD1343","v":0},{"$f":"B!AE1343","v":0},{"$f":"B!AF1343","v":0},{"$f":"B!AG1343","v":0},{"$f":"B!AH1343","v":0},{"$f":"B!AI1343","v":0},{"$f":"B!AJ1343","v":0},null,null,null,null,null,null,null,null,{"$f":"IF(C174<D174,\"Beneficiarios no puede ser mayor al TOTAL\",\"\")","v":""},null,null,null,null,{"$f":"IF(C174<D174,1,0)","v":0}]
["Cirugía Oftalmológica",null,{"$f":"B!C1485","v":0},{"$f":"B!H1485","v":0},{"$f":"B!I1485","v":0},{"$f":"B!J1485","v":0},{"$f":"B!K1485","v":0},{"$f":"B!L1485","v":0},{"$f":"B!M1485","v":0},{"$f":"B!N1485","v":0},{"$f":"SUM(B!C1401:C1406,B!C1410:C1412,B!C1418:C1420,B!C1422,B!C1424:C1425,B!C1427:C1428,B!C1432:C1433,B!C1448:C1449,B!C1464,B!C1466:C1467,B!C1480:C1483)","v":0},{"$f":"B!AD1485","v":0},{"$f":"B!AE1485","v":0},{"$f":"B!AF1485","v":0},{"$f":"B!AG1485","v":0},{"$f":"B!AH1485","v":0},{"$f":"B!AI1485","v":0},{"$f":"B!AJ1485","v":0},null,null,null,null,null,null,null,null,{"$f":"IF(C175<D175,\"Beneficiarios no puede ser mayor al TOTAL\",\"\")","v":""},null,null,null,null,0]
["Cirugía Otorrinológica",null,{"$f":"B!C1656","v":0},{"$f":"B!H1656","v":0},{"$f":"B!I1656","v":0},{"$f":"B!J1656","v":0},{"$f":"B!K1656","v":0},{"$f":"B!L1656","v":0},{"$f":"B!M1656","v":0},{"$f":"B!N1656","v":0},{"$f":"SUM(B!C1548:C1552,B!C1556,B!C1560,B!C1585:C1590,B!C1593:C1594,B!C1601:C1602,B!C1604:C1605,B!C1610,B!C1612:C1613,B!C1620,B!C1633,B!C1639:C1640,B!C1649,B!C1652)","v":0},{"$f":"B!AD1656","v":0},{"$f":"B!AE1656","v":0},{"$f":"B!AF1656","v":0},{"$f":"B!AG1656","v":0},{"$f":"B!AH1656","v":0},{"$f":"B!AI1656","v":0},{"$f":"B!AJ1656","v":0},null,null,null,null,null,null,null,null,"",null,null,null,null,0]
["Cirugía de Cabeza y Cuello",null,{"$f":"B!C1720","v":0},{"$f":"B!H1720","v":0},{"$f":"B!I1720","v":0},{"$f":"B!J1720","v":0},{"$f":"B!K1720","v":0},{"$f":"B!L1720","v":0},{"$f":"B!M1720","v":0},{"$f":"B!N1720","v":0},{"$f":"SUM(B!C1679,B!C1681:C1682,B!C1686:C1687,B!C1689,B!C1713,B!C1715,B!C1718:C1719)","v":0},{"$f":"B!AD1720","v":0},{"$f":"B!AE1720","v":0},{"$f":"B!AF1720","v":0},{"$f":"B!AG1720","v":0},{"$f":"B!AH1720","v":0},{"$f":"B!AI1720","v":0},{"$f":"B!AJ1720","v":0},null,null,null,null,null,null,null,null,{"$f":"IF(C177<D177,\"Beneficiarios no puede ser mayor al TOTAL\",\"\")","v":""},null,null,null,null,{"$f":"IF(C177<D177,1,0)","v":0}]
["Cirugía Plástica y Reparadora",null,{"$f":"B!C1793","v":0},{"$f":"B!H1793","v":0},{"$f":"B!I1793","v":0},{"$f":"B!J1793","v":0},{"$f":"B!K1793","v":0},{"$f":"B!L1793","v":0},{"$f":"B!M1793","v":0},{"$f":"B!N1793","v":0},{"$f":"SUM(B!C1722:C1728,B!C1733,B!C1735,B!C1740,B!C1751:C1752,B!C1783,B!C1787:C1790)","v":0},{"$f":"B!AD1793","v":0},{"$f":"B!AE1793","v":0},{"$f":"B!AF1793","v":0},{"$f":"B!AG1793","v":0},{"$f":"B!AH1793","v":0},{"$f":"B!AI1793","v":0},{"$f":"B!AJ1793","v":0},null,null,null,null,null,null,null,null,"",null,null,null,null,0]
["Dermatología y Tegumentos     ",null,{"$f":"B!C1836","v":0},{"$f":"B!H1836","v":0},{"$f":"B!I1836","v":0},{"$f":"B!J1836","v":0},{"$f":"B!K1836","v":0},{"$f":"B!L1836","v":0},{"$f":"B!M1836","v":0},{"$f":"B!N1836","v":0},{"$f":"SUM(B!C1812:C1834)","v":0},{"$f":"B!AD1836","v":0},{"$f":"B!AE1836","v":0},{"$f":"B!AF1836","v":0},{"$f":"B!AG1836","v":0},{"$f":"B!AH1836","v":0},{"$f":"B!AI1836","v":0},{"$f":"B!AJ1836","v":0},null,null,null,null,null,null,null,null,"",null,null,null,null,0]
["Cirugía Cardiovascular",null,{"$f":"B!C1993","v":0},{"$f":"B!H1993","v":0},{"$f":"B!I1993","v":0},{"$f":"B!J1993","v":0},{"$f":"B!K1993","v":0},{"$f":"B!L1993","v":0},{"$f":"B!M1993","v":0},{"$f":"B!N1993","v":0},{"$f":"SUM(B!C1933,B!C1937,B!C1947:C1948,B!C1950,B!C1953:C1954,B!C1992)","v":0},{"$f":"B!AD1993","v":0},{"$f":"B!AE1993","v":0},{"$f":"B!AF1993","v":0},{"$f":"B!AG1993","v":0},{"$f":"B!AH1993","v":0},{"$f":"B!AI1993","v":0},{"$f":"B!AJ1993","v":0},null,null,null,null,null,null,null,null,"",null,null,null,null,0]
["Cirugía de Tórax",null,{"$f":"B!C2091","v":0},{"$f":"B!H2091","v":0},{"$f":"B!I2091","v":0},{"$f":"B!J2091","v":0},{"$f":"B!K2091","v":0},{"$f":"B!L2091","v":0},{"$f":"B!M2091","v":0},{"$f":"B!N2091","v":0},{"$f":"B!C2034","v":0},{"$f":"B!AD2091","v":0},{"$f":"B!AE2091","v":0},{"$f":"B!AF2091","v":0},{"$f":"B!AG2091","v":0},{"$f":"B!AH2091","v":0},{"$f":"B!AI2091","v":0},{"$f":"B!AJ2091","v":0},null,null,null,null,null,null,null,null,"",null,null,null,null,0]
["Cirugía Abdominal",null,{"$f":"B!C2306","v":0},{"$f":"B!H2306","v":0},{"$f":"B!I2306","v":0},{"$f":"B!J2306","v":0},{"$f":"B!K2306","v":0},{"$f":"B!L2306","v":0},{"$f":"B!M2306","v":0},{"$f":"B!N2306","v":0},null,{"$f":"B!AD2306","v":0},{"$f":"B!AE2306","v":0},{"$f":"B!AF2306","v":0},{"$f":"B!AG2306","v":0},{"$f":"B!AH2306","v":0},{"$f":"B!AI2306","v":0},{"$f":"B!AJ2306","v":0},null,null,null,null,null,null,null,null,"",null,null,null,null,0]
["Cirugía Proctológica",null,{"$f":"B!C2346","v":0},{"$f":"B!H2346","v":0},{"$f":"B!I2346","v":0},{"$f":"B!J2346","v":0},{"$f":"B!K2346","v":0},{"$f":"B!L2346","v":0},{"$f":"B!M2346","v":0},{"$f":"B!N2346","v":0},{"$f":"SUM(B!C2309:C2310,B!C2313,B!C2325)","v":0},{"$f":"B!AD2346","v":0},{"$f":"B!AE2346","v":0},{"$f":"B!AF2346","v":0},{"$f":"B!AG2346","v":0},{"$f":"B!AH2346","v":0},{"$f":"B!AI2346","v":0},{"$f":"B!AJ2346","v":0},null,null,null,null,null,null,null,null,"",null,null,null,null,0]
["Cirugía Urológica y Suprarrenal",null,{"$f":"B!C2464","v":0},{"$f":"B!H2464","v":0},{"$f":"B!I2464","v":0},{"$f":"B!J2464","v":0},{"$f":"B!K2464","v":0},{"$f":"B!L2464","v":0},{"$f":"B!M2464","v":0},{"$f":"B!N2464","v":0},{"$f":"SUM(B!C2458,B!C2462)","v":0},{"$f":"B!AD2464","v":0},{"$f":"B!AE2464","v":0},{"$f":"B!AF2464","v":0},{"$f":"B!AG2464","v":0},{"$f":"B!AH2464","v":0},{"$f":"B!AI2464","v":0},{"$f":"B!AJ2464","v":0},null,null,null,null,null,null,null,null,"",null,null,null,null,0]
["Cirugía de la Mama",null,{"$f":"B!C2501","v":0},{"$f":"B!H2501","v":0},{"$f":"B!I2501","v":0},{"$f":"B!J2501","v":0},{"$f":"B!K2501","v":0},{"$f":"B!L2501","v":0},{"$f":"B!M2501","v":0},{"$f":"B!N2501","v":0},{"$f":"B!C2496","v":0},{"$f":"B!AD2501","v":0},{"$f":"B!AE2501","v":0},{"$f":"B!AF2501","v":0},{"$f":"B!AG2501","v":0},{"$f":"B!AH2501","v":0},{"$f":"B!AI2501","v":0},{"$f":"B!AJ2501","v":0},null,null,null,null,null,null,null,null,"",null,null,null,null,0]
["Cirugía Ginecológica",null,{"$f":"B!C2541","v":0},{"$f":"B!H2541","v":0},{"$f":"B!I2541","v":0},{"$f":"B!J2541","v":0},{"$f":"B!K2541","v":0},{"$f":"B!L2541","v":0},{"$f":"B!M2541","v":0},{"$f":"B!N2541","v":0},{"$f":"SUM(B!C2528,B!C2537)","v":0},{"$f":"B!AD2541","v":0},{"$f":"B!AE2541","v":0},{"$f":"B!AF2541","v":0},{"$f":"B!AG2541","v":0},{"$f":"B!AH2541","v":0},{"$f":"B!AI2541","v":0},{"$f":"B!AJ2541","v":0},null,null,null,null,null,null,null,null,"",null,null,null,null,0]
["Cirugía Obstétrica","Total",{"$f":"SUM(C188:C190)","v":0},{"$f":"SUM(D188:D190)","v":0},{"$f":"SUM(E188:E190)","v":0},{"$f":"SUM(F188:F190)","v":0},0,0,0,0,null,0,0,0,0,0,0,{"$f":"SUM(R188:R190)","v":0},null,null,null,null,null,null,null,null,"",null,null,null,null,0]
[null,"Cesárea c/s salpingoligadura o salpingectomía",{"$f":"B!C2547","v":0},{"$f":"B!H2547","v":0},{"$f":"B!I2547","v":0},{"$f":"B!J2547","v":0},{"$f":"B!K2547","v":0},{"$f":"B!L2547","v":0},{"$f":"B!M2547","v":0},{"$f":"B!N2547","v":0},null,{"$f":"B!AD2547","v":0},{"$f":"B!AE2547","v":0},{"$f":"B!AF2547","v":0},{"$f":"B!AG2547","v":0},{"$f":"B!AH2547","v":0},{"$f":"B!AI2547","v":0},{"$f":"B!AJ2547","v":0},null,null,null,null,null,null,null,null,"",null,null,null,null,0]
[null,"Cesárea con histerectomía",{"$f":"B!C2548","v":0},{"$f":"B!H2548","v":0},{"$f":"B!I2548","v":0},{"$f":"B!J2548","v":0},{"$f":"B!K2548","v":0},{"$f":"B!L2548","v":0},{"$f":"B!M2548","v":0},{"$f":"B!N2548","v":0},null,{"$f":"B!AD2548","v":0},{"$f":"B!AE2548","v":0},{"$f":"B!AF2548","v":0},{"$f":"B!AG2548","v":0},{"$f":"B!AH2548","v":0},{"$f":"B!AI2548","v":0},{"$f":"B!AJ2548","v":0},null,null,null,null,null,null,null,null,"",null,null,null,null,0]
[null,"Otras cirugías obstétricas ",{"$f":"SUM(B!C2549:C2553)","v":0},{"$f":"SUM(B!H2549:H2553)","v":0},{"$f":"SUM(B!I2549:I2553)","v":0},{"$f":"SUM(B!J2549:J2553)","v":0},{"$f":"SUM(B!K2549:K2553)","v":0},{"$f":"SUM(B!L2549:L2553)","v":0},{"$f":"SUM(B!M2549:M2553)","v":0},{"$f":"SUM(B!N2549:N2553)","v":0},null,{"$f":"SUM(B!AD2549:AD2553)","v":0},{"$f":"SUM(B!AE2549:AE2553)","v":0},{"$f":"SUM(B!AF2549:AF2553)","v":0},{"$f":"SUM(B!AG2549:AG2553)","v":0},{"$f":"SUM(B!AH2549:AH2553)","v":0},{"$f":"SUM(B!AI2549:AI2553)","v":0},{"$f":"SUM(B!AJ2549:AJ2553)","v":0},null,null,null,null,null,null,null,null,"",null,null,null,null,0]
["Traumatología",null,{"$f":"B!C2785","v":0},{"$f":"B!H2785","v":0},{"$f":"B!I2785","v":0},{"$f":"B!J2785","v":0},{"$f":"B!K2785","v":0},{"$f":"B!L2785","v":0},{"$f":"B!M2785","v":0},{"$f":"B!N2785","v":0},{"$f":"SUM(B!C2573:C2579,B!C2581,B!C2591:C2592,B!C2604,B!C2606:C2608,B!C2611,B!C2659,B!C2661,B!C2664:C2666,B!C2670:C2671,B!C2680,B!C2683,B!C2739)","v":0},{"$f":"B!AD2785","v":0},{"$f":"B!AE2785","v":0},{"$f":"B!AF2785","v":0},{"$f":"B!AG2785","v":0},{"$f":"B!AH2785","v":0},{"$f":"B!AI2785","v":0},{"$f":"B!AJ2785","v":0},null,null,null,null,null,null,null,null,"",null,null,null,null,0]
["Odontología",null,{"$f":"B!C3022","v":0},{"$f":"B!H3022","v":0},{"$f":"B!I3022","v":0},{"$f":"B!J3022","v":0},{"$f":"B!K3022","v":0},{"$f":"B!L3022","v":0},{"$f":"B!M3022","v":0},{"$f":"B!N3022","v":0},{"$f":"SUM(B!C2947:C2948,B!C2953,B!C2955:C2956,B!C2959:C2960,B!C2962:C2966,B!C2974:C2980,B!C2984,B!C2986:C2987,B!C2997,B!C2999:C3001,B!C3011,B!C3018:C3021)","v":0},{"$f":"B!AD3022","v":0},{"$f":"B!AE3022","v":0},{"$f":"B!AF3022","v":0},{"$f":"B!AG3022","v":0},{"$f":"B!AH3022","v":0},{"$f":"B!AI3022","v":0},{"$f":"B!AJ3022","v":0},null,null,null,null,null,null,null,null,"",null,null,null,null,0]
["Retiro Elementos Osteosíntesis",null,{"$f":"B!C2790","v":0},{"$f":"B!H2790","v":0},{"$f":"B!I2790","v":0},{"$f":"B!J2790","v":0},{"$f":"B!K2790","v":0},{"$f":"B!L2790","v":0},{"$f":"B!M2790","v":0},{"$f":"B!N2790","v":0},null,{"$f":"B!AD2790","v":0},{"$f":"B!AE2790","v":0},{"$f":"B!AF2790","v":0},{"$f":"B!AG2790","v":0},{"$f":"B!AH2790","v":0},{"$f":"B!AI2790","v":0},{"$f":"B!AJ2790","v":0},null,null,null,null,null,null,null,null,"",null,null,null,null,0]
["TOTAL  ",null,{"$f":"SUM(C174:C187)+C191+C192+C193","v":0},0,0,0,0,0,0,0,{"$f":"SUM(K174:K193)","v":0},{"$f":"SUM(L174:L187)+L191+L192+L193","v":0},0,0,0,0,0,0]
["SECCIÓN M: INTERVENCIONES QUIRÚRGICAS POR TIPO DE INTERVENCIÓN "]
["TIPO DE INTERVENCIÓN",null,"TOTAL","Beneficiarios MAI","< 15 AÑOS","15 Y MÁS AÑOS","COMPRAS REALIZADAS AL SISTEMA ","COMPRAS REALIZADAS AL SISTEMA","COMPRAS REALIZADAS AL EXTRASISTEMA","COMPRAS REALIZADAS AL EXTRASISTEMA"]
[null,null,null,null,null,null,"< 15 años","15 y más años","< 15 años","15 y más años"]
["Electivas Mayores No Ambulatorias ",null,{"$f":"SUM(E198:F198)","v":0},null,{"$f":"SUM(B!P1343,B!P1485,B!P1656,B!P1720,B!P1793,B!P1836,B!P1993,B!P2091,B!P2306,B!P2346,B!P2464,B!P2501,B!P2541,B!P2556,B!P2785,B!P2790,B!P3022)","v":0},{"$f":"SUM(B!Q1343,B!Q1485,B!Q1656,B!Q1720,B!Q1793,B!Q1836,B!Q1993,B!Q2091,B!Q2306,B!Q2346,B!Q2464,B!Q2501,B!Q2541,B!Q2556,B!Q2785,B!Q2790,B!Q3022)","v":0},null,null,null,null,{"$f":"AA198","v":""},null,null,null,null,null,null,null,null,null,null,null,null,null,null,null,{"$f":"IF(C198<D198,\"BeneficiariosMAI no puede ser mayor al TOTAL\",\"\")","v":""},null,null,null,null,{"$f":"IF(C198<D198,1,0)","v":0}]
["Electivas Mayores Ambulatorias  ",null,{"$f":"SUM(E199:F199)","v":0},null,{"$f":"SUM(B!S1343,B!S1485,B!S1656,B!S1720,B!S1793,B!S1836,B!S1993,B!S2091,B!S2306,B!S2346,B!S2464,B!S2501,B!S2541,B!S2556,B!S2785,B!S2790,B!S3022)","v":0},{"$f":"SUM(B!T1343,B!T1485,B!T1656,B!T1720,B!T1793,B!T1836,B!T1993,B!T2091,B!T2306,B!T2346,B!T2464,B!T2501,B!T2541,B!T2556,B!T2785,B!T2790,B!T3022)","v":0},null,null,null,null,{"$f":"AA199","v":""},null,null,null,null,null,null,null,null,null,null,null,null,null,null,null,{"$f":"IF(C199<D199,\"BeneficiariosMAI no puede ser mayor al TOTAL\",\"\")","v":""},null,null,null,null,{"$f":"IF(C199<D199,1,0)","v":0}]
["Urgencia","Mayor No Ambulatorias",{"$f":"SUM(E200:F200)","v":0},null,{"$f":"SUM(B!Y1343,B!Y1485,B!Y1656,B!Y1720,B!Y1793,B!Y1836,B!Y1993,B!Y2091,B!Y2306,B!Y2346,B!Y2464,B!Y2501,B!Y2541,B!Y2556,B!Y2785,B!Y2790,B!Y3022)","v":0},{"$f":"SUM(B!Z1343,B!Z1485,B!Z1656,B!Z1720,B!Z1793,B!Z1836,B!Z1993,B!Z2091,B!Z2306,B!Z2346,B!Z2464,B!Z2501,B!Z2541,B!Z2556,B!Z2785,B!Z2790,B!Z3022)","v":0},null,null,null,null,{"$f":"AA200","v":""},null,null,null,null,null,null,null,null,null,null,null,null,null,null,null,{"$f":"IF(C200<D200,\"BeneficiariosMAI no puede ser mayor al TOTAL\",\"\")","v":""},null,null,null,null,{"$f":"IF(C200<D200,1,0)","v":0}]
[null,"Mayor Ambulatorias",{"$f":"SUM(E201:F201)","v":0},null,{"$f":"SUM(B!V1343,B!V1485,B!V1656,B!V1720,B!V1793,B!V1836,B!V1993,B!V2091,B!V2306,B!V2346,B!V2464,B!V2501,B!V2541,B!V2556,B!V2785,B!V2790,B!V3022)","v":0},{"$f":"SUM(B!W1343,B!W1485,B!W1656,B!W1720,B!W1793,B!W1836,B!W1993,B!W2091,B!W2306,B!W2346,B!W2464,B!W2501,B!W2541,B!W2556,B!W2785,B!W2790,B!W3022)","v":0},null,null,null,null,{"$f":"AA201","v":""},null,null,null,null,null,null,null,null,null,null,null,null,null,null,null,{"$f":"IF(C201<D201,\"BeneficiariosMAI no puede ser mayor al TOTAL\",\"\")","v":""},null,null,null,null,{"$f":"IF(C201<D201,1,0)","v":0}]
["SECCIÓN N:  AMPUTACIÓN POR PIE DIABÉTICO"]
["TIPO DE INTERVENCIÓN QUIRÚRGICA",null,"TOTAL ","TOTAL Beneficiarios MAI"]
[]
["Amputación de Ortejo(s) Por Pie Diabético",null,{"$f":"B!C2783","v":0},{"$f":"B!I2783","v":0}]
["Amputación de Pie Completo Por Pie Diabético",null,{"$f":"SUM(B!C2782,B!C2784)","v":0},{"$f":"SUM(B!I2782,B!I2784)","v":0}]
["SECCIÓN O: PROCEDIMIENTOS DIAGNÓSTICOS Y TERAPÉUTICOS"]
["TIPO DE PROCEDIMIENTO",null,"TOTAL","PROCEDIMIENTOS",null,null,null,"PROCEDENCIA",null,null,"PRODUCCION INTRA HOSPITAL",null,null,"OPERATIVO","COMPRAS REALIZADAS",null,"VENTAS DE SERVICIOS"]
[null,null,null,"TOTAL Beneficiarios","Beneficiarios",null,"No Beneficiarios","Atención Cerrada","Atención Abierta","Emergencia","Por Honorarios","Por Convenios","Por Consultores de llamada",null,"Al Sistema","Extrasistema"]
[null,null,null,null,"MAI","MLE"]
["Neurología",null,{"$f":"B!C1260","v":0},{"$f":"B!D1260","v":0},{"$f":"B!E1260","v":0},{"$f":"B!F1260","v":0},{"$f":"B!G1260","v":0},{"$f":"B!AA1260","v":0},{"$f":"B!AB1260","v":0},{"$f":"B!AC1260","v":0},{"$f":"B!AD1260","v":0},{"$f":"B!AE1260","v":0},{"$f":"B!AF1260","v":0},{"$f":"B!AG1260","v":0},{"$f":"B!AH1260","v":0},{"$f":"B!AI1260","v":0},{"$f":"B!AJ1260","v":0}]
["Oftalmología",null,{"$f":"B!C1399","v":0},{"$f":"B!D1399","v":0},{"$f":"B!E1399","v":0},{"$f":"B!F1399","v":0},{"$f":"B!G1399","v":0},{"$f":"B!AA1399","v":0},{"$f":"B!AB1399","v":0},{"$f":"B!AC1399","v":0},{"$f":"B!AD1399","v":0},{"$f":"B!AE1399","v":0},{"$f":"B!AF1399","v":0},{"$f":"B!AG1399","v":0},{"$f":"B!AH1399","v":0},{"$f":"B!AI1399","v":0},{"$f":"B!AJ1399","v":0}]
["Otorrinolaringología",null,{"$f":"B!C1546","v":0},{"$f":"B!D1546","v":0},{"$f":"B!E1546","v":0},{"$f":"B!F1546","v":0},{"$f":"B!G1546","v":0},{"$f":"B!AA1546","v":0},{"$f":"B!AB1546","v":0},{"$f":"B!AC1546","v":0},{"$f":"B!AD1546","v":0},{"$f":"B!AE1546","v":0},{"$f":"B!AF1546","v":0},{"$f":"B!AG1546","v":0},{"$f":"B!AH1546","v":0},{"$f":"B!AI1546","v":0},{"$f":"B!AJ1546","v":0}]
["Cabeza y Cuello",null,{"$f":"B!C1659","v":0},{"$f":"B!D1659","v":0},{"$f":"B!E1659","v":0},{"$f":"B!F1659","v":0},{"$f":"B!G1659","v":0},{"$f":"B!AA1659","v":0},{"$f":"B!AB1659","v":0},{"$f":"B!AC1659","v":0},{"$f":"B!AD1659","v":0},{"$f":"B!AE1659","v":0},{"$f":"B!AF1659","v":0},{"$f":"B!AG1659","v":0},{"$f":"B!AH1659","v":0},{"$f":"B!AI1659","v":0},{"$f":"B!AJ1659","v":0}]
["Dermatología",null,{"$f":"B!C1810","v":0},{"$f":"B!D1810","v":0},{"$f":"B!E1810","v":0},{"$f":"B!F1810","v":0},{"$f":"B!G1810","v":0},{"$f":"B!AA1810","v":0},{"$f":"B!AB1810","v":0},{"$f":"B!AC1810","v":0},{"$f":"B!AD1810","v":0},{"$f":"B!AE1810","v":0},{"$f":"B!AF1810","v":0},{"$f":"B!AG1810","v":0},{"$f":"B!AH1810","v":0},{"$f":"B!AI1810","v":0},{"$f":"B!AJ1810","v":0}]
["Cardiología",null,{"$f":"B!C1909","v":0},{"$f":"B!D1909","v":0},{"$f":"B!E1909","v":0},{"$f":"B!F1909","v":0},{"$f":"B!G1909","v":0},{"$f":"B!AA1909","v":0},{"$f":"B!AB1909","v":0},{"$f":"B!AC1909","v":0},{"$f":"B!AD1909","v":0},{"$f":"B!AE1909","v":0},{"$f":"B!AF1909","v":0},{"$f":"B!AG1909","v":0},{"$f":"B!AH1909","v":0},{"$f":"B!AI1909","v":0},{"$f":"B!AJ1909","v":0}]
["Respiratorio",null,{"$f":"B!C2133","v":0},{"$f":"B!D2133","v":0},{"$f":"B!E2133","v":0},{"$f":"B!F2133","v":0},{"$f":"B!G2133","v":0},{"$f":"B!AA2133","v":0},{"$f":"B!AB2133","v":0},{"$f":"B!AC2133","v":0},{"$f":"B!AD2133","v":0},{"$f":"B!AE2133","v":0},{"$f":"B!AF2133","v":0},{"$f":"B!AG2133","v":0},{"$f":"B!AH2133","v":0},{"$f":"B!AI2133","v":0},{"$f":"B!AJ2133","v":0}]
["Gastroenterología",null,{"$f":"B!C2191","v":0},{"$f":"B!D2191","v":0},{"$f":"B!E2191","v":0},{"$f":"B!F2191","v":0},{"$f":"B!G2191","v":0},{"$f":"B!AA2191","v":0},{"$f":"B!AB2191","v":0},{"$f":"B!AC2191","v":0},{"$f":"B!AD2191","v":0},{"$f":"B!AE2191","v":0},{"$f":"B!AF2191","v":0},{"$f":"B!AG2191","v":0},{"$f":"B!AH2191","v":0},{"$f":"B!AI2191","v":0},{"$f":"B!AJ2191","v":0}]
["Urología y Nefrología",null,{"$f":"B!C2371","v":0},{"$f":"B!D2371","v":0},{"$f":"B!E2371","v":0},{"$f":"B!F2371","v":0},{"$f":"B!G2371","v":0},{"$f":"B!AA2371","v":0},{"$f":"B!AB2371","v":0},{"$f":"B!AC2371","v":0},{"$f":"B!AD2371","v":0},{"$f":"B!AE2371","v":0},{"$f":"B!AF2371","v":0},{"$f":"B!AG2371","v":0},{"$f":"B!AH2371","v":0},{"$f":"B!AI2371","v":0},{"$f":"B!AJ2371","v":0}]
["Ginecología y Obstetricia (Se Incluyen Abortos)",null,{"$f":"SUM(B!C2494,B!C2543:C2545)","v":0},{"$f":"SUM(B!D2494,B!D2543:D2545)","v":0},{"$f":"SUM(B!E2494,B!E2543:E2545)","v":0},{"$f":"SUM(B!F2494,B!F2543:F2545)","v":0},{"$f":"SUM(B!G2494,B!G2543:G2545)","v":0},{"$f":"SUM(B!AA2494,B!AA2543:AA2545)","v":0},{"$f":"SUM(B!AB2494,B!AB2543:AB2545)","v":0},{"$f":"SUM(B!AC2494,B!AC2543:AC2545)","v":0},{"$f":"SUM(B!AD2494,B!AD2543:AD2545)","v":0},{"$f":"SUM(B!AE2494,B!AE2543:AE2545)","v":0},{"$f":"SUM(B!AF2494,B!AF2543:AF2545)","v":0},{"$f":"SUM(B!AG2494,B!AG2543:AG2545)","v":0},{"$f":"SUM(B!AH2494,B!AH2543:AH2545)","v":0},{"$f":"SUM(B!AI2494,B!AI2543:AI2545)","v":0},{"$f":"SUM(B!AJ2494,B!AJ2543:AJ2545)","v":0}]
["Traumatología",null,{"$f":"B!C2571","v":0},{"$f":"B!D2571","v":0},{"$f":"B!E2571","v":0},{"$f":"B!F2571","v":0},{"$f":"B!G2571","v":0},{"$f":"B!AA2571","v":0},{"$f":"B!AB2571","v":0},{"$f":"B!AC2571","v":0},{"$f":"B!AD2571","v":0},{"$f":"B!AE2571","v":0},{"$f":"B!AF2571","v":0},{"$f":"B!AG2571","v":0},{"$f":"B!AH2571","v":0},{"$f":"B!AI2571","v":0},{"$f":"B!AJ2571","v":0}]
["Kinesiología y Fisioterapia",null,{"$f":"B!C1127","v":0},{"$f":"B!D1127","v":0},{"$f":"B!E1127","v":0},{"$f":"B!F1127","v":0},{"$f":"B!G1127","v":0},{"$f":"B!AA1127","v":0},{"$f":"B!AB1127","v":0},{"$f":"B!AC1127","v":0},{"$f":"B!AD1127","v":0},{"$f":"B!AE1127","v":0},{"$f":"B!AF1127","v":0},{"$f":"B!AG1127","v":0},{"$f":"B!AH1127","v":0},{"$f":"B!AI1127","v":0},{"$f":"B!AJ1127","v":0}]
["TOTAL ",null,{"$f":"SUM(C211:C222)","v":0},0,0,0,0,0,0,0,0,0,0,0,0,0,0]
["SECCION P:  MISCELÁNEOS"]
["TIPO DE PRESTACIÓN",null,"TOTAL","TOTAL Beneficiarios MAI"]
["Otras Prestaciones Psiquiátricas",null,{"$f":"B!C1209","v":0},{"$f":"B!E1209","v":0}]
["Anestesia Epidural (Partos)",null,{"$f":"B!C2843","v":0},{"$f":"B!E2843","v":0}]
["Otros Procedimientos Anestésicos",null,{"$f":"B!C2847","v":0},{"$f":"B!E2847","v":0}]
["Curacion Simple Ambulatoria",null,{"$f":"B!C146","v":0},{"$f":"B!E146","v":0}]
["Procedimiento De Podología",null,{"$f":"B!C151","v":0},{"$f":"B!E151","v":0}]
["Autocuidado Pacientes DID",null,{"$f":"B!C149","v":0},{"$f":"B!E149","v":0}]
["Oxigenoterapia Domicilio",null,{"$f":"B!C150","v":0},{"$f":"B!E150","v":0}]
["Protesis y Órtesis",null,{"$f":"B!C2839","v":0},{"$f":"B!E2839","v":0}]
["TOTAL ",null,{"$f":"SUM(C226:C233)","v":0},{"$f":"SUM(D226:D233)","v":0}]
["SECCIÓN Q: ACTIVIDADES EN UNIDAD DE FARMACIA HOSPITALARIA"]
[null,null,"TOTAL"]
["Preparados Magistrales","Estériles"]
[null,"No Estériles"]
["TOTAL",null,{"$f":"SUM(C237:C238)","v":0}]
["Nutriciones Parenterales"]
["Preparados Citostáticos"]
["Evaluaciones Farmacéuticas"]
["Preparados Oficinal"]
["Dosis Unitaria Preparadas"]
["TOTAL",null,{"$f":"SUM(C240:C244)","v":0}]
["SECCIÓN R: OTROS TRASLADOS DE PACIENTES"]
["TIPO DE ACCIÓN",null,"TOTAL","A \nBeneficiarios","POR COMPRA \nDE SERVICIO",null,null,null,null,null,null," "]
[" Traslados No de Urgencia","Ambulancia",null,null,null,{"$f":"AA248","v":""},null,null,null,null,null,null,null,null,null,null,null,null,null,null,null,null,null,null,null,null,{"$f":"IF(D248>C248,\"El Total de  OTROS TRASLADOS DE PACIENTES no puede ser menor que los A Beneficiarios\",\"\")","v":""},{"$f":"IF(E248>C248,\"El Total de  OTROS TRASLADOS DE PACIENTES no puede ser menor que los POR COMPRA DE SERVICIO\",\"\")","v":""},null,null,null,{"$f":"IF(D248>C248,1,0)","v":0},{"$f":"IF(E248>C248,1,0)","v":0}]
[null,"Marítimo",null,null,null,{"$f":"AA249","v":""},null,null,null,null,null,null,null,null,null,null,null,null,null,null,null,null,null,null,null,null,{"$f":"IF(D249>C249,\"El Total de  OTROS TRASLADOS DE PACIENTES no puede ser menor que los A Beneficiarios\",\"\")","v":""},{"$f":"IF(E249>C249,\"El Total de  OTROS TRASLADOS DE PACIENTES no puede ser menor que los POR COMPRA DE SERVICIO\",\"\")","v":""},null,null,null,{"$f":"IF(D249>C249,1,0)","v":0},{"$f":"IF(E249>C249,1,0)","v":0}]
[null,"Aéreo",null,null,null,{"$f":"AA250","v":""},null,null,null,null,null,null,null,null,null,null,null,null,null,null,null,null,null,null,null,null,"","",null,null,null,{"$f":"IF(D250>C250,1,0)","v":0},0]

{"sheet":"Control","index":3,"n_rows":16,"n_cols":3,"rows_kept":16,"cut":false,"hidden":false,"merged":[[15,0,15,1]]}
["SERVICIO DE SALUD / ESTABLECIMIENTO MUNICIPAL"]
[{"$f":"CONCATENATE(\"COMUNA: \",NOMBRE!B2,\" (\",NOMBRE!C2,NOMBRE!D2,NOMBRE!E2,NOMBRE!F2,NOMBRE!G2,\" )\")","v":"COMUNA:  ( )"}]
[{"$f":"CONCATENATE(\"ESTABLECIMIENTO/ESTRATEGIA: \",NOMBRE!B3,\" (\",NOMBRE!C3,NOMBRE!D3,NOMBRE!E3,NOMBRE!F3,NOMBRE!G3,NOMBRE!H3,\" )\")","v":"ESTABLECIMIENTO/ESTRATEGIA:  ( )"}]
[{"$f":"CONCATENATE(\"MES: \", NOMBRE!B6, \" (\", NOMBRE!C6,NOMBRE!D6,\")\")","v":"MES:  ()"}]
[{"$f":"CONCATENATE(\"AÑO: \",NOMBRE!B7)","v":"AÑO: 2025"}]
[]
["HOJA","SECCIÓN","Nº Errores"]
["NOMBRE","Código comuna",{"$f":"+NOMBRE!AF2","v":1}]
["NOMBRE","Código establecimiento/estrategia",{"$f":"+NOMBRE!AF3","v":1}]
["NOMBRE","Código Mes",{"$f":"+NOMBRE!AF6","v":1}]
["B","CONSULTAS Y ATENCIÓN MEDICA ",{"$f":"SUM(B!B3102)","v":0}]
["B17","SECCION I: EXÁMENES DE DIAGNÓSTICO",0]
["B17","SECCION L: INTERVENCIONES QUIRÚRGICAS",0]
["B17","SECCIÓN M: INTERVENCIONES QUIRÚRGICAS POR TIPO DE INTERVENCIÓN ",0]
["B17","SECCIÓN R: OTROS TRASLADOS DE PACIENTES",0]
["TOTAL ERRORES",null,{"$f":"SUM(C8:C15)","v":3}]

{"sheet":"MACROS","index":4,"n_rows":7,"n_cols":2,"rows_kept":7,"cut":false,"hidden":false,"merged":[[0,0,0,13],[6,1,7,7]]}
["Hoja de Macros y Utilidades"]
[{"$f":"CONCATENATE(\"ESTABLECIMIENTO/ESTRATEGIA: \",NOMBRE!B2,\" (\",NOMBRE!C2,NOMBRE!D2,NOMBRE!E2,NOMBRE!F2,NOMBRE!G2,NOMBRE!H2,\" )\")","v":"ESTABLECIMIENTO/ESTRATEGIA:  ( )"}]
[]
[]
[null,"CREA UNA COPIA  DEL ARCHIVO  (TRANFORMA HOJAS A VALORES)\nA ESTE NUEVO ARCHIVO DEBERÁ ASIGNARLE UN NOMBRE"]
[null,"Contraseña para copia del archivo :DEIS"]
[null,"REVISE LA HOJA CONTROL, EXISTEN ERRORES"]